Workbook

Sheet READ ME
B2: Table of Contents (click to jump to section)
C3: IPM Results Viewer Overview
D4: Overview
D5: Beta-Test Disclaimer
C6: Data Views / Worksheets
C7: Navigation and Controls
D8: Workbook Navigation / Exporting Data:
D9: Dropdown Controls
C10: Historical Data
C11: RPE File Deep Dive
C16: IPM Results Viewer Overview
D17: Overview: The IPM Results Viewer is designed to allow a user to easily explore IPM case results via data visualizations. The viewer is pre-populated with data from the RPE files of IPM cases. This data includes details of IPM model plants, including the capacity, generation, heat input, emissions, pollution controls, retrofits, retirements, and new builds. The viewer does not currently contain cost data, including fuel prices, unit O&M costs, and system costs. This data may be found in the standard IPM output files. The data can be viewed on a state map, a state whisker chart, or line, column, and pie charts detailing outputs for specific states or the CONUS. Drop down boxes (highlighted in green or blue) allow users to filter data based on multiple characteristics, including plant and fuel types, presence or lack of pollution controls, retrofits, and if the unit is a fossil unit > 25 MW (a frequent proxy for units covered by various power sector regulations). Additionally, the actual data for an individual case can be viewed, or data can be displayed as a comparison (absolute or percent change) to other IPM cases or run years. Users also have advanced options to display emission rates or create fractions from the data (e.g., the fraction of generation that comes from coal steam units). To enable the Results Viewer to operate faster, the file will not attempt to update automatically while the user is changing field settings. Instead, the user must click the “Update” button after changing drop-down selections to update calculates and graphs. Finally, to add context to IPM projections, historical data is included; however, the user should take caution that some of the historical data may not be on a fully apples-to-apples basis with IPM projections based on accounting differences in EGU representation between reported data sets and IPM modeling projections. Similarly, models like IPM often include a final model run year that is not included in the analysis of results. This technique reduces the likelihood that modeling results in the last represented year will be skewed due to the modeling artifact of having to specify an end point in the planning horizon, whereas, in reality, economic decision-making will continue to take information into account from years beyond the model’s time horizon. This should be considered when assessing model projections from the last output year
D38: Beta-Test Disclaimer: This IPM Results Viewer is in a beta-testing state. It may have bugs or features that may need clarification or changes. If you find any errors or have any comments or questions, please send them to Jeremy Mark (mark.jeremy@epa.gov). It should be noted that the historic data currently included in this viewer is rough and incomplete. See the note on historic data below for details about how it was derived and its limitations.
C46: Data Views / Worksheets
D47: Run Log: This worksheet contains information describing the details of each IPM case loaded into this version of the IPM Results Viewer.
D50: Map: This worksheet contains a map that will display state-level outputs and color-code the states based on the data. Users can use the drop-down controls on the left (see Drop-Down Controls section for more details) to filter and change what data is displayed.
D53: Whisker: This worksheet contains a whisker chart that will display one or two state-level outputs. Users can use the drop-down controls on the left (see Drop-Down Controls section for more details) to filter and change what data is displayed.
D56: Emissions GWh Btu MW: This worksheet contains a variety of line, bar, and pie charts to display emissions, generation, heat input, and capacity outputs either nationally or for a user-chosen state. Users can use the drop-down controls on the left (see Drop-Down Controls section for more details) to filter and change what data is displayed.
D60: All Run Comparison: This worksheet contains a line chart that will display a single variable either nationally or for a user-chosen state across all cases in this version of the IPM Results Viewer. Users can use the drop-down controls on the left (see Drop-Down Controls section for more details) to filter and change what data is displayed.
D64: RPE Files: This worksheet contains the data from the RPE files for the IPM cases included in the viewer. It also contains additional data on model plant characteristics. This is described further in the RPE Files Deep Dive section of this document.
C68: Navigation and Controls
D69: Workbook Navigation / Exporting Data: The user can navigate to different worksheets in the IPM Results Viewer by either clicking the green worksheet tabs or clicking the green navigation buttons on each worksheet. Note that the Profile worksheet has two navigation buttons to flip between charts for emissions and generation/heat input/capacity. Some charts do not automatically update after changing filters (this helps the workbook run faster). To update the charts, click the update button. To reset the filters, click the reset button. Each worksheet has a button that allows users to export the data for a graph they have created, along with a screenshot of the graph. After clicking the button, the user will be asked to create a unique name for the worksheet that the data will be reported to and if they want the screenshot to include a picture of the control settings they had selected. Users can then use this exported, static data and photos for graphs or future reference/discussion.
D81: Dropdown Controls: On each worksheet, there are drop down controls (cells highlighted light green or light blue) that allow the user to choose what data is displayed and filter that data based on several different criteria. Below is a description of these various controls. Filters that are greyed out are either not active due to other selections the user has made or are inactive in this Beta-Test version.
E85: Primary vs Comparison Data: The set of data filters on all the worksheets, except the profile worksheet, are labeled either “Primary” or “Comparison.” Understanding which measures, cases, years, and dimensions to select for the primary and comparison case data is key to display the data you want to view. The function of the Primary and Comparison selections differs based on the display value type and is summarized in the chart below. You can also hover the cursor over the display value type on the worksheet to see a pop-up comment that contains this information.
E90: Table for choosing the right measure, runs, years, and dimensions for each display value type
F91: Display Value Type | H91: Primary Run/Dimensions | L91: Comparison Run/Dimensions
F92: Actual | H92: Data you want to view | L92: N/A
F93: Absolute Change | H93: How the [Primary Run/Year/Dimensions] | L93: Changes from the [Comparison Run/Year/Dimensions]
F94: Percent Change | H94: How the [Primary Run/Year/Dimensions] | L94: Changes from the [Comparison Run/Year/Dimensions]
F95: Fraction | H95: Numerator | L95: Denominator
F96: Emissions Rate* | H96: Emissions | L96: Generation or Heat Input
F97: Capacity Factor* | H97: Generation | L97: Capacity
F98: *Run, Year, Dimensions, and season of the metric should be (Annual or Summer) should match between the Primary and Comparison selections
E102: Run: This dropdown allows the user to choose the case from which the data will be displayed. A Description of the cases appears on the “Run Log” worksheet. Users can also choose to view Historical data.
E105: Year: This dropdown allows the user to choose the year from which the data will be displayed. The dropdown options will change between the list of IPM cases years and historical years, depending on what case is selected.
E108: Region: On some worksheets, the user can select the region of interest for the data. Currently, the user can choose to see data either aggregated for the contiguous United States (CONUS) or for a specific state. If the user selects “state”, a second dropdown becomes available allowing the user to pick the state of interest.
E112: Fuel Type: This dropdown allows the user to choose the year from which the data will be displayed. The dropdown options will change between the list of IPM run years and historical years, depending on what case is selected. Note that at the end of the list is an option “*Unit Did Not Operate” which can be used to filter for non-retired units that did not operate.
E116: Fossil >25 MW: This dropdown allows the user to choose to view either data for all units or just for units that are BOTH fossil-fired AND > 25 MW. Fossil-fired units > 25 MW are typically covered by EPA emission rules (like the CSAPR Update) and typically (but there are exceptions) report emissions to CAMD. This is a helpful filter when wanting to compare to historical data, as the current historical data for fossil-fired units is taken from CAMD data. See the section on historical data below for more information on how the historical data set was created and important data caveats.
E123: Existing/New/Retired: This dropdown allows the user to choose whether to view data for Existing and New (model built) units (the combination of which reflects the entire active fleet in the model), data for either Existing Units or New Units, or Retired Units (the latter being helpful to look at retired capacity).
E127: Plant Type: This dropdown allows the user to filter data based on the plant types in IPM. This is like the Plant Categories filter, which groups some plant types together. Users only need to use one filter or the other. These filters will likely be merged in future versions of this viewer.
E130: Plant Category: This dropdown allows the user to filter data based on the plant categories. While some of these categories have a 1-to-1 correspondence with plant types, others are a combination of plant types. This includes plant types Coal Steam and IGCC being combined in to a “Coal” category and all renewables (solar, wind, geothermal, biomass, and hydro) being grouped together. This filter and the Plant Type filter will likely be merged, with additional plant categories added, in future versions of this viewer.
E135: Plant Controls: This dropdown allows the user to filter data based on the types of post-combustion controls a unit has or does not have, as well as heat rate improvement (HRI) retrofits. “Any NOx control” includes either SCR or SNCR and “Any SO2 Control” includes either FGD or DSI; “No NOX Control” and “No SO2 Control” indicates the lack of either SCR/SNCR or FGD/DSI.
E139: Existing or New Controls: This dropdown allows the user to filter data based on if they have Existing or New post-combustion controls (notes that all HRI retrofits are considered new controls for the use of this filter). This filter only works when a specific post-combustion control is chosen for the “Plant Controls” filter (this excludes “Any NOx Control” and “Any SO2 Control).
E143: Comparison Type: Some graphs on the Profile worksheet have a dropdown option that allows the user to select the “comparison type.” This functions like the Display Value Type, but the only options are “Actual” or “Absolute Change.” If “Absolute Change” is selected, the user will then be able to use a further series of dropdowns to describe what case (or historic data) should the comparison be made to and if the comparison run year should be fixed or variable.
E148: Fixed or Parallel (Comparison): Some graphs have a dropdown option that allow the user to choose a fixed or parallel run year for a comparison. A parallel run year means that like run years will be compared among cases (i.e. 2021 vs 2021, 2030 vs 2030, etc.). Changes from historic data will not be shown if a parallel comparison is selected. Alternatively, selecting a fixed year for comparison means all data will be displayed as a change from the specific run year (for the specific case) or historic year selected.
E153: Aggregation: For the column and pie charts displaying Generation, Heat Input, and Capacity on the Profile worksheet, the user can select how the data should be aggregated. “Detailed” is the most granular view, showing all unit types in IPM. “Grouped” aggregates the detailed unit types into broader categories. Finally, “Highlight Single” allows the user to show a data single plant type or plant category and aggregates all other data into a single group.
E158: Show/Hide: On the “All Run Comparison” worksheet, users can use the drop-down boxes to either show or hide a series on the graph.
E160: Color: On the “All Run Comparison” worksheet, users can change the fill color of the cells to change the line colors in the graph.
E162: Sort By: On the “Whisker” worksheet, users can change the order the states are displayed on the whisker chart so they are sorted either alphabetically or in ascending or descending order.
C168: Historical Data
D169: Historical Data: The historical data in this beta version of the IPM Results Viewer is incomplete, but 1) may be helpful in many cases; 2) demonstrates the Results Viewer capability for displaying historic data; and 3) will be updated and refined in future versions. The data historical data in the Results Viewer includes NOx, SO2, and CO2 emissions, net summer capacity, heat input, and generation (gross generation for fossil units and net generation for non-fossil units). Data for fossil units is derived from CAMD Data. As such, it only includes units that report to this system, meaning that it tends to exclude fossil units less than 25 MW and some larger fossil units in Western states (particularly in California) that do not report CAMD data (as they are not covered by relevant EPA regulations requiring such reporting). Additionally, CAMD data is reported as gross generation, while IPM projects net generation levels; as a result, all comparisons including projected and historical generation will not be on an apples-to-apples basis due to this difference in gross (historical) versus net (projected) generation data. The historical data provided in the viewer for non-fossil units that do not report to CAMD (i.e. nuclear, hydro, wind, solar, geothermal, and other non-fossil technologies) were derived from EIA form 923. Finally, as it is a frequent point of reference, CO2 emissions for 2005 are included at the state level, but no other emission, generation, or heat input data is available for that year.
D187: Data Caveats:
E188: 1) No data is included for fossil-fired units that do not report to CAMD (i.e. fossil units < 25 MW and some fossil units > 25 MW units, primarily in California and other western states, that do not report to CAMD. Therefore, in comparing emissions or results for fossil units, it is recommended the user filter the results to only show fossil > 25 MW. Otherwise, the user should remember this data is not an apples-to-apples comparison when comparing IPM results and historical data 2) Historical generation data is a mix of gross generation (for fossil units) and net generation (for non-fossil units). IPM results are net generation. 3) As several large fossil units in California do not report CAMD data, the historical data (emissions, generation, and heat input) shown for California is significantly lower than it was. Therefore, users should be cognizant of this when interpreting historical data for California. When considering national-level data, the impact of this issue is much less noticeable. 4) For 2017 Historical Data, only emissions reported to CAMD are included. Generation and heat input are not included because non-fossil data for 2017 is not yet available.
C205: RPE File Deep Dive:
D206: RPE Files Deep Dive: The data that underlies this IPM Results Viewer comes from the RPE file, one of the output files of IPM. It contains data about the model plant characteristics and how they were projected to operate (heat input, generation, emissions, and retrofit/retirement/build decisions) in all run years of the model. The model plants, as described in the IPM documentation, are developed by aggregating similar units (by state, IPM region, unit type, fuel type, and controls). These model plants can be identified by their “UnitID” (a field in the RPE file). This UnitID refers specifically to model plants and does not relate to ORIS or CAMD IDs. To reduce the size of this IPM Results Viewer, this data is aggregated such that units in the same state and IPM region, with the same unit type (including controls) and fuel type are merged. The UnitIDs of the model plants that are aggregated in each row entry on the “RPE Files” worksheet are preserved in the “UnitID” column (column E). This field will have one or more UnitIDs, which can be used to trace model plants back to the RPE files (for instance, if one wanted to see how specific units operated instead of the aggregated unit). [note: historical data does not have entries in the UnitID column, as this parameter only applies to IPM model plants for which the model projects (future) run-year results] Users who want to understand what model plants are contributing to specific results can go to the “RPE Files” worksheet and filter the data to identify specific model plants (or aggregations of model plants) that underlie the results. The “RPE Files” worksheet includes data from the RPE files, along with additional data to describe units (for example, “plant category”) and formulas that determine if the data should or should not be included based on filters the user has selected on other worksheets.
D223: For IPM Run data (i.e. not the historical data):
E224: - Columns B-Y and AA come from the RPE files. - Columns A (case name), Z (unique capacity), AB-AF (if a unit is fossil, > 25 MW, Existing or New, plant type, and plant category) are data fields added to provide further description of each row, often by breaking out data contained in the original RPE file “Plant Type” field. The “Unique Capacity” field is added because the RPE file will list capacity for the same model plant multiple time if the model plant consumes two or more types of fuel. To address this, the capacity is only included the first time the model plant appears in the RPE file for each run year. - Columns AG-AQ indicate if various post-combustion controls are present on the model plant, based on the original RPE file “Plant Type” field. - Columns AR-AZ calculate if the control configuration for the model plant matches that selected by the user on the various worksheets (historical data does not include information about controls. Therefore, it will be excluded if the control filters are activated by the user).
D233: For All Data: Columns BB-BH calculate if the model plant or historical data matches all the criteria selected by the user on the various worksheets. These values are then referenced by formulas on the various output worksheets to check if the data for the data row should be included.

Sheet Run Log
A2: (runs highlighted in Green are included in this workbook)
C3: Data Viewer Name | D3: Run Describption
C5: Nov 2018 Updated Ref Case | D5: IPM v6 Nov 2018 updated Reference Case. See weblinks below for documentation
C7: See "Documentation for EPA's Power Sector Modeling Using IPM" and "Supplemental Documentation for Scenario Suite EPA’s Power Sector Modeling Platform v6 using IPM" for more information about the details of these run. https://www.epa.gov/airmarkets/clean-air-markets-power-sector-modeling

Sheet Map
B1: PRIMARY DIMENSIONS | D1: MEASURES | F1: DISPLAY VALUE TYPE | H1: COMPARISON DIMENSIONS | J1: COMPARISON MEASURES | L1: Categories and Sub-Categories | AD1: Display Value Formats | AR1: 969659.0918
B2: Fuel Type | D2: Fuel Consumption Summer TBtu | F2: Actual | H2: Fuel Type | J2: Fuel Consumption Summer TBtu | L2: Historic Years | M2: Year | N2: Region of Interest | O2: IPM Region | P2: State | Q2: State2 | R2: IPM Run | S2: Fuel Type | T2: Fossil >25 MW | U2: Existing, New, Retired | V2: Plant Type | W2: Plant Category | X2: Plant Controls | AD2: Fuel Consumption Winter TBtu | AE2: Decimal | AK2: PRIMARY CASE | AL2: Nov 2018 Updated Ref Case | AS2: =IF($AL$18="Percent Change","Percent",IF(OR($AL$18="Fraction",$AL$18="Emissions Rate"),"Decimal","Round")) -> Round | AY2: =IF($AK$51<>"",$AK$51,IF($AL$18="Actual",VLOOKUP(AL16,$V$38:$W$48,2,0), IF($AL$18="Absolute Change",IF(VLOOKUP(AL16,$V$38:$W$48,2,0)=VLOOKUP(AL33,$V$38:$W$48,2,0),"Change in "&VLOOKUP(AL16,$V$38:$W$48,2,0),"Unit of Measure Mismatch"), IF($AL$18="Percent Change",IF(AL16=AL33,"Percent Change of "&VLOOKUP(AL16,$V$38:$W$48,2,0),"Unit of Measure Mismatch"), IF($AL$18="Emissions Rate",IF(AND(NOT(ISERROR(SEARCH("tons",$AL$16))),OR(NOT(ISERROR(SEARCH("GWh",$AL$33))),NOT(ISERROR(SEARCH("TBtu",$AL$33))))),IF(ISERROR(SEARCH("Summer",$AL$16))<>ISERROR(SEARCH("Summer",$AL$33)),"Unit of Measure Mismatch","lbs "&LEFT($AL$16,3)&"/"&IF(RIGHT($AL$33,4)="TBtu","mmBtu","kWh")),"Unit of Measure Mismatch"), IF($AL$18="Fraction",IF(AL16=AL33,"Dimensionless Fraction or Ratio",VLOOKUP(AL16,$V$38:$W$48,2,0)&" / "&VLOOKUP(AL33,$V$38:$W$48,2,0)), IF(AND($AL$18="Capacity Factor",NOT(ISERROR(SEARCH("Generation",$AL$16))),NOT(ISERROR(SEARCH("Capacity",$AL$33)))),"Capacity Factor","ERROR"))))))) -> Thousand (short) tons NOx
B3: Fossil >25 MW | D3: Fuel Consumption Total TBtu | F3: Absolute Change | H3: Fossil >25 MW | J3: Fuel Consumption Total TBtu | L3: 2011 | M3: 2021 | N3: National | O3: ERC_FRNT | P3: AL | Q3: National | R3: Historic | S3: All Units | T3: All Units | U3: Existing and New | V3: All Units | W3: All Units | X3: All Units | AD3: Fuel Consumption Summer TBtu | AE3: Decimal | AP3: Primary Value | AQ3: Comparison Value | AR3: Display Value | AS3: Display Value Format | AT3: Display Color
B4: Existing or New Unit | D4: Generation Summer GWh | F4: Percent Change | H4: Existing or New Unit | J4: Generation Summer GWh | L4: 2012 | M4: 2023 | N4: State | O4: ERC_GWAY | P4: AR | Q4: AL | R4: Nov 2018 Updated Ref Case | S4: Biomass | T4: Only Fossil > 25 MW | U4: Existing | V4: Biomass | W4: Coal | X4: Both NOx and SO2 Post Combustion Controls | AD4: Fuel Consumption Total TBtu | AE4: Decimal | AK4: PRIMARY YEAR | AL4: 2021 | AO4: National | AP4: =SUM(AP5:AP68) -> 380.3532233 | AQ4: =SUM(AQ5:AQ68) -> 0 | AR4: =IFERROR(IF($AL$18="Actual",AP4,IF($AL$18="Absolute Change",AP4-AQ4,IF($AL$18="Percent Change",(AP4-AQ4)/AQ4,IF($AL$18="Emissions Rate",(AP4*2/AQ4),IF($AL$18="Capacity Factor",AP4*1000/(AQ4*IF(NOT(ISERROR(SEARCH("Summer",$AL$16))),3672,8760)),AP4/AQ4))))),"") -> 380.3532233 | AS4: =IF(AR4="","",IF($AS$2="Percent",TEXT(AR4,"##0%"),IF($AS$2="Decimal",TEXT(AR4,"0.00"),IF(ABS(AR4)>=100,TEXT(AR4,"###,###"),IF(ABS(AR4)>=10,TEXT(AR4,"##0.0"),IF(ABS(AR4)>=1,TEXT(AR4,"#0.00"),TEXT(AR4,"#0.000"))))))) -> 380
B5: Plant Type | D5: Generation Total GWh | F5: Fraction | H5: Plant Type | J5: Generation Total GWh | L5: 2013 | M5: 2025 | N5: IPM Region | O5: ERC_REST | P5: AZ | Q5: AR | S5: Coal | U5: New | V5: Coal Steam | W5: Combined Cycle | X5: Any NOx Post Combustion | AD5: Generation Winter GWh | AE5: Decimal | AO5: =IF($AL$6="state",P3,O3) -> AL | AP5: =IF(AO5=0,"",SUMIFS(CHOOSE(VLOOKUP($AL$16,'Lookup tables'!$AK$5:$AM$15,3,0), RPE_FuelConsumptionSummerTBtu, RPE_FuelConsumptionTotalTBtu, RPE_GenerationSummerGWh, RPE_GenerationTotalGWh, RPE_CO2EmissionsSummerThousandTons, RPE_CO2EmissionsTotalThousandTons, RPE_NOXEmissionsSummerThousandTons, RPE_NOXEmissionsTotalThousandTons, RPE_SO2EmissionsSummerThousandTons, RPE_SO2EmissionsTotalThousandTons, RPE_DispatchableCapacityMW), MeetPrimaryCriteria,"=1",IF($AL$6="IPM Region",RPE_IPMRegionGroupAcronym,RPE_State),"="&IF($AL$6="National","*",$AO5))) -> 5.931693297 | AQ5: =IF(AO5=0,"",IF($AL$18="Actual",0,SUMIFS(CHOOSE(VLOOKUP($AL$33,'Lookup tables'!$AK$5:$AM$15,3,0), RPE_FuelConsumptionSummerTBtu, RPE_FuelConsumptionTotalTBtu, RPE_GenerationSummerGWh, RPE_GenerationTotalGWh, RPE_CO2EmissionsSummerThousandTons, RPE_CO2EmissionsTotalThousandTons, RPE_NOXEmissionsSummerThousandTons, RPE_NOXEmissionsTotalThousandTons, RPE_SO2EmissionsSummerThousandTons, RPE_SO2EmissionsTotalThousandTons, RPE_DispatchableCapacityMW), MeetComparisonCriteria,"=1",IF($AL$6="IPM Region",RPE_IPMRegionGroupAcronym,RPE_State),"="&IF($AL$6="National","*",$AO5)))) -> 0 | AR5: =IFERROR(IF($AL$18="Actual",AP5,IF($AL$18="Absolute Change",AP5-AQ5,IF($AL$18="Percent Change",(AP5-AQ5)/AQ5,IF($AL$18="Emissions Rate",(AP5*2/AQ5),IF($AL$18="Capacity Factor",AP5*1000/(AQ5*IF(NOT(ISERROR(SEARCH("Summer",$AL$16))),3672,8760)),AP5/AQ5))))),"") -> 5.931693297 | AS5: =IF(AR5="","",IF($AS$2="Percent",TEXT(AR5,"##0%"),IF($AS$2="Decimal",TEXT(AR5,"0.00"),IF(ABS(AR5)>=100,TEXT(AR5,"###,###"),IF(ABS(AR5)>=10,TEXT(AR5,"##0.0"),IF(ABS(AR5)>=1,TEXT(AR5,"#0.00"),TEXT(AR5,"#0.000"))))))) -> 5.93 | AT5: =IF(OR(AR5="",0),16777215,IF(AR5<$BF$74,$BH$73,IF(AR5<$BF$75,$BH$74,IF(AR5<$BF$76,$BH$75,IF(AR5<$BF$77,BH$76,IF(AR5<$BF$78,$BH$78,IF(AR5<$BF$79,$BH$79,IF(AR5<$BF$80,$BH$80,$BH$81)))))))) -> 11854022
B6: Plant Category | D6: CO2 Emissions Summer Thousand Tons | F6: Emissions Rate | H6: Plant Category | J6: CO2 Emissions Summer Thousand Tons | L6: 2014 | M6: 2030 | O6: ERC_WEST | P6: CA | Q6: AZ | S6: Fwaste | U6: Retired | V6: Combined Cycle | W6: Combustion Turbine | X6: --SCR | AD6: Generation Summer GWh | AE6: Decimal | AK6: Regional Aggregation | AL6: State | AM6: =IF(AL6="State","RPE_State","RPE_RegionGroupAcronym") -> RPE_State | AO6: AR | AP6: =IF(AO6=0,"",SUMIFS(CHOOSE(VLOOKUP($AL$16,'Lookup tables'!$AK$5:$AM$15,3,0), RPE_FuelConsumptionSummerTBtu, RPE_FuelConsumptionTotalTBtu, RPE_GenerationSummerGWh, RPE_GenerationTotalGWh, RPE_CO2EmissionsSummerThousandTons, RPE_CO2EmissionsTotalThousandTons, RPE_NOXEmissionsSummerThousandTons, RPE_NOXEmissionsTotalThousandTons, RPE_SO2EmissionsSummerThousandTons, RPE_SO2EmissionsTotalThousandTons, RPE_DispatchableCapacityMW), MeetPrimaryCriteria,"=1",IF($AL$6="IPM Region",RPE_IPMRegionGroupAcronym,RPE_State),"="&IF($AL$6="National","*",$AO6))) -> 10.26995561 | AQ6: =IF(AO6=0,"",IF($AL$18="Actual",0,SUMIFS(CHOOSE(VLOOKUP($AL$33,'Lookup tables'!$AK$5:$AM$15,3,0), RPE_FuelConsumptionSummerTBtu, RPE_FuelConsumptionTotalTBtu, RPE_GenerationSummerGWh, RPE_GenerationTotalGWh, RPE_CO2EmissionsSummerThousandTons, RPE_CO2EmissionsTotalThousandTons, RPE_NOXEmissionsSummerThousandTons, RPE_NOXEmissionsTotalThousandTons, RPE_SO2EmissionsSummerThousandTons, RPE_SO2EmissionsTotalThousandTons, RPE_DispatchableCapacityMW), MeetComparisonCriteria,"=1",IF($AL$6="IPM Region",RPE_IPMRegionGroupAcronym,RPE_State),"="&IF($AL$6="National","*",$AO6)))) -> 0 | AR6: 10.26995561 | AS6: =IF(AR6="","",IF($AS$2="Percent",TEXT(AR6,"##0%"),IF($AS$2="Decimal",TEXT(AR6,"0.00"),IF(ABS(AR6)>=100,TEXT(AR6,"###,###"),IF(ABS(AR6)>=10,TEXT(AR6,"##0.0"),IF(ABS(AR6)>=1,TEXT(AR6,"#0.00"),TEXT(AR6,"#0.000"))))))) -> 10.3 | AT6: =IF(OR(AR6="",0),16777215,IF(AR6<$BF$74,$BH$73,IF(AR6<$BF$75,$BH$74,IF(AR6<$BF$76,$BH$75,IF(AR6<$BF$77,BH$76,IF(AR6<$BF$78,$BH$78,IF(AR6<$BF$79,$BH$79,IF(AR6<$BF$80,$BH$80,$BH$81)))))))) -> 11854022
B7: Plant Controls | D7: CO2 Emissions Total Thousand Tons | F7: Capacity Factor | H7: Plant Controls | J7: CO2 Emissions Total Thousand Tons | L7: 2015 | M7: 2035 | O7: FRCC | P7: CO | Q7: CA | S7: Geothermal | V7: Combustion Turbine | W7: Nuclear | X7: --SNCR | AD7: Generation Total GWh | AE7: Decimal | AO7: AZ | AP7: =IF(AO7=0,"",SUMIFS(CHOOSE(VLOOKUP($AL$16,'Lookup tables'!$AK$5:$AM$15,3,0), RPE_FuelConsumptionSummerTBtu, RPE_FuelConsumptionTotalTBtu, RPE_GenerationSummerGWh, RPE_GenerationTotalGWh, RPE_CO2EmissionsSummerThousandTons, RPE_CO2EmissionsTotalThousandTons, RPE_NOXEmissionsSummerThousandTons, RPE_NOXEmissionsTotalThousandTons, RPE_SO2EmissionsSummerThousandTons, RPE_SO2EmissionsTotalThousandTons, RPE_DispatchableCapacityMW), MeetPrimaryCriteria,"=1",IF($AL$6="IPM Region",RPE_IPMRegionGroupAcronym,RPE_State),"="&IF($AL$6="National","*",$AO7))) -> 5.468095407 | AQ7: =IF(AO7=0,"",IF($AL$18="Actual",0,SUMIFS(CHOOSE(VLOOKUP($AL$33,'Lookup tables'!$AK$5:$AM$15,3,0), RPE_FuelConsumptionSummerTBtu, RPE_FuelConsumptionTotalTBtu, RPE_GenerationSummerGWh, RPE_GenerationTotalGWh, RPE_CO2EmissionsSummerThousandTons, RPE_CO2EmissionsTotalThousandTons, RPE_NOXEmissionsSummerThousandTons, RPE_NOXEmissionsTotalThousandTons, RPE_SO2EmissionsSummerThousandTons, RPE_SO2EmissionsTotalThousandTons, RPE_DispatchableCapacityMW), MeetComparisonCriteria,"=1",IF($AL$6="IPM Region",RPE_IPMRegionGroupAcronym,RPE_State),"="&IF($AL$6="National","*",$AO7)))) -> 0 | AR7: 5.468095407 | AS7: 5.47 | AT7: 11854022
D8: NOX Emissions Summer Thousand Tons | J8: NOX Emissions Summer Thousand Tons | L8: 2016 | M8: 2040 | O8: MAP_WAUE | P8: CT | Q8: CO | S8: Hydro | V8: Fossil Other | W8: O/G Steam | X8: Any SO2 Post Combustion | AD8: CO2 Emissions Winter Thousand Tons | AE8: Decimal | AK8: PRIMARY DIMENSIONS | AO8: CA | AP8: =IF(AO8=0,"",SUMIFS(CHOOSE(VLOOKUP($AL$16,'Lookup tables'!$AK$5:$AM$15,3,0), RPE_FuelConsumptionSummerTBtu, RPE_FuelConsumptionTotalTBtu, RPE_GenerationSummerGWh, RPE_GenerationTotalGWh, RPE_CO2EmissionsSummerThousandTons, RPE_CO2EmissionsTotalThousandTons, RPE_NOXEmissionsSummerThousandTons, RPE_NOXEmissionsTotalThousandTons, RPE_SO2EmissionsSummerThousandTons, RPE_SO2EmissionsTotalThousandTons, RPE_DispatchableCapacityMW), MeetPrimaryCriteria,"=1",IF($AL$6="IPM Region",RPE_IPMRegionGroupAcronym,RPE_State),"="&IF($AL$6="National","*",$AO8))) -> 2.406494788 | AQ8: =IF(AO8=0,"",IF($AL$18="Actual",0,SUMIFS(CHOOSE(VLOOKUP($AL$33,'Lookup tables'!$AK$5:$AM$15,3,0), RPE_FuelConsumptionSummerTBtu, RPE_FuelConsumptionTotalTBtu, RPE_GenerationSummerGWh, RPE_GenerationTotalGWh, RPE_CO2EmissionsSummerThousandTons, RPE_CO2EmissionsTotalThousandTons, RPE_NOXEmissionsSummerThousandTons, RPE_NOXEmissionsTotalThousandTons, RPE_SO2EmissionsSummerThousandTons, RPE_SO2EmissionsTotalThousandTons, RPE_DispatchableCapacityMW), MeetComparisonCriteria,"=1",IF($AL$6="IPM Region",RPE_IPMRegionGroupAcronym,RPE_State),"="&IF($AL$6="National","*",$AO8)))) -> 0 | AR8: 2.406494788 | AS8: 2.41 | AT8: 11854022
D9: NOX Emissions Total Thousand Tons | J9: NOX Emissions Total Thousand Tons | L9: 2017 | M9: 2045 | O9: MIS_IA | P9: DC | Q9: CT | S9: LF Gas | V9: Fuel Cell | W9: Other | X9: --FGD | AD9: CO2 Emissions Summer Thousand Tons | AE9: Decimal | AK9: Fuel Type | AL9: All Units | AM9: RPE_FuelType | AO9: CO | AP9: =IF(AO9=0,"",SUMIFS(CHOOSE(VLOOKUP($AL$16,'Lookup tables'!$AK$5:$AM$15,3,0), RPE_FuelConsumptionSummerTBtu, RPE_FuelConsumptionTotalTBtu, RPE_GenerationSummerGWh, RPE_GenerationTotalGWh, RPE_CO2EmissionsSummerThousandTons, RPE_CO2EmissionsTotalThousandTons, RPE_NOXEmissionsSummerThousandTons, RPE_NOXEmissionsTotalThousandTons, RPE_SO2EmissionsSummerThousandTons, RPE_SO2EmissionsTotalThousandTons, RPE_DispatchableCapacityMW), MeetPrimaryCriteria,"=1",IF($AL$6="IPM Region",RPE_IPMRegionGroupAcronym,RPE_State),"="&IF($AL$6="National","*",$AO9))) -> 8.500427557 | AQ9: =IF(AO9=0,"",IF($AL$18="Actual",0,SUMIFS(CHOOSE(VLOOKUP($AL$33,'Lookup tables'!$AK$5:$AM$15,3,0), RPE_FuelConsumptionSummerTBtu, RPE_FuelConsumptionTotalTBtu, RPE_GenerationSummerGWh, RPE_GenerationTotalGWh, RPE_CO2EmissionsSummerThousandTons, RPE_CO2EmissionsTotalThousandTons, RPE_NOXEmissionsSummerThousandTons, RPE_NOXEmissionsTotalThousandTons, RPE_SO2EmissionsSummerThousandTons, RPE_SO2EmissionsTotalThousandTons, RPE_DispatchableCapacityMW), MeetComparisonCriteria,"=1",IF($AL$6="IPM Region",RPE_IPMRegionGroupAcronym,RPE_State),"="&IF($AL$6="National","*",$AO9)))) -> 0 | AR9: 8.500427557 | AS9: 8.50 | AT9: 11854022
D10: SO2 Emissions Summer Thousand Tons | J10: SO2 Emissions Summer Thousand Tons | L10: 2005 | M10: 2050 | O10: MIS_IL | P10: DE | Q10: DC | S10: MSW | V10: Geothermal | W10: Renewable | X10: --DSI | AD10: CO2 Emissions Total Thousand Tons | AE10: Decimal | AK10: Fossil >25 MW | AL10: All Units | AM10: RPE_Fossil25MW | AO10: CT | AP10: =IF(AO10=0,"",SUMIFS(CHOOSE(VLOOKUP($AL$16,'Lookup tables'!$AK$5:$AM$15,3,0), RPE_FuelConsumptionSummerTBtu, RPE_FuelConsumptionTotalTBtu, RPE_GenerationSummerGWh, RPE_GenerationTotalGWh, RPE_CO2EmissionsSummerThousandTons, RPE_CO2EmissionsTotalThousandTons, RPE_NOXEmissionsSummerThousandTons, RPE_NOXEmissionsTotalThousandTons, RPE_SO2EmissionsSummerThousandTons, RPE_SO2EmissionsTotalThousandTons, RPE_DispatchableCapacityMW), MeetPrimaryCriteria,"=1",IF($AL$6="IPM Region",RPE_IPMRegionGroupAcronym,RPE_State),"="&IF($AL$6="National","*",$AO10))) -> 1.943951167 | AQ10: =IF(AO10=0,"",IF($AL$18="Actual",0,SUMIFS(CHOOSE(VLOOKUP($AL$33,'Lookup tables'!$AK$5:$AM$15,3,0), RPE_FuelConsumptionSummerTBtu, RPE_FuelConsumptionTotalTBtu, RPE_GenerationSummerGWh, RPE_GenerationTotalGWh, RPE_CO2EmissionsSummerThousandTons, RPE_CO2EmissionsTotalThousandTons, RPE_NOXEmissionsSummerThousandTons, RPE_NOXEmissionsTotalThousandTons, RPE_SO2EmissionsSummerThousandTons, RPE_SO2EmissionsTotalThousandTons, RPE_DispatchableCapacityMW), MeetComparisonCriteria,"=1",IF($AL$6="IPM Region",RPE_IPMRegionGroupAcronym,RPE_State),"="&IF($AL$6="National","*",$AO10)))) -> 0 | AR10: 1.943951167 | AS10: 1.94 | AT10: 11854022
D11: SO2 Emissions Total Thousand Tons | J11: SO2 Emissions Total Thousand Tons | O11: MIS_INKY | P11: FL | Q11: DE | S11: NaturalGas | V11: Hydro | W11: Coal w/CCS | X11: ACI | AD11: NOX Emissions Winter Thousand Tons | AE11: Decimal | AK11: Existing/New/Retired | AL11: Existing and New | AM11: RPE_ExistingorNewUnit | AO11: DC | AP11: =IF(AO11=0,"",SUMIFS(CHOOSE(VLOOKUP($AL$16,'Lookup tables'!$AK$5:$AM$15,3,0), RPE_FuelConsumptionSummerTBtu, RPE_FuelConsumptionTotalTBtu, RPE_GenerationSummerGWh, RPE_GenerationTotalGWh, RPE_CO2EmissionsSummerThousandTons, RPE_CO2EmissionsTotalThousandTons, RPE_NOXEmissionsSummerThousandTons, RPE_NOXEmissionsTotalThousandTons, RPE_SO2EmissionsSummerThousandTons, RPE_SO2EmissionsTotalThousandTons, RPE_DispatchableCapacityMW), MeetPrimaryCriteria,"=1",IF($AL$6="IPM Region",RPE_IPMRegionGroupAcronym,RPE_State),"="&IF($AL$6="National","*",$AO11))) -> 0.0008477801257 | AQ11: =IF(AO11=0,"",IF($AL$18="Actual",0,SUMIFS(CHOOSE(VLOOKUP($AL$33,'Lookup tables'!$AK$5:$AM$15,3,0), RPE_FuelConsumptionSummerTBtu, RPE_FuelConsumptionTotalTBtu, RPE_GenerationSummerGWh, RPE_GenerationTotalGWh, RPE_CO2EmissionsSummerThousandTons, RPE_CO2EmissionsTotalThousandTons, RPE_NOXEmissionsSummerThousandTons, RPE_NOXEmissionsTotalThousandTons, RPE_SO2EmissionsSummerThousandTons, RPE_SO2EmissionsTotalThousandTons, RPE_DispatchableCapacityMW), MeetComparisonCriteria,"=1",IF($AL$6="IPM Region",RPE_IPMRegionGroupAcronym,RPE_State),"="&IF($AL$6="National","*",$AO11)))) -> 0 | AR11: 0.0008477801257 | AS11: 0.001 | AT11: 11854022
D12: Dispatchable Capacity MW | J12: Dispatchable Capacity MW | O12: MIS_LMI | P12: GA | Q12: FL | S12: None | V12: IGCC | W12: NGCC w/CCS | X12: C2G | AD12: NOX Emissions Summer Thousand Tons | AE12: Decimal | AK12: Plant Type | AL12: All Units | AM12: RPE_PlantType | AO12: DE | AP12: =IF(AO12=0,"",SUMIFS(CHOOSE(VLOOKUP($AL$16,'Lookup tables'!$AK$5:$AM$15,3,0), RPE_FuelConsumptionSummerTBtu, RPE_FuelConsumptionTotalTBtu, RPE_GenerationSummerGWh, RPE_GenerationTotalGWh, RPE_CO2EmissionsSummerThousandTons, RPE_CO2EmissionsTotalThousandTons, RPE_NOXEmissionsSummerThousandTons, RPE_NOXEmissionsTotalThousandTons, RPE_SO2EmissionsSummerThousandTons, RPE_SO2EmissionsTotalThousandTons, RPE_DispatchableCapacityMW), MeetPrimaryCriteria,"=1",IF($AL$6="IPM Region",RPE_IPMRegionGroupAcronym,RPE_State),"="&IF($AL$6="National","*",$AO12))) -> 0.2427265003 | AQ12: =IF(AO12=0,"",IF($AL$18="Actual",0,SUMIFS(CHOOSE(VLOOKUP($AL$33,'Lookup tables'!$AK$5:$AM$15,3,0), RPE_FuelConsumptionSummerTBtu, RPE_FuelConsumptionTotalTBtu, RPE_GenerationSummerGWh, RPE_GenerationTotalGWh, RPE_CO2EmissionsSummerThousandTons, RPE_CO2EmissionsTotalThousandTons, RPE_NOXEmissionsSummerThousandTons, RPE_NOXEmissionsTotalThousandTons, RPE_SO2EmissionsSummerThousandTons, RPE_SO2EmissionsTotalThousandTons, RPE_DispatchableCapacityMW), MeetComparisonCriteria,"=1",IF($AL$6="IPM Region",RPE_IPMRegionGroupAcronym,RPE_State),"="&IF($AL$6="National","*",$AO12)))) -> 0 | AR12: 0.2427265003 | AS12: 0.243 | AT12: 11854022
O13: MIS_MAPP | P13: IA | Q13: GA | S13: Non-Fossil | V13: International Imports | X13: No NOx Post Combustion Controls | AD13: NOX Emissions Total Thousand Tons | AE13: Decimal | AK13: Plant Category | AL13: All Units | AM13: RPE_PlantCategory | AO13: FL | AP13: =IF(AO13=0,"",SUMIFS(CHOOSE(VLOOKUP($AL$16,'Lookup tables'!$AK$5:$AM$15,3,0), RPE_FuelConsumptionSummerTBtu, RPE_FuelConsumptionTotalTBtu, RPE_GenerationSummerGWh, RPE_GenerationTotalGWh, RPE_CO2EmissionsSummerThousandTons, RPE_CO2EmissionsTotalThousandTons, RPE_NOXEmissionsSummerThousandTons, RPE_NOXEmissionsTotalThousandTons, RPE_SO2EmissionsSummerThousandTons, RPE_SO2EmissionsTotalThousandTons, RPE_DispatchableCapacityMW), MeetPrimaryCriteria,"=1",IF($AL$6="IPM Region",RPE_IPMRegionGroupAcronym,RPE_State),"="&IF($AL$6="National","*",$AO13))) -> 19.58311013 | AQ13: =IF(AO13=0,"",IF($AL$18="Actual",0,SUMIFS(CHOOSE(VLOOKUP($AL$33,'Lookup tables'!$AK$5:$AM$15,3,0), RPE_FuelConsumptionSummerTBtu, RPE_FuelConsumptionTotalTBtu, RPE_GenerationSummerGWh, RPE_GenerationTotalGWh, RPE_CO2EmissionsSummerThousandTons, RPE_CO2EmissionsTotalThousandTons, RPE_NOXEmissionsSummerThousandTons, RPE_NOXEmissionsTotalThousandTons, RPE_SO2EmissionsSummerThousandTons, RPE_SO2EmissionsTotalThousandTons, RPE_DispatchableCapacityMW), MeetComparisonCriteria,"=1",IF($AL$6="IPM Region",RPE_IPMRegionGroupAcronym,RPE_State),"="&IF($AL$6="National","*",$AO13)))) -> 0 | AR13: 19.58311013 | AS13: 19.6 | AT13: 9359529
O14: MIS_MIDA | P14: ID | Q14: IA | S14: Nuclear | V14: Landfill Gas | X14: No SO2 Post Combustion Controls | AD14: SO2 Emissions Winter Thousand Tons | AE14: Decimal | AK14: Control/Retrofit Types | AL14: All Units | AM14: =MATCH(AL14,Controls,0) -> 1 | AO14: GA | AP14: =IF(AO14=0,"",SUMIFS(CHOOSE(VLOOKUP($AL$16,'Lookup tables'!$AK$5:$AM$15,3,0), RPE_FuelConsumptionSummerTBtu, RPE_FuelConsumptionTotalTBtu, RPE_GenerationSummerGWh, RPE_GenerationTotalGWh, RPE_CO2EmissionsSummerThousandTons, RPE_CO2EmissionsTotalThousandTons, RPE_NOXEmissionsSummerThousandTons, RPE_NOXEmissionsTotalThousandTons, RPE_SO2EmissionsSummerThousandTons, RPE_SO2EmissionsTotalThousandTons, RPE_DispatchableCapacityMW), MeetPrimaryCriteria,"=1",IF($AL$6="IPM Region",RPE_IPMRegionGroupAcronym,RPE_State),"="&IF($AL$6="National","*",$AO14))) -> 8.00158894 | AQ14: =IF(AO14=0,"",IF($AL$18="Actual",0,SUMIFS(CHOOSE(VLOOKUP($AL$33,'Lookup tables'!$AK$5:$AM$15,3,0), RPE_FuelConsumptionSummerTBtu, RPE_FuelConsumptionTotalTBtu, RPE_GenerationSummerGWh, RPE_GenerationTotalGWh, RPE_CO2EmissionsSummerThousandTons, RPE_CO2EmissionsTotalThousandTons, RPE_NOXEmissionsSummerThousandTons, RPE_NOXEmissionsTotalThousandTons, RPE_SO2EmissionsSummerThousandTons, RPE_SO2EmissionsTotalThousandTons, RPE_DispatchableCapacityMW), MeetComparisonCriteria,"=1",IF($AL$6="IPM Region",RPE_IPMRegionGroupAcronym,RPE_State),"="&IF($AL$6="National","*",$AO14)))) -> 0 | AR14: 8.00158894 | AS14: 8.00 | AT14: 11854022
O15: MIS_MNWI | P15: IL | Q15: ID | S15: Oil | V15: Non-Fossil Other | X15: HRI | AD15: SO2 Emissions Summer Thousand Tons | AE15: Decimal | AK15: Existing or New Controls | AL15: All Controls | AO15: IA | AP15: =IF(AO15=0,"",SUMIFS(CHOOSE(VLOOKUP($AL$16,'Lookup tables'!$AK$5:$AM$15,3,0), RPE_FuelConsumptionSummerTBtu, RPE_FuelConsumptionTotalTBtu, RPE_GenerationSummerGWh, RPE_GenerationTotalGWh, RPE_CO2EmissionsSummerThousandTons, RPE_CO2EmissionsTotalThousandTons, RPE_NOXEmissionsSummerThousandTons, RPE_NOXEmissionsTotalThousandTons, RPE_SO2EmissionsSummerThousandTons, RPE_SO2EmissionsTotalThousandTons, RPE_DispatchableCapacityMW), MeetPrimaryCriteria,"=1",IF($AL$6="IPM Region",RPE_IPMRegionGroupAcronym,RPE_State),"="&IF($AL$6="National","*",$AO15))) -> 10.88956537 | AQ15: =IF(AO15=0,"",IF($AL$18="Actual",0,SUMIFS(CHOOSE(VLOOKUP($AL$33,'Lookup tables'!$AK$5:$AM$15,3,0), RPE_FuelConsumptionSummerTBtu, RPE_FuelConsumptionTotalTBtu, RPE_GenerationSummerGWh, RPE_GenerationTotalGWh, RPE_CO2EmissionsSummerThousandTons, RPE_CO2EmissionsTotalThousandTons, RPE_NOXEmissionsSummerThousandTons, RPE_NOXEmissionsTotalThousandTons, RPE_SO2EmissionsSummerThousandTons, RPE_SO2EmissionsTotalThousandTons, RPE_DispatchableCapacityMW), MeetComparisonCriteria,"=1",IF($AL$6="IPM Region",RPE_IPMRegionGroupAcronym,RPE_State),"="&IF($AL$6="National","*",$AO15)))) -> 0 | AR15: 10.88956537 | AS15: 10.9 | AT15: 11854022
O16: MIS_MO | P16: IN | Q16: IL | S16: Pet. Coke | V16: Nuclear | X16: CCS | AD16: SO2 Emissions Total Thousand Tons | AE16: Decimal | AK16: PRIMARY MEASURE | AL16: NOX Emissions Summer Thousand Tons | AM16: =VLOOKUP(AL16,'Lookup tables'!$AD$5:$AF$68,3,0) -> RPE_NOXEmissionsSummerThousandTons | AO16: ID | AP16: =IF(AO16=0,"",SUMIFS(CHOOSE(VLOOKUP($AL$16,'Lookup tables'!$AK$5:$AM$15,3,0), RPE_FuelConsumptionSummerTBtu, RPE_FuelConsumptionTotalTBtu, RPE_GenerationSummerGWh, RPE_GenerationTotalGWh, RPE_CO2EmissionsSummerThousandTons, RPE_CO2EmissionsTotalThousandTons, RPE_NOXEmissionsSummerThousandTons, RPE_NOXEmissionsTotalThousandTons, RPE_SO2EmissionsSummerThousandTons, RPE_SO2EmissionsTotalThousandTons, RPE_DispatchableCapacityMW), MeetPrimaryCriteria,"=1",IF($AL$6="IPM Region",RPE_IPMRegionGroupAcronym,RPE_State),"="&IF($AL$6="National","*",$AO16))) -> 0.08906456926 | AQ16: =IF(AO16=0,"",IF($AL$18="Actual",0,SUMIFS(CHOOSE(VLOOKUP($AL$33,'Lookup tables'!$AK$5:$AM$15,3,0), RPE_FuelConsumptionSummerTBtu, RPE_FuelConsumptionTotalTBtu, RPE_GenerationSummerGWh, RPE_GenerationTotalGWh, RPE_CO2EmissionsSummerThousandTons, RPE_CO2EmissionsTotalThousandTons, RPE_NOXEmissionsSummerThousandTons, RPE_NOXEmissionsTotalThousandTons, RPE_SO2EmissionsSummerThousandTons, RPE_SO2EmissionsTotalThousandTons, RPE_DispatchableCapacityMW), MeetComparisonCriteria,"=1",IF($AL$6="IPM Region",RPE_IPMRegionGroupAcronym,RPE_State),"="&IF($AL$6="National","*",$AO16)))) -> 0 | AR16: 0.08906456926 | AS16: 0.089 | AT16: 11854022
O17: MIS_WUMS | P17: KS | Q17: IN | S17: Pumps | V17: O/G Steam | AD17: Dispatchable Capacity MW | AE17: Whole | AO17: IL | AP17: =IF(AO17=0,"",SUMIFS(CHOOSE(VLOOKUP($AL$16,'Lookup tables'!$AK$5:$AM$15,3,0), RPE_FuelConsumptionSummerTBtu, RPE_FuelConsumptionTotalTBtu, RPE_GenerationSummerGWh, RPE_GenerationTotalGWh, RPE_CO2EmissionsSummerThousandTons, RPE_CO2EmissionsTotalThousandTons, RPE_NOXEmissionsSummerThousandTons, RPE_NOXEmissionsTotalThousandTons, RPE_SO2EmissionsSummerThousandTons, RPE_SO2EmissionsTotalThousandTons, RPE_DispatchableCapacityMW), MeetPrimaryCriteria,"=1",IF($AL$6="IPM Region",RPE_IPMRegionGroupAcronym,RPE_State),"="&IF($AL$6="National","*",$AO17))) -> 13.0163061 | AQ17: =IF(AO17=0,"",IF($AL$18="Actual",0,SUMIFS(CHOOSE(VLOOKUP($AL$33,'Lookup tables'!$AK$5:$AM$15,3,0), RPE_FuelConsumptionSummerTBtu, RPE_FuelConsumptionTotalTBtu, RPE_GenerationSummerGWh, RPE_GenerationTotalGWh, RPE_CO2EmissionsSummerThousandTons, RPE_CO2EmissionsTotalThousandTons, RPE_NOXEmissionsSummerThousandTons, RPE_NOXEmissionsTotalThousandTons, RPE_SO2EmissionsSummerThousandTons, RPE_SO2EmissionsTotalThousandTons, RPE_DispatchableCapacityMW), MeetComparisonCriteria,"=1",IF($AL$6="IPM Region",RPE_IPMRegionGroupAcronym,RPE_State),"="&IF($AL$6="National","*",$AO17)))) -> 0 | AR17: 13.0163061 | AS17: 13.0 | AT17: 9359529
D18: NOT INCLUDED | J18: NOT INCLUDED | O18: NENG_CT | P18: KY | Q18: KS | S18: Solar | V18: Offshore Wind | AK18: DISPLAY VALUE TYPE | AL18: Actual | AO18: IN | AP18: =IF(AO18=0,"",SUMIFS(CHOOSE(VLOOKUP($AL$16,'Lookup tables'!$AK$5:$AM$15,3,0), RPE_FuelConsumptionSummerTBtu, RPE_FuelConsumptionTotalTBtu, RPE_GenerationSummerGWh, RPE_GenerationTotalGWh, RPE_CO2EmissionsSummerThousandTons, RPE_CO2EmissionsTotalThousandTons, RPE_NOXEmissionsSummerThousandTons, RPE_NOXEmissionsTotalThousandTons, RPE_SO2EmissionsSummerThousandTons, RPE_SO2EmissionsTotalThousandTons, RPE_DispatchableCapacityMW), MeetPrimaryCriteria,"=1",IF($AL$6="IPM Region",RPE_IPMRegionGroupAcronym,RPE_State),"="&IF($AL$6="National","*",$AO18))) -> 16.32433115 | AQ18: =IF(AO18=0,"",IF($AL$18="Actual",0,SUMIFS(CHOOSE(VLOOKUP($AL$33,'Lookup tables'!$AK$5:$AM$15,3,0), RPE_FuelConsumptionSummerTBtu, RPE_FuelConsumptionTotalTBtu, RPE_GenerationSummerGWh, RPE_GenerationTotalGWh, RPE_CO2EmissionsSummerThousandTons, RPE_CO2EmissionsTotalThousandTons, RPE_NOXEmissionsSummerThousandTons, RPE_NOXEmissionsTotalThousandTons, RPE_SO2EmissionsSummerThousandTons, RPE_SO2EmissionsTotalThousandTons, RPE_DispatchableCapacityMW), MeetComparisonCriteria,"=1",IF($AL$6="IPM Region",RPE_IPMRegionGroupAcronym,RPE_State),"="&IF($AL$6="National","*",$AO18)))) -> 0 | AR18: 16.32433115 | AS18: 16.3 | AT18: 9359529 | BH18: ="< "&BI74 -> < -33 | BJ18: 801923
D19: Fuel Consumption Winter TBtu | J19: Fuel Consumption Winter TBtu | O19: NENG_ME | P19: LA | Q19: KY | S19: Tires | V19: Pumped Storage | AO19: KS | AP19: =IF(AO19=0,"",SUMIFS(CHOOSE(VLOOKUP($AL$16,'Lookup tables'!$AK$5:$AM$15,3,0), RPE_FuelConsumptionSummerTBtu, RPE_FuelConsumptionTotalTBtu, RPE_GenerationSummerGWh, RPE_GenerationTotalGWh, RPE_CO2EmissionsSummerThousandTons, RPE_CO2EmissionsTotalThousandTons, RPE_NOXEmissionsSummerThousandTons, RPE_NOXEmissionsTotalThousandTons, RPE_SO2EmissionsSummerThousandTons, RPE_SO2EmissionsTotalThousandTons, RPE_DispatchableCapacityMW), MeetPrimaryCriteria,"=1",IF($AL$6="IPM Region",RPE_IPMRegionGroupAcronym,RPE_State),"="&IF($AL$6="National","*",$AO19))) -> 7.986543045 | AQ19: =IF(AO19=0,"",IF($AL$18="Actual",0,SUMIFS(CHOOSE(VLOOKUP($AL$33,'Lookup tables'!$AK$5:$AM$15,3,0), RPE_FuelConsumptionSummerTBtu, RPE_FuelConsumptionTotalTBtu, RPE_GenerationSummerGWh, RPE_GenerationTotalGWh, RPE_CO2EmissionsSummerThousandTons, RPE_CO2EmissionsTotalThousandTons, RPE_NOXEmissionsSummerThousandTons, RPE_NOXEmissionsTotalThousandTons, RPE_SO2EmissionsSummerThousandTons, RPE_SO2EmissionsTotalThousandTons, RPE_DispatchableCapacityMW), MeetComparisonCriteria,"=1",IF($AL$6="IPM Region",RPE_IPMRegionGroupAcronym,RPE_State),"="&IF($AL$6="National","*",$AO19)))) -> 0 | AR19: 7.986543045 | AS19: 7.99 | AT19: 11854022 | BH19: ="between "&BI74&" and "&BI75 -> between -33 and -22 | BJ19: 1137094
D20: Generation Winter GWh | J20: Generation Winter GWh | O20: NENGREST | P20: MA | Q20: LA | S20: Waste Coal | V20: Solar PV | AO20: KY | AP20: =IF(AO20=0,"",SUMIFS(CHOOSE(VLOOKUP($AL$16,'Lookup tables'!$AK$5:$AM$15,3,0), RPE_FuelConsumptionSummerTBtu, RPE_FuelConsumptionTotalTBtu, RPE_GenerationSummerGWh, RPE_GenerationTotalGWh, RPE_CO2EmissionsSummerThousandTons, RPE_CO2EmissionsTotalThousandTons, RPE_NOXEmissionsSummerThousandTons, RPE_NOXEmissionsTotalThousandTons, RPE_SO2EmissionsSummerThousandTons, RPE_SO2EmissionsTotalThousandTons, RPE_DispatchableCapacityMW), MeetPrimaryCriteria,"=1",IF($AL$6="IPM Region",RPE_IPMRegionGroupAcronym,RPE_State),"="&IF($AL$6="National","*",$AO20))) -> 10.01319042 | AQ20: =IF(AO20=0,"",IF($AL$18="Actual",0,SUMIFS(CHOOSE(VLOOKUP($AL$33,'Lookup tables'!$AK$5:$AM$15,3,0), RPE_FuelConsumptionSummerTBtu, RPE_FuelConsumptionTotalTBtu, RPE_GenerationSummerGWh, RPE_GenerationTotalGWh, RPE_CO2EmissionsSummerThousandTons, RPE_CO2EmissionsTotalThousandTons, RPE_NOXEmissionsSummerThousandTons, RPE_NOXEmissionsTotalThousandTons, RPE_SO2EmissionsSummerThousandTons, RPE_SO2EmissionsTotalThousandTons, RPE_DispatchableCapacityMW), MeetComparisonCriteria,"=1",IF($AL$6="IPM Region",RPE_IPMRegionGroupAcronym,RPE_State),"="&IF($AL$6="National","*",$AO20)))) -> 0 | AR20: 10.01319042 | AS20: 10.0 | AT20: 11854022 | BH20: ="between "&BI75&" and "&BI76 -> between -22 and -11 | BJ20: 8696052
D21: CO2 Emissions Winter Thousand Tons | J21: CO2 Emissions Winter Thousand Tons | O21: NY_Z_A&B | P21: MD | Q21: MA | S21: Wind | V21: Solar Thermal | AK21: COMPARISON CASE | AL21: Nov 2018 Updated Ref Case | AO21: LA | AP21: =IF(AO21=0,"",SUMIFS(CHOOSE(VLOOKUP($AL$16,'Lookup tables'!$AK$5:$AM$15,3,0), RPE_FuelConsumptionSummerTBtu, RPE_FuelConsumptionTotalTBtu, RPE_GenerationSummerGWh, RPE_GenerationTotalGWh, RPE_CO2EmissionsSummerThousandTons, RPE_CO2EmissionsTotalThousandTons, RPE_NOXEmissionsSummerThousandTons, RPE_NOXEmissionsTotalThousandTons, RPE_SO2EmissionsSummerThousandTons, RPE_SO2EmissionsTotalThousandTons, RPE_DispatchableCapacityMW), MeetPrimaryCriteria,"=1",IF($AL$6="IPM Region",RPE_IPMRegionGroupAcronym,RPE_State),"="&IF($AL$6="National","*",$AO21))) -> 8.829680168 | AQ21: =IF(AO21=0,"",IF($AL$18="Actual",0,SUMIFS(CHOOSE(VLOOKUP($AL$33,'Lookup tables'!$AK$5:$AM$15,3,0), RPE_FuelConsumptionSummerTBtu, RPE_FuelConsumptionTotalTBtu, RPE_GenerationSummerGWh, RPE_GenerationTotalGWh, RPE_CO2EmissionsSummerThousandTons, RPE_CO2EmissionsTotalThousandTons, RPE_NOXEmissionsSummerThousandTons, RPE_NOXEmissionsTotalThousandTons, RPE_SO2EmissionsSummerThousandTons, RPE_SO2EmissionsTotalThousandTons, RPE_DispatchableCapacityMW), MeetComparisonCriteria,"=1",IF($AL$6="IPM Region",RPE_IPMRegionGroupAcronym,RPE_State),"="&IF($AL$6="National","*",$AO21)))) -> 0 | AR21: 8.829680168 | AS21: 8.83 | AT21: 11854022 | BH21: ="between "&BI76&" and "&BI77 -> between -11 and 0 | BJ21: 11389944
D22: NOX Emissions Winter Thousand Tons | J22: NOX Emissions Winter Thousand Tons | O22: NY_Z_C&E | P22: ME | Q22: MD | S22: *Unit Did Not Operate | V22: Wind | AO22: MA | AP22: =IF(AO22=0,"",SUMIFS(CHOOSE(VLOOKUP($AL$16,'Lookup tables'!$AK$5:$AM$15,3,0), RPE_FuelConsumptionSummerTBtu, RPE_FuelConsumptionTotalTBtu, RPE_GenerationSummerGWh, RPE_GenerationTotalGWh, RPE_CO2EmissionsSummerThousandTons, RPE_CO2EmissionsTotalThousandTons, RPE_NOXEmissionsSummerThousandTons, RPE_NOXEmissionsTotalThousandTons, RPE_SO2EmissionsSummerThousandTons, RPE_SO2EmissionsTotalThousandTons, RPE_DispatchableCapacityMW), MeetPrimaryCriteria,"=1",IF($AL$6="IPM Region",RPE_IPMRegionGroupAcronym,RPE_State),"="&IF($AL$6="National","*",$AO22))) -> 2.551733713 | AQ22: =IF(AO22=0,"",IF($AL$18="Actual",0,SUMIFS(CHOOSE(VLOOKUP($AL$33,'Lookup tables'!$AK$5:$AM$15,3,0), RPE_FuelConsumptionSummerTBtu, RPE_FuelConsumptionTotalTBtu, RPE_GenerationSummerGWh, RPE_GenerationTotalGWh, RPE_CO2EmissionsSummerThousandTons, RPE_CO2EmissionsTotalThousandTons, RPE_NOXEmissionsSummerThousandTons, RPE_NOXEmissionsTotalThousandTons, RPE_SO2EmissionsSummerThousandTons, RPE_SO2EmissionsTotalThousandTons, RPE_DispatchableCapacityMW), MeetComparisonCriteria,"=1",IF($AL$6="IPM Region",RPE_IPMRegionGroupAcronym,RPE_State),"="&IF($AL$6="National","*",$AO22)))) -> 0 | AR22: 2.551733713 | AS22: 2.55 | AT22: 11854022 | BH22: =BI77 -> 0 | BJ22: 16777215
D23: SO2 Emissions Winter Thousand Tons | J23: SO2 Emissions Winter Thousand Tons | O23: NY_Z_D | P23: MI | Q23: ME | V23: Coal 30% CCS | AK23: COMPARISON YEAR | AL23: 2021 | AO23: MD | AP23: =IF(AO23=0,"",SUMIFS(CHOOSE(VLOOKUP($AL$16,'Lookup tables'!$AK$5:$AM$15,3,0), RPE_FuelConsumptionSummerTBtu, RPE_FuelConsumptionTotalTBtu, RPE_GenerationSummerGWh, RPE_GenerationTotalGWh, RPE_CO2EmissionsSummerThousandTons, RPE_CO2EmissionsTotalThousandTons, RPE_NOXEmissionsSummerThousandTons, RPE_NOXEmissionsTotalThousandTons, RPE_SO2EmissionsSummerThousandTons, RPE_SO2EmissionsTotalThousandTons, RPE_DispatchableCapacityMW), MeetPrimaryCriteria,"=1",IF($AL$6="IPM Region",RPE_IPMRegionGroupAcronym,RPE_State),"="&IF($AL$6="National","*",$AO23))) -> 2.544063889 | AQ23: =IF(AO23=0,"",IF($AL$18="Actual",0,SUMIFS(CHOOSE(VLOOKUP($AL$33,'Lookup tables'!$AK$5:$AM$15,3,0), RPE_FuelConsumptionSummerTBtu, RPE_FuelConsumptionTotalTBtu, RPE_GenerationSummerGWh, RPE_GenerationTotalGWh, RPE_CO2EmissionsSummerThousandTons, RPE_CO2EmissionsTotalThousandTons, RPE_NOXEmissionsSummerThousandTons, RPE_NOXEmissionsTotalThousandTons, RPE_SO2EmissionsSummerThousandTons, RPE_SO2EmissionsTotalThousandTons, RPE_DispatchableCapacityMW), MeetComparisonCriteria,"=1",IF($AL$6="IPM Region",RPE_IPMRegionGroupAcronym,RPE_State),"="&IF($AL$6="National","*",$AO23)))) -> 0 | AR23: 2.544063889 | AS23: 2.54 | AT23: 11854022 | BH23: ="between "&BI77&" and "&BI78 -> between 0 and 11 | BJ23: 11854022
O24: NY_Z_F | P24: MN | Q24: MI | V24: Coal 90% CCS | AO24: ME | AP24: =IF(AO24=0,"",SUMIFS(CHOOSE(VLOOKUP($AL$16,'Lookup tables'!$AK$5:$AM$15,3,0), RPE_FuelConsumptionSummerTBtu, RPE_FuelConsumptionTotalTBtu, RPE_GenerationSummerGWh, RPE_GenerationTotalGWh, RPE_CO2EmissionsSummerThousandTons, RPE_CO2EmissionsTotalThousandTons, RPE_NOXEmissionsSummerThousandTons, RPE_NOXEmissionsTotalThousandTons, RPE_SO2EmissionsSummerThousandTons, RPE_SO2EmissionsTotalThousandTons, RPE_DispatchableCapacityMW), MeetPrimaryCriteria,"=1",IF($AL$6="IPM Region",RPE_IPMRegionGroupAcronym,RPE_State),"="&IF($AL$6="National","*",$AO24))) -> 1.161097049 | AQ24: =IF(AO24=0,"",IF($AL$18="Actual",0,SUMIFS(CHOOSE(VLOOKUP($AL$33,'Lookup tables'!$AK$5:$AM$15,3,0), RPE_FuelConsumptionSummerTBtu, RPE_FuelConsumptionTotalTBtu, RPE_GenerationSummerGWh, RPE_GenerationTotalGWh, RPE_CO2EmissionsSummerThousandTons, RPE_CO2EmissionsTotalThousandTons, RPE_NOXEmissionsSummerThousandTons, RPE_NOXEmissionsTotalThousandTons, RPE_SO2EmissionsSummerThousandTons, RPE_SO2EmissionsTotalThousandTons, RPE_DispatchableCapacityMW), MeetComparisonCriteria,"=1",IF($AL$6="IPM Region",RPE_IPMRegionGroupAcronym,RPE_State),"="&IF($AL$6="National","*",$AO24)))) -> 0 | AR24: 1.161097049 | AS24: 1.16 | AT24: 11854022 | BH24: ="between "&BI78&" and "&BI79 -> between 11 and 22 | BJ24: 9359529
O25: NY_Z_G-I | P25: MO | Q25: MN | V25: Coal W/CCS | AK25: COMPARISON DIMENSIONS | AO25: MI | AP25: =IF(AO25=0,"",SUMIFS(CHOOSE(VLOOKUP($AL$16,'Lookup tables'!$AK$5:$AM$15,3,0), RPE_FuelConsumptionSummerTBtu, RPE_FuelConsumptionTotalTBtu, RPE_GenerationSummerGWh, RPE_GenerationTotalGWh, RPE_CO2EmissionsSummerThousandTons, RPE_CO2EmissionsTotalThousandTons, RPE_NOXEmissionsSummerThousandTons, RPE_NOXEmissionsTotalThousandTons, RPE_SO2EmissionsSummerThousandTons, RPE_SO2EmissionsTotalThousandTons, RPE_DispatchableCapacityMW), MeetPrimaryCriteria,"=1",IF($AL$6="IPM Region",RPE_IPMRegionGroupAcronym,RPE_State),"="&IF($AL$6="National","*",$AO25))) -> 13.20644789 | AQ25: =IF(AO25=0,"",IF($AL$18="Actual",0,SUMIFS(CHOOSE(VLOOKUP($AL$33,'Lookup tables'!$AK$5:$AM$15,3,0), RPE_FuelConsumptionSummerTBtu, RPE_FuelConsumptionTotalTBtu, RPE_GenerationSummerGWh, RPE_GenerationTotalGWh, RPE_CO2EmissionsSummerThousandTons, RPE_CO2EmissionsTotalThousandTons, RPE_NOXEmissionsSummerThousandTons, RPE_NOXEmissionsTotalThousandTons, RPE_SO2EmissionsSummerThousandTons, RPE_SO2EmissionsTotalThousandTons, RPE_DispatchableCapacityMW), MeetComparisonCriteria,"=1",IF($AL$6="IPM Region",RPE_IPMRegionGroupAcronym,RPE_State),"="&IF($AL$6="National","*",$AO25)))) -> 0 | AR25: 13.20644789 | AS25: 13.2 | AT25: 9359529 | BH25: ="between "&BI79&" and "&BI80 -> between 22 and 33 | BJ25: 4697456
O26: NY_Z_J | P26: MS | Q26: MO | V26: NGCC w/CCS | AK26: Fuel Type | AL26: All Units | AM26: RPE_FuelType | AO26: MN | AP26: =IF(AO26=0,"",SUMIFS(CHOOSE(VLOOKUP($AL$16,'Lookup tables'!$AK$5:$AM$15,3,0), RPE_FuelConsumptionSummerTBtu, RPE_FuelConsumptionTotalTBtu, RPE_GenerationSummerGWh, RPE_GenerationTotalGWh, RPE_CO2EmissionsSummerThousandTons, RPE_CO2EmissionsTotalThousandTons, RPE_NOXEmissionsSummerThousandTons, RPE_NOXEmissionsTotalThousandTons, RPE_SO2EmissionsSummerThousandTons, RPE_SO2EmissionsTotalThousandTons, RPE_DispatchableCapacityMW), MeetPrimaryCriteria,"=1",IF($AL$6="IPM Region",RPE_IPMRegionGroupAcronym,RPE_State),"="&IF($AL$6="National","*",$AO26))) -> 7.744497493 | AQ26: =IF(AO26=0,"",IF($AL$18="Actual",0,SUMIFS(CHOOSE(VLOOKUP($AL$33,'Lookup tables'!$AK$5:$AM$15,3,0), RPE_FuelConsumptionSummerTBtu, RPE_FuelConsumptionTotalTBtu, RPE_GenerationSummerGWh, RPE_GenerationTotalGWh, RPE_CO2EmissionsSummerThousandTons, RPE_CO2EmissionsTotalThousandTons, RPE_NOXEmissionsSummerThousandTons, RPE_NOXEmissionsTotalThousandTons, RPE_SO2EmissionsSummerThousandTons, RPE_SO2EmissionsTotalThousandTons, RPE_DispatchableCapacityMW), MeetComparisonCriteria,"=1",IF($AL$6="IPM Region",RPE_IPMRegionGroupAcronym,RPE_State),"="&IF($AL$6="National","*",$AO26)))) -> 0 | AR26: 7.744497493 | AS26: 7.74 | AT26: 11854022 | BH26: ="> "&BI80 -> > 33 | BJ26: 3506772
J27: RPE_FuelConsumptionSummerTBtu | O27: NY_Z_K | P27: MT | Q27: MS | AK27: Fossil >25 MW | AL27: All Units | AM27: RPE_Fossil25MW | AO27: MO | AP27: =IF(AO27=0,"",SUMIFS(CHOOSE(VLOOKUP($AL$16,'Lookup tables'!$AK$5:$AM$15,3,0), RPE_FuelConsumptionSummerTBtu, RPE_FuelConsumptionTotalTBtu, RPE_GenerationSummerGWh, RPE_GenerationTotalGWh, RPE_CO2EmissionsSummerThousandTons, RPE_CO2EmissionsTotalThousandTons, RPE_NOXEmissionsSummerThousandTons, RPE_NOXEmissionsTotalThousandTons, RPE_SO2EmissionsSummerThousandTons, RPE_SO2EmissionsTotalThousandTons, RPE_DispatchableCapacityMW), MeetPrimaryCriteria,"=1",IF($AL$6="IPM Region",RPE_IPMRegionGroupAcronym,RPE_State),"="&IF($AL$6="National","*",$AO27))) -> 14.41593225 | AQ27: =IF(AO27=0,"",IF($AL$18="Actual",0,SUMIFS(CHOOSE(VLOOKUP($AL$33,'Lookup tables'!$AK$5:$AM$15,3,0), RPE_FuelConsumptionSummerTBtu, RPE_FuelConsumptionTotalTBtu, RPE_GenerationSummerGWh, RPE_GenerationTotalGWh, RPE_CO2EmissionsSummerThousandTons, RPE_CO2EmissionsTotalThousandTons, RPE_NOXEmissionsSummerThousandTons, RPE_NOXEmissionsTotalThousandTons, RPE_SO2EmissionsSummerThousandTons, RPE_SO2EmissionsTotalThousandTons, RPE_DispatchableCapacityMW), MeetComparisonCriteria,"=1",IF($AL$6="IPM Region",RPE_IPMRegionGroupAcronym,RPE_State),"="&IF($AL$6="National","*",$AO27)))) -> 0 | AR27: 14.41593225 | AS27: 14.4 | AT27: 9359529
J28: RPE_FuelConsumptionTotalTBtu | O28: PJM_AP | P28: NC | Q28: MT | AK28: Existing/New/Retired | AL28: Existing and New | AM28: RPE_ExistingorNewUnit | AO28: MS | AP28: =IF(AO28=0,"",SUMIFS(CHOOSE(VLOOKUP($AL$16,'Lookup tables'!$AK$5:$AM$15,3,0), RPE_FuelConsumptionSummerTBtu, RPE_FuelConsumptionTotalTBtu, RPE_GenerationSummerGWh, RPE_GenerationTotalGWh, RPE_CO2EmissionsSummerThousandTons, RPE_CO2EmissionsTotalThousandTons, RPE_NOXEmissionsSummerThousandTons, RPE_NOXEmissionsTotalThousandTons, RPE_SO2EmissionsSummerThousandTons, RPE_SO2EmissionsTotalThousandTons, RPE_DispatchableCapacityMW), MeetPrimaryCriteria,"=1",IF($AL$6="IPM Region",RPE_IPMRegionGroupAcronym,RPE_State),"="&IF($AL$6="National","*",$AO28))) -> 2.719923737 | AQ28: =IF(AO28=0,"",IF($AL$18="Actual",0,SUMIFS(CHOOSE(VLOOKUP($AL$33,'Lookup tables'!$AK$5:$AM$15,3,0), RPE_FuelConsumptionSummerTBtu, RPE_FuelConsumptionTotalTBtu, RPE_GenerationSummerGWh, RPE_GenerationTotalGWh, RPE_CO2EmissionsSummerThousandTons, RPE_CO2EmissionsTotalThousandTons, RPE_NOXEmissionsSummerThousandTons, RPE_NOXEmissionsTotalThousandTons, RPE_SO2EmissionsSummerThousandTons, RPE_SO2EmissionsTotalThousandTons, RPE_DispatchableCapacityMW), MeetComparisonCriteria,"=1",IF($AL$6="IPM Region",RPE_IPMRegionGroupAcronym,RPE_State),"="&IF($AL$6="National","*",$AO28)))) -> 0 | AR28: 2.719923737 | AS28: 2.72 | AT28: 11854022
J29: RPE_GenerationSummerGWh | O29: PJM_ATSI | P29: ND | Q29: NC | AK29: Plant Type | AL29: All Units | AM29: RPE_PlantType | AO29: MT | AP29: =IF(AO29=0,"",SUMIFS(CHOOSE(VLOOKUP($AL$16,'Lookup tables'!$AK$5:$AM$15,3,0), RPE_FuelConsumptionSummerTBtu, RPE_FuelConsumptionTotalTBtu, RPE_GenerationSummerGWh, RPE_GenerationTotalGWh, RPE_CO2EmissionsSummerThousandTons, RPE_CO2EmissionsTotalThousandTons, RPE_NOXEmissionsSummerThousandTons, RPE_NOXEmissionsTotalThousandTons, RPE_SO2EmissionsSummerThousandTons, RPE_SO2EmissionsTotalThousandTons, RPE_DispatchableCapacityMW), MeetPrimaryCriteria,"=1",IF($AL$6="IPM Region",RPE_IPMRegionGroupAcronym,RPE_State),"="&IF($AL$6="National","*",$AO29))) -> 6.689397537 | AQ29: =IF(AO29=0,"",IF($AL$18="Actual",0,SUMIFS(CHOOSE(VLOOKUP($AL$33,'Lookup tables'!$AK$5:$AM$15,3,0), RPE_FuelConsumptionSummerTBtu, RPE_FuelConsumptionTotalTBtu, RPE_GenerationSummerGWh, RPE_GenerationTotalGWh, RPE_CO2EmissionsSummerThousandTons, RPE_CO2EmissionsTotalThousandTons, RPE_NOXEmissionsSummerThousandTons, RPE_NOXEmissionsTotalThousandTons, RPE_SO2EmissionsSummerThousandTons, RPE_SO2EmissionsTotalThousandTons, RPE_DispatchableCapacityMW), MeetComparisonCriteria,"=1",IF($AL$6="IPM Region",RPE_IPMRegionGroupAcronym,RPE_State),"="&IF($AL$6="National","*",$AO29)))) -> 0 | AR29: 6.689397537 | AS29: 6.69 | AT29: 11854022
J30: RPE_GenerationTotalGWh | O30: PJM_COMD | P30: NE | Q30: ND | AK30: Plant Category | AL30: All Units | AM30: RPE_PlantCategory | AO30: NC | AP30: =IF(AO30=0,"",SUMIFS(CHOOSE(VLOOKUP($AL$16,'Lookup tables'!$AK$5:$AM$15,3,0), RPE_FuelConsumptionSummerTBtu, RPE_FuelConsumptionTotalTBtu, RPE_GenerationSummerGWh, RPE_GenerationTotalGWh, RPE_CO2EmissionsSummerThousandTons, RPE_CO2EmissionsTotalThousandTons, RPE_NOXEmissionsSummerThousandTons, RPE_NOXEmissionsTotalThousandTons, RPE_SO2EmissionsSummerThousandTons, RPE_SO2EmissionsTotalThousandTons, RPE_DispatchableCapacityMW), MeetPrimaryCriteria,"=1",IF($AL$6="IPM Region",RPE_IPMRegionGroupAcronym,RPE_State),"="&IF($AL$6="National","*",$AO30))) -> 15.76455565 | AQ30: =IF(AO30=0,"",IF($AL$18="Actual",0,SUMIFS(CHOOSE(VLOOKUP($AL$33,'Lookup tables'!$AK$5:$AM$15,3,0), RPE_FuelConsumptionSummerTBtu, RPE_FuelConsumptionTotalTBtu, RPE_GenerationSummerGWh, RPE_GenerationTotalGWh, RPE_CO2EmissionsSummerThousandTons, RPE_CO2EmissionsTotalThousandTons, RPE_NOXEmissionsSummerThousandTons, RPE_NOXEmissionsTotalThousandTons, RPE_SO2EmissionsSummerThousandTons, RPE_SO2EmissionsTotalThousandTons, RPE_DispatchableCapacityMW), MeetComparisonCriteria,"=1",IF($AL$6="IPM Region",RPE_IPMRegionGroupAcronym,RPE_State),"="&IF($AL$6="National","*",$AO30)))) -> 0 | AR30: 15.76455565 | AS30: 15.8 | AT30: 9359529
J31: RPE_CO2EmissionsSummerThousandTons | O31: PJM_Dom | P31: NH | Q31: NE | AK31: Control/Retrofit Types | AL31: All Units | AM31: =MATCH(AL31,Controls,0) -> 1 | AO31: ND | AP31: =IF(AO31=0,"",SUMIFS(CHOOSE(VLOOKUP($AL$16,'Lookup tables'!$AK$5:$AM$15,3,0), RPE_FuelConsumptionSummerTBtu, RPE_FuelConsumptionTotalTBtu, RPE_GenerationSummerGWh, RPE_GenerationTotalGWh, RPE_CO2EmissionsSummerThousandTons, RPE_CO2EmissionsTotalThousandTons, RPE_NOXEmissionsSummerThousandTons, RPE_NOXEmissionsTotalThousandTons, RPE_SO2EmissionsSummerThousandTons, RPE_SO2EmissionsTotalThousandTons, RPE_DispatchableCapacityMW), MeetPrimaryCriteria,"=1",IF($AL$6="IPM Region",RPE_IPMRegionGroupAcronym,RPE_State),"="&IF($AL$6="National","*",$AO31))) -> 10.70904905 | AQ31: =IF(AO31=0,"",IF($AL$18="Actual",0,SUMIFS(CHOOSE(VLOOKUP($AL$33,'Lookup tables'!$AK$5:$AM$15,3,0), RPE_FuelConsumptionSummerTBtu, RPE_FuelConsumptionTotalTBtu, RPE_GenerationSummerGWh, RPE_GenerationTotalGWh, RPE_CO2EmissionsSummerThousandTons, RPE_CO2EmissionsTotalThousandTons, RPE_NOXEmissionsSummerThousandTons, RPE_NOXEmissionsTotalThousandTons, RPE_SO2EmissionsSummerThousandTons, RPE_SO2EmissionsTotalThousandTons, RPE_DispatchableCapacityMW), MeetComparisonCriteria,"=1",IF($AL$6="IPM Region",RPE_IPMRegionGroupAcronym,RPE_State),"="&IF($AL$6="National","*",$AO31)))) -> 0 | AR31: 10.70904905 | AS31: 10.7 | AT31: 11854022
J32: RPE_CO2EmissionsTotalThousandTons | O32: PJM_EMAC | P32: NJ | Q32: NH | AK32: Existing or New Controls | AL32: All Controls | AO32: NE | AP32: =IF(AO32=0,"",SUMIFS(CHOOSE(VLOOKUP($AL$16,'Lookup tables'!$AK$5:$AM$15,3,0), RPE_FuelConsumptionSummerTBtu, RPE_FuelConsumptionTotalTBtu, RPE_GenerationSummerGWh, RPE_GenerationTotalGWh, RPE_CO2EmissionsSummerThousandTons, RPE_CO2EmissionsTotalThousandTons, RPE_NOXEmissionsSummerThousandTons, RPE_NOXEmissionsTotalThousandTons, RPE_SO2EmissionsSummerThousandTons, RPE_SO2EmissionsTotalThousandTons, RPE_DispatchableCapacityMW), MeetPrimaryCriteria,"=1",IF($AL$6="IPM Region",RPE_IPMRegionGroupAcronym,RPE_State),"="&IF($AL$6="National","*",$AO32))) -> 11.62734924 | AQ32: =IF(AO32=0,"",IF($AL$18="Actual",0,SUMIFS(CHOOSE(VLOOKUP($AL$33,'Lookup tables'!$AK$5:$AM$15,3,0), RPE_FuelConsumptionSummerTBtu, RPE_FuelConsumptionTotalTBtu, RPE_GenerationSummerGWh, RPE_GenerationTotalGWh, RPE_CO2EmissionsSummerThousandTons, RPE_CO2EmissionsTotalThousandTons, RPE_NOXEmissionsSummerThousandTons, RPE_NOXEmissionsTotalThousandTons, RPE_SO2EmissionsSummerThousandTons, RPE_SO2EmissionsTotalThousandTons, RPE_DispatchableCapacityMW), MeetComparisonCriteria,"=1",IF($AL$6="IPM Region",RPE_IPMRegionGroupAcronym,RPE_State),"="&IF($AL$6="National","*",$AO32)))) -> 0 | AR32: 11.62734924 | AS32: 11.6 | AT32: 9359529
J33: RPE_NOXEmissionsSummerThousandTons | O33: PJM_PENE | P33: NM | Q33: NJ | AK33: COMPARISON MEASURE | AL33: NOX Emissions Summer Thousand Tons | AM33: =VLOOKUP(AL33,'Lookup tables'!$AD$5:$AF$68,3,0) -> RPE_NOXEmissionsSummerThousandTons | AO33: NH | AP33: =IF(AO33=0,"",SUMIFS(CHOOSE(VLOOKUP($AL$16,'Lookup tables'!$AK$5:$AM$15,3,0), RPE_FuelConsumptionSummerTBtu, RPE_FuelConsumptionTotalTBtu, RPE_GenerationSummerGWh, RPE_GenerationTotalGWh, RPE_CO2EmissionsSummerThousandTons, RPE_CO2EmissionsTotalThousandTons, RPE_NOXEmissionsSummerThousandTons, RPE_NOXEmissionsTotalThousandTons, RPE_SO2EmissionsSummerThousandTons, RPE_SO2EmissionsTotalThousandTons, RPE_DispatchableCapacityMW), MeetPrimaryCriteria,"=1",IF($AL$6="IPM Region",RPE_IPMRegionGroupAcronym,RPE_State),"="&IF($AL$6="National","*",$AO33))) -> 0.3158923524 | AQ33: =IF(AO33=0,"",IF($AL$18="Actual",0,SUMIFS(CHOOSE(VLOOKUP($AL$33,'Lookup tables'!$AK$5:$AM$15,3,0), RPE_FuelConsumptionSummerTBtu, RPE_FuelConsumptionTotalTBtu, RPE_GenerationSummerGWh, RPE_GenerationTotalGWh, RPE_CO2EmissionsSummerThousandTons, RPE_CO2EmissionsTotalThousandTons, RPE_NOXEmissionsSummerThousandTons, RPE_NOXEmissionsTotalThousandTons, RPE_SO2EmissionsSummerThousandTons, RPE_SO2EmissionsTotalThousandTons, RPE_DispatchableCapacityMW), MeetComparisonCriteria,"=1",IF($AL$6="IPM Region",RPE_IPMRegionGroupAcronym,RPE_State),"="&IF($AL$6="National","*",$AO33)))) -> 0 | AR33: 0.3158923524 | AS33: 0.316 | AT33: 11854022
J34: RPE_NOXEmissionsTotalThousandTons | O34: PJM_SMAC | P34: NV | Q34: NM | AO34: NJ | AP34: =IF(AO34=0,"",SUMIFS(CHOOSE(VLOOKUP($AL$16,'Lookup tables'!$AK$5:$AM$15,3,0), RPE_FuelConsumptionSummerTBtu, RPE_FuelConsumptionTotalTBtu, RPE_GenerationSummerGWh, RPE_GenerationTotalGWh, RPE_CO2EmissionsSummerThousandTons, RPE_CO2EmissionsTotalThousandTons, RPE_NOXEmissionsSummerThousandTons, RPE_NOXEmissionsTotalThousandTons, RPE_SO2EmissionsSummerThousandTons, RPE_SO2EmissionsTotalThousandTons, RPE_DispatchableCapacityMW), MeetPrimaryCriteria,"=1",IF($AL$6="IPM Region",RPE_IPMRegionGroupAcronym,RPE_State),"="&IF($AL$6="National","*",$AO34))) -> 2.582449098 | AQ34: =IF(AO34=0,"",IF($AL$18="Actual",0,SUMIFS(CHOOSE(VLOOKUP($AL$33,'Lookup tables'!$AK$5:$AM$15,3,0), RPE_FuelConsumptionSummerTBtu, RPE_FuelConsumptionTotalTBtu, RPE_GenerationSummerGWh, RPE_GenerationTotalGWh, RPE_CO2EmissionsSummerThousandTons, RPE_CO2EmissionsTotalThousandTons, RPE_NOXEmissionsSummerThousandTons, RPE_NOXEmissionsTotalThousandTons, RPE_SO2EmissionsSummerThousandTons, RPE_SO2EmissionsTotalThousandTons, RPE_DispatchableCapacityMW), MeetComparisonCriteria,"=1",IF($AL$6="IPM Region",RPE_IPMRegionGroupAcronym,RPE_State),"="&IF($AL$6="National","*",$AO34)))) -> 0 | AR34: 2.582449098 | AS34: 2.58 | AT34: 11854022
J35: RPE_SO2EmissionsSummerThousandTons | O35: PJM_West | P35: NY | Q35: NV | AO35: NM | AP35: =IF(AO35=0,"",SUMIFS(CHOOSE(VLOOKUP($AL$16,'Lookup tables'!$AK$5:$AM$15,3,0), RPE_FuelConsumptionSummerTBtu, RPE_FuelConsumptionTotalTBtu, RPE_GenerationSummerGWh, RPE_GenerationTotalGWh, RPE_CO2EmissionsSummerThousandTons, RPE_CO2EmissionsTotalThousandTons, RPE_NOXEmissionsSummerThousandTons, RPE_NOXEmissionsTotalThousandTons, RPE_SO2EmissionsSummerThousandTons, RPE_SO2EmissionsTotalThousandTons, RPE_DispatchableCapacityMW), MeetPrimaryCriteria,"=1",IF($AL$6="IPM Region",RPE_IPMRegionGroupAcronym,RPE_State),"="&IF($AL$6="National","*",$AO35))) -> 4.833439914 | AQ35: =IF(AO35=0,"",IF($AL$18="Actual",0,SUMIFS(CHOOSE(VLOOKUP($AL$33,'Lookup tables'!$AK$5:$AM$15,3,0), RPE_FuelConsumptionSummerTBtu, RPE_FuelConsumptionTotalTBtu, RPE_GenerationSummerGWh, RPE_GenerationTotalGWh, RPE_CO2EmissionsSummerThousandTons, RPE_CO2EmissionsTotalThousandTons, RPE_NOXEmissionsSummerThousandTons, RPE_NOXEmissionsTotalThousandTons, RPE_SO2EmissionsSummerThousandTons, RPE_SO2EmissionsTotalThousandTons, RPE_DispatchableCapacityMW), MeetComparisonCriteria,"=1",IF($AL$6="IPM Region",RPE_IPMRegionGroupAcronym,RPE_State),"="&IF($AL$6="National","*",$AO35)))) -> 0 | AR35: 4.833439914 | AS35: 4.83 | AT35: 11854022
J36: RPE_SO2EmissionsTotalThousandTons | O36: PJM_WMAC | P36: OH | Q36: NY | AO36: NV | AP36: =IF(AO36=0,"",SUMIFS(CHOOSE(VLOOKUP($AL$16,'Lookup tables'!$AK$5:$AM$15,3,0), RPE_FuelConsumptionSummerTBtu, RPE_FuelConsumptionTotalTBtu, RPE_GenerationSummerGWh, RPE_GenerationTotalGWh, RPE_CO2EmissionsSummerThousandTons, RPE_CO2EmissionsTotalThousandTons, RPE_NOXEmissionsSummerThousandTons, RPE_NOXEmissionsTotalThousandTons, RPE_SO2EmissionsSummerThousandTons, RPE_SO2EmissionsTotalThousandTons, RPE_DispatchableCapacityMW), MeetPrimaryCriteria,"=1",IF($AL$6="IPM Region",RPE_IPMRegionGroupAcronym,RPE_State),"="&IF($AL$6="National","*",$AO36))) -> 0.5725088305 | AQ36: =IF(AO36=0,"",IF($AL$18="Actual",0,SUMIFS(CHOOSE(VLOOKUP($AL$33,'Lookup tables'!$AK$5:$AM$15,3,0), RPE_FuelConsumptionSummerTBtu, RPE_FuelConsumptionTotalTBtu, RPE_GenerationSummerGWh, RPE_GenerationTotalGWh, RPE_CO2EmissionsSummerThousandTons, RPE_CO2EmissionsTotalThousandTons, RPE_NOXEmissionsSummerThousandTons, RPE_NOXEmissionsTotalThousandTons, RPE_SO2EmissionsSummerThousandTons, RPE_SO2EmissionsTotalThousandTons, RPE_DispatchableCapacityMW), MeetComparisonCriteria,"=1",IF($AL$6="IPM Region",RPE_IPMRegionGroupAcronym,RPE_State),"="&IF($AL$6="National","*",$AO36)))) -> 0 | AR36: 0.5725088305 | AS36: 0.573 | AT36: 11854022
J37: RPE_DispatchableCapacityMW | O37: S_C_KY | P37: OK | Q37: OH | AK37: ***You must click the update button to update the map | AO37: =IF($AL$6="state",P35,O35) -> NY | AP37: =IF(AO37=0,"",SUMIFS(CHOOSE(VLOOKUP($AL$16,'Lookup tables'!$AK$5:$AM$15,3,0), RPE_FuelConsumptionSummerTBtu, RPE_FuelConsumptionTotalTBtu, RPE_GenerationSummerGWh, RPE_GenerationTotalGWh, RPE_CO2EmissionsSummerThousandTons, RPE_CO2EmissionsTotalThousandTons, RPE_NOXEmissionsSummerThousandTons, RPE_NOXEmissionsTotalThousandTons, RPE_SO2EmissionsSummerThousandTons, RPE_SO2EmissionsTotalThousandTons, RPE_DispatchableCapacityMW), MeetPrimaryCriteria,"=1",IF($AL$6="IPM Region",RPE_IPMRegionGroupAcronym,RPE_State),"="&IF($AL$6="National","*",$AO37))) -> 7.588859782 | AQ37: =IF(AO37=0,"",IF($AL$18="Actual",0,SUMIFS(CHOOSE(VLOOKUP($AL$33,'Lookup tables'!$AK$5:$AM$15,3,0), RPE_FuelConsumptionSummerTBtu, RPE_FuelConsumptionTotalTBtu, RPE_GenerationSummerGWh, RPE_GenerationTotalGWh, RPE_CO2EmissionsSummerThousandTons, RPE_CO2EmissionsTotalThousandTons, RPE_NOXEmissionsSummerThousandTons, RPE_NOXEmissionsTotalThousandTons, RPE_SO2EmissionsSummerThousandTons, RPE_SO2EmissionsTotalThousandTons, RPE_DispatchableCapacityMW), MeetComparisonCriteria,"=1",IF($AL$6="IPM Region",RPE_IPMRegionGroupAcronym,RPE_State),"="&IF($AL$6="National","*",$AO37)))) -> 0 | AR37: 7.588859782 | AS37: 7.59 | AT37: 11854022
O38: S_C_TVA | P38: OR | Q38: OK | V38: Fuel Consumption Summer TBtu | W38: TBtu | AO38: OH | AP38: =IF(AO38=0,"",SUMIFS(CHOOSE(VLOOKUP($AL$16,'Lookup tables'!$AK$5:$AM$15,3,0), RPE_FuelConsumptionSummerTBtu, RPE_FuelConsumptionTotalTBtu, RPE_GenerationSummerGWh, RPE_GenerationTotalGWh, RPE_CO2EmissionsSummerThousandTons, RPE_CO2EmissionsTotalThousandTons, RPE_NOXEmissionsSummerThousandTons, RPE_NOXEmissionsTotalThousandTons, RPE_SO2EmissionsSummerThousandTons, RPE_SO2EmissionsTotalThousandTons, RPE_DispatchableCapacityMW), MeetPrimaryCriteria,"=1",IF($AL$6="IPM Region",RPE_IPMRegionGroupAcronym,RPE_State),"="&IF($AL$6="National","*",$AO38))) -> 17.94284446 | AQ38: =IF(AO38=0,"",IF($AL$18="Actual",0,SUMIFS(CHOOSE(VLOOKUP($AL$33,'Lookup tables'!$AK$5:$AM$15,3,0), RPE_FuelConsumptionSummerTBtu, RPE_FuelConsumptionTotalTBtu, RPE_GenerationSummerGWh, RPE_GenerationTotalGWh, RPE_CO2EmissionsSummerThousandTons, RPE_CO2EmissionsTotalThousandTons, RPE_NOXEmissionsSummerThousandTons, RPE_NOXEmissionsTotalThousandTons, RPE_SO2EmissionsSummerThousandTons, RPE_SO2EmissionsTotalThousandTons, RPE_DispatchableCapacityMW), MeetComparisonCriteria,"=1",IF($AL$6="IPM Region",RPE_IPMRegionGroupAcronym,RPE_State),"="&IF($AL$6="National","*",$AO38)))) -> 0 | AR38: 17.94284446 | AS38: 17.9 | AT38: 9359529
O39: S_D_AMSO | P39: PA | Q39: OR | V39: Fuel Consumption Total TBtu | W39: TBtu | AO39: OK | AP39: =IF(AO39=0,"",SUMIFS(CHOOSE(VLOOKUP($AL$16,'Lookup tables'!$AK$5:$AM$15,3,0), RPE_FuelConsumptionSummerTBtu, RPE_FuelConsumptionTotalTBtu, RPE_GenerationSummerGWh, RPE_GenerationTotalGWh, RPE_CO2EmissionsSummerThousandTons, RPE_CO2EmissionsTotalThousandTons, RPE_NOXEmissionsSummerThousandTons, RPE_NOXEmissionsTotalThousandTons, RPE_SO2EmissionsSummerThousandTons, RPE_SO2EmissionsTotalThousandTons, RPE_DispatchableCapacityMW), MeetPrimaryCriteria,"=1",IF($AL$6="IPM Region",RPE_IPMRegionGroupAcronym,RPE_State),"="&IF($AL$6="National","*",$AO39))) -> 10.30113534 | AQ39: =IF(AO39=0,"",IF($AL$18="Actual",0,SUMIFS(CHOOSE(VLOOKUP($AL$33,'Lookup tables'!$AK$5:$AM$15,3,0), RPE_FuelConsumptionSummerTBtu, RPE_FuelConsumptionTotalTBtu, RPE_GenerationSummerGWh, RPE_GenerationTotalGWh, RPE_CO2EmissionsSummerThousandTons, RPE_CO2EmissionsTotalThousandTons, RPE_NOXEmissionsSummerThousandTons, RPE_NOXEmissionsTotalThousandTons, RPE_SO2EmissionsSummerThousandTons, RPE_SO2EmissionsTotalThousandTons, RPE_DispatchableCapacityMW), MeetComparisonCriteria,"=1",IF($AL$6="IPM Region",RPE_IPMRegionGroupAcronym,RPE_State),"="&IF($AL$6="National","*",$AO39)))) -> 0 | AR39: 10.30113534 | AS39: 10.3 | AT39: 11854022
O40: S_D_N_AR | P40: RI | Q40: PA | V40: Generation Summer GWh | W40: GWh | AO40: OR | AP40: =IF(AO40=0,"",SUMIFS(CHOOSE(VLOOKUP($AL$16,'Lookup tables'!$AK$5:$AM$15,3,0), RPE_FuelConsumptionSummerTBtu, RPE_FuelConsumptionTotalTBtu, RPE_GenerationSummerGWh, RPE_GenerationTotalGWh, RPE_CO2EmissionsSummerThousandTons, RPE_CO2EmissionsTotalThousandTons, RPE_NOXEmissionsSummerThousandTons, RPE_NOXEmissionsTotalThousandTons, RPE_SO2EmissionsSummerThousandTons, RPE_SO2EmissionsTotalThousandTons, RPE_DispatchableCapacityMW), MeetPrimaryCriteria,"=1",IF($AL$6="IPM Region",RPE_IPMRegionGroupAcronym,RPE_State),"="&IF($AL$6="National","*",$AO40))) -> 0.5731176935 | AQ40: =IF(AO40=0,"",IF($AL$18="Actual",0,SUMIFS(CHOOSE(VLOOKUP($AL$33,'Lookup tables'!$AK$5:$AM$15,3,0), RPE_FuelConsumptionSummerTBtu, RPE_FuelConsumptionTotalTBtu, RPE_GenerationSummerGWh, RPE_GenerationTotalGWh, RPE_CO2EmissionsSummerThousandTons, RPE_CO2EmissionsTotalThousandTons, RPE_NOXEmissionsSummerThousandTons, RPE_NOXEmissionsTotalThousandTons, RPE_SO2EmissionsSummerThousandTons, RPE_SO2EmissionsTotalThousandTons, RPE_DispatchableCapacityMW), MeetComparisonCriteria,"=1",IF($AL$6="IPM Region",RPE_IPMRegionGroupAcronym,RPE_State),"="&IF($AL$6="National","*",$AO40)))) -> 0 | AR40: 0.5731176935 | AS40: 0.573 | AT40: 11854022
O41: S_D_REST | P41: SC | Q41: RI | V41: Generation Total GWh | W41: GWh | AO41: PA | AP41: =IF(AO41=0,"",SUMIFS(CHOOSE(VLOOKUP($AL$16,'Lookup tables'!$AK$5:$AM$15,3,0), RPE_FuelConsumptionSummerTBtu, RPE_FuelConsumptionTotalTBtu, RPE_GenerationSummerGWh, RPE_GenerationTotalGWh, RPE_CO2EmissionsSummerThousandTons, RPE_CO2EmissionsTotalThousandTons, RPE_NOXEmissionsSummerThousandTons, RPE_NOXEmissionsTotalThousandTons, RPE_SO2EmissionsSummerThousandTons, RPE_SO2EmissionsTotalThousandTons, RPE_DispatchableCapacityMW), MeetPrimaryCriteria,"=1",IF($AL$6="IPM Region",RPE_IPMRegionGroupAcronym,RPE_State),"="&IF($AL$6="National","*",$AO41))) -> 14.92968131 | AQ41: =IF(AO41=0,"",IF($AL$18="Actual",0,SUMIFS(CHOOSE(VLOOKUP($AL$33,'Lookup tables'!$AK$5:$AM$15,3,0), RPE_FuelConsumptionSummerTBtu, RPE_FuelConsumptionTotalTBtu, RPE_GenerationSummerGWh, RPE_GenerationTotalGWh, RPE_CO2EmissionsSummerThousandTons, RPE_CO2EmissionsTotalThousandTons, RPE_NOXEmissionsSummerThousandTons, RPE_NOXEmissionsTotalThousandTons, RPE_SO2EmissionsSummerThousandTons, RPE_SO2EmissionsTotalThousandTons, RPE_DispatchableCapacityMW), MeetComparisonCriteria,"=1",IF($AL$6="IPM Region",RPE_IPMRegionGroupAcronym,RPE_State),"="&IF($AL$6="National","*",$AO41)))) -> 0 | AR41: 14.92968131 | AS41: 14.9 | AT41: 9359529
O42: S_D_WOTA | P42: SD | Q42: SC | V42: CO2 Emissions Summer Thousand Tons | W42: Thousand (short) tons CO2 | AO42: RI | AP42: =IF(AO42=0,"",SUMIFS(CHOOSE(VLOOKUP($AL$16,'Lookup tables'!$AK$5:$AM$15,3,0), RPE_FuelConsumptionSummerTBtu, RPE_FuelConsumptionTotalTBtu, RPE_GenerationSummerGWh, RPE_GenerationTotalGWh, RPE_CO2EmissionsSummerThousandTons, RPE_CO2EmissionsTotalThousandTons, RPE_NOXEmissionsSummerThousandTons, RPE_NOXEmissionsTotalThousandTons, RPE_SO2EmissionsSummerThousandTons, RPE_SO2EmissionsTotalThousandTons, RPE_DispatchableCapacityMW), MeetPrimaryCriteria,"=1",IF($AL$6="IPM Region",RPE_IPMRegionGroupAcronym,RPE_State),"="&IF($AL$6="National","*",$AO42))) -> 0.358396498 | AQ42: =IF(AO42=0,"",IF($AL$18="Actual",0,SUMIFS(CHOOSE(VLOOKUP($AL$33,'Lookup tables'!$AK$5:$AM$15,3,0), RPE_FuelConsumptionSummerTBtu, RPE_FuelConsumptionTotalTBtu, RPE_GenerationSummerGWh, RPE_GenerationTotalGWh, RPE_CO2EmissionsSummerThousandTons, RPE_CO2EmissionsTotalThousandTons, RPE_NOXEmissionsSummerThousandTons, RPE_NOXEmissionsTotalThousandTons, RPE_SO2EmissionsSummerThousandTons, RPE_SO2EmissionsTotalThousandTons, RPE_DispatchableCapacityMW), MeetComparisonCriteria,"=1",IF($AL$6="IPM Region",RPE_IPMRegionGroupAcronym,RPE_State),"="&IF($AL$6="National","*",$AO42)))) -> 0 | AR42: 0.358396498 | AS42: 0.358 | AT42: 11854022 | AX42: =AL6 -> State | AY42: National | BB42: Comparison Year: | BC42: Parallel
O43: S_SOU | P43: TN | Q43: SD | V43: CO2 Emissions Total Thousand Tons | W43: Thousand (short) tons CO2 | AO43: SC | AP43: =IF(AO43=0,"",SUMIFS(CHOOSE(VLOOKUP($AL$16,'Lookup tables'!$AK$5:$AM$15,3,0), RPE_FuelConsumptionSummerTBtu, RPE_FuelConsumptionTotalTBtu, RPE_GenerationSummerGWh, RPE_GenerationTotalGWh, RPE_CO2EmissionsSummerThousandTons, RPE_CO2EmissionsTotalThousandTons, RPE_NOXEmissionsSummerThousandTons, RPE_NOXEmissionsTotalThousandTons, RPE_SO2EmissionsSummerThousandTons, RPE_SO2EmissionsTotalThousandTons, RPE_DispatchableCapacityMW), MeetPrimaryCriteria,"=1",IF($AL$6="IPM Region",RPE_IPMRegionGroupAcronym,RPE_State),"="&IF($AL$6="National","*",$AO43))) -> 6.075922055 | AQ43: =IF(AO43=0,"",IF($AL$18="Actual",0,SUMIFS(CHOOSE(VLOOKUP($AL$33,'Lookup tables'!$AK$5:$AM$15,3,0), RPE_FuelConsumptionSummerTBtu, RPE_FuelConsumptionTotalTBtu, RPE_GenerationSummerGWh, RPE_GenerationTotalGWh, RPE_CO2EmissionsSummerThousandTons, RPE_CO2EmissionsTotalThousandTons, RPE_NOXEmissionsSummerThousandTons, RPE_NOXEmissionsTotalThousandTons, RPE_SO2EmissionsSummerThousandTons, RPE_SO2EmissionsTotalThousandTons, RPE_DispatchableCapacityMW), MeetComparisonCriteria,"=1",IF($AL$6="IPM Region",RPE_IPMRegionGroupAcronym,RPE_State),"="&IF($AL$6="National","*",$AO43)))) -> 0 | AR43: 6.075922055 | AS43: 6.08 | AT43: 11854022
O44: S_VACA | P44: TX | Q44: TN | V44: NOX Emissions Summer Thousand Tons | W44: Thousand (short) tons NOx | AO44: SD | AP44: =IF(AO44=0,"",SUMIFS(CHOOSE(VLOOKUP($AL$16,'Lookup tables'!$AK$5:$AM$15,3,0), RPE_FuelConsumptionSummerTBtu, RPE_FuelConsumptionTotalTBtu, RPE_GenerationSummerGWh, RPE_GenerationTotalGWh, RPE_CO2EmissionsSummerThousandTons, RPE_CO2EmissionsTotalThousandTons, RPE_NOXEmissionsSummerThousandTons, RPE_NOXEmissionsTotalThousandTons, RPE_SO2EmissionsSummerThousandTons, RPE_SO2EmissionsTotalThousandTons, RPE_DispatchableCapacityMW), MeetPrimaryCriteria,"=1",IF($AL$6="IPM Region",RPE_IPMRegionGroupAcronym,RPE_State),"="&IF($AL$6="National","*",$AO44))) -> 0.4001635599 | AQ44: =IF(AO44=0,"",IF($AL$18="Actual",0,SUMIFS(CHOOSE(VLOOKUP($AL$33,'Lookup tables'!$AK$5:$AM$15,3,0), RPE_FuelConsumptionSummerTBtu, RPE_FuelConsumptionTotalTBtu, RPE_GenerationSummerGWh, RPE_GenerationTotalGWh, RPE_CO2EmissionsSummerThousandTons, RPE_CO2EmissionsTotalThousandTons, RPE_NOXEmissionsSummerThousandTons, RPE_NOXEmissionsTotalThousandTons, RPE_SO2EmissionsSummerThousandTons, RPE_SO2EmissionsTotalThousandTons, RPE_DispatchableCapacityMW), MeetComparisonCriteria,"=1",IF($AL$6="IPM Region",RPE_IPMRegionGroupAcronym,RPE_State),"="&IF($AL$6="National","*",$AO44)))) -> 0 | AR44: 0.4001635599 | AS44: 0.400 | AT44: 11854022 | AW44: *Historical data is still under development. It is approximate and may not always provide an apples-to-apples comparison to IPM outputs. See READ ME worksheet for more info.
O45: SPP_KIAM | P45: UT | Q45: TX | V45: NOX Emissions Total Thousand Tons | W45: Thousand (short) tons NOx | AO45: TN | AP45: =IF(AO45=0,"",SUMIFS(CHOOSE(VLOOKUP($AL$16,'Lookup tables'!$AK$5:$AM$15,3,0), RPE_FuelConsumptionSummerTBtu, RPE_FuelConsumptionTotalTBtu, RPE_GenerationSummerGWh, RPE_GenerationTotalGWh, RPE_CO2EmissionsSummerThousandTons, RPE_CO2EmissionsTotalThousandTons, RPE_NOXEmissionsSummerThousandTons, RPE_NOXEmissionsTotalThousandTons, RPE_SO2EmissionsSummerThousandTons, RPE_SO2EmissionsTotalThousandTons, RPE_DispatchableCapacityMW), MeetPrimaryCriteria,"=1",IF($AL$6="IPM Region",RPE_IPMRegionGroupAcronym,RPE_State),"="&IF($AL$6="National","*",$AO45))) -> 3.091367322 | AQ45: =IF(AO45=0,"",IF($AL$18="Actual",0,SUMIFS(CHOOSE(VLOOKUP($AL$33,'Lookup tables'!$AK$5:$AM$15,3,0), RPE_FuelConsumptionSummerTBtu, RPE_FuelConsumptionTotalTBtu, RPE_GenerationSummerGWh, RPE_GenerationTotalGWh, RPE_CO2EmissionsSummerThousandTons, RPE_CO2EmissionsTotalThousandTons, RPE_NOXEmissionsSummerThousandTons, RPE_NOXEmissionsTotalThousandTons, RPE_SO2EmissionsSummerThousandTons, RPE_SO2EmissionsTotalThousandTons, RPE_DispatchableCapacityMW), MeetComparisonCriteria,"=1",IF($AL$6="IPM Region",RPE_IPMRegionGroupAcronym,RPE_State),"="&IF($AL$6="National","*",$AO45)))) -> 0 | AR45: 3.091367322 | AS45: 3.09 | AT45: 11854022
O46: SPP_N | P46: VA | Q46: UT | V46: SO2 Emissions Summer Thousand Tons | W46: Thousand (short) tons SO2 | AO46: TX | AP46: =IF(AO46=0,"",SUMIFS(CHOOSE(VLOOKUP($AL$16,'Lookup tables'!$AK$5:$AM$15,3,0), RPE_FuelConsumptionSummerTBtu, RPE_FuelConsumptionTotalTBtu, RPE_GenerationSummerGWh, RPE_GenerationTotalGWh, RPE_CO2EmissionsSummerThousandTons, RPE_CO2EmissionsTotalThousandTons, RPE_NOXEmissionsSummerThousandTons, RPE_NOXEmissionsTotalThousandTons, RPE_SO2EmissionsSummerThousandTons, RPE_SO2EmissionsTotalThousandTons, RPE_DispatchableCapacityMW), MeetPrimaryCriteria,"=1",IF($AL$6="IPM Region",RPE_IPMRegionGroupAcronym,RPE_State),"="&IF($AL$6="National","*",$AO46))) -> 44.22571247 | AQ46: =IF(AO46=0,"",IF($AL$18="Actual",0,SUMIFS(CHOOSE(VLOOKUP($AL$33,'Lookup tables'!$AK$5:$AM$15,3,0), RPE_FuelConsumptionSummerTBtu, RPE_FuelConsumptionTotalTBtu, RPE_GenerationSummerGWh, RPE_GenerationTotalGWh, RPE_CO2EmissionsSummerThousandTons, RPE_CO2EmissionsTotalThousandTons, RPE_NOXEmissionsSummerThousandTons, RPE_NOXEmissionsTotalThousandTons, RPE_SO2EmissionsSummerThousandTons, RPE_SO2EmissionsTotalThousandTons, RPE_DispatchableCapacityMW), MeetComparisonCriteria,"=1",IF($AL$6="IPM Region",RPE_IPMRegionGroupAcronym,RPE_State),"="&IF($AL$6="National","*",$AO46)))) -> 0 | AR46: 44.22571247 | AS46: 44.2 | AT46: 3506772
O47: SPP_NEBR | P47: VT | Q47: VA | V47: SO2 Emissions Total Thousand Tons | W47: Thousand (short) tons SO2 | AO47: UT | AP47: =IF(AO47=0,"",SUMIFS(CHOOSE(VLOOKUP($AL$16,'Lookup tables'!$AK$5:$AM$15,3,0), RPE_FuelConsumptionSummerTBtu, RPE_FuelConsumptionTotalTBtu, RPE_GenerationSummerGWh, RPE_GenerationTotalGWh, RPE_CO2EmissionsSummerThousandTons, RPE_CO2EmissionsTotalThousandTons, RPE_NOXEmissionsSummerThousandTons, RPE_NOXEmissionsTotalThousandTons, RPE_SO2EmissionsSummerThousandTons, RPE_SO2EmissionsTotalThousandTons, RPE_DispatchableCapacityMW), MeetPrimaryCriteria,"=1",IF($AL$6="IPM Region",RPE_IPMRegionGroupAcronym,RPE_State),"="&IF($AL$6="National","*",$AO47))) -> 12.45114157 | AQ47: =IF(AO47=0,"",IF($AL$18="Actual",0,SUMIFS(CHOOSE(VLOOKUP($AL$33,'Lookup tables'!$AK$5:$AM$15,3,0), RPE_FuelConsumptionSummerTBtu, RPE_FuelConsumptionTotalTBtu, RPE_GenerationSummerGWh, RPE_GenerationTotalGWh, RPE_CO2EmissionsSummerThousandTons, RPE_CO2EmissionsTotalThousandTons, RPE_NOXEmissionsSummerThousandTons, RPE_NOXEmissionsTotalThousandTons, RPE_SO2EmissionsSummerThousandTons, RPE_SO2EmissionsTotalThousandTons, RPE_DispatchableCapacityMW), MeetComparisonCriteria,"=1",IF($AL$6="IPM Region",RPE_IPMRegionGroupAcronym,RPE_State),"="&IF($AL$6="National","*",$AO47)))) -> 0 | AR47: 12.45114157 | AS47: 12.5 | AT47: 9359529 | AY47: Primary Value
O48: SPP_SE | P48: WA | Q48: VT | V48: Dispatchable Capacity MW | W48: MW | AO48: VA | AP48: =IF(AO48=0,"",SUMIFS(CHOOSE(VLOOKUP($AL$16,'Lookup tables'!$AK$5:$AM$15,3,0), RPE_FuelConsumptionSummerTBtu, RPE_FuelConsumptionTotalTBtu, RPE_GenerationSummerGWh, RPE_GenerationTotalGWh, RPE_CO2EmissionsSummerThousandTons, RPE_CO2EmissionsTotalThousandTons, RPE_NOXEmissionsSummerThousandTons, RPE_NOXEmissionsTotalThousandTons, RPE_SO2EmissionsSummerThousandTons, RPE_SO2EmissionsTotalThousandTons, RPE_DispatchableCapacityMW), MeetPrimaryCriteria,"=1",IF($AL$6="IPM Region",RPE_IPMRegionGroupAcronym,RPE_State),"="&IF($AL$6="National","*",$AO48))) -> 4.586221555 | AQ48: =IF(AO48=0,"",IF($AL$18="Actual",0,SUMIFS(CHOOSE(VLOOKUP($AL$33,'Lookup tables'!$AK$5:$AM$15,3,0), RPE_FuelConsumptionSummerTBtu, RPE_FuelConsumptionTotalTBtu, RPE_GenerationSummerGWh, RPE_GenerationTotalGWh, RPE_CO2EmissionsSummerThousandTons, RPE_CO2EmissionsTotalThousandTons, RPE_NOXEmissionsSummerThousandTons, RPE_NOXEmissionsTotalThousandTons, RPE_SO2EmissionsSummerThousandTons, RPE_SO2EmissionsTotalThousandTons, RPE_DispatchableCapacityMW), MeetComparisonCriteria,"=1",IF($AL$6="IPM Region",RPE_IPMRegionGroupAcronym,RPE_State),"="&IF($AL$6="National","*",$AO48)))) -> 0 | AR48: 4.586221555 | AS48: 4.59 | AT48: 11854022 | AY48: 2021 | AZ48: 2023 | BA48: 2025 | BB48: 2030 | BC48: 2035 | BD48: 2040 | BE48: 2045 | BF48: 2050
O49: SPP_SPS | P49: WI | Q49: WA | AO49: VT | AP49: =IF(AO49=0,"",SUMIFS(CHOOSE(VLOOKUP($AL$16,'Lookup tables'!$AK$5:$AM$15,3,0), RPE_FuelConsumptionSummerTBtu, RPE_FuelConsumptionTotalTBtu, RPE_GenerationSummerGWh, RPE_GenerationTotalGWh, RPE_CO2EmissionsSummerThousandTons, RPE_CO2EmissionsTotalThousandTons, RPE_NOXEmissionsSummerThousandTons, RPE_NOXEmissionsTotalThousandTons, RPE_SO2EmissionsSummerThousandTons, RPE_SO2EmissionsTotalThousandTons, RPE_DispatchableCapacityMW), MeetPrimaryCriteria,"=1",IF($AL$6="IPM Region",RPE_IPMRegionGroupAcronym,RPE_State),"="&IF($AL$6="National","*",$AO49))) -> 0.008595308909 | AQ49: =IF(AO49=0,"",IF($AL$18="Actual",0,SUMIFS(CHOOSE(VLOOKUP($AL$33,'Lookup tables'!$AK$5:$AM$15,3,0), RPE_FuelConsumptionSummerTBtu, RPE_FuelConsumptionTotalTBtu, RPE_GenerationSummerGWh, RPE_GenerationTotalGWh, RPE_CO2EmissionsSummerThousandTons, RPE_CO2EmissionsTotalThousandTons, RPE_NOXEmissionsSummerThousandTons, RPE_NOXEmissionsTotalThousandTons, RPE_SO2EmissionsSummerThousandTons, RPE_SO2EmissionsTotalThousandTons, RPE_DispatchableCapacityMW), MeetComparisonCriteria,"=1",IF($AL$6="IPM Region",RPE_IPMRegionGroupAcronym,RPE_State),"="&IF($AL$6="National","*",$AO49)))) -> 0 | AR49: 0.008595308909 | AS49: 0.009 | AT49: 11854022 | AX49: National | AY49: =SUMIFS(INDIRECT($AM$16),MeetPrimaryCriteriaSeries,"=1",RPE_Year,"="&AY$48) -> 380.3532233 | AZ49: 388.9852875 | BA49: 386.6925286 | BB49: 384.7420552 | BC49: 374.3367152 | BD49: 372.8446171 | BE49: 364.41649 | BF49: 337.6998018
O50: SPP_WEST | P50: WV | Q50: WI | AO50: WA | AP50: =IF(AO50=0,"",SUMIFS(CHOOSE(VLOOKUP($AL$16,'Lookup tables'!$AK$5:$AM$15,3,0), RPE_FuelConsumptionSummerTBtu, RPE_FuelConsumptionTotalTBtu, RPE_GenerationSummerGWh, RPE_GenerationTotalGWh, RPE_CO2EmissionsSummerThousandTons, RPE_CO2EmissionsTotalThousandTons, RPE_NOXEmissionsSummerThousandTons, RPE_NOXEmissionsTotalThousandTons, RPE_SO2EmissionsSummerThousandTons, RPE_SO2EmissionsTotalThousandTons, RPE_DispatchableCapacityMW), MeetPrimaryCriteria,"=1",IF($AL$6="IPM Region",RPE_IPMRegionGroupAcronym,RPE_State),"="&IF($AL$6="National","*",$AO50))) -> 0.3967944714 | AQ50: =IF(AO50=0,"",IF($AL$18="Actual",0,SUMIFS(CHOOSE(VLOOKUP($AL$33,'Lookup tables'!$AK$5:$AM$15,3,0), RPE_FuelConsumptionSummerTBtu, RPE_FuelConsumptionTotalTBtu, RPE_GenerationSummerGWh, RPE_GenerationTotalGWh, RPE_CO2EmissionsSummerThousandTons, RPE_CO2EmissionsTotalThousandTons, RPE_NOXEmissionsSummerThousandTons, RPE_NOXEmissionsTotalThousandTons, RPE_SO2EmissionsSummerThousandTons, RPE_SO2EmissionsTotalThousandTons, RPE_DispatchableCapacityMW), MeetComparisonCriteria,"=1",IF($AL$6="IPM Region",RPE_IPMRegionGroupAcronym,RPE_State),"="&IF($AL$6="National","*",$AO50)))) -> 0 | AR50: 0.3967944714 | AS50: 0.397 | AT50: 11854022 | AX50: =AY42 -> National | AY50: =SUMIFS(INDIRECT($AM$16),MeetPrimaryCriteriaSeries,"=1",RPE_State,"="&$AX50,RPE_Year,"="&AY$48) -> 0 | AZ50: =SUMIFS(INDIRECT($AM$16),MeetPrimaryCriteriaSeries,"=1",RPE_State,"="&$AX50,RPE_Year,"="&AZ$48) -> 0 | BA50: 0 | BB50: 0 | BC50: 0 | BD50: 0 | BE50: 0 | BF50: 0
O51: WEC_CALN | P51: WY | Q51: WV | AK51: =IF(NOT(OR($AL$18="Emissions Rate",$AL$18="Capacity Factor")),"", IF($AL$2<>$AL$21,"Primary and Comparison Cases Don't Match", IF($AL$4<>$AL$23,"Primary and Comparison Years don't match", IF($AL$9<>$AL$26,"Primary and Comparison Fuel Types don't match", IF($AL$10<>$AL$27,"Primary and Comparison Fossil > 25 MW don't match", IF($AL$11<>$AL$28,"Primary and Comparison Exisint/New/Retired don't match", IF($AL$12<>$AL$29,"Primary and Comparison Plant Types don't match", IF($AL$13<>$AL$30,"Primary and Comparison Plant Categories don't match", IF($AL$14<>$AL$31,"Primary and Comparison Control/Retrofit Types don't match", IF($AL$15<>$AL$32,"Primary and Comparison Existing/New Controls don't match","")))))))))) ->  | AO51: WI | AP51: =IF(AO51=0,"",SUMIFS(CHOOSE(VLOOKUP($AL$16,'Lookup tables'!$AK$5:$AM$15,3,0), RPE_FuelConsumptionSummerTBtu, RPE_FuelConsumptionTotalTBtu, RPE_GenerationSummerGWh, RPE_GenerationTotalGWh, RPE_CO2EmissionsSummerThousandTons, RPE_CO2EmissionsTotalThousandTons, RPE_NOXEmissionsSummerThousandTons, RPE_NOXEmissionsTotalThousandTons, RPE_SO2EmissionsSummerThousandTons, RPE_SO2EmissionsTotalThousandTons, RPE_DispatchableCapacityMW), MeetPrimaryCriteria,"=1",IF($AL$6="IPM Region",RPE_IPMRegionGroupAcronym,RPE_State),"="&IF($AL$6="National","*",$AO51))) -> 4.01306625 | AQ51: =IF(AO51=0,"",IF($AL$18="Actual",0,SUMIFS(CHOOSE(VLOOKUP($AL$33,'Lookup tables'!$AK$5:$AM$15,3,0), RPE_FuelConsumptionSummerTBtu, RPE_FuelConsumptionTotalTBtu, RPE_GenerationSummerGWh, RPE_GenerationTotalGWh, RPE_CO2EmissionsSummerThousandTons, RPE_CO2EmissionsTotalThousandTons, RPE_NOXEmissionsSummerThousandTons, RPE_NOXEmissionsTotalThousandTons, RPE_SO2EmissionsSummerThousandTons, RPE_SO2EmissionsTotalThousandTons, RPE_DispatchableCapacityMW), MeetComparisonCriteria,"=1",IF($AL$6="IPM Region",RPE_IPMRegionGroupAcronym,RPE_State),"="&IF($AL$6="National","*",$AO51)))) -> 0 | AR51: 4.01306625 | AS51: 4.01 | AT51: 11854022
O52: WEC_LADW | Q52: WY | AO52: WV | AP52: =IF(AO52=0,"",SUMIFS(CHOOSE(VLOOKUP($AL$16,'Lookup tables'!$AK$5:$AM$15,3,0), RPE_FuelConsumptionSummerTBtu, RPE_FuelConsumptionTotalTBtu, RPE_GenerationSummerGWh, RPE_GenerationTotalGWh, RPE_CO2EmissionsSummerThousandTons, RPE_CO2EmissionsTotalThousandTons, RPE_NOXEmissionsSummerThousandTons, RPE_NOXEmissionsTotalThousandTons, RPE_SO2EmissionsSummerThousandTons, RPE_SO2EmissionsTotalThousandTons, RPE_DispatchableCapacityMW), MeetPrimaryCriteria,"=1",IF($AL$6="IPM Region",RPE_IPMRegionGroupAcronym,RPE_State),"="&IF($AL$6="National","*",$AO52))) -> 19.81128327 | AQ52: =IF(AO52=0,"",IF($AL$18="Actual",0,SUMIFS(CHOOSE(VLOOKUP($AL$33,'Lookup tables'!$AK$5:$AM$15,3,0), RPE_FuelConsumptionSummerTBtu, RPE_FuelConsumptionTotalTBtu, RPE_GenerationSummerGWh, RPE_GenerationTotalGWh, RPE_CO2EmissionsSummerThousandTons, RPE_CO2EmissionsTotalThousandTons, RPE_NOXEmissionsSummerThousandTons, RPE_NOXEmissionsTotalThousandTons, RPE_SO2EmissionsSummerThousandTons, RPE_SO2EmissionsTotalThousandTons, RPE_DispatchableCapacityMW), MeetComparisonCriteria,"=1",IF($AL$6="IPM Region",RPE_IPMRegionGroupAcronym,RPE_State),"="&IF($AL$6="National","*",$AO52)))) -> 0 | AR52: 19.81128327 | AS52: 19.8 | AT52: 9359529 | AY52: Comaprison Value
O53: WEC_SDGE | AO53: WY | AP53: =IF(AO53=0,"",SUMIFS(CHOOSE(VLOOKUP($AL$16,'Lookup tables'!$AK$5:$AM$15,3,0), RPE_FuelConsumptionSummerTBtu, RPE_FuelConsumptionTotalTBtu, RPE_GenerationSummerGWh, RPE_GenerationTotalGWh, RPE_CO2EmissionsSummerThousandTons, RPE_CO2EmissionsTotalThousandTons, RPE_NOXEmissionsSummerThousandTons, RPE_NOXEmissionsTotalThousandTons, RPE_SO2EmissionsSummerThousandTons, RPE_SO2EmissionsTotalThousandTons, RPE_DispatchableCapacityMW), MeetPrimaryCriteria,"=1",IF($AL$6="IPM Region",RPE_IPMRegionGroupAcronym,RPE_State),"="&IF($AL$6="National","*",$AO53))) -> 6.663010654 | AQ53: =IF(AO53=0,"",IF($AL$18="Actual",0,SUMIFS(CHOOSE(VLOOKUP($AL$33,'Lookup tables'!$AK$5:$AM$15,3,0), RPE_FuelConsumptionSummerTBtu, RPE_FuelConsumptionTotalTBtu, RPE_GenerationSummerGWh, RPE_GenerationTotalGWh, RPE_CO2EmissionsSummerThousandTons, RPE_CO2EmissionsTotalThousandTons, RPE_NOXEmissionsSummerThousandTons, RPE_NOXEmissionsTotalThousandTons, RPE_SO2EmissionsSummerThousandTons, RPE_SO2EmissionsTotalThousandTons, RPE_DispatchableCapacityMW), MeetComparisonCriteria,"=1",IF($AL$6="IPM Region",RPE_IPMRegionGroupAcronym,RPE_State),"="&IF($AL$6="National","*",$AO53)))) -> 0 | AR53: 6.663010654 | AS53: 6.66 | AT53: 11854022 | AY53: 2021 | AZ53: 2023 | BA53: 2025 | BB53: 2030 | BC53: 2035 | BD53: 2040 | BE53: 2045 | BF53: 2050
O54: WECC_AZ | AP54: =IF(AO54=0,"",SUMIFS(CHOOSE(VLOOKUP($AL$16,'Lookup tables'!$AK$5:$AM$15,3,0), RPE_FuelConsumptionSummerTBtu, RPE_FuelConsumptionTotalTBtu, RPE_GenerationSummerGWh, RPE_GenerationTotalGWh, RPE_CO2EmissionsSummerThousandTons, RPE_CO2EmissionsTotalThousandTons, RPE_NOXEmissionsSummerThousandTons, RPE_NOXEmissionsTotalThousandTons, RPE_SO2EmissionsSummerThousandTons, RPE_SO2EmissionsTotalThousandTons, RPE_DispatchableCapacityMW), MeetPrimaryCriteria,"=1",IF($AL$6="IPM Region",RPE_IPMRegionGroupAcronym,RPE_State),"="&IF($AL$6="National","*",$AO54))) -> 0 | AQ54: =IF(AO54=0,"",IF($AL$18="Actual",0,SUMIFS(CHOOSE(VLOOKUP($AL$33,'Lookup tables'!$AK$5:$AM$15,3,0), RPE_FuelConsumptionSummerTBtu, RPE_FuelConsumptionTotalTBtu, RPE_GenerationSummerGWh, RPE_GenerationTotalGWh, RPE_CO2EmissionsSummerThousandTons, RPE_CO2EmissionsTotalThousandTons, RPE_NOXEmissionsSummerThousandTons, RPE_NOXEmissionsTotalThousandTons, RPE_SO2EmissionsSummerThousandTons, RPE_SO2EmissionsTotalThousandTons, RPE_DispatchableCapacityMW), MeetComparisonCriteria,"=1",IF($AL$6="IPM Region",RPE_IPMRegionGroupAcronym,RPE_State),"="&IF($AL$6="National","*",$AO54)))) -> 0 | AR54: 0 | AS54: 0.000 | AT54: 11854022 | AX54: National | AY54: =IF($AL$18="Actual",0,SUMIFS(INDIRECT($AM$33),MeetComparisonCriteriaSeries,"=1",RPE_Year,"="&IF($BC$42="Parallel",AY$53,$AL$23))) -> 0 | AZ54: 0 | BA54: 0 | BB54: 0 | BC54: 0 | BD54: 0 | BE54: 0 | BF54: 0
O55: WECC_CO | AO55: 0 | AP55: =IF(AO55=0,"",SUMIFS(CHOOSE(VLOOKUP($AL$16,'Lookup tables'!$AK$5:$AM$15,3,0), RPE_FuelConsumptionSummerTBtu, RPE_FuelConsumptionTotalTBtu, RPE_GenerationSummerGWh, RPE_GenerationTotalGWh, RPE_CO2EmissionsSummerThousandTons, RPE_CO2EmissionsTotalThousandTons, RPE_NOXEmissionsSummerThousandTons, RPE_NOXEmissionsTotalThousandTons, RPE_SO2EmissionsSummerThousandTons, RPE_SO2EmissionsTotalThousandTons, RPE_DispatchableCapacityMW), MeetPrimaryCriteria,"=1",IF($AL$6="IPM Region",RPE_IPMRegionGroupAcronym,RPE_State),"="&IF($AL$6="National","*",$AO55))) ->  | AQ55: =IF(AO55=0,"",IF($AL$18="Actual",0,SUMIFS(CHOOSE(VLOOKUP($AL$33,'Lookup tables'!$AK$5:$AM$15,3,0), RPE_FuelConsumptionSummerTBtu, RPE_FuelConsumptionTotalTBtu, RPE_GenerationSummerGWh, RPE_GenerationTotalGWh, RPE_CO2EmissionsSummerThousandTons, RPE_CO2EmissionsTotalThousandTons, RPE_NOXEmissionsSummerThousandTons, RPE_NOXEmissionsTotalThousandTons, RPE_SO2EmissionsSummerThousandTons, RPE_SO2EmissionsTotalThousandTons, RPE_DispatchableCapacityMW), MeetComparisonCriteria,"=1",IF($AL$6="IPM Region",RPE_IPMRegionGroupAcronym,RPE_State),"="&IF($AL$6="National","*",$AO55)))) ->  | AT55: 16777215 | AX55: =AY42 -> National | AY55: =IF($AL$18="Actual",0,SUMIFS(INDIRECT($AM$33),MeetComparisonCriteriaSeries,"=1",RPE_State,"="&$AX55,RPE_Year,"="&AY$53)) -> 0 | AZ55: 0 | BA55: 0 | BB55: 0 | BC55: 0 | BD55: 0 | BE55: 0 | BF55: 0
O56: WECC_ID | AO56: 0 | AP56: =IF(AO56=0,"",SUMIFS(CHOOSE(VLOOKUP($AL$16,'Lookup tables'!$AK$5:$AM$15,3,0), RPE_FuelConsumptionSummerTBtu, RPE_FuelConsumptionTotalTBtu, RPE_GenerationSummerGWh, RPE_GenerationTotalGWh, RPE_CO2EmissionsSummerThousandTons, RPE_CO2EmissionsTotalThousandTons, RPE_NOXEmissionsSummerThousandTons, RPE_NOXEmissionsTotalThousandTons, RPE_SO2EmissionsSummerThousandTons, RPE_SO2EmissionsTotalThousandTons, RPE_DispatchableCapacityMW), MeetPrimaryCriteria,"=1",IF($AL$6="IPM Region",RPE_IPMRegionGroupAcronym,RPE_State),"="&IF($AL$6="National","*",$AO56))) ->  | AQ56: =IF(AO56=0,"",IF($AL$18="Actual",0,SUMIFS(CHOOSE(VLOOKUP($AL$33,'Lookup tables'!$AK$5:$AM$15,3,0), RPE_FuelConsumptionSummerTBtu, RPE_FuelConsumptionTotalTBtu, RPE_GenerationSummerGWh, RPE_GenerationTotalGWh, RPE_CO2EmissionsSummerThousandTons, RPE_CO2EmissionsTotalThousandTons, RPE_NOXEmissionsSummerThousandTons, RPE_NOXEmissionsTotalThousandTons, RPE_SO2EmissionsSummerThousandTons, RPE_SO2EmissionsTotalThousandTons, RPE_DispatchableCapacityMW), MeetComparisonCriteria,"=1",IF($AL$6="IPM Region",RPE_IPMRegionGroupAcronym,RPE_State),"="&IF($AL$6="National","*",$AO56)))) ->  | AT56: 16777215
O57: WECC_IID | AO57: 0 | AP57: =IF(AO57=0,"",SUMIFS(CHOOSE(VLOOKUP($AL$16,'Lookup tables'!$AK$5:$AM$15,3,0), RPE_FuelConsumptionSummerTBtu, RPE_FuelConsumptionTotalTBtu, RPE_GenerationSummerGWh, RPE_GenerationTotalGWh, RPE_CO2EmissionsSummerThousandTons, RPE_CO2EmissionsTotalThousandTons, RPE_NOXEmissionsSummerThousandTons, RPE_NOXEmissionsTotalThousandTons, RPE_SO2EmissionsSummerThousandTons, RPE_SO2EmissionsTotalThousandTons, RPE_DispatchableCapacityMW), MeetPrimaryCriteria,"=1",IF($AL$6="IPM Region",RPE_IPMRegionGroupAcronym,RPE_State),"="&IF($AL$6="National","*",$AO57))) ->  | AQ57: =IF(AO57=0,"",IF($AL$18="Actual",0,SUMIFS(CHOOSE(VLOOKUP($AL$33,'Lookup tables'!$AK$5:$AM$15,3,0), RPE_FuelConsumptionSummerTBtu, RPE_FuelConsumptionTotalTBtu, RPE_GenerationSummerGWh, RPE_GenerationTotalGWh, RPE_CO2EmissionsSummerThousandTons, RPE_CO2EmissionsTotalThousandTons, RPE_NOXEmissionsSummerThousandTons, RPE_NOXEmissionsTotalThousandTons, RPE_SO2EmissionsSummerThousandTons, RPE_SO2EmissionsTotalThousandTons, RPE_DispatchableCapacityMW), MeetComparisonCriteria,"=1",IF($AL$6="IPM Region",RPE_IPMRegionGroupAcronym,RPE_State),"="&IF($AL$6="National","*",$AO57)))) ->  | AT57: 16777215 | AY57: Display Value
O58: WECC_MT | AO58: 0 | AP58: =IF(AO58=0,"",SUMIFS(CHOOSE(VLOOKUP($AL$16,'Lookup tables'!$AK$5:$AM$15,3,0), RPE_FuelConsumptionSummerTBtu, RPE_FuelConsumptionTotalTBtu, RPE_GenerationSummerGWh, RPE_GenerationTotalGWh, RPE_CO2EmissionsSummerThousandTons, RPE_CO2EmissionsTotalThousandTons, RPE_NOXEmissionsSummerThousandTons, RPE_NOXEmissionsTotalThousandTons, RPE_SO2EmissionsSummerThousandTons, RPE_SO2EmissionsTotalThousandTons, RPE_DispatchableCapacityMW), MeetPrimaryCriteria,"=1",IF($AL$6="IPM Region",RPE_IPMRegionGroupAcronym,RPE_State),"="&IF($AL$6="National","*",$AO58))) ->  | AQ58: =IF(AO58=0,"",IF($AL$18="Actual",0,SUMIFS(CHOOSE(VLOOKUP($AL$33,'Lookup tables'!$AK$5:$AM$15,3,0), RPE_FuelConsumptionSummerTBtu, RPE_FuelConsumptionTotalTBtu, RPE_GenerationSummerGWh, RPE_GenerationTotalGWh, RPE_CO2EmissionsSummerThousandTons, RPE_CO2EmissionsTotalThousandTons, RPE_NOXEmissionsSummerThousandTons, RPE_NOXEmissionsTotalThousandTons, RPE_SO2EmissionsSummerThousandTons, RPE_SO2EmissionsTotalThousandTons, RPE_DispatchableCapacityMW), MeetComparisonCriteria,"=1",IF($AL$6="IPM Region",RPE_IPMRegionGroupAcronym,RPE_State),"="&IF($AL$6="National","*",$AO58)))) ->  | AT58: 16777215 | AY58: 2021 | AZ58: 2023 | BA58: 2025 | BB58: 2030 | BC58: 2035 | BD58: 2040 | BE58: 2045 | BF58: 2050
O59: WECC_NM | AO59: 0 | AP59: =IF(AO59=0,"",SUMIFS(CHOOSE(VLOOKUP($AL$16,'Lookup tables'!$AK$5:$AM$15,3,0), RPE_FuelConsumptionSummerTBtu, RPE_FuelConsumptionTotalTBtu, RPE_GenerationSummerGWh, RPE_GenerationTotalGWh, RPE_CO2EmissionsSummerThousandTons, RPE_CO2EmissionsTotalThousandTons, RPE_NOXEmissionsSummerThousandTons, RPE_NOXEmissionsTotalThousandTons, RPE_SO2EmissionsSummerThousandTons, RPE_SO2EmissionsTotalThousandTons, RPE_DispatchableCapacityMW), MeetPrimaryCriteria,"=1",IF($AL$6="IPM Region",RPE_IPMRegionGroupAcronym,RPE_State),"="&IF($AL$6="National","*",$AO59))) ->  | AQ59: =IF(AO59=0,"",IF($AL$18="Actual",0,SUMIFS(CHOOSE(VLOOKUP($AL$33,'Lookup tables'!$AK$5:$AM$15,3,0), RPE_FuelConsumptionSummerTBtu, RPE_FuelConsumptionTotalTBtu, RPE_GenerationSummerGWh, RPE_GenerationTotalGWh, RPE_CO2EmissionsSummerThousandTons, RPE_CO2EmissionsTotalThousandTons, RPE_NOXEmissionsSummerThousandTons, RPE_NOXEmissionsTotalThousandTons, RPE_SO2EmissionsSummerThousandTons, RPE_SO2EmissionsTotalThousandTons, RPE_DispatchableCapacityMW), MeetComparisonCriteria,"=1",IF($AL$6="IPM Region",RPE_IPMRegionGroupAcronym,RPE_State),"="&IF($AL$6="National","*",$AO59)))) ->  | AT59: 16777215 | AX59: National | AY59: =IFERROR(IF($AL$18="Actual",AY49,IF($AL$18="Absolute Change",AY49-AY54,IF($AL$18="Percent Change",(AY49-AY54)/AY54,IF($AL$18="Emissions Rate",AY49*2/AY54,IF($AL$18="Capacity Factor",AY49*1000/(AY54*IF(NOT(ISERROR(SEARCH("Summer",$AL$16))),3672,8760)),AY49/AY54))))),"") -> 380.3532233 | AZ59: =IFERROR(IF($AL$18="Actual",AZ49,IF($AL$18="Absolute Change",AZ49-AZ54,IF($AL$18="Percent Change",(AZ49-AZ54)/AZ54,IF($AL$18="Emissions Rate",AZ49*2/AZ54,IF($AL$18="Capacity Factor",AZ49*1000/(AZ54*IF(NOT(ISERROR(SEARCH("Summer",$AL$16))),3672,8760)),AZ49/AZ54))))),"") -> 388.9852875 | BA59: 386.6925286 | BB59: 384.7420552 | BC59: 374.3367152 | BD59: 372.8446171 | BE59: 364.41649 | BF59: 337.6998018
O60: WECC_NNV | AO60: 0 | AP60: =IF(AO60=0,"",SUMIFS(CHOOSE(VLOOKUP($AL$16,'Lookup tables'!$AK$5:$AM$15,3,0), RPE_FuelConsumptionSummerTBtu, RPE_FuelConsumptionTotalTBtu, RPE_GenerationSummerGWh, RPE_GenerationTotalGWh, RPE_CO2EmissionsSummerThousandTons, RPE_CO2EmissionsTotalThousandTons, RPE_NOXEmissionsSummerThousandTons, RPE_NOXEmissionsTotalThousandTons, RPE_SO2EmissionsSummerThousandTons, RPE_SO2EmissionsTotalThousandTons, RPE_DispatchableCapacityMW), MeetPrimaryCriteria,"=1",IF($AL$6="IPM Region",RPE_IPMRegionGroupAcronym,RPE_State),"="&IF($AL$6="National","*",$AO60))) ->  | AQ60: =IF(AO60=0,"",IF($AL$18="Actual",0,SUMIFS(CHOOSE(VLOOKUP($AL$33,'Lookup tables'!$AK$5:$AM$15,3,0), RPE_FuelConsumptionSummerTBtu, RPE_FuelConsumptionTotalTBtu, RPE_GenerationSummerGWh, RPE_GenerationTotalGWh, RPE_CO2EmissionsSummerThousandTons, RPE_CO2EmissionsTotalThousandTons, RPE_NOXEmissionsSummerThousandTons, RPE_NOXEmissionsTotalThousandTons, RPE_SO2EmissionsSummerThousandTons, RPE_SO2EmissionsTotalThousandTons, RPE_DispatchableCapacityMW), MeetComparisonCriteria,"=1",IF($AL$6="IPM Region",RPE_IPMRegionGroupAcronym,RPE_State),"="&IF($AL$6="National","*",$AO60)))) ->  | AT60: 16777215 | AX60: =AY42 -> National | AY60: =IFERROR(IF($AL$18="Actual",AY50,IF($AL$18="Absolute Change",AY50-AY55,IF($AL$18="Percent Change",(AY50-AY55)/AY55,IF($AL$18="Emissions Rate",AY50*2/AY55,IF($AL$18="Capacity Factor",AY50*1000/(AY55*IF(NOT(ISERROR(SEARCH("Summer",$AL$16))),3672,8760)),AY50/AY55))))),"") -> 0 | AZ60: =IFERROR(IF($AL$18="Actual",AZ50,IF($AL$18="Absolute Change",AZ50-AZ55,IF($AL$18="Percent Change",(AZ50-AZ55)/AZ55,IF($AL$18="Emissions Rate",AZ50*2/AZ55,IF($AL$18="Capacity Factor",AZ50*1000/(AZ55*IF(NOT(ISERROR(SEARCH("Summer",$AL$16))),3672,8760)),AZ50/AZ55))))),"") -> 0 | BA60: 0 | BB60: 0 | BC60: 0 | BD60: 0 | BE60: 0 | BF60: 0
O61: WECC_PNW | AO61: 0 | AP61: =IF(AO61=0,"",SUMIFS(CHOOSE(VLOOKUP($AL$16,'Lookup tables'!$AK$5:$AM$15,3,0), RPE_FuelConsumptionSummerTBtu, RPE_FuelConsumptionTotalTBtu, RPE_GenerationSummerGWh, RPE_GenerationTotalGWh, RPE_CO2EmissionsSummerThousandTons, RPE_CO2EmissionsTotalThousandTons, RPE_NOXEmissionsSummerThousandTons, RPE_NOXEmissionsTotalThousandTons, RPE_SO2EmissionsSummerThousandTons, RPE_SO2EmissionsTotalThousandTons, RPE_DispatchableCapacityMW), MeetPrimaryCriteria,"=1",IF($AL$6="IPM Region",RPE_IPMRegionGroupAcronym,RPE_State),"="&IF($AL$6="National","*",$AO61))) ->  | AQ61: =IF(AO61=0,"",IF($AL$18="Actual",0,SUMIFS(CHOOSE(VLOOKUP($AL$33,'Lookup tables'!$AK$5:$AM$15,3,0), RPE_FuelConsumptionSummerTBtu, RPE_FuelConsumptionTotalTBtu, RPE_GenerationSummerGWh, RPE_GenerationTotalGWh, RPE_CO2EmissionsSummerThousandTons, RPE_CO2EmissionsTotalThousandTons, RPE_NOXEmissionsSummerThousandTons, RPE_NOXEmissionsTotalThousandTons, RPE_SO2EmissionsSummerThousandTons, RPE_SO2EmissionsTotalThousandTons, RPE_DispatchableCapacityMW), MeetComparisonCriteria,"=1",IF($AL$6="IPM Region",RPE_IPMRegionGroupAcronym,RPE_State),"="&IF($AL$6="National","*",$AO61)))) ->  | AT61: 16777215 | AX61: Display | AY61: =IF($AY$42="National",AY59,AY60) -> 380.3532233 | AZ61: =IF($AY$42="National",AZ59,AZ60) -> 388.9852875 | BA61: 386.6925286 | BB61: 384.7420552 | BC61: 374.3367152 | BD61: =IF($AY$42="National",BD59,BD60) -> 372.8446171 | BE61: 364.41649 | BF61: 337.6998018
O62: WECC_SCE | AO62: 0 | AP62: =IF(AO62=0,"",SUMIFS(CHOOSE(VLOOKUP($AL$16,'Lookup tables'!$AK$5:$AM$15,3,0), RPE_FuelConsumptionSummerTBtu, RPE_FuelConsumptionTotalTBtu, RPE_GenerationSummerGWh, RPE_GenerationTotalGWh, RPE_CO2EmissionsSummerThousandTons, RPE_CO2EmissionsTotalThousandTons, RPE_NOXEmissionsSummerThousandTons, RPE_NOXEmissionsTotalThousandTons, RPE_SO2EmissionsSummerThousandTons, RPE_SO2EmissionsTotalThousandTons, RPE_DispatchableCapacityMW), MeetPrimaryCriteria,"=1",IF($AL$6="IPM Region",RPE_IPMRegionGroupAcronym,RPE_State),"="&IF($AL$6="National","*",$AO62))) ->  | AQ62: =IF(AO62=0,"",IF($AL$18="Actual",0,SUMIFS(CHOOSE(VLOOKUP($AL$33,'Lookup tables'!$AK$5:$AM$15,3,0), RPE_FuelConsumptionSummerTBtu, RPE_FuelConsumptionTotalTBtu, RPE_GenerationSummerGWh, RPE_GenerationTotalGWh, RPE_CO2EmissionsSummerThousandTons, RPE_CO2EmissionsTotalThousandTons, RPE_NOXEmissionsSummerThousandTons, RPE_NOXEmissionsTotalThousandTons, RPE_SO2EmissionsSummerThousandTons, RPE_SO2EmissionsTotalThousandTons, RPE_DispatchableCapacityMW), MeetComparisonCriteria,"=1",IF($AL$6="IPM Region",RPE_IPMRegionGroupAcronym,RPE_State),"="&IF($AL$6="National","*",$AO62)))) ->  | AT62: 16777215
O63: WECC_SF | AO63: 0 | AP63: =IF(AO63=0,"",SUMIFS(CHOOSE(VLOOKUP($AL$16,'Lookup tables'!$AK$5:$AM$15,3,0), RPE_FuelConsumptionSummerTBtu, RPE_FuelConsumptionTotalTBtu, RPE_GenerationSummerGWh, RPE_GenerationTotalGWh, RPE_CO2EmissionsSummerThousandTons, RPE_CO2EmissionsTotalThousandTons, RPE_NOXEmissionsSummerThousandTons, RPE_NOXEmissionsTotalThousandTons, RPE_SO2EmissionsSummerThousandTons, RPE_SO2EmissionsTotalThousandTons, RPE_DispatchableCapacityMW), MeetPrimaryCriteria,"=1",IF($AL$6="IPM Region",RPE_IPMRegionGroupAcronym,RPE_State),"="&IF($AL$6="National","*",$AO63))) ->  | AQ63: =IF(AO63=0,"",IF($AL$18="Actual",0,SUMIFS(CHOOSE(VLOOKUP($AL$33,'Lookup tables'!$AK$5:$AM$15,3,0), RPE_FuelConsumptionSummerTBtu, RPE_FuelConsumptionTotalTBtu, RPE_GenerationSummerGWh, RPE_GenerationTotalGWh, RPE_CO2EmissionsSummerThousandTons, RPE_CO2EmissionsTotalThousandTons, RPE_NOXEmissionsSummerThousandTons, RPE_NOXEmissionsTotalThousandTons, RPE_SO2EmissionsSummerThousandTons, RPE_SO2EmissionsTotalThousandTons, RPE_DispatchableCapacityMW), MeetComparisonCriteria,"=1",IF($AL$6="IPM Region",RPE_IPMRegionGroupAcronym,RPE_State),"="&IF($AL$6="National","*",$AO63)))) ->  | AT63: 16777215
O64: WECC_SNV | AO64: 0 | AP64: =IF(AO64=0,"",SUMIFS(CHOOSE(VLOOKUP($AL$16,'Lookup tables'!$AK$5:$AM$15,3,0), RPE_FuelConsumptionSummerTBtu, RPE_FuelConsumptionTotalTBtu, RPE_GenerationSummerGWh, RPE_GenerationTotalGWh, RPE_CO2EmissionsSummerThousandTons, RPE_CO2EmissionsTotalThousandTons, RPE_NOXEmissionsSummerThousandTons, RPE_NOXEmissionsTotalThousandTons, RPE_SO2EmissionsSummerThousandTons, RPE_SO2EmissionsTotalThousandTons, RPE_DispatchableCapacityMW), MeetPrimaryCriteria,"=1",IF($AL$6="IPM Region",RPE_IPMRegionGroupAcronym,RPE_State),"="&IF($AL$6="National","*",$AO64))) ->  | AQ64: =IF(AO64=0,"",IF($AL$18="Actual",0,SUMIFS(CHOOSE(VLOOKUP($AL$33,'Lookup tables'!$AK$5:$AM$15,3,0), RPE_FuelConsumptionSummerTBtu, RPE_FuelConsumptionTotalTBtu, RPE_GenerationSummerGWh, RPE_GenerationTotalGWh, RPE_CO2EmissionsSummerThousandTons, RPE_CO2EmissionsTotalThousandTons, RPE_NOXEmissionsSummerThousandTons, RPE_NOXEmissionsTotalThousandTons, RPE_SO2EmissionsSummerThousandTons, RPE_SO2EmissionsTotalThousandTons, RPE_DispatchableCapacityMW), MeetComparisonCriteria,"=1",IF($AL$6="IPM Region",RPE_IPMRegionGroupAcronym,RPE_State),"="&IF($AL$6="National","*",$AO64)))) ->  | AT64: 16777215
O65: WECC_UT | AO65: 0 | AP65: =IF(AO65=0,"",SUMIFS(CHOOSE(VLOOKUP($AL$16,'Lookup tables'!$AK$5:$AM$15,3,0), RPE_FuelConsumptionSummerTBtu, RPE_FuelConsumptionTotalTBtu, RPE_GenerationSummerGWh, RPE_GenerationTotalGWh, RPE_CO2EmissionsSummerThousandTons, RPE_CO2EmissionsTotalThousandTons, RPE_NOXEmissionsSummerThousandTons, RPE_NOXEmissionsTotalThousandTons, RPE_SO2EmissionsSummerThousandTons, RPE_SO2EmissionsTotalThousandTons, RPE_DispatchableCapacityMW), MeetPrimaryCriteria,"=1",IF($AL$6="IPM Region",RPE_IPMRegionGroupAcronym,RPE_State),"="&IF($AL$6="National","*",$AO65))) ->  | AQ65: =IF(AO65=0,"",IF($AL$18="Actual",0,SUMIFS(CHOOSE(VLOOKUP($AL$33,'Lookup tables'!$AK$5:$AM$15,3,0), RPE_FuelConsumptionSummerTBtu, RPE_FuelConsumptionTotalTBtu, RPE_GenerationSummerGWh, RPE_GenerationTotalGWh, RPE_CO2EmissionsSummerThousandTons, RPE_CO2EmissionsTotalThousandTons, RPE_NOXEmissionsSummerThousandTons, RPE_NOXEmissionsTotalThousandTons, RPE_SO2EmissionsSummerThousandTons, RPE_SO2EmissionsTotalThousandTons, RPE_DispatchableCapacityMW), MeetComparisonCriteria,"=1",IF($AL$6="IPM Region",RPE_IPMRegionGroupAcronym,RPE_State),"="&IF($AL$6="National","*",$AO65)))) ->  | AT65: 16777215 | AY65: RPE_NOXEmissionsSummerThousandTons | BH65: min | BI65: =MIN($AR$5:$AR$53) -> 0.0008477801257
O66: WECC_WY | AO66: 0 | AP66: =IF(AO66=0,"",SUMIFS(CHOOSE(VLOOKUP($AL$16,'Lookup tables'!$AK$5:$AM$15,3,0), RPE_FuelConsumptionSummerTBtu, RPE_FuelConsumptionTotalTBtu, RPE_GenerationSummerGWh, RPE_GenerationTotalGWh, RPE_CO2EmissionsSummerThousandTons, RPE_CO2EmissionsTotalThousandTons, RPE_NOXEmissionsSummerThousandTons, RPE_NOXEmissionsTotalThousandTons, RPE_SO2EmissionsSummerThousandTons, RPE_SO2EmissionsTotalThousandTons, RPE_DispatchableCapacityMW), MeetPrimaryCriteria,"=1",IF($AL$6="IPM Region",RPE_IPMRegionGroupAcronym,RPE_State),"="&IF($AL$6="National","*",$AO66))) ->  | AQ66: =IF(AO66=0,"",IF($AL$18="Actual",0,SUMIFS(CHOOSE(VLOOKUP($AL$33,'Lookup tables'!$AK$5:$AM$15,3,0), RPE_FuelConsumptionSummerTBtu, RPE_FuelConsumptionTotalTBtu, RPE_GenerationSummerGWh, RPE_GenerationTotalGWh, RPE_CO2EmissionsSummerThousandTons, RPE_CO2EmissionsTotalThousandTons, RPE_NOXEmissionsSummerThousandTons, RPE_NOXEmissionsTotalThousandTons, RPE_SO2EmissionsSummerThousandTons, RPE_SO2EmissionsTotalThousandTons, RPE_DispatchableCapacityMW), MeetComparisonCriteria,"=1",IF($AL$6="IPM Region",RPE_IPMRegionGroupAcronym,RPE_State),"="&IF($AL$6="National","*",$AO66)))) ->  | AT66: 16777215 | BH66: max | BI66: =MAX($AR$5:$AR$53) -> 44.22571247
AO67: 0 | AP67: =IF(AO67=0,"",SUMIFS(CHOOSE(VLOOKUP($AL$16,'Lookup tables'!$AK$5:$AM$15,3,0), RPE_FuelConsumptionSummerTBtu, RPE_FuelConsumptionTotalTBtu, RPE_GenerationSummerGWh, RPE_GenerationTotalGWh, RPE_CO2EmissionsSummerThousandTons, RPE_CO2EmissionsTotalThousandTons, RPE_NOXEmissionsSummerThousandTons, RPE_NOXEmissionsTotalThousandTons, RPE_SO2EmissionsSummerThousandTons, RPE_SO2EmissionsTotalThousandTons, RPE_DispatchableCapacityMW), MeetPrimaryCriteria,"=1",IF($AL$6="IPM Region",RPE_IPMRegionGroupAcronym,RPE_State),"="&IF($AL$6="National","*",$AO67))) ->  | AQ67: =IF(AO67=0,"",IF($AL$18="Actual",0,SUMIFS(CHOOSE(VLOOKUP($AL$33,'Lookup tables'!$AK$5:$AM$15,3,0), RPE_FuelConsumptionSummerTBtu, RPE_FuelConsumptionTotalTBtu, RPE_GenerationSummerGWh, RPE_GenerationTotalGWh, RPE_CO2EmissionsSummerThousandTons, RPE_CO2EmissionsTotalThousandTons, RPE_NOXEmissionsSummerThousandTons, RPE_NOXEmissionsTotalThousandTons, RPE_SO2EmissionsSummerThousandTons, RPE_SO2EmissionsTotalThousandTons, RPE_DispatchableCapacityMW), MeetComparisonCriteria,"=1",IF($AL$6="IPM Region",RPE_IPMRegionGroupAcronym,RPE_State),"="&IF($AL$6="National","*",$AO67)))) ->  | AT67: 16777215
AO68: 0 | AP68: =IF(AO68=0,"",SUMIFS(CHOOSE(VLOOKUP($AL$16,'Lookup tables'!$AK$5:$AM$15,3,0), RPE_FuelConsumptionSummerTBtu, RPE_FuelConsumptionTotalTBtu, RPE_GenerationSummerGWh, RPE_GenerationTotalGWh, RPE_CO2EmissionsSummerThousandTons, RPE_CO2EmissionsTotalThousandTons, RPE_NOXEmissionsSummerThousandTons, RPE_NOXEmissionsTotalThousandTons, RPE_SO2EmissionsSummerThousandTons, RPE_SO2EmissionsTotalThousandTons, RPE_DispatchableCapacityMW), MeetPrimaryCriteria,"=1",IF($AL$6="IPM Region",RPE_IPMRegionGroupAcronym,RPE_State),"="&IF($AL$6="National","*",$AO68))) ->  | AQ68: =IF(AO68=0,"",IF($AL$18="Actual",0,SUMIFS(CHOOSE(VLOOKUP($AL$33,'Lookup tables'!$AK$5:$AM$15,3,0), RPE_FuelConsumptionSummerTBtu, RPE_FuelConsumptionTotalTBtu, RPE_GenerationSummerGWh, RPE_GenerationTotalGWh, RPE_CO2EmissionsSummerThousandTons, RPE_CO2EmissionsTotalThousandTons, RPE_NOXEmissionsSummerThousandTons, RPE_NOXEmissionsTotalThousandTons, RPE_SO2EmissionsSummerThousandTons, RPE_SO2EmissionsTotalThousandTons, RPE_DispatchableCapacityMW), MeetComparisonCriteria,"=1",IF($AL$6="IPM Region",RPE_IPMRegionGroupAcronym,RPE_State),"="&IF($AL$6="National","*",$AO68)))) ->  | AT68: 16777215 | BH68: largest absolute | BI68: =MAX(ABS(BI65),ABS(BI66)) -> 44.22571247
BH69: step | BI69: =BI68/4 -> 11.05642812
BE72: Bucket | BH72: Coloring
BE73: 0 | BF73: =BF74-BI69 -> -44.22571247 | BH73: 801923 | BI73: =IF($AS$2="Round",TEXT(BF73,"###,##0"),IF($AS$2="Decimal",TEXT(BF73,"0.000"),TEXT(BF73,"#0%"))) -> -44
BE74: 1 | BF74: =BF75-BI69 -> -33.16928436 | BH74: 1137094 | BI74: =IF($AS$2="Round",TEXT(BF74,"###,##0"),IF($AS$2="Decimal",TEXT(BF74,"0.000"),TEXT(BF74,"#0%"))) -> -33
BE75: 2 | BF75: =BF76-BI69 -> -22.11285624 | BH75: 8696052 | BI75: -22
BE76: 3 | BF76: =BF77-BI69 -> -11.05642812 | BH76: 11389944 | BI76: -11
BE77: 4 | BF77: 0 | BH77: 16777215 | BI77: 0
BE78: 5 | BF78: =BF77+BI69 -> 11.05642812 | BH78: 11854022 | BI78: 11
BE79: 6 | BF79: =BF78+BI69 -> 22.11285624 | BH79: 9359529 | BI79: 22
BE80: 7 | BF80: =BF79+BI69 -> 33.16928436 | BH80: 4697456 | BI80: 33
BE81: 8 | BF81: =BF80+BI69 -> 44.22571247 | BH81: 3506772 | BI81: 44
BF83: (works with lookup above)
BF84: =BF81 -> 44.22571247
BF85: =BF80 -> 33.16928436
BF86: =BF79 -> 22.11285624
BF87: =BF78 -> 11.05642812

Sheet Emissions GWh Btu MW
E2: EMISSIONS
A4: PRIMARY CASE | B4: Nov 2018 Updated Ref Case
A5: SECONDARY CASE
A7: Regional Aggregation | B7: National | C7: =IF(B7="State","RPE_State","RPE_RegionGroupAcronym") -> RPE_RegionGroupAcronym
A8: Region | B8: AL
A10: FILTERS
A11: Fuel Type | B11: All Units | C11: RPE_FuelType
A12: Fossil >25 MW | B12: All Units | C12: RPE_Fossil25MW
A13: Existing/New/Retired | B13: Existing and New | C13: RPE_ExistingorNewUnit
A14: Plant Type | B14: All Units | C14: RPE_PlantType
A15: Plant Category | B15: All Units | C15: RPE_PlantCategory
A16: Plant Controls | B16: All Units | C16: =MATCH(B16,Controls,0) -> 1
A17: Existing or New Controls | B17: All Controls
A21: ***You must click the update button to update the charts
J34: Emissions Charts Only Controls
L35: Comparison Type: | M35: Actual | Z35: Column Chart Only Controls | AG35: Column and Pie Chart Controls | AM35: Pie Chart Only Controls
L36: Comparison: | M36: Nov 2018 Updated Ref Case | Z36: Comparison Type: | AA36: Actual | AG36: Category: | AH36: Generation | AK36: Pie Chart 1 | AM36: Run | AN36: Historical Data
L37: Fixed or Parallel: | M37: Fixed | Z37: Comparison: | AA37: Nov 2018 Updated Ref Case | AE37: 0 | AG37: Timeframe: | AH37: Annual | AM37: Year | AN37: 2016
L38: Comparison Year: | M38: 2021 | Z38: Fixed or Parallel: | AA38: Parallel | AG38: Aggregation: | AH38: Grouped
Z39: Comparison Year: | AA39: 2021 | AG39: Highlight: | AH39: *All Renewables Except Hydro | AK39: Pie Chart 2 | AM39: Run | AN39: Nov 2018 Updated Ref Case
AM40: Year | AN40: 2023
F41: *Historical data is still under development. It is approximate and may not always provide an apples-to-apples comparison to IPM outputs. See READ ME worksheet for more info. | X41: *Historical data is still under development. It is approximate and may have significant error in some circumstances. See READ ME worksheet for more info.
G48: THESE TABELS AREN'T GRAPHED; see set below | Y48: =IF($AH$36="Capacity",VLOOKUP($AH$36,$A$170:$B$174,2,0),VLOOKUP($AH$36&"_"&$AH$37,$A$170:$B$174,2,0)) -> RPE_GenerationTotalGWh | AD48: =IF(AH36="Heat Input","TBtu",IF(AH36="Capacity","MW","GWh")) -> GWh | AE48: =AH37&" "&AH36&" ("&AD48&")" -> Annual Generation (GWh) | AJ48: =AE48&", "&AN36&" "&AN37 -> Annual Generation (GWh), Historical Data 2016 | AK48: =AE48&", "&AN39&" "&AN40 -> Annual Generation (GWh), Nov 2018 Updated Ref Case 2023
G49: Annual SO2 | J49: Annual CO2 | M49: Annual NOx | P49: Ozone Season NOx | X49: 1 | Y49: =X49+1 -> 2 | Z49: =Y49+1 -> 3 | AA49: 4 | AB49: 5 | AC49: 6 | AD49: 7 | AE49: 8 | AF49: 9 | AG49: 10 | AH49: 11 | AI49: 12 | AJ49: 13 | AK49: 14 | AL49: 15 | AM49: 16 | AN49: 17 | AO49: 18 | AP49: 19 | AQ49: 20 | AR49: =AQ49+1 -> 21 | AS49: =AR49+1 -> 22 | AT49: =AS49+1 -> 23 | AU49: =AT49+1 -> 24
G50: RPE_SO2EmissionsTotalThousandTons | J50: RPE_CO2EmissionsTotalThousandTons | M50: RPE_NOXEmissionsTotalThousandTons | P50: RPE_NOXEmissionsSummerThousandTons | W50: Year | X50: All Units | Y50: Biomass | Z50: Coal Steam | AA50: Combined Cycle | AB50: Combustion Turbine | AC50: Fossil Other | AD50: Fuel Cell | AE50: Geothermal | AF50: Hydro | AG50: IGCC | AH50: International Imports | AI50: Landfill Gas | AJ50: Non-Fossil Other | AK50: Nuclear | AL50: O/G Steam | AM50: Offshore Wind | AN50: Pumped Storage | AO50: Solar PV | AP50: Solar Thermal | AQ50: Wind | AR50: Coal 30% CCS | AS50: Coal 90% CCS | AT50: Coal W/CCS | AU50: NGCC w/CCS
A51: =IF(M35="Percent Change","Percent Change","thousands of short tons") -> thousands of short tons | G51: Historical | H51: =$B$4 -> Nov 2018 Updated Ref Case | I51: =$B$5 -> 0 | J51: Historical | K51: =$B$4 -> Nov 2018 Updated Ref Case | L51: =$B$5 -> 0 | M51: Historical | N51: =$B$4 -> Nov 2018 Updated Ref Case | O51: =$B$5 -> 0 | P51: Historical | Q51: =$B$4 -> Nov 2018 Updated Ref Case | R51: =$B$5 -> 0 | U51: 1 | V51: Historical | W51: 2011 | X51: =CHOOSE(VLOOKUP($AH$36&"_"&$AH$37,$A$176:$B$181,2,0), SUMIFS(RPE_FuelConsumptionSummerTBtu,MeetHistoricCriteriaSeries2,"=1", IF($B$7="IPM Region",RPE_RegionGroupAcronym,RPE_State),"="&IF($B$7="National","*",$B$8),RPE_Year,"="&$W51), SUMIFS(RPE_FuelConsumptionTotalTBtu,MeetHistoricCriteriaSeries2,"=1", IF($B$7="IPM Region",RPE_RegionGroupAcronym,RPE_State),"="&IF($B$7="National","*",$B$8),RPE_Year,"="&$W51), SUMIFS(RPE_GenerationSummerGWh,MeetHistoricCriteriaSeries2,"=1", IF($B$7="IPM Region",RPE_RegionGroupAcronym,RPE_State),"="&IF($B$7="National","*",$B$8),RPE_Year,"="&$W51), SUMIFS(RPE_GenerationTotalGWh,MeetHistoricCriteriaSeries2,"=1", IF($B$7="IPM Region",RPE_RegionGroupAcronym,RPE_State),"="&IF($B$7="National","*",$B$8),RPE_Year,"="&$W51), SUMIFS(RPE_DispatchableCapacityMW,MeetHistoricCriteriaSeries2,"=1", IF($B$7="IPM Region",RPE_RegionGroupAcronym,RPE_State),"="&IF($B$7="National","*",$B$8),RPE_Year,"="&$W51)) -> 4029565.206 | Y51: =CHOOSE(VLOOKUP($AH$36&"_"&$AH$37,$A$176:$B$181,2,0), SUMIFS(RPE_FuelConsumptionSummerTBtu,MeetHistoricCriteriaSeries2,"=1", IF($B$7="IPM Region",RPE_RegionGroupAcronym,RPE_State),"="&IF($B$7="National","*",$B$8),RPE_Year,"="&$W51,RPE_PlantType,"="&Y$50), SUMIFS(RPE_FuelConsumptionTotalTBtu,MeetHistoricCriteriaSeries2,"=1", IF($B$7="IPM Region",RPE_RegionGroupAcronym,RPE_State),"="&IF($B$7="National","*",$B$8),RPE_Year,"="&$W51,RPE_PlantType,"="&Y$50), SUMIFS(RPE_GenerationSummerGWh,MeetHistoricCriteriaSeries2,"=1", IF($B$7="IPM Region",RPE_RegionGroupAcronym,RPE_State),"="&IF($B$7="National","*",$B$8),RPE_Year,"="&$W51,RPE_PlantType,"="&Y$50), SUMIFS(RPE_GenerationTotalGWh,MeetHistoricCriteriaSeries2,"=1", IF($B$7="IPM Region",RPE_RegionGroupAcronym,RPE_State),"="&IF($B$7="National","*",$B$8),RPE_Year,"="&$W51,RPE_PlantType,"="&Y$50), SUMIFS(RPE_DispatchableCapacityMW,MeetHistoricCriteriaSeries2,"=1", IF($B$7="IPM Region",RPE_RegionGroupAcronym,RPE_State),"="&IF($B$7="National","*",$B$8),RPE_Year,"="&$W51,RPE_PlantType,"="&Y$50)) -> 40357.78922 | Z51: 1739571.035 | AA51: 733698.219 | AB51: 56810.36785 | AC51: 0 | AD51: 56.635 | AE51: 15373.223 | AF51: 319442.4454 | AG51: 1194.42095 | AH51: 0 | AI51: =CHOOSE(VLOOKUP($AH$36&"_"&$AH$37,$A$176:$B$181,2,0), SUMIFS(RPE_FuelConsumptionSummerTBtu,MeetHistoricCriteriaSeries2,"=1", IF($B$7="IPM Region",RPE_RegionGroupAcronym,RPE_State),"="&IF($B$7="National","*",$B$8),RPE_Year,"="&$W51,RPE_PlantType,"="&AI$50), SUMIFS(RPE_FuelConsumptionTotalTBtu,MeetHistoricCriteriaSeries2,"=1", IF($B$7="IPM Region",RPE_RegionGroupAcronym,RPE_State),"="&IF($B$7="National","*",$B$8),RPE_Year,"="&$W51,RPE_PlantType,"="&AI$50), SUMIFS(RPE_GenerationSummerGWh,MeetHistoricCriteriaSeries2,"=1", IF($B$7="IPM Region",RPE_RegionGroupAcronym,RPE_State),"="&IF($B$7="National","*",$B$8),RPE_Year,"="&$W51,RPE_PlantType,"="&AI$50), SUMIFS(RPE_GenerationTotalGWh,MeetHistoricCriteriaSeries2,"=1", IF($B$7="IPM Region",RPE_RegionGroupAcronym,RPE_State),"="&IF($B$7="National","*",$B$8),RPE_Year,"="&$W51,RPE_PlantType,"="&AI$50), SUMIFS(RPE_DispatchableCapacityMW,MeetHistoricCriteriaSeries2,"=1", IF($B$7="IPM Region",RPE_RegionGroupAcronym,RPE_State),"="&IF($B$7="National","*",$B$8),RPE_Year,"="&$W51,RPE_PlantType,"="&AI$50)) -> 8909.891922 | AJ51: 26039.7654 | AK51: 790206.3521 | AL51: 174804.8632 | AM51: 0 | AN51: 238.431 | AO51: 1011.653072 | AP51: 1035.290582 | AQ51: 120176.5986 | AR51: 0 | AS51: 0 | AT51: 0 | AU51: 0
F52: 2012 | G52: =SUMIFS(RPE_SO2EmissionsTotalThousandTons, MeetHistoricCriteriaSeries2,"=1",RPE_Year,"="&$F52, IF($B$7="IPM Region", RPE_RegionGroupAcronym, RPE_State),"="&IF($B$7="National","*",$B$8)) -> 3321.734506 | J52: =SUMIFS(RPE_CO2EmissionsTotalThousandTons, MeetHistoricCriteriaSeries2,"=1",RPE_Year,"="&$F52, IF($B$7="IPM Region", RPE_RegionGroupAcronym, RPE_State),"="&IF($B$7="National","*",$B$8)) -> 2208934.135 | M52: =SUMIFS(RPE_NOXEmissionsTotalThousandTons, MeetHistoricCriteriaSeries2,"=1",RPE_Year,"="&$F52, IF($B$7="IPM Region", RPE_RegionGroupAcronym, RPE_State),"="&IF($B$7="National","*",$B$8)) -> 1715.846948 | P52: =SUMIFS(RPE_NOXEmissionsSummerThousandTons, MeetHistoricCriteriaSeries2,"=1",RPE_Year,"="&$F52, IF($B$7="IPM Region", RPE_RegionGroupAcronym, RPE_State),"="&IF($B$7="National","*",$B$8)) -> 787.465973 | U52: =U51+1 -> 2 | W52: 2012 | X52: 3971853.76 | Y52: 40855.92167 | Z52: 1532126.428 | AA52: 922939.0977 | AB52: 68785.67951 | AC52: 0 | AD52: 145.07997 | AE52: 15727.77363 | AF52: 276244.6776 | AG52: 1173.64526 | AH52: 0 | AI52: 9792.796156 | AJ52: 24858.00376 | AK52: 769331.4823 | AL52: 162926.2269 | AM52: 0 | AN52: 776.425 | AO52: 3450.592296 | AP52: 1089.820945 | AQ52: 140821.7147 | AR52: 0 | AS52: 0 | AT52: 0 | AU52: 0
F53: 2013 | G53: 3245.173847 | J53: 2233849.696 | M53: 1725.690503 | P53: 750.297464 | U53: =U52+1 -> 3 | W53: 2013 | X53: 4009391.33 | Y53: 42691.68902 | Z53: 1607446.013 | AA53: 872799.9312 | AB53: 56241.24293 | AC53: 0 | AD53: 339.39235 | AE53: 15933.91308 | AF53: 268565.3827 | AG53: 4154.11039 | AH53: 0 | AI53: 10466.20057 | AJ53: 23825.70983 | AK53: 789016.473 | AL53: 139529.5974 | AM53: 0 | AN53: 553.591 | AO53: 8121.000178 | AP53: 975.9072 | AQ53: 167839.7454 | AR53: 0 | AS53: 0 | AT53: 0 | AU53: 0
F54: 2014 | G54: 3157.092282 | J54: 2233715.482 | M54: 1667.232178 | P54: 695.621109 | U54: 4 | W54: 2014 | X54: 4034924.529 | Y54: 46680.9091 | Z54: 1599622.382 | AA54: 882735.1727 | AB54: 57596.76228 | AC54: 0 | AD54: 538.15497 | AE54: 15876.941 | AF54: 259366.6219 | AG54: 6048.17963 | AH54: 0 | AI54: 11255.0839 | AJ54: 22531.50364 | AK54: 797165.982 | AL54: 135096.9913 | AM54: 0 | AN54: 79.866 | AO54: 15249.6621 | AP54: 2492.699088 | AQ54: 181655.2818 | AR54: 0 | AS54: 0 | AT54: 0 | AU54: 0
F55: 2015 | G55: 2216.68437 | J55: 2093951.027 | M55: 1382.976371 | P55: 616.796237 | U55: 5 | W55: 2015 | X55: 4006745.046 | Y55: 45504.89921 | Z55: 1390807.851 | AA55: 1046314.755 | AB55: 74057.90728 | AC55: 0 | AD55: 694.46394 | AE55: 15917.575 | AF55: 249080.0848 | AG55: 9104.78871 | AH55: 0 | AI55: 11339.17148 | AJ55: 21897.67988 | AK55: 797177.877 | AL55: 127331.5064 | AM55: 0 | AN55: 601.544 | AO55: 21665.95198 | AP55: 3327.998626 | AQ55: 190718.5477 | AR55: 0 | AS55: 0 | AT55: 0 | AU55: 0
F56: 2016 | G56: 1490.281835 | J56: 1994074.473 | M56: 1204.567615 | P56: 554.076195 | U56: 6 | W56: 2016 | X56: 4001922.935 | Y56: 47611.39765 | Z56: 1295888.454 | AA56: 1074863.812 | AB56: 89057.65262 | AC56: 0 | AD56: 746.714401 | AE56: 15825.807 | AF56: 267962.6141 | AG56: 8375.5919 | AH56: 0 | AI56: 11259.60109 | AJ56: 8346.228431 | AK56: 805693.948 | AL56: 110884.3436 | AM56: 0 | AN56: 1052.742 | AO56: 32670.42415 | AP56: 3308.396 | AQ56: 226992.5621 | AR56: 0 | AS56: 0 | AT56: 0 | AU56: 0
F57: 2017 | G57: 1340.199673 | J57: 1911086.013 | M57: 1064.099988 | P57: 465.417063 | U57: 7
F58: 2021 | H58: =SUMIFS(RPE_SO2EmissionsTotalThousandTons, MeetPrimaryCriteriaSeries2,"=1",RPE_Year,"="&$F58, IF($B$7="IPM Region", RPE_RegionGroupAcronym, RPE_State),"="&IF($B$7="National","*",$B$8)) -> 862.405805 | I58: =SUMIFS(RPE_SO2EmissionsTotalThousandTons, MeetComparisonCriteriaSeries2,"=1",RPE_Year,"="&$F58, IF($B$7="IPM Region", RPE_RegionGroupAcronym, RPE_State),"="&IF($B$7="National","*",$B$8)) -> 0 | K58: =SUMIFS(RPE_CO2EmissionsTotalThousandTons, MeetPrimaryCriteriaSeries2,"=1",RPE_Year,"="&$F58, IF($B$7="IPM Region", RPE_RegionGroupAcronym, RPE_State),"="&IF($B$7="National","*",$B$8)) -> 1698996.778 | L58: =SUMIFS(RPE_CO2EmissionsTotalThousandTons, MeetComparisonCriteriaSeries2,"=1",RPE_Year,"="&$F58, IF($B$7="IPM Region", RPE_RegionGroupAcronym, RPE_State),"="&IF($B$7="National","*",$B$8)) -> 0 | N58: =SUMIFS(RPE_NOXEmissionsTotalThousandTons, MeetPrimaryCriteriaSeries2,"=1",RPE_Year,"="&$F58, IF($B$7="IPM Region", RPE_RegionGroupAcronym, RPE_State),"="&IF($B$7="National","*",$B$8)) -> 811.7983447 | O58: =SUMIFS(RPE_NOXEmissionsTotalThousandTons, MeetComparisonCriteriaSeries2,"=1",RPE_Year,"="&$F58, IF($B$7="IPM Region", RPE_RegionGroupAcronym, RPE_State),"="&IF($B$7="National","*",$B$8)) -> 0 | Q58: =SUMIFS(RPE_NOXEmissionsSummerThousandTons, MeetPrimaryCriteriaSeries2,"=1",RPE_Year,"="&$F58, IF($B$7="IPM Region", RPE_RegionGroupAcronym, RPE_State),"="&IF($B$7="National","*",$B$8)) -> 380.3532233 | R58: =SUMIFS(RPE_NOXEmissionsSummerThousandTons, MeetComparisonCriteriaSeries2,"=1",RPE_Year,"="&$F58, IF($B$7="IPM Region", RPE_RegionGroupAcronym, RPE_State),"="&IF($B$7="National","*",$B$8)) -> 0 | U58: 8
F59: 2023 | H59: 888.4927743 | I59: 0 | K59: 1757543.57 | L59: 0 | N59: 837.1551901 | O59: 0 | Q59: 388.9852875 | R59: 0 | U59: 9 | V59: =B4 -> Nov 2018 Updated Ref Case | W59: 2021 | X59: =CHOOSE(VLOOKUP($AH$36&"_"&$AH$37,$A$176:$B$181,2,0), SUMIFS(RPE_FuelConsumptionSummerTBtu,MeetPrimaryCriteriaSeries2,"=1", IF($B$7="IPM Region",RPE_RegionGroupAcronym,RPE_State),"="&IF($B$7="National","*",$B$8),RPE_Year,"="&$W59), SUMIFS(RPE_FuelConsumptionTotalTBtu,MeetPrimaryCriteriaSeries2,"=1", IF($B$7="IPM Region",RPE_RegionGroupAcronym,RPE_State),"="&IF($B$7="National","*",$B$8),RPE_Year,"="&$W59), SUMIFS(RPE_GenerationSummerGWh,MeetPrimaryCriteriaSeries2,"=1", IF($B$7="IPM Region",RPE_RegionGroupAcronym,RPE_State),"="&IF($B$7="National","*",$B$8),RPE_Year,"="&$W59), SUMIFS(RPE_GenerationTotalGWh,MeetPrimaryCriteriaSeries2,"=1", IF($B$7="IPM Region",RPE_RegionGroupAcronym,RPE_State),"="&IF($B$7="National","*",$B$8),RPE_Year,"="&$W59), SUMIFS(RPE_DispatchableCapacityMW,MeetPrimaryCriteriaSeries2,"=1", IF($B$7="IPM Region",RPE_RegionGroupAcronym,RPE_State),"="&IF($B$7="National","*",$B$8),RPE_Year,"="&$W59)) -> 4078371.266 | Y59: =CHOOSE(VLOOKUP($AH$36&"_"&$AH$37,$A$176:$B$181,2,0), SUMIFS(RPE_FuelConsumptionSummerTBtu,MeetPrimaryCriteriaSeries2,"=1", IF($B$7="IPM Region",RPE_RegionGroupAcronym,RPE_State),"="&IF($B$7="National","*",$B$8),RPE_Year,"="&$W59,RPE_PlantType,"="&Y$50), SUMIFS(RPE_FuelConsumptionTotalTBtu,MeetPrimaryCriteriaSeries2,"=1", IF($B$7="IPM Region",RPE_RegionGroupAcronym,RPE_State),"="&IF($B$7="National","*",$B$8),RPE_Year,"="&$W59,RPE_PlantType,"="&Y$50), SUMIFS(RPE_GenerationSummerGWh,MeetPrimaryCriteriaSeries2,"=1", IF($B$7="IPM Region",RPE_RegionGroupAcronym,RPE_State),"="&IF($B$7="National","*",$B$8),RPE_Year,"="&$W59,RPE_PlantType,"="&Y$50), SUMIFS(RPE_GenerationTotalGWh,MeetPrimaryCriteriaSeries2,"=1", IF($B$7="IPM Region",RPE_RegionGroupAcronym,RPE_State),"="&IF($B$7="National","*",$B$8),RPE_Year,"="&$W59,RPE_PlantType,"="&Y$50), SUMIFS(RPE_DispatchableCapacityMW,MeetPrimaryCriteriaSeries2,"=1", IF($B$7="IPM Region",RPE_RegionGroupAcronym,RPE_State),"="&IF($B$7="National","*",$B$8),RPE_Year,"="&$W59,RPE_PlantType,"="&Y$50)) -> 2054.560171 | Z59: 862808.8541 | AA59: 1550530.442 | AB59: 25615.27197 | AC59: 3236.641328 | AD59: 0 | AE59: 19292.48902 | AF59: 303211.2851 | AG59: 4289.456636 | AH59: 6339.612 | AI59: =CHOOSE(VLOOKUP($AH$36&"_"&$AH$37,$A$176:$B$181,2,0), SUMIFS(RPE_FuelConsumptionSummerTBtu,MeetPrimaryCriteriaSeries2,"=1", IF($B$7="IPM Region",RPE_RegionGroupAcronym,RPE_State),"="&IF($B$7="National","*",$B$8),RPE_Year,"="&$W59,RPE_PlantType,"="&AI$50), SUMIFS(RPE_FuelConsumptionTotalTBtu,MeetPrimaryCriteriaSeries2,"=1", IF($B$7="IPM Region",RPE_RegionGroupAcronym,RPE_State),"="&IF($B$7="National","*",$B$8),RPE_Year,"="&$W59,RPE_PlantType,"="&AI$50), SUMIFS(RPE_GenerationSummerGWh,MeetPrimaryCriteriaSeries2,"=1", IF($B$7="IPM Region",RPE_RegionGroupAcronym,RPE_State),"="&IF($B$7="National","*",$B$8),RPE_Year,"="&$W59,RPE_PlantType,"="&AI$50), SUMIFS(RPE_GenerationTotalGWh,MeetPrimaryCriteriaSeries2,"=1", IF($B$7="IPM Region",RPE_RegionGroupAcronym,RPE_State),"="&IF($B$7="National","*",$B$8),RPE_Year,"="&$W59,RPE_PlantType,"="&AI$50), SUMIFS(RPE_DispatchableCapacityMW,MeetPrimaryCriteriaSeries2,"=1", IF($B$7="IPM Region",RPE_RegionGroupAcronym,RPE_State),"="&IF($B$7="National","*",$B$8),RPE_Year,"="&$W59,RPE_PlantType,"="&AI$50)) -> 11426.04841 | AJ59: 25728.78874 | AK59: 694343.7597 | AL59: 62880.22458 | AM59: 122.4206396 | AN59: 6885.865971 | AO59: 98073.02321 | AP59: 3101.782437 | AQ59: 398430.7398 | AR59: 0 | AS59: 0 | AT59: 0 | AU59: 0
F60: 2025 | H60: 912.5580793 | I60: 0 | K60: 1774472.959 | L60: 0 | N60: 844.3635354 | O60: 0 | Q60: 386.6925286 | R60: 0 | U60: 10 | W60: 2023 | X60: 4127758.359 | Y60: 2145.339678 | Z60: 910210.0815 | AA60: 1563261.614 | AB60: 30217.29091 | AC60: 3236.641323 | AD60: 0 | AE60: 20022.25177 | AF60: 313008.4137 | AG60: 4289.456636 | AH60: 6339.612 | AI60: 11425.84969 | AJ60: 26217.81979 | AK60: 651533.662 | AL60: 60429.1026 | AM60: 122.4206396 | AN60: 8110.294068 | AO60: 115655.9865 | AP60: 3101.782437 | AQ60: 398430.7398 | AR60: 0 | AS60: 0 | AT60: 0 | AU60: 0
F61: 2030 | H61: 885.6276377 | I61: 0 | K61: 1742869.477 | L61: 0 | N61: 810.1282855 | O61: 0 | Q61: 384.7420552 | R61: 0 | U61: 11 | W61: 2025 | X61: 4179207.306 | Y61: 2322.267458 | Z61: 914786.1602 | AA61: 1575993.51 | AB61: 37770.61362 | AC61: 3236.641326 | AD61: 0 | AE61: 21189.93764 | AF61: 313747.7644 | AG61: 4289.456636 | AH61: 6339.612 | AI61: 11426.04841 | AJ61: 26752.04796 | AK61: 642652.7415 | AL61: 60813.68382 | AM61: 122.4206396 | AN61: 9932.011352 | AO61: 146299.8662 | AP61: 3101.782437 | AQ61: 398430.7398 | AR61: 0 | AS61: 0 | AT61: 0 | AU61: 0
F62: 2035 | H62: 816.9548507 | I62: 0 | K62: 1718677.652 | L62: 0 | N62: 752.8483777 | O62: 0 | Q62: 374.3367152 | R62: 0 | U62: 12 | W62: 2030 | X62: 4292750.903 | Y62: 2099.719342 | Z62: 877899.2039 | AA62: 1617051.769 | AB62: 39304.57784 | AC62: 2956.390537 | AD62: 0 | AE62: 21189.93764 | AF62: 315948.2633 | AG62: 4289.456636 | AH62: 6339.612001 | AI62: 9883.361083 | AJ62: 27704.76019 | AK62: 604008.7273 | AL62: 56912.7584 | AM62: 122.4206396 | AN62: 10189.23714 | AO62: 199190.966 | AP62: 3101.782437 | AQ62: 494557.9598 | AR62: 0 | AS62: 0 | AT62: 0 | AU62: 0
F63: 2040 | H63: 811.4638448 | I63: 0 | K63: 1768566.359 | L63: 0 | N63: 742.1747995 | O63: 0 | Q63: 372.8446171 | R63: 0 | U63: 13 | W63: 2035 | X63: 4414414.072 | Y63: 2041.196424 | Z63: 779563.8629 | AA63: 1812498.129 | AB63: 54456.28033 | AC63: 2964.393338 | AD63: 0 | AE63: 21189.93763 | AF63: 317735.0492 | AG63: 4289.456636 | AH63: 6339.612 | AI63: 10264.35345 | AJ63: 27794.89464 | AK63: 596552.3379 | AL63: 59631.90579 | AM63: 122.4206396 | AN63: 10566.39372 | AO63: 205915.1061 | AP63: 3101.782437 | AQ63: 499386.9598 | AR63: 0 | AS63: 0 | AT63: 0 | AU63: 0
F64: 2045 | H64: 817.0612839 | I64: 0 | K64: 1757656.023 | L64: 0 | N64: 712.7882784 | O64: 0 | Q64: 364.41649 | R64: 0 | U64: 14 | W64: 2040 | X64: 4571285.811 | Y64: 2337.499203 | Z64: 786142.4769 | AA64: 1970967.252 | AB64: 55795.37794 | AC64: 3011.373612 | AD64: 0 | AE64: 21189.93764 | AF64: 318740.9079 | AG64: 4289.456636 | AH64: 6339.612 | AI64: 10395.92996 | AJ64: 28110.9166 | AK64: 596552.3379 | AL64: 43900.78384 | AM64: 122.4206396 | AN64: 10937.56284 | AO64: 206653.5558 | AP64: 3101.782437 | AQ64: 502696.6267 | AR64: 0 | AS64: 0 | AT64: 0 | AU64: 0
F65: 2050 | H65: 762.0888738 | I65: 0 | K65: 1747669.966 | L65: 0 | N65: 664.1932344 | O65: 0 | Q65: 337.6998018 | R65: 0 | U65: 15 | W65: 2045 | X65: 4723254.27 | Y65: 2310.545036 | Z65: 777565.7371 | AA65: 2039571.053 | AB65: 47955.11742 | AC65: 3099.158699 | AD65: 0 | AE65: 21189.93764 | AF65: 319496.8576 | AG65: 3954.630815 | AH65: 6339.612 | AI65: 10623.3186 | AJ65: 28126.90682 | AK65: 596552.3379 | AL65: 29541.98807 | AM65: 122.4206396 | AN65: 10827.85071 | AO65: 228886.8931 | AP65: 3101.782437 | AQ65: 593988.1223 | AR65: 0 | AS65: 0 | AT65: 0 | AU65: 0
U66: 16 | W66: 2050 | X66: 4905209.443 | Y66: 2399.149528 | Z66: 716455.4329 | AA66: 2251145.057 | AB66: 52124.92162 | AC66: 3021.141132 | AD66: 0 | AE66: 21189.93764 | AF66: 319496.8576 | AG66: 0 | AH66: 6339.612 | AI66: 10451.05898 | AJ66: 28237.46797 | AK66: 579435.0134 | AL66: 15669.43871 | AM66: 122.4206396 | AN66: 10229.37821 | AO66: 244817.4144 | AP66: 3101.782437 | AQ66: 640973.3583 | AR66: 0 | AS66: 0 | AT66: 0 | AU66: 0
U67: 17
G68: SUBTRACTIONS | U68: 18 | V68: =B5 -> 0 | W68: 2021 | X68: =CHOOSE(VLOOKUP($AH$36&"_"&$AH$37,$A$176:$B$181,2,0), SUMIFS(RPE_FuelConsumptionSummerTBtu,MeetComparisonCriteriaSeries2,"=1", IF($B$7="IPM Region",RPE_RegionGroupAcronym,RPE_State),"="&IF($B$7="National","*",$B$8),RPE_Year,"="&$W68), SUMIFS(RPE_FuelConsumptionTotalTBtu,MeetComparisonCriteriaSeries2,"=1", IF($B$7="IPM Region",RPE_RegionGroupAcronym,RPE_State),"="&IF($B$7="National","*",$B$8),RPE_Year,"="&$W68), SUMIFS(RPE_GenerationSummerGWh,MeetComparisonCriteriaSeries2,"=1", IF($B$7="IPM Region",RPE_RegionGroupAcronym,RPE_State),"="&IF($B$7="National","*",$B$8),RPE_Year,"="&$W68), SUMIFS(RPE_GenerationTotalGWh,MeetComparisonCriteriaSeries2,"=1", IF($B$7="IPM Region",RPE_RegionGroupAcronym,RPE_State),"="&IF($B$7="National","*",$B$8),RPE_Year,"="&$W68), SUMIFS(RPE_DispatchableCapacityMW,MeetComparisonCriteriaSeries2,"=1", IF($B$7="IPM Region",RPE_RegionGroupAcronym,RPE_State),"="&IF($B$7="National","*",$B$8),RPE_Year,"="&$W68)) -> 0 | Y68: =CHOOSE(VLOOKUP($AH$36&"_"&$AH$37,$A$176:$B$181,2,0), SUMIFS(RPE_FuelConsumptionSummerTBtu,MeetComparisonCriteriaSeries2,"=1", IF($B$7="IPM Region",RPE_RegionGroupAcronym,RPE_State),"="&IF($B$7="National","*",$B$8),RPE_Year,"="&$W68,RPE_PlantType,"="&Y$50), SUMIFS(RPE_FuelConsumptionTotalTBtu,MeetComparisonCriteriaSeries2,"=1", IF($B$7="IPM Region",RPE_RegionGroupAcronym,RPE_State),"="&IF($B$7="National","*",$B$8),RPE_Year,"="&$W68,RPE_PlantType,"="&Y$50), SUMIFS(RPE_GenerationSummerGWh,MeetComparisonCriteriaSeries2,"=1", IF($B$7="IPM Region",RPE_RegionGroupAcronym,RPE_State),"="&IF($B$7="National","*",$B$8),RPE_Year,"="&$W68,RPE_PlantType,"="&Y$50), SUMIFS(RPE_GenerationTotalGWh,MeetComparisonCriteriaSeries2,"=1", IF($B$7="IPM Region",RPE_RegionGroupAcronym,RPE_State),"="&IF($B$7="National","*",$B$8),RPE_Year,"="&$W68,RPE_PlantType,"="&Y$50), SUMIFS(RPE_DispatchableCapacityMW,MeetComparisonCriteriaSeries2,"=1", IF($B$7="IPM Region",RPE_RegionGroupAcronym,RPE_State),"="&IF($B$7="National","*",$B$8),RPE_Year,"="&$W68,RPE_PlantType,"="&Y$50)) -> 0 | Z68: 0 | AA68: 0 | AB68: 0 | AC68: 0 | AD68: 0 | AE68: 0 | AF68: 0 | AG68: 0 | AH68: 0 | AI68: =CHOOSE(VLOOKUP($AH$36&"_"&$AH$37,$A$176:$B$181,2,0), SUMIFS(RPE_FuelConsumptionSummerTBtu,MeetComparisonCriteriaSeries2,"=1", IF($B$7="IPM Region",RPE_RegionGroupAcronym,RPE_State),"="&IF($B$7="National","*",$B$8),RPE_Year,"="&$W68,RPE_PlantType,"="&AI$50), SUMIFS(RPE_FuelConsumptionTotalTBtu,MeetComparisonCriteriaSeries2,"=1", IF($B$7="IPM Region",RPE_RegionGroupAcronym,RPE_State),"="&IF($B$7="National","*",$B$8),RPE_Year,"="&$W68,RPE_PlantType,"="&AI$50), SUMIFS(RPE_GenerationSummerGWh,MeetComparisonCriteriaSeries2,"=1", IF($B$7="IPM Region",RPE_RegionGroupAcronym,RPE_State),"="&IF($B$7="National","*",$B$8),RPE_Year,"="&$W68,RPE_PlantType,"="&AI$50), SUMIFS(RPE_GenerationTotalGWh,MeetComparisonCriteriaSeries2,"=1", IF($B$7="IPM Region",RPE_RegionGroupAcronym,RPE_State),"="&IF($B$7="National","*",$B$8),RPE_Year,"="&$W68,RPE_PlantType,"="&AI$50), SUMIFS(RPE_DispatchableCapacityMW,MeetComparisonCriteriaSeries2,"=1", IF($B$7="IPM Region",RPE_RegionGroupAcronym,RPE_State),"="&IF($B$7="National","*",$B$8),RPE_Year,"="&$W68,RPE_PlantType,"="&AI$50)) -> 0 | AJ68: 0 | AK68: 0 | AL68: 0 | AM68: 0 | AN68: 0 | AO68: 0 | AP68: 0 | AQ68: 0 | AR68: 0 | AS68: 0 | AT68: 0 | AU68: 0
G69: Annual SO2 | J69: Annual CO2 | M69: Annual NOx | P69: Ozone Season NOx | U69: 19 | W69: 2023 | X69: 0 | Y69: 0 | Z69: 0 | AA69: 0 | AB69: 0 | AC69: 0 | AD69: 0 | AE69: 0 | AF69: 0 | AG69: 0 | AH69: 0 | AI69: 0 | AJ69: 0 | AK69: 0 | AL69: 0 | AM69: 0 | AN69: 0 | AO69: 0 | AP69: 0 | AQ69: 0 | AR69: 0 | AS69: 0 | AT69: 0 | AU69: 0
G70: RPE_SO2EmissionsTotalThousandTons | J70: RPE_CO2EmissionsTotalThousandTons | M70: RPE_NOXEmissionsTotalThousandTons | P70: RPE_NOXEmissionsSummerThousandTons | U70: 20 | W70: 2025 | X70: 0 | Y70: 0 | Z70: 0 | AA70: 0 | AB70: 0 | AC70: 0 | AD70: 0 | AE70: 0 | AF70: 0 | AG70: 0 | AH70: 0 | AI70: 0 | AJ70: 0 | AK70: 0 | AL70: 0 | AM70: 0 | AN70: 0 | AO70: 0 | AP70: 0 | AQ70: 0 | AR70: 0 | AS70: 0 | AT70: 0 | AU70: 0
G71: Historical | H71: =H51 -> Nov 2018 Updated Ref Case | I71: =I51 -> 0 | J71: Historical | K71: =K51 -> Nov 2018 Updated Ref Case | L71: =L51 -> 0 | M71: Historical | N71: =N51 -> Nov 2018 Updated Ref Case | O71: =O51 -> 0 | P71: Historical | Q71: =Q51 -> Nov 2018 Updated Ref Case | R71: =R51 -> 0 | U71: 21 | W71: 2030 | X71: 0 | Y71: 0 | Z71: 0 | AA71: 0 | AB71: 0 | AC71: 0 | AD71: 0 | AE71: 0 | AF71: 0 | AG71: 0 | AH71: 0 | AI71: 0 | AJ71: 0 | AK71: 0 | AL71: 0 | AM71: 0 | AN71: 0 | AO71: 0 | AP71: 0 | AQ71: 0 | AR71: 0 | AS71: 0 | AT71: 0 | AU71: 0
F72: 2012 | G72: =IF(AND($M$37="Parallel",$M$35="Absolute Change"),"",IF($M$35="Actual",0, IF($M$36="Historical Data",INDEX($G$52:$G$57,MATCH($M$38,$F$52:$F$57,0),1), INDEX($H$58:$I$64,MATCH($M$38,$F$58:$F$64,0),MATCH($M$36,$H$51:$I$51,0))))) -> 0 | J72: =IF(AND($M$37="Parallel",$M$35="Absolute Change"),"",IF($M$35="Actual",0, IF($M$36="Historical Data",INDEX($J$52:$J$57,MATCH($M$38,$F$52:$F$57,0),1), INDEX($K$58:$L$64,MATCH($M$38,$F$58:$F$64,0),MATCH($M$36,$K$51:$L$51,0))))) -> 0 | M72: =IF(AND($M$37="Parallel",$M$35="Absolute Change"),"",IF($M$35="Actual",0, IF($M$36="Historical Data",INDEX($M$52:$M$57,MATCH($M$38,$F$52:$F$57,0),1), INDEX($N$58:$O$64,MATCH($M$38,$F$58:$F$64,0),MATCH($M$36,$N$51:$O$51,0))))) -> 0 | P72: =IF(AND($M$37="Parallel",$M$35="Absolute Change"),"",IF($M$35="Actual",0, IF($M$36="Historical Data",INDEX($P$52:$P$57,MATCH($M$38,$F$52:$F$57,0),1), INDEX($Q$58:$R$64,MATCH($M$38,$F$58:$F$64,0),MATCH($M$36,$Q$51:$R$51,0))))) -> 0 | U72: 22 | W72: 2035 | X72: 0 | Y72: 0 | Z72: 0 | AA72: 0 | AB72: 0 | AC72: 0 | AD72: 0 | AE72: 0 | AF72: 0 | AG72: 0 | AH72: 0 | AI72: 0 | AJ72: 0 | AK72: 0 | AL72: 0 | AM72: 0 | AN72: 0 | AO72: 0 | AP72: 0 | AQ72: 0 | AR72: 0 | AS72: 0 | AT72: 0 | AU72: 0
F73: 2013 | G73: 0 | J73: 0 | M73: 0 | P73: 0 | U73: 23 | W73: 2040 | X73: 0 | Y73: 0 | Z73: 0 | AA73: 0 | AB73: 0 | AC73: 0 | AD73: 0 | AE73: 0 | AF73: 0 | AG73: 0 | AH73: 0 | AI73: 0 | AJ73: 0 | AK73: 0 | AL73: 0 | AM73: 0 | AN73: 0 | AO73: 0 | AP73: 0 | AQ73: 0 | AR73: 0 | AS73: 0 | AT73: 0 | AU73: 0
F74: 2014 | G74: 0 | J74: 0 | M74: 0 | P74: 0 | U74: 24 | W74: 2045 | X74: 0 | Y74: 0 | Z74: 0 | AA74: 0 | AB74: 0 | AC74: 0 | AD74: 0 | AE74: 0 | AF74: 0 | AG74: 0 | AH74: 0 | AI74: 0 | AJ74: 0 | AK74: 0 | AL74: 0 | AM74: 0 | AN74: 0 | AO74: 0 | AP74: 0 | AQ74: 0 | AR74: 0 | AS74: 0 | AT74: 0 | AU74: 0
A75: Historic Run Years | B75: IPM Run Years | F75: 2015 | G75: 0 | J75: 0 | M75: 0 | P75: 0 | U75: 25 | W75: 2050 | X75: 0 | Y75: 0 | Z75: 0 | AA75: 0 | AB75: 0 | AC75: 0 | AD75: 0 | AE75: 0 | AF75: 0 | AG75: 0 | AH75: 0 | AI75: 0 | AJ75: 0 | AK75: 0 | AL75: 0 | AM75: 0 | AN75: 0 | AO75: 0 | AP75: 0 | AQ75: 0 | AR75: 0 | AS75: 0 | AT75: 0 | AU75: 0
A76: 2011 | B76: Parallel | F76: 2016 | G76: 0 | J76: 0 | M76: 0 | P76: 0
A77: 2012 | B77: 2021 | F77: 2017 | G77: 0 | J77: 0 | M77: 0 | P77: 0 | V77: SUBTRACTION (if necessary) | W77: HISTORICAL | X77: =IF(OR($AA$36="Actual",$AA$38="Parallel"),0,INDEX($X$51:$AU$75,VLOOKUP($AA$37,$A$88:$B$90,2,0)+IF($AA$37="Historical Data",MATCH($AA$39,HistoricalYears,0),MATCH($AA$39,IPMRunYears,0))-1,X$49)) -> 0 | Y77: 0 | Z77: 0 | AA77: 0 | AB77: 0 | AC77: 0 | AD77: 0 | AE77: 0 | AF77: 0 | AG77: 0 | AH77: 0 | AI77: 0 | AJ77: 0 | AK77: 0 | AL77: 0 | AM77: 0 | AN77: 0 | AO77: 0 | AP77: 0 | AQ77: 0 | AR77: 0 | AS77: 0 | AT77: 0 | AU77: 0
A78: 2013 | B78: 2023 | F78: 2021 | H78: =IF($M$35="Actual",0,IF($M$37="Fixed", IF($M$36="Historical Data",INDEX($G$52:$G$57,MATCH($M$38,$F$52:$F$57,0),1), INDEX($H$58:$I$65,MATCH($M$38,$F$58:$F$65,0),MATCH($M$36,$H$51:$I$51,0))), INDEX($H$58:$I$65,MATCH($F78,$F$58:$F$65,0),MATCH($M$36,$H$51:$I$51,0)) )) -> 0 | I78: =IF($M$35="Actual",0,IF($M$37="Fixed", IF($M$36="Historical Data",INDEX($G$52:$G$57,MATCH($M$38,$F$52:$F$57,0),1), INDEX($H$58:$I$65,MATCH($M$38,$F$58:$F$65,0),MATCH($M$36,$H$51:$I$51,0))), INDEX($H$58:$I$65,MATCH($F78,$F$58:$F$65,0),MATCH($M$36,$H$51:$I$51,0)) )) -> 0 | K78: =IF($M$35="Actual",0,IF($M$37="Fixed", IF($M$36="Historical Data",INDEX($J$52:$J$57,MATCH($M$38,$F$52:$F$57,0),1), INDEX($K$58:$L$65,MATCH($M$38,$F$58:$F$65,0),MATCH($M$36,$K$51:$L$51,0))), INDEX($K$58:$L$65,MATCH($F78,$F$58:$F$65,0),MATCH($M$36,$K$51:$L$51,0)) )) -> 0 | L78: 0 | N78: =IF($M$35="Actual",0,IF($M$37="Fixed", IF($M$36="Historical Data",INDEX($M$52:$M$57,MATCH($M$38,$F$52:$F$57,0),1), INDEX($N$58:$O$65,MATCH($M$38,$F$58:$F$65,0),MATCH($M$36,$N$51:$O$51,0))), INDEX($N$58:$O$65,MATCH($F78,$F$58:$F$65,0),MATCH($M$36,$N$51:$O$51,0)) )) -> 0 | O78: 0 | Q78: =IF($M$35="Actual",0,IF($M$37="Fixed", IF($M$36="Historical Data",INDEX($P$52:$P$57,MATCH($M$38,$F$52:$F$57,0),1), INDEX($Q$58:$R$65,MATCH($M$38,$F$58:$F$65,0),MATCH($M$36,$Q$51:$R$51,0))), INDEX($Q$58:$R$65,MATCH($F78,$F$58:$F$65,0),MATCH($M$36,$Q$51:$R$51,0)) )) -> 0 | R78: 0 | W78: 2021 | X78: =IF($AA$36="Actual",0,INDEX($X$51:$AU$75,VLOOKUP($AA$37,$A$88:$B$90,2,0)+IF($AA$37="Historical Data",MATCH($AA$39,HistoricalYears,0),IF($AA$38="Fixed",MATCH($AA$39,Year,0),MATCH($W78,Year,0))),X$49)) -> 0 | Y78: 0 | Z78: 0 | AA78: 0 | AB78: 0 | AC78: 0 | AD78: 0 | AE78: 0 | AF78: 0 | AG78: 0 | AH78: =IF($AA$36="Actual",0,INDEX($X$51:$AU$75,VLOOKUP($AA$37,$A$88:$B$90,2,0)+IF($AA$37="Historical Data",MATCH($AA$39,HistoricalYears,0),IF($AA$38="Fixed",MATCH($AA$39,Year,0),MATCH($W78,Year,0))),AH$49)) -> 0 | AI78: 0 | AJ78: 0 | AK78: 0 | AL78: 0 | AM78: 0 | AN78: 0 | AO78: 0 | AP78: 0 | AQ78: 0 | AR78: 0 | AS78: 0 | AT78: 0 | AU78: 0
A79: 2014 | B79: 2025 | F79: 2023 | H79: =IF($M$35="Actual",0,IF($M$37="Fixed", IF($M$36="Historical Data",INDEX($G$52:$G$57,MATCH($M$38,$F$52:$F$57,0),1), INDEX($H$58:$I$65,MATCH($M$38,$F$58:$F$65,0),MATCH($M$36,$H$51:$I$51,0))), INDEX($H$58:$I$65,MATCH($F79,$F$58:$F$65,0),MATCH($M$36,$H$51:$I$51,0)) )) -> 0 | I79: =IF($M$35="Actual",0,IF($M$37="Fixed", IF($M$36="Historical Data",INDEX($G$52:$G$57,MATCH($M$38,$F$52:$F$57,0),1), INDEX($H$58:$I$65,MATCH($M$38,$F$58:$F$65,0),MATCH($M$36,$H$51:$I$51,0))), INDEX($H$58:$I$65,MATCH($F79,$F$58:$F$65,0),MATCH($M$36,$H$51:$I$51,0)) )) -> 0 | K79: 0 | L79: 0 | N79: 0 | O79: 0 | Q79: 0 | R79: 0 | W79: 2023 | X79: 0 | Y79: 0 | Z79: 0 | AA79: 0 | AB79: 0 | AC79: 0 | AD79: 0 | AE79: 0 | AF79: 0 | AG79: 0 | AH79: 0 | AI79: 0 | AJ79: 0 | AK79: 0 | AL79: 0 | AM79: 0 | AN79: 0 | AO79: 0 | AP79: 0 | AQ79: 0 | AR79: 0 | AS79: 0 | AT79: 0 | AU79: 0
A80: 2015 | B80: 2030 | F80: 2025 | H80: 0 | I80: 0 | K80: 0 | L80: 0 | N80: 0 | O80: 0 | Q80: 0 | R80: 0 | W80: 2025 | X80: 0 | Y80: 0 | Z80: 0 | AA80: 0 | AB80: 0 | AC80: 0 | AD80: 0 | AE80: 0 | AF80: 0 | AG80: 0 | AH80: 0 | AI80: 0 | AJ80: 0 | AK80: 0 | AL80: 0 | AM80: 0 | AN80: 0 | AO80: 0 | AP80: 0 | AQ80: 0 | AR80: 0 | AS80: 0 | AT80: 0 | AU80: 0
A81: 2016 | B81: 2035 | F81: 2030 | H81: 0 | I81: 0 | K81: 0 | L81: 0 | N81: 0 | O81: 0 | Q81: 0 | R81: 0 | W81: 2030 | X81: 0 | Y81: 0 | Z81: 0 | AA81: 0 | AB81: 0 | AC81: 0 | AD81: 0 | AE81: 0 | AF81: 0 | AG81: 0 | AH81: 0 | AI81: 0 | AJ81: 0 | AK81: 0 | AL81: 0 | AM81: 0 | AN81: 0 | AO81: 0 | AP81: 0 | AQ81: 0 | AR81: 0 | AS81: 0 | AT81: 0 | AU81: 0
B82: 2040 | F82: 2035 | H82: 0 | I82: 0 | K82: 0 | L82: 0 | N82: 0 | O82: 0 | Q82: 0 | R82: 0 | W82: 2035 | X82: 0 | Y82: 0 | Z82: 0 | AA82: 0 | AB82: 0 | AC82: 0 | AD82: 0 | AE82: 0 | AF82: 0 | AG82: 0 | AH82: 0 | AI82: 0 | AJ82: 0 | AK82: 0 | AL82: 0 | AM82: 0 | AN82: 0 | AO82: 0 | AP82: 0 | AQ82: 0 | AR82: 0 | AS82: 0 | AT82: 0 | AU82: 0
B83: 2045 | F83: 2040 | H83: 0 | I83: 0 | K83: 0 | L83: 0 | N83: 0 | O83: 0 | Q83: 0 | R83: 0 | W83: 2040 | X83: 0 | Y83: 0 | Z83: 0 | AA83: 0 | AB83: 0 | AC83: 0 | AD83: 0 | AE83: 0 | AF83: 0 | AG83: 0 | AH83: 0 | AI83: 0 | AJ83: 0 | AK83: 0 | AL83: 0 | AM83: 0 | AN83: 0 | AO83: 0 | AP83: 0 | AQ83: 0 | AR83: 0 | AS83: 0 | AT83: 0 | AU83: 0
B84: 2050 | F84: 2045 | H84: 0 | I84: 0 | K84: 0 | L84: 0 | N84: 0 | O84: 0 | Q84: 0 | R84: 0 | W84: 2045 | X84: 0 | Y84: 0 | Z84: 0 | AA84: 0 | AB84: 0 | AC84: 0 | AD84: 0 | AE84: 0 | AF84: 0 | AG84: 0 | AH84: 0 | AI84: 0 | AJ84: 0 | AK84: 0 | AL84: 0 | AM84: 0 | AN84: 0 | AO84: 0 | AP84: 0 | AQ84: 0 | AR84: 0 | AS84: 0 | AT84: 0 | AU84: 0
F85: 2050 | H85: 0 | I85: 0 | K85: 0 | L85: 0 | N85: 0 | O85: 0 | Q85: 0 | R85: 0 | W85: 2050 | X85: 0 | Y85: 0 | Z85: 0 | AA85: 0 | AB85: 0 | AC85: 0 | AD85: 0 | AE85: 0 | AF85: 0 | AG85: 0 | AH85: 0 | AI85: 0 | AJ85: 0 | AK85: 0 | AL85: 0 | AM85: 0 | AN85: 0 | AO85: 0 | AP85: 0 | AQ85: 0 | AR85: 0 | AS85: 0 | AT85: 0 | AU85: 0
G86: =G89&" (thousand short tons)" -> Annual SO2 (thousand short tons) | J86: =J89&" (thousand short tons)" -> Annual CO2 (thousand short tons) | M86: =M89&" (thousand short tons)" -> Annual NOx (thousand short tons) | P86: =P89&" (thousand short tons)" -> Ozone Season NOx (thousand short tons)
A87: Indexing Table
A88: Historical Data | B88: 0 | G88: USE DYNAMIC NAMED RANGES FOR GRAPH AREAS
A89: =B4 -> Nov 2018 Updated Ref Case | B89: 8 | G89: Annual SO2 | J89: Annual CO2 | M89: Annual NOx | P89: Ozone Season NOx | V89: DETAILED CATEGORIES
A90: =B5 -> 0 | B90: 17 | G90: RPE_SO2EmissionsTotalThousandTons | J90: RPE_CO2EmissionsTotalThousandTons | M90: RPE_NOXEmissionsTotalThousandTons | P90: RPE_NOXEmissionsSummerThousandTons
G91: Historical | H91: =H71 -> Nov 2018 Updated Ref Case | I91: =I71 -> 0 | J91: Historical | K91: =K71 -> Nov 2018 Updated Ref Case | L91: =L71 -> 0 | M91: Historical | N91: =N71 -> Nov 2018 Updated Ref Case | O91: =O71 -> 0 | P91: Historical | Q91: =Q71 -> Nov 2018 Updated Ref Case | R91: =R71 -> 0 | X91: All Units | Y91: Biomass | Z91: Coal Steam | AA91: Combined Cycle | AB91: Combustion Turbine | AC91: Fossil Other | AD91: Fuel Cell | AE91: Geothermal | AF91: Hydro | AG91: IGCC | AH91: International Imports | AI91: Landfill Gas | AJ91: Non-Fossil Other | AK91: Nuclear | AL91: O/G Steam | AM91: Offshore Wind | AN91: Pumped Storage | AO91: Solar PV | AP91: Solar Thermal | AQ91: Wind | AR91: Coal 30% CCS | AS91: Coal 90% CCS | AT91: Coal W/CCS | AU91: NGCC w/CCS
F92: 2012 | G92: =IF(AND($M$37="Parallel",OR($M$35="Absolute Change",$M$35="Percent Change")),NA(),IF($M$35="Percent Change",(G52-G72)/G72,G52-G72)) -> 3321.734506 | J92: =IF(AND($M$37="Parallel",OR($M$35="Absolute Change",$M$35="Percent Change")),NA(),IF($M$35="Percent Change",(J52-J72)/J72,J52-J72)) -> 2208934.135 | M92: =IF(AND($M$37="Parallel",OR($M$35="Absolute Change",$M$35="Percent Change")),NA(),IF($M$35="Percent Change",(M52-M72)/M72,M52-M72)) -> 1715.846948 | P92: =IF(AND($M$37="Parallel",OR($M$35="Absolute Change",$M$35="Percent Change")),NA(),IF($M$35="Percent Change",(P52-P72)/P72,P52-P72)) -> 787.465973 | U92: 1 | V92: Historical Data | W92: 2011 | X92: =IF($AA$36="Actual",X51,IF($AA$38="Parallel","",X51-X$77)) -> 4029565.206 | Y92: 40357.78922 | Z92: 1739571.035 | AA92: 733698.219 | AB92: 56810.36785 | AC92: 0 | AD92: 56.635 | AE92: 15373.223 | AF92: 319442.4454 | AG92: 1194.42095 | AH92: 0 | AI92: 8909.891922 | AJ92: 26039.7654 | AK92: 790206.3521 | AL92: 174804.8632 | AM92: 0 | AN92: 238.431 | AO92: 1011.653072 | AP92: 1035.290582 | AQ92: 120176.5986 | AR92: 0 | AS92: 0 | AT92: 0 | AU92: 0
F93: 2013 | G93: 3245.173847 | J93: 2233849.696 | M93: 1725.690503 | P93: 750.297464 | U93: =U92+1 -> 2 | W93: 2012 | X93: =IF($AA$36="Actual",X52,IF($AA$38="Parallel","",X52-X$77)) -> 3971853.76 | Y93: 40855.92167 | Z93: 1532126.428 | AA93: 922939.0977 | AB93: 68785.67951 | AC93: 0 | AD93: 145.07997 | AE93: 15727.77363 | AF93: 276244.6776 | AG93: 1173.64526 | AH93: 0 | AI93: 9792.796156 | AJ93: 24858.00376 | AK93: 769331.4823 | AL93: 162926.2269 | AM93: 0 | AN93: 776.425 | AO93: 3450.592296 | AP93: 1089.820945 | AQ93: 140821.7147 | AR93: 0 | AS93: 0 | AT93: 0 | AU93: 0
F94: 2014 | G94: 3157.092282 | J94: 2233715.482 | M94: 1667.232178 | P94: 695.621109 | U94: =U93+1 -> 3 | W94: 2013 | X94: =IF($AA$36="Actual",X53,IF($AA$38="Parallel","",X53-X$77)) -> 4009391.33 | Y94: 42691.68902 | Z94: 1607446.013 | AA94: 872799.9312 | AB94: 56241.24293 | AC94: 0 | AD94: 339.39235 | AE94: 15933.91308 | AF94: 268565.3827 | AG94: 4154.11039 | AH94: 0 | AI94: 10466.20057 | AJ94: 23825.70983 | AK94: 789016.473 | AL94: 139529.5974 | AM94: 0 | AN94: 553.591 | AO94: 8121.000178 | AP94: 975.9072 | AQ94: 167839.7454 | AR94: 0 | AS94: 0 | AT94: 0 | AU94: 0
F95: 2015 | G95: 2216.68437 | J95: 2093951.027 | M95: 1382.976371 | P95: 616.796237 | U95: 4 | W95: 2014 | X95: =IF($AA$36="Actual",X54,IF($AA$38="Parallel","",X54-X$77)) -> 4034924.529 | Y95: 46680.9091 | Z95: 1599622.382 | AA95: 882735.1727 | AB95: 57596.76228 | AC95: 0 | AD95: 538.15497 | AE95: 15876.941 | AF95: 259366.6219 | AG95: 6048.17963 | AH95: 0 | AI95: 11255.0839 | AJ95: 22531.50364 | AK95: 797165.982 | AL95: 135096.9913 | AM95: 0 | AN95: 79.866 | AO95: 15249.6621 | AP95: 2492.699088 | AQ95: 181655.2818 | AR95: 0 | AS95: 0 | AT95: 0 | AU95: 0
F96: 2016 | G96: 1490.281835 | J96: 1994074.473 | M96: 1204.567615 | P96: 554.076195 | U96: 5 | W96: 2015 | X96: =IF($AA$36="Actual",X55,IF($AA$38="Parallel","",X55-X$77)) -> 4006745.046 | Y96: 45504.89921 | Z96: 1390807.851 | AA96: 1046314.755 | AB96: 74057.90728 | AC96: 0 | AD96: 694.46394 | AE96: 15917.575 | AF96: 249080.0848 | AG96: 9104.78871 | AH96: 0 | AI96: 11339.17148 | AJ96: 21897.67988 | AK96: 797177.877 | AL96: 127331.5064 | AM96: 0 | AN96: 601.544 | AO96: 21665.95198 | AP96: 3327.998626 | AQ96: 190718.5477 | AR96: 0 | AS96: 0 | AT96: 0 | AU96: 0
F97: 2017 | G97: 1340.199673 | J97: 1911086.013 | M97: 1064.099988 | P97: 465.417063 | U97: 6 | W97: 2016 | X97: =IF($AA$36="Actual",X56,IF($AA$38="Parallel","",X56-X$77)) -> 4001922.935 | Y97: 47611.39765 | Z97: 1295888.454 | AA97: 1074863.812 | AB97: 89057.65262 | AC97: 0 | AD97: 746.714401 | AE97: 15825.807 | AF97: 267962.6141 | AG97: 8375.5919 | AH97: 0 | AI97: 11259.60109 | AJ97: 8346.228431 | AK97: 805693.948 | AL97: 110884.3436 | AM97: 0 | AN97: 1052.742 | AO97: 32670.42415 | AP97: 3308.396 | AQ97: 226992.5621 | AR97: 0 | AS97: 0 | AT97: 0 | AU97: 0
F98: 2021 | H98: =IF(AND(OR($M$35="Absolute Change",$M$35="Percent Change"),$M$37="Parallel",$B$4=$M$36),NA(),IF($M$35="Percent Change",(H58-H78)/H78,H58-H78)) -> 862.405805 | I98: =IF(AND(OR($M$35="Absolute Change",$M$35="Percent Change"),$M$37="Parallel",$B$5=$M$36),NA(),IF($M$35="Percent Change",(I58-I78)/I78,I58-I78)) -> 0 | K98: =IF(AND(OR($M$35="Absolute Change",$M$35="Percent Change"),$M$37="Parallel",$B$4=$M$36),NA(),IF($M$35="Percent Change",(K58-K78)/K78,K58-K78)) -> 1698996.778 | L98: =IF(AND(OR($M$35="Absolute Change",$M$35="Percent Change"),$M$37="Parallel",$B$5=$M$36),NA(),IF($M$35="Percent Change",(L58-L78)/L78,L58-L78)) -> 0 | N98: =IF(AND(OR($M$35="Absolute Change",$M$35="Percent Change"),$M$37="Parallel",$B$4=$M$36),NA(),IF($M$35="Percent Change",(N58-N78)/N78,N58-N78)) -> 811.7983447 | O98: =IF(AND(OR($M$35="Absolute Change",$M$35="Percent Change"),$M$37="Parallel",$B$5=$M$36),NA(),IF($M$35="Percent Change",(O58-O78)/O78,O58-O78)) -> 0 | Q98: =IF(AND(OR($M$35="Absolute Change",$M$35="Percent Change"),$M$37="Parallel",$B$4=$M$36),NA(),IF($M$35="Percent Change",(Q58-Q78)/Q78,Q58-Q78)) -> 380.3532233 | R98: =IF(AND(OR($M$35="Absolute Change",$M$35="Percent Change"),$M$37="Parallel",$B$5=$M$36),NA(),IF($M$35="Percent Change",(R58-R78)/R78,R58-R78)) -> 0 | U98: 7
F99: 2023 | H99: 888.4927743 | I99: 0 | K99: 1757543.57 | L99: 0 | N99: 837.1551901 | O99: 0 | Q99: 388.9852875 | R99: 0 | U99: 8 | X99: All Units | Y99: Biomass | Z99: Coal Steam | AA99: Combined Cycle | AB99: Combustion Turbine | AC99: Fossil Other | AD99: Fuel Cell | AE99: Geothermal | AF99: Hydro | AG99: IGCC | AH99: International Imports | AI99: Landfill Gas | AJ99: Non-Fossil Other | AK99: Nuclear | AL99: O/G Steam | AM99: Offshore Wind | AN99: Pumped Storage | AO99: Solar PV | AP99: Solar Thermal | AQ99: Wind | AR99: Coal 30% CCS | AS99: Coal 90% CCS | AT99: Coal W/CCS | AU99: NGCC w/CCS
F100: 2025 | H100: 912.5580793 | I100: 0 | K100: 1774472.959 | L100: 0 | N100: 844.3635354 | O100: 0 | Q100: 386.6925286 | R100: 0 | U100: 9 | V100: =V59 -> Nov 2018 Updated Ref Case | W100: 2021 | X100: =IF($AA$36="Actual",X59,X59-X78) -> 4078371.266 | Y100: 2054.560171 | Z100: 862808.8541 | AA100: 1550530.442 | AB100: 25615.27197 | AC100: 3236.641328 | AD100: 0 | AE100: 19292.48902 | AF100: 303211.2851 | AG100: 4289.456636 | AH100: 6339.612 | AI100: 11426.04841 | AJ100: 25728.78874 | AK100: 694343.7597 | AL100: 62880.22458 | AM100: 122.4206396 | AN100: 6885.865971 | AO100: 98073.02321 | AP100: 3101.782437 | AQ100: 398430.7398 | AR100: =IF($AA$36="Actual",AR59,AR59-AR78) -> 0 | AS100: 0 | AT100: 0 | AU100: 0
F101: 2030 | H101: 885.6276377 | I101: 0 | K101: 1742869.477 | L101: 0 | N101: 810.1282855 | O101: 0 | Q101: 384.7420552 | R101: 0 | U101: 10 | W101: 2023 | X101: =IF($AA$36="Actual",X60,X60-X79) -> 4127758.359 | Y101: 2145.339678 | Z101: 910210.0815 | AA101: 1563261.614 | AB101: 30217.29091 | AC101: 3236.641323 | AD101: 0 | AE101: 20022.25177 | AF101: 313008.4137 | AG101: 4289.456636 | AH101: 6339.612 | AI101: 11425.84969 | AJ101: 26217.81979 | AK101: 651533.662 | AL101: 60429.1026 | AM101: 122.4206396 | AN101: 8110.294068 | AO101: 115655.9865 | AP101: 3101.782437 | AQ101: 398430.7398 | AR101: 0 | AS101: 0 | AT101: 0 | AU101: 0
F102: 2035 | H102: 816.9548507 | I102: 0 | K102: 1718677.652 | L102: 0 | N102: 752.8483777 | O102: 0 | Q102: 374.3367152 | R102: 0 | U102: 11 | W102: 2025 | X102: =IF($AA$36="Actual",X61,X61-X80) -> 4179207.306 | Y102: 2322.267458 | Z102: 914786.1602 | AA102: 1575993.51 | AB102: 37770.61362 | AC102: 3236.641326 | AD102: 0 | AE102: 21189.93764 | AF102: 313747.7644 | AG102: 4289.456636 | AH102: 6339.612 | AI102: 11426.04841 | AJ102: 26752.04796 | AK102: 642652.7415 | AL102: 60813.68382 | AM102: 122.4206396 | AN102: 9932.011352 | AO102: 146299.8662 | AP102: 3101.782437 | AQ102: 398430.7398 | AR102: 0 | AS102: 0 | AT102: 0 | AU102: 0
F103: 2040 | H103: 811.4638448 | I103: 0 | K103: 1768566.359 | L103: 0 | N103: 742.1747995 | O103: 0 | Q103: 372.8446171 | R103: 0 | U103: 12 | W103: 2030 | X103: =IF($AA$36="Actual",X62,X62-X81) -> 4292750.903 | Y103: 2099.719342 | Z103: 877899.2039 | AA103: 1617051.769 | AB103: 39304.57784 | AC103: 2956.390537 | AD103: 0 | AE103: 21189.93764 | AF103: 315948.2633 | AG103: 4289.456636 | AH103: 6339.612001 | AI103: 9883.361083 | AJ103: 27704.76019 | AK103: 604008.7273 | AL103: 56912.7584 | AM103: 122.4206396 | AN103: 10189.23714 | AO103: 199190.966 | AP103: 3101.782437 | AQ103: 494557.9598 | AR103: 0 | AS103: 0 | AT103: 0 | AU103: 0
F104: 2045 | H104: 817.0612839 | I104: 0 | K104: 1757656.023 | L104: 0 | N104: 712.7882784 | O104: 0 | Q104: 364.41649 | R104: 0 | U104: 13 | W104: 2035 | X104: =IF($AA$36="Actual",X63,X63-X82) -> 4414414.072 | Y104: 2041.196424 | Z104: 779563.8629 | AA104: 1812498.129 | AB104: 54456.28033 | AC104: 2964.393338 | AD104: 0 | AE104: 21189.93763 | AF104: 317735.0492 | AG104: 4289.456636 | AH104: 6339.612 | AI104: 10264.35345 | AJ104: 27794.89464 | AK104: 596552.3379 | AL104: 59631.90579 | AM104: 122.4206396 | AN104: 10566.39372 | AO104: 205915.1061 | AP104: 3101.782437 | AQ104: 499386.9598 | AR104: 0 | AS104: 0 | AT104: 0 | AU104: 0
F105: 2050 | H105: 762.0888738 | I105: 0 | K105: 1747669.966 | L105: 0 | N105: 664.1932344 | O105: 0 | Q105: 337.6998018 | R105: 0 | U105: 14 | W105: 2040 | X105: =IF($AA$36="Actual",X64,X64-X83) -> 4571285.811 | Y105: 2337.499203 | Z105: 786142.4769 | AA105: 1970967.252 | AB105: 55795.37794 | AC105: 3011.373612 | AD105: 0 | AE105: 21189.93764 | AF105: 318740.9079 | AG105: 4289.456636 | AH105: 6339.612 | AI105: 10395.92996 | AJ105: 28110.9166 | AK105: 596552.3379 | AL105: 43900.78384 | AM105: 122.4206396 | AN105: 10937.56284 | AO105: 206653.5558 | AP105: 3101.782437 | AQ105: 502696.6267 | AR105: 0 | AS105: 0 | AT105: 0 | AU105: 0
U106: 15 | W106: 2045 | X106: =IF($AA$36="Actual",X65,X65-X84) -> 4723254.27 | Y106: 2310.545036 | Z106: 777565.7371 | AA106: 2039571.053 | AB106: 47955.11742 | AC106: 3099.158699 | AD106: 0 | AE106: 21189.93764 | AF106: 319496.8576 | AG106: 3954.630815 | AH106: 6339.612 | AI106: 10623.3186 | AJ106: 28126.90682 | AK106: 596552.3379 | AL106: 29541.98807 | AM106: 122.4206396 | AN106: 10827.85071 | AO106: 228886.8931 | AP106: 3101.782437 | AQ106: 593988.1223 | AR106: 0 | AS106: 0 | AT106: 0 | AU106: 0
U107: 16 | W107: 2050 | X107: 4905209.443 | Y107: 2399.149528 | Z107: 716455.4329 | AA107: 2251145.057 | AB107: 52124.92162 | AC107: 3021.141132 | AD107: 0 | AE107: 21189.93764 | AF107: 319496.8576 | AG107: 0 | AH107: 6339.612 | AI107: 10451.05898 | AJ107: 28237.46797 | AK107: 579435.0134 | AL107: 15669.43871 | AM107: 122.4206396 | AN107: 10229.37821 | AO107: 244817.4144 | AP107: 3101.782437 | AQ107: 640973.3583 | AR107: 0 | AS107: 0 | AT107: 0 | AU107: 0
U108: 17 | X108: All Units | Y108: Biomass | Z108: Coal Steam | AA108: Combined Cycle | AB108: Combustion Turbine | AC108: Fossil Other | AD108: Fuel Cell | AE108: Geothermal | AF108: Hydro | AG108: IGCC | AH108: International Imports | AI108: Landfill Gas | AJ108: Non-Fossil Other | AK108: Nuclear | AL108: O/G Steam | AM108: Offshore Wind | AN108: Pumped Storage | AO108: Solar PV | AP108: Solar Thermal | AQ108: Wind | AR108: Coal 30% CCS | AS108: Coal 90% CCS | AT108: Coal W/CCS | AU108: NGCC w/CCS
U109: 18 | V109: =V68 -> 0 | W109: 2021 | X109: =IF($AA$36="Actual",X68,X68-X78) -> 0 | Y109: 0 | Z109: 0 | AA109: 0 | AB109: 0 | AC109: 0 | AD109: 0 | AE109: 0 | AF109: 0 | AG109: 0 | AH109: 0 | AI109: 0 | AJ109: 0 | AK109: 0 | AL109: 0 | AM109: 0 | AN109: 0 | AO109: 0 | AP109: 0 | AQ109: 0 | AR109: =IF($AA$36="Actual",AR68,AR68-AR78) -> 0 | AS109: 0 | AT109: 0 | AU109: 0
B110: Hydro | U110: 19 | W110: 2023 | X110: =IF($AA$36="Actual",X69,X69-X79) -> 0 | Y110: 0 | Z110: 0 | AA110: 0 | AB110: 0 | AC110: 0 | AD110: 0 | AE110: 0 | AF110: 0 | AG110: 0 | AH110: 0 | AI110: 0 | AJ110: 0 | AK110: 0 | AL110: 0 | AM110: 0 | AN110: 0 | AO110: 0 | AP110: 0 | AQ110: 0 | AR110: 0 | AS110: 0 | AT110: 0 | AU110: 0
B111: Nuclear | U111: 20 | W111: 2025 | X111: =IF($AA$36="Actual",X70,X70-X80) -> 0 | Y111: 0 | Z111: 0 | AA111: 0 | AB111: 0 | AC111: 0 | AD111: 0 | AE111: 0 | AF111: 0 | AG111: 0 | AH111: 0 | AI111: 0 | AJ111: 0 | AK111: 0 | AL111: 0 | AM111: 0 | AN111: 0 | AO111: 0 | AP111: 0 | AQ111: 0 | AR111: 0 | AS111: 0 | AT111: 0 | AU111: 0
B112: Non-Fossil Other | U112: 21 | W112: 2030 | X112: =IF($AA$36="Actual",X71,X71-X81) -> 0 | Y112: 0 | Z112: 0 | AA112: 0 | AB112: 0 | AC112: 0 | AD112: 0 | AE112: 0 | AF112: 0 | AG112: 0 | AH112: 0 | AI112: 0 | AJ112: 0 | AK112: 0 | AL112: 0 | AM112: 0 | AN112: 0 | AO112: 0 | AP112: 0 | AQ112: 0 | AR112: 0 | AS112: 0 | AT112: 0 | AU112: 0
B113: Fossil Other | U113: 22 | W113: 2035 | X113: =IF($AA$36="Actual",X72,X72-X82) -> 0 | Y113: 0 | Z113: 0 | AA113: 0 | AB113: 0 | AC113: 0 | AD113: 0 | AE113: 0 | AF113: 0 | AG113: 0 | AH113: 0 | AI113: 0 | AJ113: 0 | AK113: 0 | AL113: 0 | AM113: 0 | AN113: 0 | AO113: 0 | AP113: 0 | AQ113: 0 | AR113: 0 | AS113: 0 | AT113: 0 | AU113: 0
B114: Coal Steam | U114: 23 | W114: 2040 | X114: =IF($AA$36="Actual",X73,X73-X83) -> 0 | Y114: 0 | Z114: 0 | AA114: 0 | AB114: 0 | AC114: 0 | AD114: 0 | AE114: 0 | AF114: 0 | AG114: 0 | AH114: 0 | AI114: 0 | AJ114: 0 | AK114: 0 | AL114: 0 | AM114: 0 | AN114: 0 | AO114: 0 | AP114: 0 | AQ114: 0 | AR114: 0 | AS114: 0 | AT114: 0 | AU114: 0
B115: IGCC | U115: 24 | W115: 2045 | X115: =IF($AA$36="Actual",X74,X74-X84) -> 0 | Y115: 0 | Z115: 0 | AA115: 0 | AB115: 0 | AC115: 0 | AD115: 0 | AE115: 0 | AF115: 0 | AG115: 0 | AH115: 0 | AI115: 0 | AJ115: 0 | AK115: 0 | AL115: 0 | AM115: 0 | AN115: 0 | AO115: 0 | AP115: 0 | AQ115: 0 | AR115: 0 | AS115: 0 | AT115: 0 | AU115: 0
B116: Combined Cycle | U116: 25 | W116: 2050 | X116: 0 | Y116: 0 | Z116: 0 | AA116: 0 | AB116: 0 | AC116: 0 | AD116: 0 | AE116: 0 | AF116: 0 | AG116: 0 | AH116: 0 | AI116: 0 | AJ116: 0 | AK116: 0 | AL116: 0 | AM116: 0 | AN116: 0 | AO116: 0 | AP116: 0 | AQ116: 0 | AR116: 0 | AS116: 0 | AT116: 0 | AU116: 0
B117: Combustion Turbine | U117: 26
B118: O/G Steam
B119: Wind
B120: Offshore Wind | V120: ROLLED UP CATEGORIES
B121: Solar PV
B122: Solar Thermal | X122: All Units | Y122: Coal | Z122: Combined Cycle | AA122: CT, O/G Steam, Other Fossil | AB122: Nuclear | AC122: Other | AD122: All Renewables | AE122: Coal w/CCS | AF122: NGCC w/CCS | AG122: All Fossil | AH122: All Non-Fossil | AI122: All Renewables Except Hydro | AJ122: All CCS
B123: Landfill Gas | U123: 1 | V123: Historical Data | W123: 2011 | X123: =IF($AH$38="Detailed","",IF(AND($AA$38="Parallel",$AA$36="Absolue Change"),"",X92)) -> 4029565.206 | Y123: =IF($AH$38="Detailed","",IF(AND($AA$38="Parallel",$AA$36="Absolue Change"),"",Z92+AG92)) -> 1740765.456 | Z123: =IF($AH$38="Detailed","",IF(AND($AA$38="Parallel",$AA$36="Absolue Change"),"",AA92)) -> 733698.219 | AA123: =IF($AH$38="Detailed","",IF(AND($AA$38="Parallel",$AA$36="Absolue Change"),"",AB92+AC92+AL92)) -> 231615.2311 | AB123: =IF($AH$38="Detailed","",IF(AND($AA$38="Parallel",$AA$36="Absolue Change"),"",AK92)) -> 790206.3521 | AC123: =IF($AH$38="Detailed","",IF(AND($AA$38="Parallel",$AA$36="Absolue Change"),"",AD92+AH92+AJ92+AN92)) -> 26334.8314 | AD123: =IF($AH$38="Detailed","",IF(AND($AA$38="Parallel",$AA$36="Absolue Change"),"",Y92+AE92+AF92+AI92+AM92+AO92+AP92+AQ92)) -> 506306.8918 | AE123: =IF($AH$38="Detailed","",IF(AND($AA$38="Parallel",$AA$36="Absolue Change"),"",AR92+AS92+AT92)) -> 0 | AF123: =IF($AH$38="Detailed","",IF(AND($AA$38="Parallel",$AA$36="Absolue Change"),"",AU92)) -> 0 | AG123: =SUM(Y123:AA123,AE123:AF123) -> 2706078.906 | AH123: =SUM(AB123:AD123) -> 1322848.075 | AI123: =AD123-AF92 -> 186864.4464 | AJ123: =AE123+AF123 -> 0
B124: Geothermal | U124: =U123+1 -> 2 | W124: 2012 | X124: 3971853.76 | Y124: 1533300.073 | Z124: 922939.0977 | AA124: 231711.9064 | AB124: 769331.4823 | AC124: 25779.50872 | AD124: 487983.297 | AE124: 0 | AF124: 0 | AG124: 2687951.077 | AH124: 1283094.288 | AI124: 211738.6194 | AJ124: 0
B125: Biomass | U125: =U124+1 -> 3 | W125: 2013 | X125: 4009391.33 | Y125: 1611600.123 | Z125: 872799.9312 | AA125: 195770.8403 | AB125: 789016.473 | AC125: 24718.69318 | AD125: 514593.8382 | AE125: 0 | AF125: 0 | AG125: 2680170.894 | AH125: 1328329.004 | AI125: 246028.4555 | AJ125: 0
B126: Fuel Cell | U126: 4 | W126: 2014 | X126: 4034924.529 | Y126: 1605670.562 | Z126: 882735.1727 | AA126: 192693.7536 | AB126: 797165.982 | AC126: 23149.52461 | AD126: 532577.1988 | AE126: 0 | AF126: 0 | AG126: 2681099.488 | AH126: 1352892.705 | AI126: 273210.577 | AJ126: 0
B127: International Imports | U127: 5 | W127: 2015 | X127: 4006745.046 | Y127: 1399912.64 | Z127: 1046314.755 | AA127: 201389.4137 | AB127: 797177.877 | AC127: 23193.68782 | AD127: 537554.2288 | AE127: 0 | AF127: 0 | AG127: 2647616.809 | AH127: 1357925.794 | AI127: 288474.144 | AJ127: 0
B128: Pumped Storage | U128: 6 | W128: 2016 | X128: 4001922.935 | Y128: 1304264.046 | Z128: 1074863.812 | AA128: 199941.9962 | AB128: 805693.948 | AC128: 10145.68483 | AD128: 605630.8021 | AE128: 0 | AF128: 0 | AG128: 2579069.854 | AH128: 1421470.435 | AI128: 337668.188 | AJ128: 0
U129: 7
U130: 8 | X130: All Units | Y130: Coal | Z130: Combined Cycle | AA130: CT, O/G Steam, Other Fossil | AB130: Nuclear | AC130: Other | AD130: All Renewables | AE130: Coal w/CCS | AF130: NGCC w/CCS | AG130: All Fossil | AH130: All Non-Fossil | AI130: All Renewables Except Hydro | AJ130: All CCS
B131: Biomass Co-firing | U131: 9 | V131: =V59 -> Nov 2018 Updated Ref Case | W131: 2021 | X131: =IF($AH$38="Detailed","",X100) -> 4078371.266 | Y131: =IF($AH$38="Detailed","",Z100+AG100) -> 867098.3107 | Z131: =IF($AH$38="Detailed","",AA100) -> 1550530.442 | AA131: =IF($AH$38="Detailed","",AB100+AC100+AL100) -> 91732.13788 | AB131: =IF($AH$38="Detailed","",AK100) -> 694343.7597 | AC131: =IF($AH$38="Detailed","",AD100+AH100+AJ100+AN100) -> 38954.26671 | AD131: =IF($AH$38="Detailed","",Y100+AE100+AF100+AI100+AM100+AO100+AP100+AQ100) -> 835712.3488 | AE131: =IF($AH$38="Detailed","",IF(AND($AA$38="Parallel",$AA$36="Absolue Change"),"",AR100+AS100+AT100)) -> 0 | AF131: =IF($AH$38="Detailed","",IF(AND($AA$38="Parallel",$AA$36="Absolue Change"),"",AU100)) -> 0 | AG131: =SUM(Y131:AA131,AE131:AF131) -> 2509360.891 | AH131: =SUM(AB131:AD131) -> 1569010.375 | AI131: =AD131-AF100 -> 532501.0637 | AJ131: =AE131+AF131 -> 0
B132: PC (w/biomass) | U132: 10 | W132: 2023 | X132: 4127758.359 | Y132: 914499.5381 | Z132: 1563261.614 | AA132: 93883.03483 | AB132: 651533.662 | AC132: 40667.72586 | AD132: 863912.7842 | AE132: 0 | AF132: 0 | AG132: 2571644.187 | AH132: =SUM(AB132:AD132) -> 1556114.172 | AI132: =AD132-AF101 -> 550904.3706 | AJ132: 0
B133: IGCC - CCS | U133: 11 | W133: 2025 | X133: 4179207.306 | Y133: 919075.6168 | Z133: 1575993.51 | AA133: 101820.9388 | AB133: 642652.7415 | AC133: 43023.67131 | AD133: 896640.827 | AE133: 0 | AF133: 0 | AG133: 2596890.066 | AH133: 1582317.24 | AI133: 582893.0626 | AJ133: 0
B134: Combined Cycle - CCS | U134: 12 | W134: 2030 | X134: 4292750.903 | Y134: 882188.6606 | Z134: 1617051.769 | AA134: 99173.72678 | AB134: 604008.7273 | AC134: 44233.60933 | AD134: 1046094.41 | AE134: 0 | AF134: 0 | AG134: 2598414.157 | AH134: 1694336.747 | AI134: 730146.147 | AJ134: 0
B135: Coal 30% CCS | U135: 13 | W135: 2035 | X135: 4414414.072 | Y135: 783853.3196 | Z135: 1812498.129 | AA135: 117052.5795 | AB135: 596552.3379 | AC135: 44700.90036 | AD135: 1059756.806 | AE135: 0 | AF135: 0 | AG135: 2713404.028 | AH135: 1701010.044 | AI135: 742021.7565 | AJ135: 0
B136: Coal 90% CCS | U136: 14 | W136: 2040 | X136: 4571285.811 | Y136: 790431.9336 | Z136: 1970967.252 | AA136: 102707.5354 | AB136: 596552.3379 | AC136: 45388.09144 | AD136: 1065238.66 | AE136: 0 | AF136: 0 | AG136: 2864106.721 | AH136: 1707179.09 | AI136: 746497.7524 | AJ136: 0
B137: Coal w/CCS | U137: 15 | W137: 2045 | X137: 4723254.27 | Y137: 781520.3679 | Z137: 2039571.053 | AA137: 80596.26419 | AB137: 596552.3379 | AC137: 45294.36953 | AD137: 1179719.877 | AE137: 0 | AF137: 0 | AG137: 2901687.685 | AH137: 1821566.585 | AI137: 860223.0198 | AJ137: 0
B138: NGCC w/CCS | U138: 16 | W138: 2050 | X138: 4905209.443 | Y138: =IF($AH$38="Detailed","",Z107+AG107) -> 716455.4329 | Z138: =IF($AH$38="Detailed","",AA107) -> 2251145.057 | AA138: =IF($AH$38="Detailed","",AB107+AC107+AL107) -> 70815.50146 | AB138: =IF($AH$38="Detailed","",AK107) -> 579435.0134 | AC138: =IF($AH$38="Detailed","",AD107+AH107+AJ107+AN107) -> 44806.45817 | AD138: =IF($AH$38="Detailed","",Y107+AE107+AF107+AI107+AM107+AO107+AP107+AQ107) -> 1242551.979 | AE138: 0 | AF138: 0 | AG138: 3038415.992 | AH138: =SUM(AB138:AD138) -> 1866793.451 | AI138: =AD138-AF107 -> 923055.1219 | AJ138: 0
U139: 17 | X139: All Units | Y139: Coal | Z139: Combined Cycle | AA139: CT, O/G Steam, Other Fossil | AB139: Nuclear | AC139: Other | AD139: All Renewables | AE139: Coal w/CCS | AF139: NGCC w/CCS | AG139: All Fossil | AH139: All Non-Fossil | AI139: All Renewables Except Hydro | AJ139: All CCS
U140: 18 | V140: =V68 -> 0 | W140: 2021 | X140: =IF($AH$38="Detailed","",X109) -> 0 | Y140: =IF($AH$38="Detailed","",Z109+AG109) -> 0 | Z140: =IF($AH$38="Detailed","",AA109) -> 0 | AA140: =IF($AH$38="Detailed","",AB109+AC109+AL109) -> 0 | AB140: =IF($AH$38="Detailed","",AK109) -> 0 | AC140: =IF($AH$38="Detailed","",AD109+AH109+AJ109+AN109) -> 0 | AD140: =IF($AH$38="Detailed","",Y109+AE109+AF109+AI109+AM109+AO109+AP109+AQ109) -> 0 | AE140: =IF($AH$38="Detailed","",IF(AND($AA$38="Parallel",$AA$36="Absolue Change"),"",AR109+AS109+AT109)) -> 0 | AF140: =IF($AH$38="Detailed","",IF(AND($AA$38="Parallel",$AA$36="Absolue Change"),"",AU109)) -> 0 | AG140: =SUM(Y140:AA140,AE140:AF140) -> 0 | AH140: =SUM(AB140:AD140) -> 0 | AI140: =AD140-AF109 -> 0 | AJ140: =AE140+AF140 -> 0
U141: 19 | W141: 2023 | X141: 0 | Y141: 0 | Z141: 0 | AA141: 0 | AB141: 0 | AC141: 0 | AD141: 0 | AE141: 0 | AF141: 0 | AG141: 0 | AH141: =SUM(AB141:AD141) -> 0 | AI141: =AD141-AF110 -> 0 | AJ141: 0
U142: 20 | W142: 2025 | X142: 0 | Y142: 0 | Z142: 0 | AA142: 0 | AB142: 0 | AC142: 0 | AD142: 0 | AE142: 0 | AF142: 0 | AG142: 0 | AH142: 0 | AI142: 0 | AJ142: 0
U143: 21 | W143: 2030 | X143: 0 | Y143: 0 | Z143: 0 | AA143: 0 | AB143: 0 | AC143: 0 | AD143: 0 | AE143: 0 | AF143: 0 | AG143: 0 | AH143: 0 | AI143: 0 | AJ143: 0
U144: 22 | W144: 2035 | X144: 0 | Y144: 0 | Z144: 0 | AA144: 0 | AB144: 0 | AC144: 0 | AD144: 0 | AE144: 0 | AF144: 0 | AG144: 0 | AH144: 0 | AI144: 0 | AJ144: 0
U145: 23 | W145: 2040 | X145: 0 | Y145: 0 | Z145: 0 | AA145: 0 | AB145: 0 | AC145: 0 | AD145: 0 | AE145: 0 | AF145: 0 | AG145: 0 | AH145: 0 | AI145: 0 | AJ145: 0
U146: 24 | W146: 2045 | X146: 0 | Y146: 0 | Z146: 0 | AA146: 0 | AB146: 0 | AC146: 0 | AD146: 0 | AE146: 0 | AF146: 0 | AG146: 0 | AH146: 0 | AI146: 0 | AJ146: 0
W147: 2050 | X147: 0 | Y147: =IF($AH$38="Detailed","",Z116+AG116) -> 0 | Z147: =IF($AH$38="Detailed","",AA116) -> 0 | AA147: =IF($AH$38="Detailed","",AB116+AC116+AL116) -> 0 | AB147: =IF($AH$38="Detailed","",AK116) -> 0 | AC147: =IF($AH$38="Detailed","",AD116+AH116+AJ116+AN116) -> 0 | AD147: =IF($AH$38="Detailed","",Y116+AE116+AF116+AI116+AM116+AO116+AP116+AQ116) -> 0 | AE147: 0 | AF147: 0 | AG147: 0 | AH147: =SUM(AB147:AD147) -> 0 | AI147: =AD147-AF116 -> 0 | AJ147: 0
V149: HIGHLIGHT SINGLE
B150: Coal | AA150: Lookuptable
B151: Combined Cycle | X151: All Other Units | Y151: =AH39 -> *All Renewables Except Hydro | AA151: =VLOOKUP($AH$39,$AF$151:$AH$182,3,0) -> 2 | AF151: *All Fossil | AG151: All Fossil | AH151: 2
B152: CT, O/G Steam, Other Fossil | U152: 1 | V152: Historical | W152: 2011 | X152: =IF($AH$38="Detailed","",IF(AND($AA$38="Parallel",$AA$36="Absolue Change"),"",X92-Y152)) -> 3842700.759 | Y152: =IF($AH$38="Detailed","",IF(AND($AA$38="Parallel",$AA$36="Absolue Change"),"", IF($AA$151=1,HLOOKUP($AA$152,$X$91:$AU$98,MATCH($W152,$W$91:$W$98,0),0), HLOOKUP($AA$152,$X$122:$AJ$129,MATCH($W152,$W$122:$W$129,0), 0)))) -> 186864.4464 | AA152: =VLOOKUP($AH$39,$AF$151:$AH$182,2,0) -> All Renewables Except Hydro | AF152: *All Non-Fossil | AG152: All Non-Fossil | AH152: 2
B153: Nuclear | U153: =U152+1 -> 2 | W153: 2012 | X153: 3760115.14 | Y153: 211738.6194 | AF153: All Coal | AG153: Coal | AH153: 2
B154: Other | U154: =U153+1 -> 3 | W154: 2013 | X154: 3763362.875 | Y154: 246028.4555 | AF154: --Coal Steam | AG154: Coal Steam | AH154: 1
B155: All Renewables | U155: 4 | W155: 2014 | X155: 3761713.952 | Y155: 273210.577 | AF155: --IGCC | AG155: IGCC | AH155: 1
B156: Coal w/CCS | U156: 5 | W156: 2015 | X156: 3718270.902 | Y156: 288474.144 | AF156: Combined Cycle | AG156: Combined Cycle | AH156: 1
B157: NGCC w/CCS | U157: 6 | W157: 2016 | X157: 3664254.747 | Y157: 337668.188 | AF157: *CT, O/G Steam, Other Fossil | AG157: CT, O/G Steam, Other Fossil | AH157: 2
U158: 7 | AF158: Combustion Turbine | AG158: Combustion Turbine | AH158: 1
U159: 8 | AF159: O/G Steam | AG159: O/G Steam | AH159: 1
U160: 9 | V160: =V131 -> Nov 2018 Updated Ref Case | W160: 2021 | X160: =IF($AH$38="Detailed","",X100-Y160) -> 4078371.266 | Y160: =IF($AH$38<>"Highlight Single",0, IF($AA$151=1,HLOOKUP($AA$152,$X$99:$AU$107,MATCH($W160,$W$99:$W$107,0),0), HLOOKUP($AA$152,$X$130:$AJ$138,MATCH($W160,$W$130:$W$138,0), 0))) -> 0 | AF160: Fossil Other | AG160: Fossil Other | AH160: 1
U161: 10 | W161: 2023 | X161: 4127758.359 | Y161: =IF($AH$38<>"Highlight Single",0, IF($AA$151=1,HLOOKUP($AA$152,$X$99:$AU$107,MATCH($W161,$W$99:$W$107,0),0), HLOOKUP($AA$152,$X$130:$AJ$138,MATCH($W161,$W$130:$W$138,0), 0))) -> 0 | AF161: Nuclear | AG161: Nuclear | AH161: 1
U162: 11 | W162: 2025 | X162: 4179207.306 | Y162: 0 | AF162: *All CCS | AH162: 2
U163: 12 | W163: 2030 | X163: 4292750.903 | Y163: 0 | AF163: All Coal w/CCS | AH163: 2
U164: 13 | W164: 2035 | X164: 4414414.072 | Y164: 0 | AF164: --Coal 30% CCS | AG164: Coal 30% CCS | AH164: 1
U165: 14 | W165: 2040 | X165: 4571285.811 | Y165: 0 | AF165: --Coal 90% CCS | AG165: Coal 90% CCS | AH165: 1
U166: 15 | W166: 2045 | X166: 4723254.27 | Y166: 0 | AF166: --Coal w/CCS | AG166: Coal w/CCS | AH166: 1
U167: 16 | W167: 2050 | X167: =IF($AH$38="Detailed","",X107-Y167) -> 4905209.443 | Y167: 0 | AF167: NGCC w/CCS | AG167: NGCC w/CCS | AH167: 1
U168: 17 | AF168: *All Renewables | AG168: All Renewables | AH168: 2
U169: 18 | V169: =V140 -> 0 | W169: 2021 | X169: =IF($AH$38="Detailed","",X109-Y169) -> 0 | Y169: =IF($AH$38<>"Highlight Single",0, IF($AA$151=1,HLOOKUP($AA$152,$X$108:$AU$117,MATCH($W169,$W$108:$W$117,0),0), HLOOKUP($AA$152,$X$139:$AJ$147,MATCH($W169,$W$139:$W$147,0), 0))) -> 0 | AF169: *All Renewables Except Hydro | AG169: All Renewables Except Hydro | AH169: 2
A170: Heat Input_Ozone Season | B170: RPE_FuelConsumptionSummerTBtu | U170: 19 | W170: 2023 | X170: 0 | Y170: =IF($AH$38<>"Highlight Single",0, IF($AA$151=1,HLOOKUP($AA$152,$X$108:$AU$117,MATCH($W170,$W$108:$W$117,0),0), HLOOKUP($AA$152,$X$139:$AJ$147,MATCH($W170,$W$139:$W$147,0), 0))) -> 0 | AF170: --Biomass | AG170: Biomass | AH170: 1
A171: Heat Input_Annual | B171: RPE_FuelConsumptionTotalTBtu | U171: 20 | W171: 2025 | X171: 0 | Y171: 0 | AF171: --Geothermal | AG171: Geothermal | AH171: 1
A172: Generation_Ozone Season | B172: RPE_GenerationSummerGWh | U172: 21 | W172: 2030 | X172: 0 | Y172: 0 | AF172: --Hydro | AG172: Hydro | AH172: 1
A173: Generation_Annual | B173: RPE_GenerationTotalGWh | U173: 22 | W173: 2035 | X173: 0 | Y173: 0 | AF173: --Landfill Gas | AG173: Landfill Gas | AH173: 1
A174: Capacity | B174: RPE_DispatchableCapacityMW | U174: 23 | W174: 2040 | X174: 0 | Y174: 0 | AF174: --Solar PV | AG174: Solar PV | AH174: 1
U175: 24 | W175: 2045 | X175: 0 | Y175: 0 | AF175: --Solar Thermal | AG175: Solar Thermal | AH175: 1
A176: Heat Input_Ozone Season | B176: 1 | U176: 25 | W176: 2050 | X176: =IF($AH$38="Detailed","",X116-Y176) -> 0 | Y176: 0 | AF176: --Offshore Wind | AG176: Offshore Wind | AH176: 1
A177: Heat Input_Annual | B177: 2 | AF177: --Wind | AG177: Wind | AH177: 1
A178: Generation_Ozone Season | B178: 3 | AF178: *All Other | AG178: Other | AH178: 2
A179: Generation_Annual | B179: 4 | AF179: --Fuel Cell | AH179: 1
A180: Capacity_Ozone Season | B180: 5 | AF180: --International Imports | AH180: 1
A181: Capacity_Annual | B181: 5 | AF181: --Non-Fossil Other | AH181: 1
AF182: --Pumped Storage | AH182: 1
X185: All Units | Y185: Hydro | Z185: Nuclear | AA185: Non-Fossil Other | AB185: Fossil Other | AC185: Coal Steam | AD185: IGCC | AE185: Combined Cycle | AF185: Combustion Turbine | AG185: O/G Steam | AH185: Wind | AI185: Offshore Wind | AJ185: Solar PV | AK185: Solar Thermal | AL185: Landfill Gas | AM185: Geothermal | AN185: Biomass | AO185: Fuel Cell | AP185: International Imports | AQ185: Pumped Storage | AR185: Coal 30% CCS | AS185: Coal 90% CCS | AT185: Coal W/CCS | AU185: NGCC w/CCS
U186: 1 | V186: =AN36 -> Historical Data | W186: =AN37 -> 2016 | X186: =IF($V186="Historical Data",INDEX($X$51:$AU$57,MATCH($W186,$W$51:$W$57,0),MATCH(X$185,$X$50:$AU$50,0)), IF($V186=$V$59,INDEX($X$59:$AU$66,MATCH($W186,$W$59:$W$66,0),MATCH(X$185,$X$50:$AU$50,0)), INDEX($X$68:$AU75,MATCH($W186,$W$68:$W$75,0),MATCH(X$185,$X$50:$AU$50,0)))) -> 4001922.935 | Y186: =IF($V186="Historical Data",INDEX($X$51:$AU$57,MATCH($W186,$W$51:$W$57,0),MATCH(Y$185,$X$50:$AU$50,0)), IF($V186=$V$59,INDEX($X$59:$AU$66,MATCH($W186,$W$59:$W$66,0),MATCH(Y$185,$X$50:$AU$50,0)), INDEX($X$68:$AU75,MATCH($W186,$W$68:$W$75,0),MATCH(Y$185,$X$50:$AU$50,0)))) -> 267962.6141 | Z186: =IF($V186="Historical Data",INDEX($X$51:$AU$57,MATCH($W186,$W$51:$W$57,0),MATCH(Z$185,$X$50:$AU$50,0)), IF($V186=$V$59,INDEX($X$59:$AU$66,MATCH($W186,$W$59:$W$66,0),MATCH(Z$185,$X$50:$AU$50,0)), INDEX($X$68:$AU75,MATCH($W186,$W$68:$W$75,0),MATCH(Z$185,$X$50:$AU$50,0)))) -> 805693.948 | AA186: =IF($V186="Historical Data",INDEX($X$51:$AU$57,MATCH($W186,$W$51:$W$57,0),MATCH(AA$185,$X$50:$AU$50,0)), IF($V186=$V$59,INDEX($X$59:$AU$66,MATCH($W186,$W$59:$W$66,0),MATCH(AA$185,$X$50:$AU$50,0)), INDEX($X$68:$AU75,MATCH($W186,$W$68:$W$75,0),MATCH(AA$185,$X$50:$AU$50,0)))) -> 8346.228431 | AB186: =IF($V186="Historical Data",INDEX($X$51:$AU$57,MATCH($W186,$W$51:$W$57,0),MATCH(AB$185,$X$50:$AU$50,0)), IF($V186=$V$59,INDEX($X$59:$AU$66,MATCH($W186,$W$59:$W$66,0),MATCH(AB$185,$X$50:$AU$50,0)), INDEX($X$68:$AU75,MATCH($W186,$W$68:$W$75,0),MATCH(AB$185,$X$50:$AU$50,0)))) -> 0 | AC186: =IF($V186="Historical Data",INDEX($X$51:$AU$57,MATCH($W186,$W$51:$W$57,0),MATCH(AC$185,$X$50:$AU$50,0)), IF($V186=$V$59,INDEX($X$59:$AU$66,MATCH($W186,$W$59:$W$66,0),MATCH(AC$185,$X$50:$AU$50,0)), INDEX($X$68:$AU75,MATCH($W186,$W$68:$W$75,0),MATCH(AC$185,$X$50:$AU$50,0)))) -> 1295888.454 | AD186: =IF($V186="Historical Data",INDEX($X$51:$AU$57,MATCH($W186,$W$51:$W$57,0),MATCH(AD$185,$X$50:$AU$50,0)), IF($V186=$V$59,INDEX($X$59:$AU$66,MATCH($W186,$W$59:$W$66,0),MATCH(AD$185,$X$50:$AU$50,0)), INDEX($X$68:$AU75,MATCH($W186,$W$68:$W$75,0),MATCH(AD$185,$X$50:$AU$50,0)))) -> 8375.5919 | AE186: =IF($V186="Historical Data",INDEX($X$51:$AU$57,MATCH($W186,$W$51:$W$57,0),MATCH(AE$185,$X$50:$AU$50,0)), IF($V186=$V$59,INDEX($X$59:$AU$66,MATCH($W186,$W$59:$W$66,0),MATCH(AE$185,$X$50:$AU$50,0)), INDEX($X$68:$AU75,MATCH($W186,$W$68:$W$75,0),MATCH(AE$185,$X$50:$AU$50,0)))) -> 1074863.812 | AF186: =IF($V186="Historical Data",INDEX($X$51:$AU$57,MATCH($W186,$W$51:$W$57,0),MATCH(AF$185,$X$50:$AU$50,0)), IF($V186=$V$59,INDEX($X$59:$AU$66,MATCH($W186,$W$59:$W$66,0),MATCH(AF$185,$X$50:$AU$50,0)), INDEX($X$68:$AU75,MATCH($W186,$W$68:$W$75,0),MATCH(AF$185,$X$50:$AU$50,0)))) -> 89057.65262 | AG186: =IF($V186="Historical Data",INDEX($X$51:$AU$57,MATCH($W186,$W$51:$W$57,0),MATCH(AG$185,$X$50:$AU$50,0)), IF($V186=$V$59,INDEX($X$59:$AU$66,MATCH($W186,$W$59:$W$66,0),MATCH(AG$185,$X$50:$AU$50,0)), INDEX($X$68:$AU75,MATCH($W186,$W$68:$W$75,0),MATCH(AG$185,$X$50:$AU$50,0)))) -> 110884.3436 | AH186: =IF($V186="Historical Data",INDEX($X$51:$AU$57,MATCH($W186,$W$51:$W$57,0),MATCH(AH$185,$X$50:$AU$50,0)), IF($V186=$V$59,INDEX($X$59:$AU$66,MATCH($W186,$W$59:$W$66,0),MATCH(AH$185,$X$50:$AU$50,0)), INDEX($X$68:$AU75,MATCH($W186,$W$68:$W$75,0),MATCH(AH$185,$X$50:$AU$50,0)))) -> 226992.5621 | AI186: =IF($V186="Historical Data",INDEX($X$51:$AU$57,MATCH($W186,$W$51:$W$57,0),MATCH(AI$185,$X$50:$AU$50,0)), IF($V186=$V$59,INDEX($X$59:$AU$66,MATCH($W186,$W$59:$W$66,0),MATCH(AI$185,$X$50:$AU$50,0)), INDEX($X$68:$AU75,MATCH($W186,$W$68:$W$75,0),MATCH(AI$185,$X$50:$AU$50,0)))) -> 0 | AJ186: =IF($V186="Historical Data",INDEX($X$51:$AU$57,MATCH($W186,$W$51:$W$57,0),MATCH(AJ$185,$X$50:$AU$50,0)), IF($V186=$V$59,INDEX($X$59:$AU$66,MATCH($W186,$W$59:$W$66,0),MATCH(AJ$185,$X$50:$AU$50,0)), INDEX($X$68:$AU75,MATCH($W186,$W$68:$W$75,0),MATCH(AJ$185,$X$50:$AU$50,0)))) -> 32670.42415 | AK186: =IF($V186="Historical Data",INDEX($X$51:$AU$57,MATCH($W186,$W$51:$W$57,0),MATCH(AK$185,$X$50:$AU$50,0)), IF($V186=$V$59,INDEX($X$59:$AU$66,MATCH($W186,$W$59:$W$66,0),MATCH(AK$185,$X$50:$AU$50,0)), INDEX($X$68:$AU75,MATCH($W186,$W$68:$W$75,0),MATCH(AK$185,$X$50:$AU$50,0)))) -> 3308.396 | AL186: =IF($V186="Historical Data",INDEX($X$51:$AU$57,MATCH($W186,$W$51:$W$57,0),MATCH(AL$185,$X$50:$AU$50,0)), IF($V186=$V$59,INDEX($X$59:$AU$66,MATCH($W186,$W$59:$W$66,0),MATCH(AL$185,$X$50:$AU$50,0)), INDEX($X$68:$AU75,MATCH($W186,$W$68:$W$75,0),MATCH(AL$185,$X$50:$AU$50,0)))) -> 11259.60109 | AM186: =IF($V186="Historical Data",INDEX($X$51:$AU$57,MATCH($W186,$W$51:$W$57,0),MATCH(AM$185,$X$50:$AU$50,0)), IF($V186=$V$59,INDEX($X$59:$AU$66,MATCH($W186,$W$59:$W$66,0),MATCH(AM$185,$X$50:$AU$50,0)), INDEX($X$68:$AU75,MATCH($W186,$W$68:$W$75,0),MATCH(AM$185,$X$50:$AU$50,0)))) -> 15825.807 | AN186: =IF($V186="Historical Data",INDEX($X$51:$AU$57,MATCH($W186,$W$51:$W$57,0),MATCH(AN$185,$X$50:$AU$50,0)), IF($V186=$V$59,INDEX($X$59:$AU$66,MATCH($W186,$W$59:$W$66,0),MATCH(AN$185,$X$50:$AU$50,0)), INDEX($X$68:$AU75,MATCH($W186,$W$68:$W$75,0),MATCH(AN$185,$X$50:$AU$50,0)))) -> 47611.39765 | AO186: =IF($V186="Historical Data",INDEX($X$51:$AU$57,MATCH($W186,$W$51:$W$57,0),MATCH(AO$185,$X$50:$AU$50,0)), IF($V186=$V$59,INDEX($X$59:$AU$66,MATCH($W186,$W$59:$W$66,0),MATCH(AO$185,$X$50:$AU$50,0)), INDEX($X$68:$AU75,MATCH($W186,$W$68:$W$75,0),MATCH(AO$185,$X$50:$AU$50,0)))) -> 746.714401 | AP186: =IF($V186="Historical Data",INDEX($X$51:$AU$57,MATCH($W186,$W$51:$W$57,0),MATCH(AP$185,$X$50:$AU$50,0)), IF($V186=$V$59,INDEX($X$59:$AU$66,MATCH($W186,$W$59:$W$66,0),MATCH(AP$185,$X$50:$AU$50,0)), INDEX($X$68:$AU75,MATCH($W186,$W$68:$W$75,0),MATCH(AP$185,$X$50:$AU$50,0)))) -> 0 | AQ186: =IF($V186="Historical Data",INDEX($X$51:$AU$57,MATCH($W186,$W$51:$W$57,0),MATCH(AQ$185,$X$50:$AU$50,0)), IF($V186=$V$59,INDEX($X$59:$AU$66,MATCH($W186,$W$59:$W$66,0),MATCH(AQ$185,$X$50:$AU$50,0)), INDEX($X$68:$AU75,MATCH($W186,$W$68:$W$75,0),MATCH(AQ$185,$X$50:$AU$50,0)))) -> 1052.742 | AR186: =IF($V186="Historical Data",INDEX($X$51:$AU$57,MATCH($W186,$W$51:$W$57,0),MATCH(AR$185,$X$50:$AU$50,0)), IF($V186=$V$59,INDEX($X$59:$AU$66,MATCH($W186,$W$59:$W$66,0),MATCH(AR$185,$X$50:$AU$50,0)), INDEX($X$68:$AU75,MATCH($W186,$W$68:$W$75,0),MATCH(AR$185,$X$50:$AU$50,0)))) -> 0 | AS186: =IF($V186="Historical Data",INDEX($X$51:$AU$57,MATCH($W186,$W$51:$W$57,0),MATCH(AS$185,$X$50:$AU$50,0)), IF($V186=$V$59,INDEX($X$59:$AU$66,MATCH($W186,$W$59:$W$66,0),MATCH(AS$185,$X$50:$AU$50,0)), INDEX($X$68:$AU75,MATCH($W186,$W$68:$W$75,0),MATCH(AS$185,$X$50:$AU$50,0)))) -> 0 | AT186: =IF($V186="Historical Data",INDEX($X$51:$AU$57,MATCH($W186,$W$51:$W$57,0),MATCH(AT$185,$X$50:$AU$50,0)), IF($V186=$V$59,INDEX($X$59:$AU$66,MATCH($W186,$W$59:$W$66,0),MATCH(AT$185,$X$50:$AU$50,0)), INDEX($X$68:$AU75,MATCH($W186,$W$68:$W$75,0),MATCH(AT$185,$X$50:$AU$50,0)))) -> 0 | AU186: =IF($V186="Historical Data",INDEX($X$51:$AU$57,MATCH($W186,$W$51:$W$57,0),MATCH(AU$185,$X$50:$AU$50,0)), IF($V186=$V$59,INDEX($X$59:$AU$66,MATCH($W186,$W$59:$W$66,0),MATCH(AU$185,$X$50:$AU$50,0)), INDEX($X$68:$AU75,MATCH($W186,$W$68:$W$75,0),MATCH(AU$185,$X$50:$AU$50,0)))) -> 0
U187: =U186+1 -> 2 | V187: =AN39 -> Nov 2018 Updated Ref Case | W187: =AN40 -> 2023 | X187: =IF($V187="Historical Data",INDEX($X$51:$AU$57,MATCH($W187,$W$51:$W$57,0),MATCH(X$185,$X$50:$AU$50,0)), IF($V187=$V$59,INDEX($X$59:$AU$66,MATCH($W187,$W$59:$W$66,0),MATCH(X$185,$X$50:$AU$50,0)), INDEX($X$68:$AU$75,MATCH($W187,$W$68:$W$75,0),MATCH(X$185,$X$50:$AU$50,0)))) -> 4127758.359 | Y187: 313008.4137 | Z187: 651533.662 | AA187: 26217.81979 | AB187: 3236.641323 | AC187: 910210.0815 | AD187: 4289.456636 | AE187: 1563261.614 | AF187: 30217.29091 | AG187: 60429.1026 | AH187: 398430.7398 | AI187: 122.4206396 | AJ187: 115655.9865 | AK187: 3101.782437 | AL187: 11425.84969 | AM187: 20022.25177 | AN187: 2145.339678 | AO187: 0 | AP187: 6339.612 | AQ187: 8110.294068 | AR187: =IF($V187="Historical Data",INDEX($X$51:$AU$57,MATCH($W187,$W$51:$W$57,0),MATCH(AR$185,$X$50:$AU$50,0)), IF($V187=$V$59,INDEX($X$59:$AU$66,MATCH($W187,$W$59:$W$66,0),MATCH(AR$185,$X$50:$AU$50,0)), INDEX($X$68:$AU$75,MATCH($W187,$W$68:$W$75,0),MATCH(AR$185,$X$50:$AU$50,0)))) -> 0 | AS187: =IF($V187="Historical Data",INDEX($X$51:$AU$57,MATCH($W187,$W$51:$W$57,0),MATCH(AS$185,$X$50:$AU$50,0)), IF($V187=$V$59,INDEX($X$59:$AU$66,MATCH($W187,$W$59:$W$66,0),MATCH(AS$185,$X$50:$AU$50,0)), INDEX($X$68:$AU$75,MATCH($W187,$W$68:$W$75,0),MATCH(AS$185,$X$50:$AU$50,0)))) -> 0 | AT187: =IF($V187="Historical Data",INDEX($X$51:$AU$57,MATCH($W187,$W$51:$W$57,0),MATCH(AT$185,$X$50:$AU$50,0)), IF($V187=$V$59,INDEX($X$59:$AU$66,MATCH($W187,$W$59:$W$66,0),MATCH(AT$185,$X$50:$AU$50,0)), INDEX($X$68:$AU$75,MATCH($W187,$W$68:$W$75,0),MATCH(AT$185,$X$50:$AU$50,0)))) -> 0 | AU187: =IF($V187="Historical Data",INDEX($X$51:$AU$57,MATCH($W187,$W$51:$W$57,0),MATCH(AU$185,$X$50:$AU$50,0)), IF($V187=$V$59,INDEX($X$59:$AU$66,MATCH($W187,$W$59:$W$66,0),MATCH(AU$185,$X$50:$AU$50,0)), INDEX($X$68:$AU$75,MATCH($W187,$W$68:$W$75,0),MATCH(AU$185,$X$50:$AU$50,0)))) -> 0
U188: =U187+1 -> 3
U189: 4
U190: 5 | X190: All Units | Y190: Coal | Z190: Combined Cycle | AA190: CT, O/G Steam, Other Fossil | AB190: Nuclear | AC190: Other | AD190: All Renewables | AE190: Coal w/CCS | AF190: NGCC w/CCS | AG190: All Fossil | AH190: All Non-Fossil | AI190: All Renewables Except Hydro | AJ190: All CCS
U191: 6 | V191: =AN36 -> Historical Data | W191: =AN37 -> 2016 | X191: =X186 -> 4001922.935 | Y191: =AC186+AD186 -> 1304264.046 | Z191: =AE186 -> 1074863.812 | AA191: =AF186+AB186+AG186 -> 199941.9962 | AB191: =Z186 -> 805693.948 | AC191: =AA186+AP186+AO186+AQ186 -> 10145.68483 | AD191: =Y186+AH186+AJ186+AI186+AM186+AK186+AL186+AN186 -> 605630.8021 | AE191: =AR186+AS186+AT186 -> 0 | AF191: =AU186 -> 0 | AG191: =Y191+Z191+AA191 -> 2579069.854 | AH191: =X191-AG191 -> 1422853.081 | AI191: =AH186+AJ186+AI186+AM186+AK186+AL186+AN186 -> 337668.188 | AJ191: =AE191+AF191 -> 0
U192: 7 | V192: =AN39 -> Nov 2018 Updated Ref Case | W192: =AN40 -> 2023 | X192: =X187 -> 4127758.359 | Y192: =AC187+AD187 -> 914499.5381 | Z192: =AE187 -> 1563261.614 | AA192: =AF187+AB187+AG187 -> 93883.03483 | AB192: =Z187 -> 651533.662 | AC192: =AA187+AP187+AO187+AQ187 -> 40667.72586 | AD192: =Y187+AH187+AJ187+AI187+AM187+AK187+AL187+AN187 -> 863912.7842 | AE192: =AR187+AS187+AT187 -> 0 | AF192: =AU187 -> 0 | AG192: =Y192+Z192+AA192 -> 2571644.187 | AH192: =X192-AG192 -> 1556114.172 | AI192: =AH187+AJ187+AI187+AM187+AK187+AL187+AN187 -> 550904.3706 | AJ192: =AE192+AF192 -> 0
U193: 8
U194: 9 | X194: All Other Units | Y194: =AH39 -> *All Renewables Except Hydro
U195: 10 | V195: =AN36 -> Historical Data | W195: =AN37 -> 2016 | X195: =X191-Y195 -> 4001922.935 | Y195: =IF($AH$38<>"Highlight Single",0, IF($AA$151=1,HLOOKUP($AA$152,$X$185:$AU$187,2,0), HLOOKUP($AA$152,$X$190:$AJ$192,2, 0))) -> 0
U196: 11 | V196: =AN39 -> Nov 2018 Updated Ref Case | W196: =AN40 -> 2023 | X196: =X192-Y196 -> 4127758.359 | Y196: =IF($AH$38<>"Highlight Single",0, IF($AA$151=1,HLOOKUP($AA$152,$X$185:$AU$187,3,0), HLOOKUP($AA$152,$X$190:$AJ$192,3, 0))) -> 0
AD197: Hydro
V198: 2021 | AD198: Nuclear
V199: 2023 | AD199: Non-Fossil Other
V200: 2025 | AD200: Fossil Other
V201: 2030 | AD201: Coal Steam
V202: 2035 | AD202: IGCC
V203: 2040 | AD203: Combined Cycle
V204: 2045 | AD204: Combustion Turbine
V205: 2050 | AD205: O/G Steam
AD206: Wind
AD207: Offshore Wind
AD208: Solar PV
AD209: Solar Thermal
AD210: Landfill Gas
AD211: Geothermal
AD212: Biomass
AD213: Fuel Cell
AD214: International Imports
AD215: Pumped Storage

Sheet All Run Comparison
F3: =IF($B$20="Actual",VLOOKUP(B18,$A$127:$B$137,2,0), IF($B$20="Absolute Change",IF(VLOOKUP(B18,$A$127:$B$137,2,0)=VLOOKUP(B35,$A$127:$B$137,2,0),"Change in "&VLOOKUP(B18,$A$127:$B$137,2,0),"Unit of Measure Mismatch"), IF($B$20="Percent Change",IF(B18=B35,"Percent Change of "&VLOOKUP(B18,$A$127:$B$137,2,0),"Unit of Measure Mismatch"), IF($B$20="Emissions Rate",IF(AND(NOT(ISERROR(SEARCH("tons",$B$18))),OR(NOT(ISERROR(SEARCH("GWh",$B$35))),NOT(ISERROR(SEARCH("TBtu",$B$35))))),IF(ISERROR(SEARCH("Summer",$B$18))<>ISERROR(SEARCH("Summer",$B$35)),"Unit of Measure Mismatch","lbs "&LEFT($B$18,3)&"/"&IF(RIGHT($B$35,4)="TBtu","mmBtu","kWh")),"Unit of Measure Mismatch"), IF($B$20="Fraction",IF(B18=B35,"Dimensionless Fraction or Ratio",VLOOKUP(B18,$A$127:$B$137,2,0)&" / "&VLOOKUP(B35,$A$127:$B$137,2,0)), IF(AND($B$20="Capacity Factor",NOT(ISERROR(SEARCH("Generation",$B$18))),NOT(ISERROR(SEARCH("Capacity",$B$35)))),"Capacity Factor","ERROR")))))) -> Thousand (short) tons NOx
A4: PRIMARY CASE | B4: All Runs (up to 8)
A5: PRIMARY YEAR | B5: All Years
A7: Regional Aggregation | B7: National | C7: =IF(B7="State","RPE_State","RPE_RegionGroupAcronym") -> RPE_RegionGroupAcronym
B8: AL
A10: PRIMARY DIMENSIONS
A11: Fuel Type | B11: All Units | C11: RPE_FuelType
A12: Fossil >25 MW | B12: All Units | C12: RPE_Fossil25MW
A13: Existing/New/Retired | B13: Existing and New | C13: RPE_ExistingorNewUnit
A14: Plant Type | B14: All Units | C14: RPE_PlantType
A15: Plant Category | B15: All Units | C15: RPE_PlantCategory
A16: Plant Controls | B16: All Units | C16: =MATCH(B16,Controls,0) -> 1
A17: Existing or New Controls | B17: All Controls
A18: PRIMARY MEASURE | B18: NOX Emissions Summer Thousand Tons | C18: =VLOOKUP(B18,'Lookup tables'!$AD$5:$AF$68,3,0) -> RPE_NOXEmissionsSummerThousandTons
A20: DISPLAY VALUE TYPE | B20: Actual
A23: COMPARISON CASE | B23: Self
A25: COMPARISON YEAR | B25: Parallel
A27: COMPARISON DIMENSIONS
A28: Fuel Type | B28: All Units | C28: RPE_FuelType
A29: Fossil >25 MW | B29: All Units | C29: RPE_Fossil25MW
A30: Existing/New/Retired | B30: Existing and New | C30: RPE_ExistingorNewUnit
A31: Plant Type | B31: All Units | C31: RPE_PlantType
A32: Plant Category | B32: All Units | C32: RPE_PlantCategory
A33: Plant Controls | B33: All Units | C33: =IF(B20="actual",0,MATCH(B33,Controls,0)) -> 0 | E33: Case | F33: =TRANSPOSE(G59:G67) -> Historic | G33: Nov 2018 Updated Ref Case
A34: Existing or New Controls | B34: All Controls | E34: Show/ Hide? | F34: Show | G34: Show | H34: Show | I34: Show | J34: Show | K34: Show | L34: Show | M34: Show | N34: Show
A35: COMPARISON MEASURE | B35: NOX Emissions Summer Thousand Tons | C35: =VLOOKUP(B35,'Lookup tables'!$AD$5:$AF$68,3,0) -> RPE_NOXEmissionsSummerThousandTons | E35: Color
E38: *Historical data is still under development. It is approximate and may not always provide an apples-to-apples comparison to IPM outputs. See READ ME worksheet for more info.
A45: ***You must click the update button to update the charts
F58: PRIMARY | H58: 2011 | I58: 2012 | J58: 2013 | K58: 2014 | L58: 2015 | M58: 2016 | N58: 2017 | O58: 2021 | P58: 2023 | Q58: 2025 | R58: 2030 | S58: 2035 | T58: 2040 | U58: 2045 | V58: 2050
G59: Historic | H59: =IF($G59="","",SUMIFS(CHOOSE(VLOOKUP($B$18,$A$113:$B$123,2,0), RPE_FuelConsumptionSummerTBtu, RPE_FuelConsumptionTotalTBtu, RPE_GenerationSummerGWh, RPE_GenerationTotalGWh, RPE_CO2EmissionsSummerThousandTons, RPE_CO2EmissionsTotalThousandTons, RPE_NOXEmissionsSummerThousandTons, RPE_NOXEmissionsTotalThousandTons, RPE_SO2EmissionsSummerThousandTons, RPE_SO2EmissionsTotalThousandTons, RPE_DispatchableCapacityMW),MeetPrimaryCriteriaSeries3,"=1",RPE_Run,"="&$G59,RPE_Year,"="&H$58)) -> 889.328866 | I59: 787.465973 | J59: 750.297464 | K59: 695.621109 | L59: 616.796237 | M59: 554.076195 | N59: 465.417063
G60: =IF(Map!R4="","",Map!R4) -> Nov 2018 Updated Ref Case | O60: =IF($G60="","",SUMIFS(CHOOSE(VLOOKUP($B$18,$A$113:$B$123,2,0), RPE_FuelConsumptionSummerTBtu, RPE_FuelConsumptionTotalTBtu, RPE_GenerationSummerGWh, RPE_GenerationTotalGWh, RPE_CO2EmissionsSummerThousandTons, RPE_CO2EmissionsTotalThousandTons, RPE_NOXEmissionsSummerThousandTons, RPE_NOXEmissionsTotalThousandTons, RPE_SO2EmissionsSummerThousandTons, RPE_SO2EmissionsTotalThousandTons, RPE_DispatchableCapacityMW),MeetPrimaryCriteriaSeries3,"=1",RPE_Run,"="&$G60,RPE_Year,"="&O$58)) -> 380.3532233 | P60: 388.9852875 | Q60: 386.6925286 | R60: 384.7420552 | S60: 374.3367152 | T60: 372.8446171 | U60: 364.41649 | V60: 337.6998018
G61: =IF(Map!R5="","",Map!R5) -> 
G62: =IF(Map!R6="","",Map!R6) -> 
G63: =IF(Map!R7="","",Map!R7) -> 
G64: =IF(Map!R8="","",Map!R8) ->  | O64: =IF($G64="","",CHOOSE(VLOOKUP($B$18,$A$113:$B$123,2,0), SUMIFS(RPE_FuelConsumptionSummerTBtu,MeetPrimaryCriteriaSeries3,"=1",RPE_Run,"="&$G64,RPE_Year,"="&O$58), SUMIFS(RPE_FuelConsumptionTotalTBtu,MeetPrimaryCriteriaSeries3,"=1",RPE_Run,"="&$G64,RPE_Year,"="&O$58), SUMIFS(RPE_GenerationSummerGWh,MeetPrimaryCriteriaSeries3,"=1",RPE_Run,"="&$G64,RPE_Year,"="&O$58), SUMIFS(RPE_GenerationTotalGWh,MeetPrimaryCriteriaSeries3,"=1",RPE_Run,"="&$G64,RPE_Year,"="&O$58), SUMIFS(RPE_CO2EmissionsSummerThousandTons,MeetPrimaryCriteriaSeries3,"=1",RPE_Run,"="&$G64,RPE_Year,"="&O$58), SUMIFS(RPE_CO2EmissionsTotalThousandTons,MeetPrimaryCriteriaSeries3,"=1",RPE_Run,"="&$G64,RPE_Year,"="&O$58), SUMIFS(RPE_NOXEmissionsSummerThousandTons,MeetPrimaryCriteriaSeries3,"=1",RPE_Run,"="&$G64,RPE_Year,"="&O$58), SUMIFS(RPE_NOXEmissionsTotalThousandTons,MeetPrimaryCriteriaSeries3,"=1",RPE_Run,"="&$G64,RPE_Year,"="&O$58), SUMIFS(RPE_SO2EmissionsSummerThousandTons,MeetPrimaryCriteriaSeries3,"=1",RPE_Run,"="&$G64,RPE_Year,"="&O$58), SUMIFS(RPE_SO2EmissionsTotalThousandTons,MeetPrimaryCriteriaSeries3,"=1",RPE_Run,"="&$G64,RPE_Year,"="&O$58), SUMIFS(RPE_DispatchableCapacityMW,MeetPrimaryCriteriaSeries3,"=1",RPE_Run,"="&$G64,RPE_Year,"="&O$58))) -> 
G65: =IF(Map!R9="","",Map!R9) -> 
G66: =IF(Map!R10="","",Map!R10) -> 
G67: =IF(Map!R11="","",Map!R11) -> 
G68: =IF(Map!R12="","",Map!R12) -> 
G69: =IF(Map!R13="","",Map!R13) -> 
B70: Comparison Run List
B71: Self | F71: COMPARISON | H71: 2011 | I71: 2012 | J71: 2013 | K71: 2014 | L71: 2015 | M71: 2016 | N71: 2017 | O71: 2021 | P71: 2023 | Q71: 2025 | R71: 2030 | S71: 2035 | T71: 2040 | U71: 2045 | V71: 2050
B72: =G72 -> Historic | G72: =G59 -> Historic | H72: =IF($G72="","",SUMIFS(CHOOSE(VLOOKUP($B$35,$A$113:$B$123,2,0), RPE_FuelConsumptionSummerTBtu, RPE_FuelConsumptionTotalTBtu, RPE_GenerationSummerGWh, RPE_GenerationTotalGWh, RPE_CO2EmissionsSummerThousandTons, RPE_CO2EmissionsTotalThousandTons, RPE_NOXEmissionsSummerThousandTons, RPE_NOXEmissionsTotalThousandTons, RPE_SO2EmissionsSummerThousandTons, RPE_SO2EmissionsTotalThousandTons, RPE_DispatchableCapacityMW),MeetComparisonCriteriaSeries3,"=1",RPE_Run,"="&IF($B$23="self",$G72,$B$23),RPE_Year,"="&IF($B$25="Parallel",H$71,$B$25))) -> 0 | I72: 0 | J72: 0 | K72: 0 | L72: 0 | M72: 0 | N72: 0
B73: =G73 -> Nov 2018 Updated Ref Case | G73: =G60 -> Nov 2018 Updated Ref Case | O73: =IF($G73="","",SUMIFS(CHOOSE(VLOOKUP($B$35,$A$113:$B$123,2,0), RPE_FuelConsumptionSummerTBtu, RPE_FuelConsumptionTotalTBtu, RPE_GenerationSummerGWh, RPE_GenerationTotalGWh, RPE_CO2EmissionsSummerThousandTons, RPE_CO2EmissionsTotalThousandTons, RPE_NOXEmissionsSummerThousandTons, RPE_NOXEmissionsTotalThousandTons, RPE_SO2EmissionsSummerThousandTons, RPE_SO2EmissionsTotalThousandTons, RPE_DispatchableCapacityMW),MeetComparisonCriteriaSeries3,"=1",RPE_Run,"="&IF($B$23="Self",$G73,$B$23),RPE_Year,"="&IF($B$25="Parallel",O$71,$B$25))) -> 0 | P73: =IF($G73="","",SUMIFS(CHOOSE(VLOOKUP($B$35,$A$113:$B$123,2,0), RPE_FuelConsumptionSummerTBtu, RPE_FuelConsumptionTotalTBtu, RPE_GenerationSummerGWh, RPE_GenerationTotalGWh, RPE_CO2EmissionsSummerThousandTons, RPE_CO2EmissionsTotalThousandTons, RPE_NOXEmissionsSummerThousandTons, RPE_NOXEmissionsTotalThousandTons, RPE_SO2EmissionsSummerThousandTons, RPE_SO2EmissionsTotalThousandTons, RPE_DispatchableCapacityMW),MeetComparisonCriteriaSeries3,"=1",RPE_Run,"="&IF($B$23="self",$G73,$B$23),RPE_Year,"="&IF($B$25="Parallel",P$71,$B$25))) -> 0 | Q73: 0 | R73: 0 | S73: 0 | T73: 0 | U73: 0 | V73: 0
O81: =IF($G81="","",SUMIFS(CHOOSE(VLOOKUP($B$35,$A$113:$B$123,2,0), RPE_FuelConsumptionSummerTBtu, RPE_FuelConsumptionTotalTBtu, RPE_GenerationSummerGWh, RPE_GenerationTotalGWh, RPE_CO2EmissionsSummerThousandTons, RPE_CO2EmissionsTotalThousandTons, RPE_NOXEmissionsSummerThousandTons, RPE_NOXEmissionsTotalThousandTons, RPE_SO2EmissionsSummerThousandTons, RPE_SO2EmissionsTotalThousandTons, RPE_DispatchableCapacityMW),MeetComparisonCriteriaSeries3,"=1",RPE_Run,"="&$G81,RPE_Year,"="&O$71)) -> 
A84: Historic Year List | B84: Run Year List | F84: DISPLAY | H84: 2011 | I84: 2012 | J84: 2013 | K84: 2014 | L84: 2015 | M84: 2016 | N84: 2017 | O84: 2021 | P84: 2023 | Q84: 2025 | R84: 2030 | S84: 2035 | T84: 2040 | U84: 2045 | V84: 2050
A85: 2011 | B85: Parallel | E85: =IF(OR($B$7="IPM Region",AND($B$25="Parallel",OR($B$20="Absolute Change",$B$20="Percent Change"))),"Hide","Show") -> Show | F85: =G72 -> Historic | G85: =IF(E85="Hide","",F85) -> Historic | H85: =IF($E85="Hide",NA(),IFERROR(IF($B$20="Actual",H59,IF(AND(OR($B$20="Absolute Change",$B$20="Percent Change"),$B$25="Parallel"),"",IF($B$20="Absolute Change",H59-H72,IF($B$20="Percent Change",(H59-H72)/H72,IF($B$20="Emissions Rate",(H59*2/H72)/IF(LEFT($B$18,3)="CO2",1.10231,1),IF($B$20="Capacity Factor",H59*1000/(H72*IF(NOT(ISERROR(SEARCH("Summer",$B$18))),3672,8760)),H59/H72)))))),0)) -> 889.328866 | I85: 787.465973 | J85: 750.297464 | K85: 695.621109 | L85: 616.796237 | M85: 554.076195 | N85: =IF(OR(ISERROR(SEARCH("Emissions",$B$18)>0),$B$20="Emissions Rate"),NA(), IF($E85="Hide",NA(),IFERROR(IF($B$20="Actual",N59,IF(AND(OR($B$20="Absolute Change",$B$20="Percent Change"),$B$25="Parallel"),"",IF($B$20="Absolute Change",N59-N72,IF($B$20="Percent Change",(N59-N72)/N72,IF($B$20="Emissions Rate",(N59*2/N72)/IF(LEFT($B$18,3)="CO2",1.10231,1),IF($B$20="Capacity Factor",N59*1000/(N72*IF(NOT(ISERROR(SEARCH("Summer",$B$18))),3672,8760)),N59/N72)))))),0))) -> 465.417063
A86: 2012 | B86: 2021 | F86: Nov 2018 Updated Ref Case | G86: =F86 -> Nov 2018 Updated Ref Case | O86: =IF($F86="","",IFERROR(IF($B$20="Actual",O60,IF($B$20="Absolute Change",O60-O73,IF($B$20="Percent Change",(O60-O73)/O73,IF($B$20="Emissions Rate",(O60*2/O73)/IF(LEFT($B$18,3)="CO2",1.10231,1),IF($B$20="Capacity Factor",O60*1000/(O73*IF(NOT(ISERROR(SEARCH("Summer",$B$18))),3672,8760)),O60/O73))))),0)) -> 380.3532233 | P86: 388.9852875 | Q86: 386.6925286 | R86: 384.7420552 | S86: 374.3367152 | T86: 372.8446171 | U86: 364.41649 | V86: 337.6998018
A87: 2013 | B87: 2023 | G87: =F87 -> 
A88: 2014 | B88: 2025
A89: 2015 | B89: 2030
A90: 2016 | B90: 2035
A91: 2017 | B91: 2040
A92: 2005 | B92: 2045
B93: 2050
M97: =IF(OR(ISERROR(SEARCH("Emissions",$B$18)>0),$B$20="Emissions Rate"),NA(),1)
A100: Show
A101: Hide
A113: Fuel Consumption Summer TBtu | B113: 1
A114: Fuel Consumption Total TBtu | B114: 2
A115: Generation Summer GWh | B115: 3
A116: Generation Total GWh | B116: 4
A117: CO2 Emissions Summer Thousand Tons | B117: 5
A118: CO2 Emissions Total Thousand Tons | B118: 6
A119: NOX Emissions Summer Thousand Tons | B119: 7
A120: NOX Emissions Total Thousand Tons | B120: 8
A121: SO2 Emissions Summer Thousand Tons | B121: 9
A122: SO2 Emissions Total Thousand Tons | B122: 10
A123: Dispatchable Capacity MW | B123: 11
A127: Fuel Consumption Summer TBtu | B127: TBtu
A128: Fuel Consumption Total TBtu | B128: TBtu
A129: Generation Summer GWh | B129: GWh
A130: Generation Total GWh | B130: GWh
A131: CO2 Emissions Summer Thousand Tons | B131: Thousand (short) tons CO2
A132: CO2 Emissions Total Thousand Tons | B132: Thousand (short) tons CO2
A133: NOX Emissions Summer Thousand Tons | B133: Thousand (short) tons NOx
A134: NOX Emissions Total Thousand Tons | B134: Thousand (short) tons NOx
A135: SO2 Emissions Summer Thousand Tons | B135: Thousand (short) tons SO2
A136: SO2 Emissions Total Thousand Tons | B136: Thousand (short) tons SO2
A137: Dispatchable Capacity MW | B137: MW

Sheet Whisker
I1: Data Point 1 | P1: Data Point 2
B2: Point 1 | E2: Point 2 (Optional) | I2: =IF($B$20="Actual",VLOOKUP(B18,$A$56:$B$66,2,0), IF($B$20="Absolute Change",IF(VLOOKUP(B18,$A$56:$B$66,2,0)=VLOOKUP(B35,$A$56:$B$66,2,0),"Change in "&VLOOKUP(B18,$A$56:$B$66,2,0),"Unit of Measure Mismatch"), IF($B$20="Percent Change",IF(B18=B35,"Percent Change of "&VLOOKUP(B18,$A$56:$B$66,2,0),"Unit of Measure Mismatch"), IF($B$20="Emissions Rate",IF(AND(NOT(ISERROR(SEARCH("tons",$B$18))),OR(NOT(ISERROR(SEARCH("GWh",$B$35))),NOT(ISERROR(SEARCH("TBtu",$B$35))))),IF(ISERROR(SEARCH("Summer",$B$18))<>ISERROR(SEARCH("Summer",$B$35)),"Unit of Measure Mismatch","lbs "&LEFT($B$18,3)&"/"&IF(RIGHT($B$35,4)="TBtu","mmBtu","kWh")),"Unit of Measure Mismatch"), IF($B$20="Fraction",IF(B18=B35,"Dimensionless Fraction or Ratio",VLOOKUP(B18,$A$56:$B$66,2,0)&" / "&VLOOKUP(B35,$A$56:$B$66,2,0)), IF(AND($B$20="Capacity Factor",NOT(ISERROR(SEARCH("Generation",$B$18))),NOT(ISERROR(SEARCH("Capacity",$B$35)))),"Capacity Factor","ERROR")))))) -> Thousand (short) tons NOx | P2: =IF(E3="Off","[Data Point Off]",IF($E$20="Actual",VLOOKUP(E18,$A$56:$B$66,2,0), IF($E$20="Absolute Change",IF(VLOOKUP(E18,$A$56:$B$66,2,0)=VLOOKUP(E35,$A$56:$B$66,2,0),"Change in "&VLOOKUP(E18,$A$56:$B$66,2,0),"Unit of Measure Mismatch"), IF($E$20="Percent Change",IF(E18=E35,"Percent Change of "&VLOOKUP(E18,$A$56:$B$66,2,0),"Unit of Measure Mismatch"), IF($E$20="Emissions Rate",IF(AND(NOT(ISERROR(SEARCH("tons",$E$18))),OR(NOT(ISERROR(SEARCH("GWh",$E$35))),NOT(ISERROR(SEARCH("TBtu",$E$35))))),IF(ISERROR(SEARCH("Summer",$E$18))<>ISERROR(SEARCH("Summer",$E$35)),"Unit of Measure Mismatch","lbs "&LEFT($E$18,3)&"/"&IF(RIGHT($E$35,4)="TBtu","mmBtu","kWh")),"Unit of Measure Mismatch"), IF($E$20="Fraction",IF(E18=E35,"Dimensionless Fraction or Ratio",VLOOKUP(E18,$A$56:$B$66,2,0)&" / "&VLOOKUP(E35,$A$56:$B$66,2,0)), IF(AND($E$20="Capacity Factor",NOT(ISERROR(SEARCH("Generation",$E$18))),NOT(ISERROR(SEARCH("Capacity",$E$35)))),"Capacity Factor","ERROR"))))))) -> [Data Point Off]
E3: Off
A4: PRIMARY RUN | B4: Nov 2018 Updated Ref Case | E4: Nov 2018 Updated Ref Case
A6: PRIMARY YEAR | B6: 2021 | E6: 2021
A8: Regional Aggregation | B8: State | C8: =IF(B8="State","RPE_State","RPE_RegionGroupAcronym") -> RPE_State | E8: State | F8: =IF(E8="State","RPE_State","RPE_RegionGroupAcronym") -> RPE_State
A10: PRIMARY DIMENSIONS
A11: Fuel Type | B11: All Units | C11: RPE_FuelType | E11: All Units | F11: RPE_FuelType
A12: Fossil >25 MW | B12: All Units | C12: RPE_Fossil25MW | E12: All Units | F12: RPE_Fossil25MW
A13: Existing/New/Retired | B13: Existing and New | C13: RPE_ExistingorNewUnit | E13: Existing and New | F13: RPE_ExistingorNewUnit
A14: Plant Type | B14: All Units | C14: RPE_PlantType | E14: All Units | F14: RPE_PlantType
A15: Plant Category | B15: All Units | C15: RPE_PlantCategory | E15: All Units | F15: RPE_PlantCategory
A16: Plant Controls | B16: All Units | C16: =MATCH(B16,Controls,0) -> 1 | E16: All Units | F16: =IF(E3="Off",0,MATCH(E16,Controls,0)) -> 0
A17: Existing or New Controls | B17: All Controls | E17: All Controls
A18: PRIMARY MEASURE | B18: NOX Emissions Summer Thousand Tons | C18: =VLOOKUP(B18,'Lookup tables'!$AD$5:$AF$68,3,0) -> RPE_NOXEmissionsSummerThousandTons | E18: NOX Emissions Summer Thousand Tons | F18: =VLOOKUP(E18,'Lookup tables'!$AD$5:$AF$68,3,0) -> RPE_NOXEmissionsSummerThousandTons
A20: DISPLAY VALUE TYPE | B20: Actual | E20: Actual
A21: SORT BY | B21: Ascending
A23: COMPARISON RUN | B23: Nov 2018 Updated Ref Case | E23: Nov 2018 Updated Ref Case
A25: COMPARISON YEAR | B25: 2021 | E25: 2021
A27: COMPARISON DIMENSIONS
A28: Fuel Type | B28: All Units | C28: RPE_FuelType | E28: All Units | F28: RPE_FuelType
A29: Fossil >25 MW | B29: All Units | C29: RPE_Fossil25MW | E29: All Units | F29: RPE_Fossil25MW
A30: Existing/New/Retired | B30: Existing and New | C30: RPE_ExistingorNewUnit | E30: Existing and New | F30: RPE_ExistingorNewUnit
A31: Plant Type | B31: All Units | C31: RPE_PlantType | E31: All Units | F31: RPE_PlantType
A32: Plant Category | B32: All Units | C32: RPE_PlantCategory | E32: All Units | F32: RPE_PlantCategory
A33: Plant Controls | B33: All Units | C33: =IF(B20="actual",0,MATCH(B33,Controls,0)) -> 0 | E33: All Units | F33: =IF(OR(E20="actual",E3="off"),0,MATCH(E33,Controls,0)) -> 0
A34: Existing or New Controls | B34: All Controls | E34: All Controls
A35: COMPARISON MEASURE | B35: NOX Emissions Summer Thousand Tons | C35: =VLOOKUP(B35,'Lookup tables'!$AD$5:$AF$68,3,0) -> RPE_NOXEmissionsSummerThousandTons | E35: NOX Emissions Summer Thousand Tons | F35: =VLOOKUP(E35,'Lookup tables'!$AD$5:$AF$68,3,0) -> RPE_NOXEmissionsSummerThousandTons
A37: POINT COLOR
B41: ***You must click the update button to update the chart
H48: *Historical data is still under development. It is approximate and may not always provide an apples-to-apples comparison to IPM outputs. See READ ME worksheet for more info.
Q52: Sort: | V52: show | W52: =MIN($U$56:$V$104) -> 0
Q53: =B21 -> Ascending | V53: =E3 -> Off | W53: =IF(W52<0,ROUNDUP(W52,0),ROUNDDOWN(W52,0)) -> 0
J54: Primary Value | K54: Comparison Value | L54: Display Value | M54: Primary Value | N54: Comparison Value | O54: Display Value | P54: Rank of Point 1 | Q54: Rank Tie Break | S54: Rank | T54: State | U54: Point 1 | V54: =IF(E3="Off","","Point 2") ->  | W54: Dummy
I55: National | J55: =SUM(J56:J119) -> 380.3532233 | K55: =SUM(K56:K119) -> 0 | L55: =IF(I55=0,"",IFERROR(IF($B$20="Actual",J55,IF($B$20="Absolute Change",J55-K55,IF($B$20="Percent Change",(J55-K55)/K55,IF($B$20="Emissions Rate",(J55*2/K55),IF($B$20="Capacity Factor",J55*1000/(K55*IF(NOT(ISERROR(SEARCH("Summer",$B$18))),3672,8760)),J55/K55))))),0)) -> 380.3532233 | M55: =SUM(M56:M119) -> 0 | N55: =SUM(N56:N119) -> 0 | O55: =IF(I55=0,"",IFERROR(IF($E$20="Actual",M55,IF($E$20="Absolute Change",M55-N55,IF($E$20="Percent Change",(M55-N55)/N55,IF($E$20="Emissions Rate",(M55*2/N55),IF($E$20="Capacity Factor",M55*1000/(N55*IF(NOT(ISERROR(SEARCH("Summer",$E$18))),3672,8760)),M55/N55))))),0)) -> 0
A56: Fuel Consumption Summer TBtu | B56: TBtu | I56: =IF($B$8="State",Map!P3,Map!O3) -> AL | J56: =IF(I56=0,"",SUMIFS(CHOOSE(VLOOKUP($B$18,'Lookup tables'!$AK$5:$AM$15,3,0), RPE_FuelConsumptionSummerTBtu, RPE_FuelConsumptionTotalTBtu, RPE_GenerationSummerGWh, RPE_GenerationTotalGWh, RPE_CO2EmissionsSummerThousandTons, RPE_CO2EmissionsTotalThousandTons, RPE_NOXEmissionsSummerThousandTons, RPE_NOXEmissionsTotalThousandTons, RPE_SO2EmissionsSummerThousandTons, RPE_SO2EmissionsTotalThousandTons, RPE_DispatchableCapacityMW), MeetPrimaryCriteria2,"=1",IF($B$8="IPM Region",RPE_IPMRegionGroupAcronym,RPE_State),"="&IF($B$8="National","*",$I56))) -> 5.931693297 | K56: =IF(I56=0,"",IF($B$20="Actual",0,SUMIFS(CHOOSE(VLOOKUP($B$35,'Lookup tables'!$AK$5:$AM$15,3,0), RPE_FuelConsumptionSummerTBtu, RPE_FuelConsumptionTotalTBtu, RPE_GenerationSummerGWh, RPE_GenerationTotalGWh, RPE_CO2EmissionsSummerThousandTons, RPE_CO2EmissionsTotalThousandTons, RPE_NOXEmissionsSummerThousandTons, RPE_NOXEmissionsTotalThousandTons, RPE_SO2EmissionsSummerThousandTons, RPE_SO2EmissionsTotalThousandTons, RPE_DispatchableCapacityMW), MeetComparisonCriteria2,"=1",IF($B$8="IPM Region",RPE_IPMRegionGroupAcronym,RPE_State),"="&IF($B$8="National","*",$I56)))) -> 0 | L56: =IF(I56=0,"",IFERROR(IF($B$20="Actual",J56,IF($B$20="Absolute Change",J56-K56,IF($B$20="Percent Change",(J56-K56)/K56,IF($B$20="Emissions Rate",(J56*2/K56),IF($B$20="Capacity Factor",J56*1000/(K56*IF(NOT(ISERROR(SEARCH("Summer",$B$18))),3672,8760)),J56/K56))))),0)) -> 5.931693297 | M56: =IF(I56=0,"",SUMIFS(CHOOSE(VLOOKUP($E$18,'Lookup tables'!$AK$5:$AM$15,3,0), RPE_FuelConsumptionSummerTBtu, RPE_FuelConsumptionTotalTBtu, RPE_GenerationSummerGWh, RPE_GenerationTotalGWh, RPE_CO2EmissionsSummerThousandTons, RPE_CO2EmissionsTotalThousandTons, RPE_NOXEmissionsSummerThousandTons, RPE_NOXEmissionsTotalThousandTons, RPE_SO2EmissionsSummerThousandTons, RPE_SO2EmissionsTotalThousandTons, RPE_DispatchableCapacityMW), MeetPrimaryCriteria3,"=1",IF($E$8="IPM Region",RPE_IPMRegionGroupAcronym,RPE_State),"="&IF($E$8="National","*",$I56))) -> 0 | N56: =IF(I56=0,"",IF($E$20="Actual",0,SUMIFS(CHOOSE(VLOOKUP($E$35,'Lookup tables'!$AK$5:$AM$15,3,0), RPE_FuelConsumptionSummerTBtu, RPE_FuelConsumptionTotalTBtu, RPE_GenerationSummerGWh, RPE_GenerationTotalGWh, RPE_CO2EmissionsSummerThousandTons, RPE_CO2EmissionsTotalThousandTons, RPE_NOXEmissionsSummerThousandTons, RPE_NOXEmissionsTotalThousandTons, RPE_SO2EmissionsSummerThousandTons, RPE_SO2EmissionsTotalThousandTons, RPE_DispatchableCapacityMW), MeetComparisonCriteria3,"=1",IF($E$8="IPM Region",RPE_IPMRegionGroupAcronym,RPE_State),"="&IF($E$8="National","*",$I56)))) -> 0 | O56: =IF(I56=0,"",IFERROR(IF($E$20="Actual",M56,IF($E$20="Absolute Change",M56-N56,IF($E$20="Percent Change",(M56-N56)/N56,IF($E$20="Emissions Rate",(M56*2/N56),IF($E$20="Capacity Factor",M56*1000/(N56*IF(NOT(ISERROR(SEARCH("Summer",$E$18))),3672,8760)),M56/N56))))),0)) -> 0 | P56: =IF(OR(I56=" ",I56=0),"",(RANK(L56,IF($B$8="State",$L$56:$L$104,$L$56:$L$118))+ROW()*0.0000000001)) -> 27.00000001 | Q56: =IF(OR(I56=" ",I56=0),"",IF($Q$53="Alphabetical",99-(ROW()-6),RANK(P56,IF($B$8="State",$P$56:$P$104,$P$56:$P$118),IF($Q$53="Descending",0,1)))) -> 27 | S56: 1 | T56: =IF(S56="","",INDEX($I$56:$I$118,MATCH(S56,$Q$56:$Q$118,0),1)) -> TX | U56: =IF(S56="","",INDEX($L$56:$L$118,MATCH(S56,$Q$56:$Q$118,0),1)) -> 44.22571247 | V56: =IF(S56="","",IF($V$53="off",0,INDEX($O$56:$O$118,MATCH(S56,$Q$56:$Q$118,0),1))) -> 0 | W56: =$W$53 -> 0
A57: Fuel Consumption Total TBtu | B57: TBtu | I57: =IF($B$8="State",Map!P4,Map!O4) -> AR | J57: =IF(I57=0,"",SUMIFS(CHOOSE(VLOOKUP($B$18,'Lookup tables'!$AK$5:$AM$15,3,0), RPE_FuelConsumptionSummerTBtu, RPE_FuelConsumptionTotalTBtu, RPE_GenerationSummerGWh, RPE_GenerationTotalGWh, RPE_CO2EmissionsSummerThousandTons, RPE_CO2EmissionsTotalThousandTons, RPE_NOXEmissionsSummerThousandTons, RPE_NOXEmissionsTotalThousandTons, RPE_SO2EmissionsSummerThousandTons, RPE_SO2EmissionsTotalThousandTons, RPE_DispatchableCapacityMW), MeetPrimaryCriteria2,"=1",IF($B$8="IPM Region",RPE_IPMRegionGroupAcronym,RPE_State),"="&IF($B$8="National","*",$I57))) -> 10.26995561 | K57: =IF(I57=0,"",IF($B$20="Actual",0,SUMIFS(CHOOSE(VLOOKUP($B$35,'Lookup tables'!$AK$5:$AM$15,3,0), RPE_FuelConsumptionSummerTBtu, RPE_FuelConsumptionTotalTBtu, RPE_GenerationSummerGWh, RPE_GenerationTotalGWh, RPE_CO2EmissionsSummerThousandTons, RPE_CO2EmissionsTotalThousandTons, RPE_NOXEmissionsSummerThousandTons, RPE_NOXEmissionsTotalThousandTons, RPE_SO2EmissionsSummerThousandTons, RPE_SO2EmissionsTotalThousandTons, RPE_DispatchableCapacityMW), MeetComparisonCriteria2,"=1",IF($B$8="IPM Region",RPE_IPMRegionGroupAcronym,RPE_State),"="&IF($B$8="National","*",$I57)))) -> 0 | L57: =IF(I57=0,"",IFERROR(IF($B$20="Actual",J57,IF($B$20="Absolute Change",J57-K57,IF($B$20="Percent Change",(J57-K57)/K57,IF($B$20="Emissions Rate",(J57*2/K57),IF($B$20="Capacity Factor",J57*1000/(K57*IF(NOT(ISERROR(SEARCH("Summer",$B$18))),3672,8760)),J57/K57))))),0)) -> 10.26995561 | M57: =IF(I57=0,"",SUMIFS(CHOOSE(VLOOKUP($E$18,'Lookup tables'!$AK$5:$AM$15,3,0), RPE_FuelConsumptionSummerTBtu, RPE_FuelConsumptionTotalTBtu, RPE_GenerationSummerGWh, RPE_GenerationTotalGWh, RPE_CO2EmissionsSummerThousandTons, RPE_CO2EmissionsTotalThousandTons, RPE_NOXEmissionsSummerThousandTons, RPE_NOXEmissionsTotalThousandTons, RPE_SO2EmissionsSummerThousandTons, RPE_SO2EmissionsTotalThousandTons, RPE_DispatchableCapacityMW), MeetPrimaryCriteria3,"=1",IF($E$8="IPM Region",RPE_IPMRegionGroupAcronym,RPE_State),"="&IF($E$8="National","*",$I57))) -> 0 | N57: =IF(I57=0,"",IF($E$20="Actual",0,SUMIFS(CHOOSE(VLOOKUP($E$35,'Lookup tables'!$AK$5:$AM$15,3,0), RPE_FuelConsumptionSummerTBtu, RPE_FuelConsumptionTotalTBtu, RPE_GenerationSummerGWh, RPE_GenerationTotalGWh, RPE_CO2EmissionsSummerThousandTons, RPE_CO2EmissionsTotalThousandTons, RPE_NOXEmissionsSummerThousandTons, RPE_NOXEmissionsTotalThousandTons, RPE_SO2EmissionsSummerThousandTons, RPE_SO2EmissionsTotalThousandTons, RPE_DispatchableCapacityMW), MeetComparisonCriteria3,"=1",IF($E$8="IPM Region",RPE_IPMRegionGroupAcronym,RPE_State),"="&IF($E$8="National","*",$I57)))) -> 0 | O57: =IF(I57=0,"",IFERROR(IF($E$20="Actual",M57,IF($E$20="Absolute Change",M57-N57,IF($E$20="Percent Change",(M57-N57)/N57,IF($E$20="Emissions Rate",(M57*2/N57),IF($E$20="Capacity Factor",M57*1000/(N57*IF(NOT(ISERROR(SEARCH("Summer",$E$18))),3672,8760)),M57/N57))))),0)) -> 0 | P57: 16.00000001 | Q57: =IF(OR(I57=" ",I57=0),"",IF($Q$53="Alphabetical",99-(ROW()-6),RANK(P57,IF($B$8="State",$P$56:$P$104,$P$56:$P$118),IF($Q$53="Descending",0,1)))) -> 16 | S57: =IF(OR(I57=" ",I57=0),"",S56+1) -> 2 | T57: =IF(S57="","",INDEX($I$56:$I$118,MATCH(S57,$Q$56:$Q$118,0),1)) -> WV | U57: =IF(S57="","",INDEX($L$56:$L$118,MATCH(S57,$Q$56:$Q$118,0),1)) -> 19.81128327 | V57: =IF(S57="","",IF($V$53="off",0,INDEX($O$56:$O$118,MATCH(S57,$Q$56:$Q$118,0),1))) -> 0 | W57: =$W$53 -> 0
A58: Generation Summer GWh | B58: GWh | I58: =IF($B$8="State",Map!P5,Map!O5) -> AZ | J58: =IF(I58=0,"",SUMIFS(CHOOSE(VLOOKUP($B$18,'Lookup tables'!$AK$5:$AM$15,3,0), RPE_FuelConsumptionSummerTBtu, RPE_FuelConsumptionTotalTBtu, RPE_GenerationSummerGWh, RPE_GenerationTotalGWh, RPE_CO2EmissionsSummerThousandTons, RPE_CO2EmissionsTotalThousandTons, RPE_NOXEmissionsSummerThousandTons, RPE_NOXEmissionsTotalThousandTons, RPE_SO2EmissionsSummerThousandTons, RPE_SO2EmissionsTotalThousandTons, RPE_DispatchableCapacityMW), MeetPrimaryCriteria2,"=1",IF($B$8="IPM Region",RPE_IPMRegionGroupAcronym,RPE_State),"="&IF($B$8="National","*",$I58))) -> 5.468095407 | K58: =IF(I58=0,"",IF($B$20="Actual",0,SUMIFS(CHOOSE(VLOOKUP($B$35,'Lookup tables'!$AK$5:$AM$15,3,0), RPE_FuelConsumptionSummerTBtu, RPE_FuelConsumptionTotalTBtu, RPE_GenerationSummerGWh, RPE_GenerationTotalGWh, RPE_CO2EmissionsSummerThousandTons, RPE_CO2EmissionsTotalThousandTons, RPE_NOXEmissionsSummerThousandTons, RPE_NOXEmissionsTotalThousandTons, RPE_SO2EmissionsSummerThousandTons, RPE_SO2EmissionsTotalThousandTons, RPE_DispatchableCapacityMW), MeetComparisonCriteria2,"=1",IF($B$8="IPM Region",RPE_IPMRegionGroupAcronym,RPE_State),"="&IF($B$8="National","*",$I58)))) -> 0 | L58: 5.468095407 | M58: =IF(I58=0,"",SUMIFS(CHOOSE(VLOOKUP($E$18,'Lookup tables'!$AK$5:$AM$15,3,0), RPE_FuelConsumptionSummerTBtu, RPE_FuelConsumptionTotalTBtu, RPE_GenerationSummerGWh, RPE_GenerationTotalGWh, RPE_CO2EmissionsSummerThousandTons, RPE_CO2EmissionsTotalThousandTons, RPE_NOXEmissionsSummerThousandTons, RPE_NOXEmissionsTotalThousandTons, RPE_SO2EmissionsSummerThousandTons, RPE_SO2EmissionsTotalThousandTons, RPE_DispatchableCapacityMW), MeetPrimaryCriteria3,"=1",IF($E$8="IPM Region",RPE_IPMRegionGroupAcronym,RPE_State),"="&IF($E$8="National","*",$I58))) -> 0 | N58: =IF(I58=0,"",IF($E$20="Actual",0,SUMIFS(CHOOSE(VLOOKUP($E$35,'Lookup tables'!$AK$5:$AM$15,3,0), RPE_FuelConsumptionSummerTBtu, RPE_FuelConsumptionTotalTBtu, RPE_GenerationSummerGWh, RPE_GenerationTotalGWh, RPE_CO2EmissionsSummerThousandTons, RPE_CO2EmissionsTotalThousandTons, RPE_NOXEmissionsSummerThousandTons, RPE_NOXEmissionsTotalThousandTons, RPE_SO2EmissionsSummerThousandTons, RPE_SO2EmissionsTotalThousandTons, RPE_DispatchableCapacityMW), MeetComparisonCriteria3,"=1",IF($E$8="IPM Region",RPE_IPMRegionGroupAcronym,RPE_State),"="&IF($E$8="National","*",$I58)))) -> 0 | O58: 0 | P58: 28.00000001 | Q58: 28 | S58: =IF(OR(I58=" ",I58=0),"",S57+1) -> 3 | T58: FL | U58: 19.58311013 | V58: 0 | W58: 0
A59: Generation Total GWh | B59: GWh | I59: =IF($B$8="State",Map!P6,Map!O6) -> CA | J59: =IF(I59=0,"",SUMIFS(CHOOSE(VLOOKUP($B$18,'Lookup tables'!$AK$5:$AM$15,3,0), RPE_FuelConsumptionSummerTBtu, RPE_FuelConsumptionTotalTBtu, RPE_GenerationSummerGWh, RPE_GenerationTotalGWh, RPE_CO2EmissionsSummerThousandTons, RPE_CO2EmissionsTotalThousandTons, RPE_NOXEmissionsSummerThousandTons, RPE_NOXEmissionsTotalThousandTons, RPE_SO2EmissionsSummerThousandTons, RPE_SO2EmissionsTotalThousandTons, RPE_DispatchableCapacityMW), MeetPrimaryCriteria2,"=1",IF($B$8="IPM Region",RPE_IPMRegionGroupAcronym,RPE_State),"="&IF($B$8="National","*",$I59))) -> 2.406494788 | K59: =IF(I59=0,"",IF($B$20="Actual",0,SUMIFS(CHOOSE(VLOOKUP($B$35,'Lookup tables'!$AK$5:$AM$15,3,0), RPE_FuelConsumptionSummerTBtu, RPE_FuelConsumptionTotalTBtu, RPE_GenerationSummerGWh, RPE_GenerationTotalGWh, RPE_CO2EmissionsSummerThousandTons, RPE_CO2EmissionsTotalThousandTons, RPE_NOXEmissionsSummerThousandTons, RPE_NOXEmissionsTotalThousandTons, RPE_SO2EmissionsSummerThousandTons, RPE_SO2EmissionsTotalThousandTons, RPE_DispatchableCapacityMW), MeetComparisonCriteria2,"=1",IF($B$8="IPM Region",RPE_IPMRegionGroupAcronym,RPE_State),"="&IF($B$8="National","*",$I59)))) -> 0 | L59: 2.406494788 | M59: =IF(I59=0,"",SUMIFS(CHOOSE(VLOOKUP($E$18,'Lookup tables'!$AK$5:$AM$15,3,0), RPE_FuelConsumptionSummerTBtu, RPE_FuelConsumptionTotalTBtu, RPE_GenerationSummerGWh, RPE_GenerationTotalGWh, RPE_CO2EmissionsSummerThousandTons, RPE_CO2EmissionsTotalThousandTons, RPE_NOXEmissionsSummerThousandTons, RPE_NOXEmissionsTotalThousandTons, RPE_SO2EmissionsSummerThousandTons, RPE_SO2EmissionsTotalThousandTons, RPE_DispatchableCapacityMW), MeetPrimaryCriteria3,"=1",IF($E$8="IPM Region",RPE_IPMRegionGroupAcronym,RPE_State),"="&IF($E$8="National","*",$I59))) -> 0 | N59: =IF(I59=0,"",IF($E$20="Actual",0,SUMIFS(CHOOSE(VLOOKUP($E$35,'Lookup tables'!$AK$5:$AM$15,3,0), RPE_FuelConsumptionSummerTBtu, RPE_FuelConsumptionTotalTBtu, RPE_GenerationSummerGWh, RPE_GenerationTotalGWh, RPE_CO2EmissionsSummerThousandTons, RPE_CO2EmissionsTotalThousandTons, RPE_NOXEmissionsSummerThousandTons, RPE_NOXEmissionsTotalThousandTons, RPE_SO2EmissionsSummerThousandTons, RPE_SO2EmissionsTotalThousandTons, RPE_DispatchableCapacityMW), MeetComparisonCriteria3,"=1",IF($E$8="IPM Region",RPE_IPMRegionGroupAcronym,RPE_State),"="&IF($E$8="National","*",$I59)))) -> 0 | O59: 0 | P59: 37.00000001 | Q59: 37 | S59: 4 | T59: OH | U59: 17.94284446 | V59: 0 | W59: 0
A60: CO2 Emissions Summer Thousand Tons | B60: Thousand (short) tons CO2 | I60: =IF($B$8="State",Map!P7,Map!O7) -> CO | J60: =IF(I60=0,"",SUMIFS(CHOOSE(VLOOKUP($B$18,'Lookup tables'!$AK$5:$AM$15,3,0), RPE_FuelConsumptionSummerTBtu, RPE_FuelConsumptionTotalTBtu, RPE_GenerationSummerGWh, RPE_GenerationTotalGWh, RPE_CO2EmissionsSummerThousandTons, RPE_CO2EmissionsTotalThousandTons, RPE_NOXEmissionsSummerThousandTons, RPE_NOXEmissionsTotalThousandTons, RPE_SO2EmissionsSummerThousandTons, RPE_SO2EmissionsTotalThousandTons, RPE_DispatchableCapacityMW), MeetPrimaryCriteria2,"=1",IF($B$8="IPM Region",RPE_IPMRegionGroupAcronym,RPE_State),"="&IF($B$8="National","*",$I60))) -> 8.500427557 | K60: =IF(I60=0,"",IF($B$20="Actual",0,SUMIFS(CHOOSE(VLOOKUP($B$35,'Lookup tables'!$AK$5:$AM$15,3,0), RPE_FuelConsumptionSummerTBtu, RPE_FuelConsumptionTotalTBtu, RPE_GenerationSummerGWh, RPE_GenerationTotalGWh, RPE_CO2EmissionsSummerThousandTons, RPE_CO2EmissionsTotalThousandTons, RPE_NOXEmissionsSummerThousandTons, RPE_NOXEmissionsTotalThousandTons, RPE_SO2EmissionsSummerThousandTons, RPE_SO2EmissionsTotalThousandTons, RPE_DispatchableCapacityMW), MeetComparisonCriteria2,"=1",IF($B$8="IPM Region",RPE_IPMRegionGroupAcronym,RPE_State),"="&IF($B$8="National","*",$I60)))) -> 0 | L60: 8.500427557 | M60: =IF(I60=0,"",SUMIFS(CHOOSE(VLOOKUP($E$18,'Lookup tables'!$AK$5:$AM$15,3,0), RPE_FuelConsumptionSummerTBtu, RPE_FuelConsumptionTotalTBtu, RPE_GenerationSummerGWh, RPE_GenerationTotalGWh, RPE_CO2EmissionsSummerThousandTons, RPE_CO2EmissionsTotalThousandTons, RPE_NOXEmissionsSummerThousandTons, RPE_NOXEmissionsTotalThousandTons, RPE_SO2EmissionsSummerThousandTons, RPE_SO2EmissionsTotalThousandTons, RPE_DispatchableCapacityMW), MeetPrimaryCriteria3,"=1",IF($E$8="IPM Region",RPE_IPMRegionGroupAcronym,RPE_State),"="&IF($E$8="National","*",$I60))) -> 0 | N60: =IF(I60=0,"",IF($E$20="Actual",0,SUMIFS(CHOOSE(VLOOKUP($E$35,'Lookup tables'!$AK$5:$AM$15,3,0), RPE_FuelConsumptionSummerTBtu, RPE_FuelConsumptionTotalTBtu, RPE_GenerationSummerGWh, RPE_GenerationTotalGWh, RPE_CO2EmissionsSummerThousandTons, RPE_CO2EmissionsTotalThousandTons, RPE_NOXEmissionsSummerThousandTons, RPE_NOXEmissionsTotalThousandTons, RPE_SO2EmissionsSummerThousandTons, RPE_SO2EmissionsTotalThousandTons, RPE_DispatchableCapacityMW), MeetComparisonCriteria3,"=1",IF($E$8="IPM Region",RPE_IPMRegionGroupAcronym,RPE_State),"="&IF($E$8="National","*",$I60)))) -> 0 | O60: 0 | P60: 19.00000001 | Q60: 19 | S60: 5 | T60: IN | U60: 16.32433115 | V60: 0 | W60: 0
A61: CO2 Emissions Total Thousand Tons | B61: Thousand (short) tons CO2 | I61: =IF($B$8="State",Map!P8,Map!O8) -> CT | J61: =IF(I61=0,"",SUMIFS(CHOOSE(VLOOKUP($B$18,'Lookup tables'!$AK$5:$AM$15,3,0), RPE_FuelConsumptionSummerTBtu, RPE_FuelConsumptionTotalTBtu, RPE_GenerationSummerGWh, RPE_GenerationTotalGWh, RPE_CO2EmissionsSummerThousandTons, RPE_CO2EmissionsTotalThousandTons, RPE_NOXEmissionsSummerThousandTons, RPE_NOXEmissionsTotalThousandTons, RPE_SO2EmissionsSummerThousandTons, RPE_SO2EmissionsTotalThousandTons, RPE_DispatchableCapacityMW), MeetPrimaryCriteria2,"=1",IF($B$8="IPM Region",RPE_IPMRegionGroupAcronym,RPE_State),"="&IF($B$8="National","*",$I61))) -> 1.943951167 | K61: =IF(I61=0,"",IF($B$20="Actual",0,SUMIFS(CHOOSE(VLOOKUP($B$35,'Lookup tables'!$AK$5:$AM$15,3,0), RPE_FuelConsumptionSummerTBtu, RPE_FuelConsumptionTotalTBtu, RPE_GenerationSummerGWh, RPE_GenerationTotalGWh, RPE_CO2EmissionsSummerThousandTons, RPE_CO2EmissionsTotalThousandTons, RPE_NOXEmissionsSummerThousandTons, RPE_NOXEmissionsTotalThousandTons, RPE_SO2EmissionsSummerThousandTons, RPE_SO2EmissionsTotalThousandTons, RPE_DispatchableCapacityMW), MeetComparisonCriteria2,"=1",IF($B$8="IPM Region",RPE_IPMRegionGroupAcronym,RPE_State),"="&IF($B$8="National","*",$I61)))) -> 0 | L61: 1.943951167 | M61: =IF(I61=0,"",SUMIFS(CHOOSE(VLOOKUP($E$18,'Lookup tables'!$AK$5:$AM$15,3,0), RPE_FuelConsumptionSummerTBtu, RPE_FuelConsumptionTotalTBtu, RPE_GenerationSummerGWh, RPE_GenerationTotalGWh, RPE_CO2EmissionsSummerThousandTons, RPE_CO2EmissionsTotalThousandTons, RPE_NOXEmissionsSummerThousandTons, RPE_NOXEmissionsTotalThousandTons, RPE_SO2EmissionsSummerThousandTons, RPE_SO2EmissionsTotalThousandTons, RPE_DispatchableCapacityMW), MeetPrimaryCriteria3,"=1",IF($E$8="IPM Region",RPE_IPMRegionGroupAcronym,RPE_State),"="&IF($E$8="National","*",$I61))) -> 0 | N61: =IF(I61=0,"",IF($E$20="Actual",0,SUMIFS(CHOOSE(VLOOKUP($E$35,'Lookup tables'!$AK$5:$AM$15,3,0), RPE_FuelConsumptionSummerTBtu, RPE_FuelConsumptionTotalTBtu, RPE_GenerationSummerGWh, RPE_GenerationTotalGWh, RPE_CO2EmissionsSummerThousandTons, RPE_CO2EmissionsTotalThousandTons, RPE_NOXEmissionsSummerThousandTons, RPE_NOXEmissionsTotalThousandTons, RPE_SO2EmissionsSummerThousandTons, RPE_SO2EmissionsTotalThousandTons, RPE_DispatchableCapacityMW), MeetComparisonCriteria3,"=1",IF($E$8="IPM Region",RPE_IPMRegionGroupAcronym,RPE_State),"="&IF($E$8="National","*",$I61)))) -> 0 | O61: 0 | P61: 38.00000001 | Q61: 38 | S61: 6 | T61: NC | U61: 15.76455565 | V61: 0 | W61: 0
A62: NOX Emissions Summer Thousand Tons | B62: Thousand (short) tons NOx | I62: =IF($B$8="State",Map!P9,Map!O9) -> DC | J62: =IF(I62=0,"",SUMIFS(CHOOSE(VLOOKUP($B$18,'Lookup tables'!$AK$5:$AM$15,3,0), RPE_FuelConsumptionSummerTBtu, RPE_FuelConsumptionTotalTBtu, RPE_GenerationSummerGWh, RPE_GenerationTotalGWh, RPE_CO2EmissionsSummerThousandTons, RPE_CO2EmissionsTotalThousandTons, RPE_NOXEmissionsSummerThousandTons, RPE_NOXEmissionsTotalThousandTons, RPE_SO2EmissionsSummerThousandTons, RPE_SO2EmissionsTotalThousandTons, RPE_DispatchableCapacityMW), MeetPrimaryCriteria2,"=1",IF($B$8="IPM Region",RPE_IPMRegionGroupAcronym,RPE_State),"="&IF($B$8="National","*",$I62))) -> 0.0008477801257 | K62: =IF(I62=0,"",IF($B$20="Actual",0,SUMIFS(CHOOSE(VLOOKUP($B$35,'Lookup tables'!$AK$5:$AM$15,3,0), RPE_FuelConsumptionSummerTBtu, RPE_FuelConsumptionTotalTBtu, RPE_GenerationSummerGWh, RPE_GenerationTotalGWh, RPE_CO2EmissionsSummerThousandTons, RPE_CO2EmissionsTotalThousandTons, RPE_NOXEmissionsSummerThousandTons, RPE_NOXEmissionsTotalThousandTons, RPE_SO2EmissionsSummerThousandTons, RPE_SO2EmissionsTotalThousandTons, RPE_DispatchableCapacityMW), MeetComparisonCriteria2,"=1",IF($B$8="IPM Region",RPE_IPMRegionGroupAcronym,RPE_State),"="&IF($B$8="National","*",$I62)))) -> 0 | L62: 0.0008477801257 | M62: =IF(I62=0,"",SUMIFS(CHOOSE(VLOOKUP($E$18,'Lookup tables'!$AK$5:$AM$15,3,0), RPE_FuelConsumptionSummerTBtu, RPE_FuelConsumptionTotalTBtu, RPE_GenerationSummerGWh, RPE_GenerationTotalGWh, RPE_CO2EmissionsSummerThousandTons, RPE_CO2EmissionsTotalThousandTons, RPE_NOXEmissionsSummerThousandTons, RPE_NOXEmissionsTotalThousandTons, RPE_SO2EmissionsSummerThousandTons, RPE_SO2EmissionsTotalThousandTons, RPE_DispatchableCapacityMW), MeetPrimaryCriteria3,"=1",IF($E$8="IPM Region",RPE_IPMRegionGroupAcronym,RPE_State),"="&IF($E$8="National","*",$I62))) -> 0 | N62: =IF(I62=0,"",IF($E$20="Actual",0,SUMIFS(CHOOSE(VLOOKUP($E$35,'Lookup tables'!$AK$5:$AM$15,3,0), RPE_FuelConsumptionSummerTBtu, RPE_FuelConsumptionTotalTBtu, RPE_GenerationSummerGWh, RPE_GenerationTotalGWh, RPE_CO2EmissionsSummerThousandTons, RPE_CO2EmissionsTotalThousandTons, RPE_NOXEmissionsSummerThousandTons, RPE_NOXEmissionsTotalThousandTons, RPE_SO2EmissionsSummerThousandTons, RPE_SO2EmissionsTotalThousandTons, RPE_DispatchableCapacityMW), MeetComparisonCriteria3,"=1",IF($E$8="IPM Region",RPE_IPMRegionGroupAcronym,RPE_State),"="&IF($E$8="National","*",$I62)))) -> 0 | O62: 0 | P62: 49.00000001 | Q62: 49 | S62: 7 | T62: PA | U62: 14.92968131 | V62: 0 | W62: 0
A63: NOX Emissions Total Thousand Tons | B63: Thousand (short) tons NOx | I63: =IF($B$8="State",Map!P10,Map!O10) -> DE | J63: =IF(I63=0,"",SUMIFS(CHOOSE(VLOOKUP($B$18,'Lookup tables'!$AK$5:$AM$15,3,0), RPE_FuelConsumptionSummerTBtu, RPE_FuelConsumptionTotalTBtu, RPE_GenerationSummerGWh, RPE_GenerationTotalGWh, RPE_CO2EmissionsSummerThousandTons, RPE_CO2EmissionsTotalThousandTons, RPE_NOXEmissionsSummerThousandTons, RPE_NOXEmissionsTotalThousandTons, RPE_SO2EmissionsSummerThousandTons, RPE_SO2EmissionsTotalThousandTons, RPE_DispatchableCapacityMW), MeetPrimaryCriteria2,"=1",IF($B$8="IPM Region",RPE_IPMRegionGroupAcronym,RPE_State),"="&IF($B$8="National","*",$I63))) -> 0.2427265003 | K63: =IF(I63=0,"",IF($B$20="Actual",0,SUMIFS(CHOOSE(VLOOKUP($B$35,'Lookup tables'!$AK$5:$AM$15,3,0), RPE_FuelConsumptionSummerTBtu, RPE_FuelConsumptionTotalTBtu, RPE_GenerationSummerGWh, RPE_GenerationTotalGWh, RPE_CO2EmissionsSummerThousandTons, RPE_CO2EmissionsTotalThousandTons, RPE_NOXEmissionsSummerThousandTons, RPE_NOXEmissionsTotalThousandTons, RPE_SO2EmissionsSummerThousandTons, RPE_SO2EmissionsTotalThousandTons, RPE_DispatchableCapacityMW), MeetComparisonCriteria2,"=1",IF($B$8="IPM Region",RPE_IPMRegionGroupAcronym,RPE_State),"="&IF($B$8="National","*",$I63)))) -> 0 | L63: 0.2427265003 | M63: =IF(I63=0,"",SUMIFS(CHOOSE(VLOOKUP($E$18,'Lookup tables'!$AK$5:$AM$15,3,0), RPE_FuelConsumptionSummerTBtu, RPE_FuelConsumptionTotalTBtu, RPE_GenerationSummerGWh, RPE_GenerationTotalGWh, RPE_CO2EmissionsSummerThousandTons, RPE_CO2EmissionsTotalThousandTons, RPE_NOXEmissionsSummerThousandTons, RPE_NOXEmissionsTotalThousandTons, RPE_SO2EmissionsSummerThousandTons, RPE_SO2EmissionsTotalThousandTons, RPE_DispatchableCapacityMW), MeetPrimaryCriteria3,"=1",IF($E$8="IPM Region",RPE_IPMRegionGroupAcronym,RPE_State),"="&IF($E$8="National","*",$I63))) -> 0 | N63: =IF(I63=0,"",IF($E$20="Actual",0,SUMIFS(CHOOSE(VLOOKUP($E$35,'Lookup tables'!$AK$5:$AM$15,3,0), RPE_FuelConsumptionSummerTBtu, RPE_FuelConsumptionTotalTBtu, RPE_GenerationSummerGWh, RPE_GenerationTotalGWh, RPE_CO2EmissionsSummerThousandTons, RPE_CO2EmissionsTotalThousandTons, RPE_NOXEmissionsSummerThousandTons, RPE_NOXEmissionsTotalThousandTons, RPE_SO2EmissionsSummerThousandTons, RPE_SO2EmissionsTotalThousandTons, RPE_DispatchableCapacityMW), MeetComparisonCriteria3,"=1",IF($E$8="IPM Region",RPE_IPMRegionGroupAcronym,RPE_State),"="&IF($E$8="National","*",$I63)))) -> 0 | O63: 0 | P63: 46.00000001 | Q63: 46 | S63: 8 | T63: MO | U63: 14.41593225 | V63: 0 | W63: 0
A64: SO2 Emissions Summer Thousand Tons | B64: Thousand (short) tons SO2 | I64: =IF($B$8="State",Map!P11,Map!O11) -> FL | J64: =IF(I64=0,"",SUMIFS(CHOOSE(VLOOKUP($B$18,'Lookup tables'!$AK$5:$AM$15,3,0), RPE_FuelConsumptionSummerTBtu, RPE_FuelConsumptionTotalTBtu, RPE_GenerationSummerGWh, RPE_GenerationTotalGWh, RPE_CO2EmissionsSummerThousandTons, RPE_CO2EmissionsTotalThousandTons, RPE_NOXEmissionsSummerThousandTons, RPE_NOXEmissionsTotalThousandTons, RPE_SO2EmissionsSummerThousandTons, RPE_SO2EmissionsTotalThousandTons, RPE_DispatchableCapacityMW), MeetPrimaryCriteria2,"=1",IF($B$8="IPM Region",RPE_IPMRegionGroupAcronym,RPE_State),"="&IF($B$8="National","*",$I64))) -> 19.58311013 | K64: =IF(I64=0,"",IF($B$20="Actual",0,SUMIFS(CHOOSE(VLOOKUP($B$35,'Lookup tables'!$AK$5:$AM$15,3,0), RPE_FuelConsumptionSummerTBtu, RPE_FuelConsumptionTotalTBtu, RPE_GenerationSummerGWh, RPE_GenerationTotalGWh, RPE_CO2EmissionsSummerThousandTons, RPE_CO2EmissionsTotalThousandTons, RPE_NOXEmissionsSummerThousandTons, RPE_NOXEmissionsTotalThousandTons, RPE_SO2EmissionsSummerThousandTons, RPE_SO2EmissionsTotalThousandTons, RPE_DispatchableCapacityMW), MeetComparisonCriteria2,"=1",IF($B$8="IPM Region",RPE_IPMRegionGroupAcronym,RPE_State),"="&IF($B$8="National","*",$I64)))) -> 0 | L64: 19.58311013 | M64: =IF(I64=0,"",SUMIFS(CHOOSE(VLOOKUP($E$18,'Lookup tables'!$AK$5:$AM$15,3,0), RPE_FuelConsumptionSummerTBtu, RPE_FuelConsumptionTotalTBtu, RPE_GenerationSummerGWh, RPE_GenerationTotalGWh, RPE_CO2EmissionsSummerThousandTons, RPE_CO2EmissionsTotalThousandTons, RPE_NOXEmissionsSummerThousandTons, RPE_NOXEmissionsTotalThousandTons, RPE_SO2EmissionsSummerThousandTons, RPE_SO2EmissionsTotalThousandTons, RPE_DispatchableCapacityMW), MeetPrimaryCriteria3,"=1",IF($E$8="IPM Region",RPE_IPMRegionGroupAcronym,RPE_State),"="&IF($E$8="National","*",$I64))) -> 0 | N64: =IF(I64=0,"",IF($E$20="Actual",0,SUMIFS(CHOOSE(VLOOKUP($E$35,'Lookup tables'!$AK$5:$AM$15,3,0), RPE_FuelConsumptionSummerTBtu, RPE_FuelConsumptionTotalTBtu, RPE_GenerationSummerGWh, RPE_GenerationTotalGWh, RPE_CO2EmissionsSummerThousandTons, RPE_CO2EmissionsTotalThousandTons, RPE_NOXEmissionsSummerThousandTons, RPE_NOXEmissionsTotalThousandTons, RPE_SO2EmissionsSummerThousandTons, RPE_SO2EmissionsTotalThousandTons, RPE_DispatchableCapacityMW), MeetComparisonCriteria3,"=1",IF($E$8="IPM Region",RPE_IPMRegionGroupAcronym,RPE_State),"="&IF($E$8="National","*",$I64)))) -> 0 | O64: 0 | P64: 3.000000006 | Q64: 3 | S64: 9 | T64: MI | U64: 13.20644789 | V64: 0 | W64: 0
A65: SO2 Emissions Total Thousand Tons | B65: Thousand (short) tons SO2 | I65: =IF($B$8="State",Map!P12,Map!O12) -> GA | J65: =IF(I65=0,"",SUMIFS(CHOOSE(VLOOKUP($B$18,'Lookup tables'!$AK$5:$AM$15,3,0), RPE_FuelConsumptionSummerTBtu, RPE_FuelConsumptionTotalTBtu, RPE_GenerationSummerGWh, RPE_GenerationTotalGWh, RPE_CO2EmissionsSummerThousandTons, RPE_CO2EmissionsTotalThousandTons, RPE_NOXEmissionsSummerThousandTons, RPE_NOXEmissionsTotalThousandTons, RPE_SO2EmissionsSummerThousandTons, RPE_SO2EmissionsTotalThousandTons, RPE_DispatchableCapacityMW), MeetPrimaryCriteria2,"=1",IF($B$8="IPM Region",RPE_IPMRegionGroupAcronym,RPE_State),"="&IF($B$8="National","*",$I65))) -> 8.00158894 | K65: =IF(I65=0,"",IF($B$20="Actual",0,SUMIFS(CHOOSE(VLOOKUP($B$35,'Lookup tables'!$AK$5:$AM$15,3,0), RPE_FuelConsumptionSummerTBtu, RPE_FuelConsumptionTotalTBtu, RPE_GenerationSummerGWh, RPE_GenerationTotalGWh, RPE_CO2EmissionsSummerThousandTons, RPE_CO2EmissionsTotalThousandTons, RPE_NOXEmissionsSummerThousandTons, RPE_NOXEmissionsTotalThousandTons, RPE_SO2EmissionsSummerThousandTons, RPE_SO2EmissionsTotalThousandTons, RPE_DispatchableCapacityMW), MeetComparisonCriteria2,"=1",IF($B$8="IPM Region",RPE_IPMRegionGroupAcronym,RPE_State),"="&IF($B$8="National","*",$I65)))) -> 0 | L65: 8.00158894 | M65: =IF(I65=0,"",SUMIFS(CHOOSE(VLOOKUP($E$18,'Lookup tables'!$AK$5:$AM$15,3,0), RPE_FuelConsumptionSummerTBtu, RPE_FuelConsumptionTotalTBtu, RPE_GenerationSummerGWh, RPE_GenerationTotalGWh, RPE_CO2EmissionsSummerThousandTons, RPE_CO2EmissionsTotalThousandTons, RPE_NOXEmissionsSummerThousandTons, RPE_NOXEmissionsTotalThousandTons, RPE_SO2EmissionsSummerThousandTons, RPE_SO2EmissionsTotalThousandTons, RPE_DispatchableCapacityMW), MeetPrimaryCriteria3,"=1",IF($E$8="IPM Region",RPE_IPMRegionGroupAcronym,RPE_State),"="&IF($E$8="National","*",$I65))) -> 0 | N65: =IF(I65=0,"",IF($E$20="Actual",0,SUMIFS(CHOOSE(VLOOKUP($E$35,'Lookup tables'!$AK$5:$AM$15,3,0), RPE_FuelConsumptionSummerTBtu, RPE_FuelConsumptionTotalTBtu, RPE_GenerationSummerGWh, RPE_GenerationTotalGWh, RPE_CO2EmissionsSummerThousandTons, RPE_CO2EmissionsTotalThousandTons, RPE_NOXEmissionsSummerThousandTons, RPE_NOXEmissionsTotalThousandTons, RPE_SO2EmissionsSummerThousandTons, RPE_SO2EmissionsTotalThousandTons, RPE_DispatchableCapacityMW), MeetComparisonCriteria3,"=1",IF($E$8="IPM Region",RPE_IPMRegionGroupAcronym,RPE_State),"="&IF($E$8="National","*",$I65)))) -> 0 | O65: 0 | P65: 20.00000001 | Q65: 20 | S65: 10 | T65: IL | U65: 13.0163061 | V65: 0 | W65: 0
A66: Dispatchable Capacity MW | B66: MW | I66: =IF($B$8="State",Map!P13,Map!O13) -> IA | J66: =IF(I66=0,"",SUMIFS(CHOOSE(VLOOKUP($B$18,'Lookup tables'!$AK$5:$AM$15,3,0), RPE_FuelConsumptionSummerTBtu, RPE_FuelConsumptionTotalTBtu, RPE_GenerationSummerGWh, RPE_GenerationTotalGWh, RPE_CO2EmissionsSummerThousandTons, RPE_CO2EmissionsTotalThousandTons, RPE_NOXEmissionsSummerThousandTons, RPE_NOXEmissionsTotalThousandTons, RPE_SO2EmissionsSummerThousandTons, RPE_SO2EmissionsTotalThousandTons, RPE_DispatchableCapacityMW), MeetPrimaryCriteria2,"=1",IF($B$8="IPM Region",RPE_IPMRegionGroupAcronym,RPE_State),"="&IF($B$8="National","*",$I66))) -> 10.88956537 | K66: =IF(I66=0,"",IF($B$20="Actual",0,SUMIFS(CHOOSE(VLOOKUP($B$35,'Lookup tables'!$AK$5:$AM$15,3,0), RPE_FuelConsumptionSummerTBtu, RPE_FuelConsumptionTotalTBtu, RPE_GenerationSummerGWh, RPE_GenerationTotalGWh, RPE_CO2EmissionsSummerThousandTons, RPE_CO2EmissionsTotalThousandTons, RPE_NOXEmissionsSummerThousandTons, RPE_NOXEmissionsTotalThousandTons, RPE_SO2EmissionsSummerThousandTons, RPE_SO2EmissionsTotalThousandTons, RPE_DispatchableCapacityMW), MeetComparisonCriteria2,"=1",IF($B$8="IPM Region",RPE_IPMRegionGroupAcronym,RPE_State),"="&IF($B$8="National","*",$I66)))) -> 0 | L66: 10.88956537 | M66: =IF(I66=0,"",SUMIFS(CHOOSE(VLOOKUP($E$18,'Lookup tables'!$AK$5:$AM$15,3,0), RPE_FuelConsumptionSummerTBtu, RPE_FuelConsumptionTotalTBtu, RPE_GenerationSummerGWh, RPE_GenerationTotalGWh, RPE_CO2EmissionsSummerThousandTons, RPE_CO2EmissionsTotalThousandTons, RPE_NOXEmissionsSummerThousandTons, RPE_NOXEmissionsTotalThousandTons, RPE_SO2EmissionsSummerThousandTons, RPE_SO2EmissionsTotalThousandTons, RPE_DispatchableCapacityMW), MeetPrimaryCriteria3,"=1",IF($E$8="IPM Region",RPE_IPMRegionGroupAcronym,RPE_State),"="&IF($E$8="National","*",$I66))) -> 0 | N66: =IF(I66=0,"",IF($E$20="Actual",0,SUMIFS(CHOOSE(VLOOKUP($E$35,'Lookup tables'!$AK$5:$AM$15,3,0), RPE_FuelConsumptionSummerTBtu, RPE_FuelConsumptionTotalTBtu, RPE_GenerationSummerGWh, RPE_GenerationTotalGWh, RPE_CO2EmissionsSummerThousandTons, RPE_CO2EmissionsTotalThousandTons, RPE_NOXEmissionsSummerThousandTons, RPE_NOXEmissionsTotalThousandTons, RPE_SO2EmissionsSummerThousandTons, RPE_SO2EmissionsTotalThousandTons, RPE_DispatchableCapacityMW), MeetComparisonCriteria3,"=1",IF($E$8="IPM Region",RPE_IPMRegionGroupAcronym,RPE_State),"="&IF($E$8="National","*",$I66)))) -> 0 | O66: 0 | P66: 13.00000001 | Q66: 13 | S66: 11 | T66: UT | U66: 12.45114157 | V66: 0 | W66: 0
I67: =IF($B$8="State",Map!P14,Map!O14) -> ID | J67: =IF(I67=0,"",SUMIFS(CHOOSE(VLOOKUP($B$18,'Lookup tables'!$AK$5:$AM$15,3,0), RPE_FuelConsumptionSummerTBtu, RPE_FuelConsumptionTotalTBtu, RPE_GenerationSummerGWh, RPE_GenerationTotalGWh, RPE_CO2EmissionsSummerThousandTons, RPE_CO2EmissionsTotalThousandTons, RPE_NOXEmissionsSummerThousandTons, RPE_NOXEmissionsTotalThousandTons, RPE_SO2EmissionsSummerThousandTons, RPE_SO2EmissionsTotalThousandTons, RPE_DispatchableCapacityMW), MeetPrimaryCriteria2,"=1",IF($B$8="IPM Region",RPE_IPMRegionGroupAcronym,RPE_State),"="&IF($B$8="National","*",$I67))) -> 0.08906456926 | K67: =IF(I67=0,"",IF($B$20="Actual",0,SUMIFS(CHOOSE(VLOOKUP($B$35,'Lookup tables'!$AK$5:$AM$15,3,0), RPE_FuelConsumptionSummerTBtu, RPE_FuelConsumptionTotalTBtu, RPE_GenerationSummerGWh, RPE_GenerationTotalGWh, RPE_CO2EmissionsSummerThousandTons, RPE_CO2EmissionsTotalThousandTons, RPE_NOXEmissionsSummerThousandTons, RPE_NOXEmissionsTotalThousandTons, RPE_SO2EmissionsSummerThousandTons, RPE_SO2EmissionsTotalThousandTons, RPE_DispatchableCapacityMW), MeetComparisonCriteria2,"=1",IF($B$8="IPM Region",RPE_IPMRegionGroupAcronym,RPE_State),"="&IF($B$8="National","*",$I67)))) -> 0 | L67: 0.08906456926 | M67: =IF(I67=0,"",SUMIFS(CHOOSE(VLOOKUP($E$18,'Lookup tables'!$AK$5:$AM$15,3,0), RPE_FuelConsumptionSummerTBtu, RPE_FuelConsumptionTotalTBtu, RPE_GenerationSummerGWh, RPE_GenerationTotalGWh, RPE_CO2EmissionsSummerThousandTons, RPE_CO2EmissionsTotalThousandTons, RPE_NOXEmissionsSummerThousandTons, RPE_NOXEmissionsTotalThousandTons, RPE_SO2EmissionsSummerThousandTons, RPE_SO2EmissionsTotalThousandTons, RPE_DispatchableCapacityMW), MeetPrimaryCriteria3,"=1",IF($E$8="IPM Region",RPE_IPMRegionGroupAcronym,RPE_State),"="&IF($E$8="National","*",$I67))) -> 0 | N67: =IF(I67=0,"",IF($E$20="Actual",0,SUMIFS(CHOOSE(VLOOKUP($E$35,'Lookup tables'!$AK$5:$AM$15,3,0), RPE_FuelConsumptionSummerTBtu, RPE_FuelConsumptionTotalTBtu, RPE_GenerationSummerGWh, RPE_GenerationTotalGWh, RPE_CO2EmissionsSummerThousandTons, RPE_CO2EmissionsTotalThousandTons, RPE_NOXEmissionsSummerThousandTons, RPE_NOXEmissionsTotalThousandTons, RPE_SO2EmissionsSummerThousandTons, RPE_SO2EmissionsTotalThousandTons, RPE_DispatchableCapacityMW), MeetComparisonCriteria3,"=1",IF($E$8="IPM Region",RPE_IPMRegionGroupAcronym,RPE_State),"="&IF($E$8="National","*",$I67)))) -> 0 | O67: 0 | P67: 47.00000001 | Q67: 47 | S67: 12 | T67: NE | U67: 11.62734924 | V67: 0 | W67: 0
I68: =IF($B$8="State",Map!P15,Map!O15) -> IL | J68: =IF(I68=0,"",SUMIFS(CHOOSE(VLOOKUP($B$18,'Lookup tables'!$AK$5:$AM$15,3,0), RPE_FuelConsumptionSummerTBtu, RPE_FuelConsumptionTotalTBtu, RPE_GenerationSummerGWh, RPE_GenerationTotalGWh, RPE_CO2EmissionsSummerThousandTons, RPE_CO2EmissionsTotalThousandTons, RPE_NOXEmissionsSummerThousandTons, RPE_NOXEmissionsTotalThousandTons, RPE_SO2EmissionsSummerThousandTons, RPE_SO2EmissionsTotalThousandTons, RPE_DispatchableCapacityMW), MeetPrimaryCriteria2,"=1",IF($B$8="IPM Region",RPE_IPMRegionGroupAcronym,RPE_State),"="&IF($B$8="National","*",$I68))) -> 13.0163061 | K68: =IF(I68=0,"",IF($B$20="Actual",0,SUMIFS(CHOOSE(VLOOKUP($B$35,'Lookup tables'!$AK$5:$AM$15,3,0), RPE_FuelConsumptionSummerTBtu, RPE_FuelConsumptionTotalTBtu, RPE_GenerationSummerGWh, RPE_GenerationTotalGWh, RPE_CO2EmissionsSummerThousandTons, RPE_CO2EmissionsTotalThousandTons, RPE_NOXEmissionsSummerThousandTons, RPE_NOXEmissionsTotalThousandTons, RPE_SO2EmissionsSummerThousandTons, RPE_SO2EmissionsTotalThousandTons, RPE_DispatchableCapacityMW), MeetComparisonCriteria2,"=1",IF($B$8="IPM Region",RPE_IPMRegionGroupAcronym,RPE_State),"="&IF($B$8="National","*",$I68)))) -> 0 | L68: 13.0163061 | M68: =IF(I68=0,"",SUMIFS(CHOOSE(VLOOKUP($E$18,'Lookup tables'!$AK$5:$AM$15,3,0), RPE_FuelConsumptionSummerTBtu, RPE_FuelConsumptionTotalTBtu, RPE_GenerationSummerGWh, RPE_GenerationTotalGWh, RPE_CO2EmissionsSummerThousandTons, RPE_CO2EmissionsTotalThousandTons, RPE_NOXEmissionsSummerThousandTons, RPE_NOXEmissionsTotalThousandTons, RPE_SO2EmissionsSummerThousandTons, RPE_SO2EmissionsTotalThousandTons, RPE_DispatchableCapacityMW), MeetPrimaryCriteria3,"=1",IF($E$8="IPM Region",RPE_IPMRegionGroupAcronym,RPE_State),"="&IF($E$8="National","*",$I68))) -> 0 | N68: =IF(I68=0,"",IF($E$20="Actual",0,SUMIFS(CHOOSE(VLOOKUP($E$35,'Lookup tables'!$AK$5:$AM$15,3,0), RPE_FuelConsumptionSummerTBtu, RPE_FuelConsumptionTotalTBtu, RPE_GenerationSummerGWh, RPE_GenerationTotalGWh, RPE_CO2EmissionsSummerThousandTons, RPE_CO2EmissionsTotalThousandTons, RPE_NOXEmissionsSummerThousandTons, RPE_NOXEmissionsTotalThousandTons, RPE_SO2EmissionsSummerThousandTons, RPE_SO2EmissionsTotalThousandTons, RPE_DispatchableCapacityMW), MeetComparisonCriteria3,"=1",IF($E$8="IPM Region",RPE_IPMRegionGroupAcronym,RPE_State),"="&IF($E$8="National","*",$I68)))) -> 0 | O68: 0 | P68: 10.00000001 | Q68: 10 | S68: 13 | T68: IA | U68: 10.88956537 | V68: 0 | W68: 0
I69: =IF($B$8="State",Map!P16,Map!O16) -> IN | J69: =IF(I69=0,"",SUMIFS(CHOOSE(VLOOKUP($B$18,'Lookup tables'!$AK$5:$AM$15,3,0), RPE_FuelConsumptionSummerTBtu, RPE_FuelConsumptionTotalTBtu, RPE_GenerationSummerGWh, RPE_GenerationTotalGWh, RPE_CO2EmissionsSummerThousandTons, RPE_CO2EmissionsTotalThousandTons, RPE_NOXEmissionsSummerThousandTons, RPE_NOXEmissionsTotalThousandTons, RPE_SO2EmissionsSummerThousandTons, RPE_SO2EmissionsTotalThousandTons, RPE_DispatchableCapacityMW), MeetPrimaryCriteria2,"=1",IF($B$8="IPM Region",RPE_IPMRegionGroupAcronym,RPE_State),"="&IF($B$8="National","*",$I69))) -> 16.32433115 | K69: =IF(I69=0,"",IF($B$20="Actual",0,SUMIFS(CHOOSE(VLOOKUP($B$35,'Lookup tables'!$AK$5:$AM$15,3,0), RPE_FuelConsumptionSummerTBtu, RPE_FuelConsumptionTotalTBtu, RPE_GenerationSummerGWh, RPE_GenerationTotalGWh, RPE_CO2EmissionsSummerThousandTons, RPE_CO2EmissionsTotalThousandTons, RPE_NOXEmissionsSummerThousandTons, RPE_NOXEmissionsTotalThousandTons, RPE_SO2EmissionsSummerThousandTons, RPE_SO2EmissionsTotalThousandTons, RPE_DispatchableCapacityMW), MeetComparisonCriteria2,"=1",IF($B$8="IPM Region",RPE_IPMRegionGroupAcronym,RPE_State),"="&IF($B$8="National","*",$I69)))) -> 0 | L69: 16.32433115 | M69: =IF(I69=0,"",SUMIFS(CHOOSE(VLOOKUP($E$18,'Lookup tables'!$AK$5:$AM$15,3,0), RPE_FuelConsumptionSummerTBtu, RPE_FuelConsumptionTotalTBtu, RPE_GenerationSummerGWh, RPE_GenerationTotalGWh, RPE_CO2EmissionsSummerThousandTons, RPE_CO2EmissionsTotalThousandTons, RPE_NOXEmissionsSummerThousandTons, RPE_NOXEmissionsTotalThousandTons, RPE_SO2EmissionsSummerThousandTons, RPE_SO2EmissionsTotalThousandTons, RPE_DispatchableCapacityMW), MeetPrimaryCriteria3,"=1",IF($E$8="IPM Region",RPE_IPMRegionGroupAcronym,RPE_State),"="&IF($E$8="National","*",$I69))) -> 0 | N69: =IF(I69=0,"",IF($E$20="Actual",0,SUMIFS(CHOOSE(VLOOKUP($E$35,'Lookup tables'!$AK$5:$AM$15,3,0), RPE_FuelConsumptionSummerTBtu, RPE_FuelConsumptionTotalTBtu, RPE_GenerationSummerGWh, RPE_GenerationTotalGWh, RPE_CO2EmissionsSummerThousandTons, RPE_CO2EmissionsTotalThousandTons, RPE_NOXEmissionsSummerThousandTons, RPE_NOXEmissionsTotalThousandTons, RPE_SO2EmissionsSummerThousandTons, RPE_SO2EmissionsTotalThousandTons, RPE_DispatchableCapacityMW), MeetComparisonCriteria3,"=1",IF($E$8="IPM Region",RPE_IPMRegionGroupAcronym,RPE_State),"="&IF($E$8="National","*",$I69)))) -> 0 | O69: 0 | P69: 5.000000007 | Q69: 5 | S69: 14 | T69: ND | U69: 10.70904905 | V69: 0 | W69: 0
I70: =IF($B$8="State",Map!P17,Map!O17) -> KS | J70: =IF(I70=0,"",SUMIFS(CHOOSE(VLOOKUP($B$18,'Lookup tables'!$AK$5:$AM$15,3,0), RPE_FuelConsumptionSummerTBtu, RPE_FuelConsumptionTotalTBtu, RPE_GenerationSummerGWh, RPE_GenerationTotalGWh, RPE_CO2EmissionsSummerThousandTons, RPE_CO2EmissionsTotalThousandTons, RPE_NOXEmissionsSummerThousandTons, RPE_NOXEmissionsTotalThousandTons, RPE_SO2EmissionsSummerThousandTons, RPE_SO2EmissionsTotalThousandTons, RPE_DispatchableCapacityMW), MeetPrimaryCriteria2,"=1",IF($B$8="IPM Region",RPE_IPMRegionGroupAcronym,RPE_State),"="&IF($B$8="National","*",$I70))) -> 7.986543045 | K70: =IF(I70=0,"",IF($B$20="Actual",0,SUMIFS(CHOOSE(VLOOKUP($B$35,'Lookup tables'!$AK$5:$AM$15,3,0), RPE_FuelConsumptionSummerTBtu, RPE_FuelConsumptionTotalTBtu, RPE_GenerationSummerGWh, RPE_GenerationTotalGWh, RPE_CO2EmissionsSummerThousandTons, RPE_CO2EmissionsTotalThousandTons, RPE_NOXEmissionsSummerThousandTons, RPE_NOXEmissionsTotalThousandTons, RPE_SO2EmissionsSummerThousandTons, RPE_SO2EmissionsTotalThousandTons, RPE_DispatchableCapacityMW), MeetComparisonCriteria2,"=1",IF($B$8="IPM Region",RPE_IPMRegionGroupAcronym,RPE_State),"="&IF($B$8="National","*",$I70)))) -> 0 | L70: 7.986543045 | M70: =IF(I70=0,"",SUMIFS(CHOOSE(VLOOKUP($E$18,'Lookup tables'!$AK$5:$AM$15,3,0), RPE_FuelConsumptionSummerTBtu, RPE_FuelConsumptionTotalTBtu, RPE_GenerationSummerGWh, RPE_GenerationTotalGWh, RPE_CO2EmissionsSummerThousandTons, RPE_CO2EmissionsTotalThousandTons, RPE_NOXEmissionsSummerThousandTons, RPE_NOXEmissionsTotalThousandTons, RPE_SO2EmissionsSummerThousandTons, RPE_SO2EmissionsTotalThousandTons, RPE_DispatchableCapacityMW), MeetPrimaryCriteria3,"=1",IF($E$8="IPM Region",RPE_IPMRegionGroupAcronym,RPE_State),"="&IF($E$8="National","*",$I70))) -> 0 | N70: =IF(I70=0,"",IF($E$20="Actual",0,SUMIFS(CHOOSE(VLOOKUP($E$35,'Lookup tables'!$AK$5:$AM$15,3,0), RPE_FuelConsumptionSummerTBtu, RPE_FuelConsumptionTotalTBtu, RPE_GenerationSummerGWh, RPE_GenerationTotalGWh, RPE_CO2EmissionsSummerThousandTons, RPE_CO2EmissionsTotalThousandTons, RPE_NOXEmissionsSummerThousandTons, RPE_NOXEmissionsTotalThousandTons, RPE_SO2EmissionsSummerThousandTons, RPE_SO2EmissionsTotalThousandTons, RPE_DispatchableCapacityMW), MeetComparisonCriteria3,"=1",IF($E$8="IPM Region",RPE_IPMRegionGroupAcronym,RPE_State),"="&IF($E$8="National","*",$I70)))) -> 0 | O70: 0 | P70: 21.00000001 | Q70: 21 | S70: 15 | T70: OK | U70: 10.30113534 | V70: 0 | W70: 0
I71: =IF($B$8="State",Map!P18,Map!O18) -> KY | J71: =IF(I71=0,"",SUMIFS(CHOOSE(VLOOKUP($B$18,'Lookup tables'!$AK$5:$AM$15,3,0), RPE_FuelConsumptionSummerTBtu, RPE_FuelConsumptionTotalTBtu, RPE_GenerationSummerGWh, RPE_GenerationTotalGWh, RPE_CO2EmissionsSummerThousandTons, RPE_CO2EmissionsTotalThousandTons, RPE_NOXEmissionsSummerThousandTons, RPE_NOXEmissionsTotalThousandTons, RPE_SO2EmissionsSummerThousandTons, RPE_SO2EmissionsTotalThousandTons, RPE_DispatchableCapacityMW), MeetPrimaryCriteria2,"=1",IF($B$8="IPM Region",RPE_IPMRegionGroupAcronym,RPE_State),"="&IF($B$8="National","*",$I71))) -> 10.01319042 | K71: =IF(I71=0,"",IF($B$20="Actual",0,SUMIFS(CHOOSE(VLOOKUP($B$35,'Lookup tables'!$AK$5:$AM$15,3,0), RPE_FuelConsumptionSummerTBtu, RPE_FuelConsumptionTotalTBtu, RPE_GenerationSummerGWh, RPE_GenerationTotalGWh, RPE_CO2EmissionsSummerThousandTons, RPE_CO2EmissionsTotalThousandTons, RPE_NOXEmissionsSummerThousandTons, RPE_NOXEmissionsTotalThousandTons, RPE_SO2EmissionsSummerThousandTons, RPE_SO2EmissionsTotalThousandTons, RPE_DispatchableCapacityMW), MeetComparisonCriteria2,"=1",IF($B$8="IPM Region",RPE_IPMRegionGroupAcronym,RPE_State),"="&IF($B$8="National","*",$I71)))) -> 0 | L71: 10.01319042 | M71: =IF(I71=0,"",SUMIFS(CHOOSE(VLOOKUP($E$18,'Lookup tables'!$AK$5:$AM$15,3,0), RPE_FuelConsumptionSummerTBtu, RPE_FuelConsumptionTotalTBtu, RPE_GenerationSummerGWh, RPE_GenerationTotalGWh, RPE_CO2EmissionsSummerThousandTons, RPE_CO2EmissionsTotalThousandTons, RPE_NOXEmissionsSummerThousandTons, RPE_NOXEmissionsTotalThousandTons, RPE_SO2EmissionsSummerThousandTons, RPE_SO2EmissionsTotalThousandTons, RPE_DispatchableCapacityMW), MeetPrimaryCriteria3,"=1",IF($E$8="IPM Region",RPE_IPMRegionGroupAcronym,RPE_State),"="&IF($E$8="National","*",$I71))) -> 0 | N71: =IF(I71=0,"",IF($E$20="Actual",0,SUMIFS(CHOOSE(VLOOKUP($E$35,'Lookup tables'!$AK$5:$AM$15,3,0), RPE_FuelConsumptionSummerTBtu, RPE_FuelConsumptionTotalTBtu, RPE_GenerationSummerGWh, RPE_GenerationTotalGWh, RPE_CO2EmissionsSummerThousandTons, RPE_CO2EmissionsTotalThousandTons, RPE_NOXEmissionsSummerThousandTons, RPE_NOXEmissionsTotalThousandTons, RPE_SO2EmissionsSummerThousandTons, RPE_SO2EmissionsTotalThousandTons, RPE_DispatchableCapacityMW), MeetComparisonCriteria3,"=1",IF($E$8="IPM Region",RPE_IPMRegionGroupAcronym,RPE_State),"="&IF($E$8="National","*",$I71)))) -> 0 | O71: 0 | P71: 17.00000001 | Q71: 17 | S71: 16 | T71: AR | U71: 10.26995561 | V71: 0 | W71: 0
I72: =IF($B$8="State",Map!P19,Map!O19) -> LA | J72: =IF(I72=0,"",SUMIFS(CHOOSE(VLOOKUP($B$18,'Lookup tables'!$AK$5:$AM$15,3,0), RPE_FuelConsumptionSummerTBtu, RPE_FuelConsumptionTotalTBtu, RPE_GenerationSummerGWh, RPE_GenerationTotalGWh, RPE_CO2EmissionsSummerThousandTons, RPE_CO2EmissionsTotalThousandTons, RPE_NOXEmissionsSummerThousandTons, RPE_NOXEmissionsTotalThousandTons, RPE_SO2EmissionsSummerThousandTons, RPE_SO2EmissionsTotalThousandTons, RPE_DispatchableCapacityMW), MeetPrimaryCriteria2,"=1",IF($B$8="IPM Region",RPE_IPMRegionGroupAcronym,RPE_State),"="&IF($B$8="National","*",$I72))) -> 8.829680168 | K72: =IF(I72=0,"",IF($B$20="Actual",0,SUMIFS(CHOOSE(VLOOKUP($B$35,'Lookup tables'!$AK$5:$AM$15,3,0), RPE_FuelConsumptionSummerTBtu, RPE_FuelConsumptionTotalTBtu, RPE_GenerationSummerGWh, RPE_GenerationTotalGWh, RPE_CO2EmissionsSummerThousandTons, RPE_CO2EmissionsTotalThousandTons, RPE_NOXEmissionsSummerThousandTons, RPE_NOXEmissionsTotalThousandTons, RPE_SO2EmissionsSummerThousandTons, RPE_SO2EmissionsTotalThousandTons, RPE_DispatchableCapacityMW), MeetComparisonCriteria2,"=1",IF($B$8="IPM Region",RPE_IPMRegionGroupAcronym,RPE_State),"="&IF($B$8="National","*",$I72)))) -> 0 | L72: 8.829680168 | M72: =IF(I72=0,"",SUMIFS(CHOOSE(VLOOKUP($E$18,'Lookup tables'!$AK$5:$AM$15,3,0), RPE_FuelConsumptionSummerTBtu, RPE_FuelConsumptionTotalTBtu, RPE_GenerationSummerGWh, RPE_GenerationTotalGWh, RPE_CO2EmissionsSummerThousandTons, RPE_CO2EmissionsTotalThousandTons, RPE_NOXEmissionsSummerThousandTons, RPE_NOXEmissionsTotalThousandTons, RPE_SO2EmissionsSummerThousandTons, RPE_SO2EmissionsTotalThousandTons, RPE_DispatchableCapacityMW), MeetPrimaryCriteria3,"=1",IF($E$8="IPM Region",RPE_IPMRegionGroupAcronym,RPE_State),"="&IF($E$8="National","*",$I72))) -> 0 | N72: =IF(I72=0,"",IF($E$20="Actual",0,SUMIFS(CHOOSE(VLOOKUP($E$35,'Lookup tables'!$AK$5:$AM$15,3,0), RPE_FuelConsumptionSummerTBtu, RPE_FuelConsumptionTotalTBtu, RPE_GenerationSummerGWh, RPE_GenerationTotalGWh, RPE_CO2EmissionsSummerThousandTons, RPE_CO2EmissionsTotalThousandTons, RPE_NOXEmissionsSummerThousandTons, RPE_NOXEmissionsTotalThousandTons, RPE_SO2EmissionsSummerThousandTons, RPE_SO2EmissionsTotalThousandTons, RPE_DispatchableCapacityMW), MeetComparisonCriteria3,"=1",IF($E$8="IPM Region",RPE_IPMRegionGroupAcronym,RPE_State),"="&IF($E$8="National","*",$I72)))) -> 0 | O72: 0 | P72: 18.00000001 | Q72: 18 | S72: 17 | T72: KY | U72: 10.01319042 | V72: 0 | W72: 0
I73: =IF($B$8="State",Map!P20,Map!O20) -> MA | J73: =IF(I73=0,"",SUMIFS(CHOOSE(VLOOKUP($B$18,'Lookup tables'!$AK$5:$AM$15,3,0), RPE_FuelConsumptionSummerTBtu, RPE_FuelConsumptionTotalTBtu, RPE_GenerationSummerGWh, RPE_GenerationTotalGWh, RPE_CO2EmissionsSummerThousandTons, RPE_CO2EmissionsTotalThousandTons, RPE_NOXEmissionsSummerThousandTons, RPE_NOXEmissionsTotalThousandTons, RPE_SO2EmissionsSummerThousandTons, RPE_SO2EmissionsTotalThousandTons, RPE_DispatchableCapacityMW), MeetPrimaryCriteria2,"=1",IF($B$8="IPM Region",RPE_IPMRegionGroupAcronym,RPE_State),"="&IF($B$8="National","*",$I73))) -> 2.551733713 | K73: =IF(I73=0,"",IF($B$20="Actual",0,SUMIFS(CHOOSE(VLOOKUP($B$35,'Lookup tables'!$AK$5:$AM$15,3,0), RPE_FuelConsumptionSummerTBtu, RPE_FuelConsumptionTotalTBtu, RPE_GenerationSummerGWh, RPE_GenerationTotalGWh, RPE_CO2EmissionsSummerThousandTons, RPE_CO2EmissionsTotalThousandTons, RPE_NOXEmissionsSummerThousandTons, RPE_NOXEmissionsTotalThousandTons, RPE_SO2EmissionsSummerThousandTons, RPE_SO2EmissionsTotalThousandTons, RPE_DispatchableCapacityMW), MeetComparisonCriteria2,"=1",IF($B$8="IPM Region",RPE_IPMRegionGroupAcronym,RPE_State),"="&IF($B$8="National","*",$I73)))) -> 0 | L73: 2.551733713 | M73: =IF(I73=0,"",SUMIFS(CHOOSE(VLOOKUP($E$18,'Lookup tables'!$AK$5:$AM$15,3,0), RPE_FuelConsumptionSummerTBtu, RPE_FuelConsumptionTotalTBtu, RPE_GenerationSummerGWh, RPE_GenerationTotalGWh, RPE_CO2EmissionsSummerThousandTons, RPE_CO2EmissionsTotalThousandTons, RPE_NOXEmissionsSummerThousandTons, RPE_NOXEmissionsTotalThousandTons, RPE_SO2EmissionsSummerThousandTons, RPE_SO2EmissionsTotalThousandTons, RPE_DispatchableCapacityMW), MeetPrimaryCriteria3,"=1",IF($E$8="IPM Region",RPE_IPMRegionGroupAcronym,RPE_State),"="&IF($E$8="National","*",$I73))) -> 0 | N73: =IF(I73=0,"",IF($E$20="Actual",0,SUMIFS(CHOOSE(VLOOKUP($E$35,'Lookup tables'!$AK$5:$AM$15,3,0), RPE_FuelConsumptionSummerTBtu, RPE_FuelConsumptionTotalTBtu, RPE_GenerationSummerGWh, RPE_GenerationTotalGWh, RPE_CO2EmissionsSummerThousandTons, RPE_CO2EmissionsTotalThousandTons, RPE_NOXEmissionsSummerThousandTons, RPE_NOXEmissionsTotalThousandTons, RPE_SO2EmissionsSummerThousandTons, RPE_SO2EmissionsTotalThousandTons, RPE_DispatchableCapacityMW), MeetComparisonCriteria3,"=1",IF($E$8="IPM Region",RPE_IPMRegionGroupAcronym,RPE_State),"="&IF($E$8="National","*",$I73)))) -> 0 | O73: 0 | P73: 35.00000001 | Q73: 35 | S73: 18 | T73: LA | U73: 8.829680168 | V73: 0 | W73: 0
I74: =IF($B$8="State",Map!P21,Map!O21) -> MD | J74: =IF(I74=0,"",SUMIFS(CHOOSE(VLOOKUP($B$18,'Lookup tables'!$AK$5:$AM$15,3,0), RPE_FuelConsumptionSummerTBtu, RPE_FuelConsumptionTotalTBtu, RPE_GenerationSummerGWh, RPE_GenerationTotalGWh, RPE_CO2EmissionsSummerThousandTons, RPE_CO2EmissionsTotalThousandTons, RPE_NOXEmissionsSummerThousandTons, RPE_NOXEmissionsTotalThousandTons, RPE_SO2EmissionsSummerThousandTons, RPE_SO2EmissionsTotalThousandTons, RPE_DispatchableCapacityMW), MeetPrimaryCriteria2,"=1",IF($B$8="IPM Region",RPE_IPMRegionGroupAcronym,RPE_State),"="&IF($B$8="National","*",$I74))) -> 2.544063889 | K74: =IF(I74=0,"",IF($B$20="Actual",0,SUMIFS(CHOOSE(VLOOKUP($B$35,'Lookup tables'!$AK$5:$AM$15,3,0), RPE_FuelConsumptionSummerTBtu, RPE_FuelConsumptionTotalTBtu, RPE_GenerationSummerGWh, RPE_GenerationTotalGWh, RPE_CO2EmissionsSummerThousandTons, RPE_CO2EmissionsTotalThousandTons, RPE_NOXEmissionsSummerThousandTons, RPE_NOXEmissionsTotalThousandTons, RPE_SO2EmissionsSummerThousandTons, RPE_SO2EmissionsTotalThousandTons, RPE_DispatchableCapacityMW), MeetComparisonCriteria2,"=1",IF($B$8="IPM Region",RPE_IPMRegionGroupAcronym,RPE_State),"="&IF($B$8="National","*",$I74)))) -> 0 | L74: 2.544063889 | M74: =IF(I74=0,"",SUMIFS(CHOOSE(VLOOKUP($E$18,'Lookup tables'!$AK$5:$AM$15,3,0), RPE_FuelConsumptionSummerTBtu, RPE_FuelConsumptionTotalTBtu, RPE_GenerationSummerGWh, RPE_GenerationTotalGWh, RPE_CO2EmissionsSummerThousandTons, RPE_CO2EmissionsTotalThousandTons, RPE_NOXEmissionsSummerThousandTons, RPE_NOXEmissionsTotalThousandTons, RPE_SO2EmissionsSummerThousandTons, RPE_SO2EmissionsTotalThousandTons, RPE_DispatchableCapacityMW), MeetPrimaryCriteria3,"=1",IF($E$8="IPM Region",RPE_IPMRegionGroupAcronym,RPE_State),"="&IF($E$8="National","*",$I74))) -> 0 | N74: =IF(I74=0,"",IF($E$20="Actual",0,SUMIFS(CHOOSE(VLOOKUP($E$35,'Lookup tables'!$AK$5:$AM$15,3,0), RPE_FuelConsumptionSummerTBtu, RPE_FuelConsumptionTotalTBtu, RPE_GenerationSummerGWh, RPE_GenerationTotalGWh, RPE_CO2EmissionsSummerThousandTons, RPE_CO2EmissionsTotalThousandTons, RPE_NOXEmissionsSummerThousandTons, RPE_NOXEmissionsTotalThousandTons, RPE_SO2EmissionsSummerThousandTons, RPE_SO2EmissionsTotalThousandTons, RPE_DispatchableCapacityMW), MeetComparisonCriteria3,"=1",IF($E$8="IPM Region",RPE_IPMRegionGroupAcronym,RPE_State),"="&IF($E$8="National","*",$I74)))) -> 0 | O74: 0 | P74: 36.00000001 | Q74: 36 | S74: 19 | T74: CO | U74: 8.500427557 | V74: 0 | W74: 0
I75: =IF($B$8="State",Map!P22,Map!O22) -> ME | J75: =IF(I75=0,"",SUMIFS(CHOOSE(VLOOKUP($B$18,'Lookup tables'!$AK$5:$AM$15,3,0), RPE_FuelConsumptionSummerTBtu, RPE_FuelConsumptionTotalTBtu, RPE_GenerationSummerGWh, RPE_GenerationTotalGWh, RPE_CO2EmissionsSummerThousandTons, RPE_CO2EmissionsTotalThousandTons, RPE_NOXEmissionsSummerThousandTons, RPE_NOXEmissionsTotalThousandTons, RPE_SO2EmissionsSummerThousandTons, RPE_SO2EmissionsTotalThousandTons, RPE_DispatchableCapacityMW), MeetPrimaryCriteria2,"=1",IF($B$8="IPM Region",RPE_IPMRegionGroupAcronym,RPE_State),"="&IF($B$8="National","*",$I75))) -> 1.161097049 | K75: =IF(I75=0,"",IF($B$20="Actual",0,SUMIFS(CHOOSE(VLOOKUP($B$35,'Lookup tables'!$AK$5:$AM$15,3,0), RPE_FuelConsumptionSummerTBtu, RPE_FuelConsumptionTotalTBtu, RPE_GenerationSummerGWh, RPE_GenerationTotalGWh, RPE_CO2EmissionsSummerThousandTons, RPE_CO2EmissionsTotalThousandTons, RPE_NOXEmissionsSummerThousandTons, RPE_NOXEmissionsTotalThousandTons, RPE_SO2EmissionsSummerThousandTons, RPE_SO2EmissionsTotalThousandTons, RPE_DispatchableCapacityMW), MeetComparisonCriteria2,"=1",IF($B$8="IPM Region",RPE_IPMRegionGroupAcronym,RPE_State),"="&IF($B$8="National","*",$I75)))) -> 0 | L75: 1.161097049 | M75: =IF(I75=0,"",SUMIFS(CHOOSE(VLOOKUP($E$18,'Lookup tables'!$AK$5:$AM$15,3,0), RPE_FuelConsumptionSummerTBtu, RPE_FuelConsumptionTotalTBtu, RPE_GenerationSummerGWh, RPE_GenerationTotalGWh, RPE_CO2EmissionsSummerThousandTons, RPE_CO2EmissionsTotalThousandTons, RPE_NOXEmissionsSummerThousandTons, RPE_NOXEmissionsTotalThousandTons, RPE_SO2EmissionsSummerThousandTons, RPE_SO2EmissionsTotalThousandTons, RPE_DispatchableCapacityMW), MeetPrimaryCriteria3,"=1",IF($E$8="IPM Region",RPE_IPMRegionGroupAcronym,RPE_State),"="&IF($E$8="National","*",$I75))) -> 0 | N75: =IF(I75=0,"",IF($E$20="Actual",0,SUMIFS(CHOOSE(VLOOKUP($E$35,'Lookup tables'!$AK$5:$AM$15,3,0), RPE_FuelConsumptionSummerTBtu, RPE_FuelConsumptionTotalTBtu, RPE_GenerationSummerGWh, RPE_GenerationTotalGWh, RPE_CO2EmissionsSummerThousandTons, RPE_CO2EmissionsTotalThousandTons, RPE_NOXEmissionsSummerThousandTons, RPE_NOXEmissionsTotalThousandTons, RPE_SO2EmissionsSummerThousandTons, RPE_SO2EmissionsTotalThousandTons, RPE_DispatchableCapacityMW), MeetComparisonCriteria3,"=1",IF($E$8="IPM Region",RPE_IPMRegionGroupAcronym,RPE_State),"="&IF($E$8="National","*",$I75)))) -> 0 | O75: 0 | P75: 39.00000001 | Q75: 39 | S75: 20 | T75: GA | U75: 8.00158894 | V75: 0 | W75: 0
I76: =IF($B$8="State",Map!P23,Map!O23) -> MI | J76: =IF(I76=0,"",SUMIFS(CHOOSE(VLOOKUP($B$18,'Lookup tables'!$AK$5:$AM$15,3,0), RPE_FuelConsumptionSummerTBtu, RPE_FuelConsumptionTotalTBtu, RPE_GenerationSummerGWh, RPE_GenerationTotalGWh, RPE_CO2EmissionsSummerThousandTons, RPE_CO2EmissionsTotalThousandTons, RPE_NOXEmissionsSummerThousandTons, RPE_NOXEmissionsTotalThousandTons, RPE_SO2EmissionsSummerThousandTons, RPE_SO2EmissionsTotalThousandTons, RPE_DispatchableCapacityMW), MeetPrimaryCriteria2,"=1",IF($B$8="IPM Region",RPE_IPMRegionGroupAcronym,RPE_State),"="&IF($B$8="National","*",$I76))) -> 13.20644789 | K76: =IF(I76=0,"",IF($B$20="Actual",0,SUMIFS(CHOOSE(VLOOKUP($B$35,'Lookup tables'!$AK$5:$AM$15,3,0), RPE_FuelConsumptionSummerTBtu, RPE_FuelConsumptionTotalTBtu, RPE_GenerationSummerGWh, RPE_GenerationTotalGWh, RPE_CO2EmissionsSummerThousandTons, RPE_CO2EmissionsTotalThousandTons, RPE_NOXEmissionsSummerThousandTons, RPE_NOXEmissionsTotalThousandTons, RPE_SO2EmissionsSummerThousandTons, RPE_SO2EmissionsTotalThousandTons, RPE_DispatchableCapacityMW), MeetComparisonCriteria2,"=1",IF($B$8="IPM Region",RPE_IPMRegionGroupAcronym,RPE_State),"="&IF($B$8="National","*",$I76)))) -> 0 | L76: 13.20644789 | M76: =IF(I76=0,"",SUMIFS(CHOOSE(VLOOKUP($E$18,'Lookup tables'!$AK$5:$AM$15,3,0), RPE_FuelConsumptionSummerTBtu, RPE_FuelConsumptionTotalTBtu, RPE_GenerationSummerGWh, RPE_GenerationTotalGWh, RPE_CO2EmissionsSummerThousandTons, RPE_CO2EmissionsTotalThousandTons, RPE_NOXEmissionsSummerThousandTons, RPE_NOXEmissionsTotalThousandTons, RPE_SO2EmissionsSummerThousandTons, RPE_SO2EmissionsTotalThousandTons, RPE_DispatchableCapacityMW), MeetPrimaryCriteria3,"=1",IF($E$8="IPM Region",RPE_IPMRegionGroupAcronym,RPE_State),"="&IF($E$8="National","*",$I76))) -> 0 | N76: =IF(I76=0,"",IF($E$20="Actual",0,SUMIFS(CHOOSE(VLOOKUP($E$35,'Lookup tables'!$AK$5:$AM$15,3,0), RPE_FuelConsumptionSummerTBtu, RPE_FuelConsumptionTotalTBtu, RPE_GenerationSummerGWh, RPE_GenerationTotalGWh, RPE_CO2EmissionsSummerThousandTons, RPE_CO2EmissionsTotalThousandTons, RPE_NOXEmissionsSummerThousandTons, RPE_NOXEmissionsTotalThousandTons, RPE_SO2EmissionsSummerThousandTons, RPE_SO2EmissionsTotalThousandTons, RPE_DispatchableCapacityMW), MeetComparisonCriteria3,"=1",IF($E$8="IPM Region",RPE_IPMRegionGroupAcronym,RPE_State),"="&IF($E$8="National","*",$I76)))) -> 0 | O76: 0 | P76: 9.000000008 | Q76: 9 | S76: 21 | T76: KS | U76: 7.986543045 | V76: 0 | W76: 0
I77: =IF($B$8="State",Map!P24,Map!O24) -> MN | J77: =IF(I77=0,"",SUMIFS(CHOOSE(VLOOKUP($B$18,'Lookup tables'!$AK$5:$AM$15,3,0), RPE_FuelConsumptionSummerTBtu, RPE_FuelConsumptionTotalTBtu, RPE_GenerationSummerGWh, RPE_GenerationTotalGWh, RPE_CO2EmissionsSummerThousandTons, RPE_CO2EmissionsTotalThousandTons, RPE_NOXEmissionsSummerThousandTons, RPE_NOXEmissionsTotalThousandTons, RPE_SO2EmissionsSummerThousandTons, RPE_SO2EmissionsTotalThousandTons, RPE_DispatchableCapacityMW), MeetPrimaryCriteria2,"=1",IF($B$8="IPM Region",RPE_IPMRegionGroupAcronym,RPE_State),"="&IF($B$8="National","*",$I77))) -> 7.744497493 | K77: =IF(I77=0,"",IF($B$20="Actual",0,SUMIFS(CHOOSE(VLOOKUP($B$35,'Lookup tables'!$AK$5:$AM$15,3,0), RPE_FuelConsumptionSummerTBtu, RPE_FuelConsumptionTotalTBtu, RPE_GenerationSummerGWh, RPE_GenerationTotalGWh, RPE_CO2EmissionsSummerThousandTons, RPE_CO2EmissionsTotalThousandTons, RPE_NOXEmissionsSummerThousandTons, RPE_NOXEmissionsTotalThousandTons, RPE_SO2EmissionsSummerThousandTons, RPE_SO2EmissionsTotalThousandTons, RPE_DispatchableCapacityMW), MeetComparisonCriteria2,"=1",IF($B$8="IPM Region",RPE_IPMRegionGroupAcronym,RPE_State),"="&IF($B$8="National","*",$I77)))) -> 0 | L77: 7.744497493 | M77: =IF(I77=0,"",SUMIFS(CHOOSE(VLOOKUP($E$18,'Lookup tables'!$AK$5:$AM$15,3,0), RPE_FuelConsumptionSummerTBtu, RPE_FuelConsumptionTotalTBtu, RPE_GenerationSummerGWh, RPE_GenerationTotalGWh, RPE_CO2EmissionsSummerThousandTons, RPE_CO2EmissionsTotalThousandTons, RPE_NOXEmissionsSummerThousandTons, RPE_NOXEmissionsTotalThousandTons, RPE_SO2EmissionsSummerThousandTons, RPE_SO2EmissionsTotalThousandTons, RPE_DispatchableCapacityMW), MeetPrimaryCriteria3,"=1",IF($E$8="IPM Region",RPE_IPMRegionGroupAcronym,RPE_State),"="&IF($E$8="National","*",$I77))) -> 0 | N77: =IF(I77=0,"",IF($E$20="Actual",0,SUMIFS(CHOOSE(VLOOKUP($E$35,'Lookup tables'!$AK$5:$AM$15,3,0), RPE_FuelConsumptionSummerTBtu, RPE_FuelConsumptionTotalTBtu, RPE_GenerationSummerGWh, RPE_GenerationTotalGWh, RPE_CO2EmissionsSummerThousandTons, RPE_CO2EmissionsTotalThousandTons, RPE_NOXEmissionsSummerThousandTons, RPE_NOXEmissionsTotalThousandTons, RPE_SO2EmissionsSummerThousandTons, RPE_SO2EmissionsTotalThousandTons, RPE_DispatchableCapacityMW), MeetComparisonCriteria3,"=1",IF($E$8="IPM Region",RPE_IPMRegionGroupAcronym,RPE_State),"="&IF($E$8="National","*",$I77)))) -> 0 | O77: 0 | P77: 22.00000001 | Q77: 22 | S77: 22 | T77: MN | U77: 7.744497493 | V77: 0 | W77: 0
I78: =IF($B$8="State",Map!P25,Map!O25) -> MO | J78: =IF(I78=0,"",SUMIFS(CHOOSE(VLOOKUP($B$18,'Lookup tables'!$AK$5:$AM$15,3,0), RPE_FuelConsumptionSummerTBtu, RPE_FuelConsumptionTotalTBtu, RPE_GenerationSummerGWh, RPE_GenerationTotalGWh, RPE_CO2EmissionsSummerThousandTons, RPE_CO2EmissionsTotalThousandTons, RPE_NOXEmissionsSummerThousandTons, RPE_NOXEmissionsTotalThousandTons, RPE_SO2EmissionsSummerThousandTons, RPE_SO2EmissionsTotalThousandTons, RPE_DispatchableCapacityMW), MeetPrimaryCriteria2,"=1",IF($B$8="IPM Region",RPE_IPMRegionGroupAcronym,RPE_State),"="&IF($B$8="National","*",$I78))) -> 14.41593225 | K78: =IF(I78=0,"",IF($B$20="Actual",0,SUMIFS(CHOOSE(VLOOKUP($B$35,'Lookup tables'!$AK$5:$AM$15,3,0), RPE_FuelConsumptionSummerTBtu, RPE_FuelConsumptionTotalTBtu, RPE_GenerationSummerGWh, RPE_GenerationTotalGWh, RPE_CO2EmissionsSummerThousandTons, RPE_CO2EmissionsTotalThousandTons, RPE_NOXEmissionsSummerThousandTons, RPE_NOXEmissionsTotalThousandTons, RPE_SO2EmissionsSummerThousandTons, RPE_SO2EmissionsTotalThousandTons, RPE_DispatchableCapacityMW), MeetComparisonCriteria2,"=1",IF($B$8="IPM Region",RPE_IPMRegionGroupAcronym,RPE_State),"="&IF($B$8="National","*",$I78)))) -> 0 | L78: 14.41593225 | M78: =IF(I78=0,"",SUMIFS(CHOOSE(VLOOKUP($E$18,'Lookup tables'!$AK$5:$AM$15,3,0), RPE_FuelConsumptionSummerTBtu, RPE_FuelConsumptionTotalTBtu, RPE_GenerationSummerGWh, RPE_GenerationTotalGWh, RPE_CO2EmissionsSummerThousandTons, RPE_CO2EmissionsTotalThousandTons, RPE_NOXEmissionsSummerThousandTons, RPE_NOXEmissionsTotalThousandTons, RPE_SO2EmissionsSummerThousandTons, RPE_SO2EmissionsTotalThousandTons, RPE_DispatchableCapacityMW), MeetPrimaryCriteria3,"=1",IF($E$8="IPM Region",RPE_IPMRegionGroupAcronym,RPE_State),"="&IF($E$8="National","*",$I78))) -> 0 | N78: =IF(I78=0,"",IF($E$20="Actual",0,SUMIFS(CHOOSE(VLOOKUP($E$35,'Lookup tables'!$AK$5:$AM$15,3,0), RPE_FuelConsumptionSummerTBtu, RPE_FuelConsumptionTotalTBtu, RPE_GenerationSummerGWh, RPE_GenerationTotalGWh, RPE_CO2EmissionsSummerThousandTons, RPE_CO2EmissionsTotalThousandTons, RPE_NOXEmissionsSummerThousandTons, RPE_NOXEmissionsTotalThousandTons, RPE_SO2EmissionsSummerThousandTons, RPE_SO2EmissionsTotalThousandTons, RPE_DispatchableCapacityMW), MeetComparisonCriteria3,"=1",IF($E$8="IPM Region",RPE_IPMRegionGroupAcronym,RPE_State),"="&IF($E$8="National","*",$I78)))) -> 0 | O78: 0 | P78: 8.000000008 | Q78: 8 | S78: 23 | T78: NY | U78: 7.588859782 | V78: 0 | W78: 0
I79: =IF($B$8="State",Map!P26,Map!O26) -> MS | J79: =IF(I79=0,"",SUMIFS(CHOOSE(VLOOKUP($B$18,'Lookup tables'!$AK$5:$AM$15,3,0), RPE_FuelConsumptionSummerTBtu, RPE_FuelConsumptionTotalTBtu, RPE_GenerationSummerGWh, RPE_GenerationTotalGWh, RPE_CO2EmissionsSummerThousandTons, RPE_CO2EmissionsTotalThousandTons, RPE_NOXEmissionsSummerThousandTons, RPE_NOXEmissionsTotalThousandTons, RPE_SO2EmissionsSummerThousandTons, RPE_SO2EmissionsTotalThousandTons, RPE_DispatchableCapacityMW), MeetPrimaryCriteria2,"=1",IF($B$8="IPM Region",RPE_IPMRegionGroupAcronym,RPE_State),"="&IF($B$8="National","*",$I79))) -> 2.719923737 | K79: =IF(I79=0,"",IF($B$20="Actual",0,SUMIFS(CHOOSE(VLOOKUP($B$35,'Lookup tables'!$AK$5:$AM$15,3,0), RPE_FuelConsumptionSummerTBtu, RPE_FuelConsumptionTotalTBtu, RPE_GenerationSummerGWh, RPE_GenerationTotalGWh, RPE_CO2EmissionsSummerThousandTons, RPE_CO2EmissionsTotalThousandTons, RPE_NOXEmissionsSummerThousandTons, RPE_NOXEmissionsTotalThousandTons, RPE_SO2EmissionsSummerThousandTons, RPE_SO2EmissionsTotalThousandTons, RPE_DispatchableCapacityMW), MeetComparisonCriteria2,"=1",IF($B$8="IPM Region",RPE_IPMRegionGroupAcronym,RPE_State),"="&IF($B$8="National","*",$I79)))) -> 0 | L79: 2.719923737 | M79: =IF(I79=0,"",SUMIFS(CHOOSE(VLOOKUP($E$18,'Lookup tables'!$AK$5:$AM$15,3,0), RPE_FuelConsumptionSummerTBtu, RPE_FuelConsumptionTotalTBtu, RPE_GenerationSummerGWh, RPE_GenerationTotalGWh, RPE_CO2EmissionsSummerThousandTons, RPE_CO2EmissionsTotalThousandTons, RPE_NOXEmissionsSummerThousandTons, RPE_NOXEmissionsTotalThousandTons, RPE_SO2EmissionsSummerThousandTons, RPE_SO2EmissionsTotalThousandTons, RPE_DispatchableCapacityMW), MeetPrimaryCriteria3,"=1",IF($E$8="IPM Region",RPE_IPMRegionGroupAcronym,RPE_State),"="&IF($E$8="National","*",$I79))) -> 0 | N79: =IF(I79=0,"",IF($E$20="Actual",0,SUMIFS(CHOOSE(VLOOKUP($E$35,'Lookup tables'!$AK$5:$AM$15,3,0), RPE_FuelConsumptionSummerTBtu, RPE_FuelConsumptionTotalTBtu, RPE_GenerationSummerGWh, RPE_GenerationTotalGWh, RPE_CO2EmissionsSummerThousandTons, RPE_CO2EmissionsTotalThousandTons, RPE_NOXEmissionsSummerThousandTons, RPE_NOXEmissionsTotalThousandTons, RPE_SO2EmissionsSummerThousandTons, RPE_SO2EmissionsTotalThousandTons, RPE_DispatchableCapacityMW), MeetComparisonCriteria3,"=1",IF($E$8="IPM Region",RPE_IPMRegionGroupAcronym,RPE_State),"="&IF($E$8="National","*",$I79)))) -> 0 | O79: 0 | P79: 33.00000001 | Q79: 33 | S79: 24 | T79: MT | U79: 6.689397537 | V79: 0 | W79: 0
I80: =IF($B$8="State",Map!P27,Map!O27) -> MT | J80: =IF(I80=0,"",SUMIFS(CHOOSE(VLOOKUP($B$18,'Lookup tables'!$AK$5:$AM$15,3,0), RPE_FuelConsumptionSummerTBtu, RPE_FuelConsumptionTotalTBtu, RPE_GenerationSummerGWh, RPE_GenerationTotalGWh, RPE_CO2EmissionsSummerThousandTons, RPE_CO2EmissionsTotalThousandTons, RPE_NOXEmissionsSummerThousandTons, RPE_NOXEmissionsTotalThousandTons, RPE_SO2EmissionsSummerThousandTons, RPE_SO2EmissionsTotalThousandTons, RPE_DispatchableCapacityMW), MeetPrimaryCriteria2,"=1",IF($B$8="IPM Region",RPE_IPMRegionGroupAcronym,RPE_State),"="&IF($B$8="National","*",$I80))) -> 6.689397537 | K80: =IF(I80=0,"",IF($B$20="Actual",0,SUMIFS(CHOOSE(VLOOKUP($B$35,'Lookup tables'!$AK$5:$AM$15,3,0), RPE_FuelConsumptionSummerTBtu, RPE_FuelConsumptionTotalTBtu, RPE_GenerationSummerGWh, RPE_GenerationTotalGWh, RPE_CO2EmissionsSummerThousandTons, RPE_CO2EmissionsTotalThousandTons, RPE_NOXEmissionsSummerThousandTons, RPE_NOXEmissionsTotalThousandTons, RPE_SO2EmissionsSummerThousandTons, RPE_SO2EmissionsTotalThousandTons, RPE_DispatchableCapacityMW), MeetComparisonCriteria2,"=1",IF($B$8="IPM Region",RPE_IPMRegionGroupAcronym,RPE_State),"="&IF($B$8="National","*",$I80)))) -> 0 | L80: 6.689397537 | M80: =IF(I80=0,"",SUMIFS(CHOOSE(VLOOKUP($E$18,'Lookup tables'!$AK$5:$AM$15,3,0), RPE_FuelConsumptionSummerTBtu, RPE_FuelConsumptionTotalTBtu, RPE_GenerationSummerGWh, RPE_GenerationTotalGWh, RPE_CO2EmissionsSummerThousandTons, RPE_CO2EmissionsTotalThousandTons, RPE_NOXEmissionsSummerThousandTons, RPE_NOXEmissionsTotalThousandTons, RPE_SO2EmissionsSummerThousandTons, RPE_SO2EmissionsTotalThousandTons, RPE_DispatchableCapacityMW), MeetPrimaryCriteria3,"=1",IF($E$8="IPM Region",RPE_IPMRegionGroupAcronym,RPE_State),"="&IF($E$8="National","*",$I80))) -> 0 | N80: =IF(I80=0,"",IF($E$20="Actual",0,SUMIFS(CHOOSE(VLOOKUP($E$35,'Lookup tables'!$AK$5:$AM$15,3,0), RPE_FuelConsumptionSummerTBtu, RPE_FuelConsumptionTotalTBtu, RPE_GenerationSummerGWh, RPE_GenerationTotalGWh, RPE_CO2EmissionsSummerThousandTons, RPE_CO2EmissionsTotalThousandTons, RPE_NOXEmissionsSummerThousandTons, RPE_NOXEmissionsTotalThousandTons, RPE_SO2EmissionsSummerThousandTons, RPE_SO2EmissionsTotalThousandTons, RPE_DispatchableCapacityMW), MeetComparisonCriteria3,"=1",IF($E$8="IPM Region",RPE_IPMRegionGroupAcronym,RPE_State),"="&IF($E$8="National","*",$I80)))) -> 0 | O80: 0 | P80: 24.00000001 | Q80: 24 | S80: 25 | T80: WY | U80: 6.663010654 | V80: 0 | W80: 0
I81: =IF($B$8="State",Map!P28,Map!O28) -> NC | J81: =IF(I81=0,"",SUMIFS(CHOOSE(VLOOKUP($B$18,'Lookup tables'!$AK$5:$AM$15,3,0), RPE_FuelConsumptionSummerTBtu, RPE_FuelConsumptionTotalTBtu, RPE_GenerationSummerGWh, RPE_GenerationTotalGWh, RPE_CO2EmissionsSummerThousandTons, RPE_CO2EmissionsTotalThousandTons, RPE_NOXEmissionsSummerThousandTons, RPE_NOXEmissionsTotalThousandTons, RPE_SO2EmissionsSummerThousandTons, RPE_SO2EmissionsTotalThousandTons, RPE_DispatchableCapacityMW), MeetPrimaryCriteria2,"=1",IF($B$8="IPM Region",RPE_IPMRegionGroupAcronym,RPE_State),"="&IF($B$8="National","*",$I81))) -> 15.76455565 | K81: =IF(I81=0,"",IF($B$20="Actual",0,SUMIFS(CHOOSE(VLOOKUP($B$35,'Lookup tables'!$AK$5:$AM$15,3,0), RPE_FuelConsumptionSummerTBtu, RPE_FuelConsumptionTotalTBtu, RPE_GenerationSummerGWh, RPE_GenerationTotalGWh, RPE_CO2EmissionsSummerThousandTons, RPE_CO2EmissionsTotalThousandTons, RPE_NOXEmissionsSummerThousandTons, RPE_NOXEmissionsTotalThousandTons, RPE_SO2EmissionsSummerThousandTons, RPE_SO2EmissionsTotalThousandTons, RPE_DispatchableCapacityMW), MeetComparisonCriteria2,"=1",IF($B$8="IPM Region",RPE_IPMRegionGroupAcronym,RPE_State),"="&IF($B$8="National","*",$I81)))) -> 0 | L81: 15.76455565 | M81: =IF(I81=0,"",SUMIFS(CHOOSE(VLOOKUP($E$18,'Lookup tables'!$AK$5:$AM$15,3,0), RPE_FuelConsumptionSummerTBtu, RPE_FuelConsumptionTotalTBtu, RPE_GenerationSummerGWh, RPE_GenerationTotalGWh, RPE_CO2EmissionsSummerThousandTons, RPE_CO2EmissionsTotalThousandTons, RPE_NOXEmissionsSummerThousandTons, RPE_NOXEmissionsTotalThousandTons, RPE_SO2EmissionsSummerThousandTons, RPE_SO2EmissionsTotalThousandTons, RPE_DispatchableCapacityMW), MeetPrimaryCriteria3,"=1",IF($E$8="IPM Region",RPE_IPMRegionGroupAcronym,RPE_State),"="&IF($E$8="National","*",$I81))) -> 0 | N81: =IF(I81=0,"",IF($E$20="Actual",0,SUMIFS(CHOOSE(VLOOKUP($E$35,'Lookup tables'!$AK$5:$AM$15,3,0), RPE_FuelConsumptionSummerTBtu, RPE_FuelConsumptionTotalTBtu, RPE_GenerationSummerGWh, RPE_GenerationTotalGWh, RPE_CO2EmissionsSummerThousandTons, RPE_CO2EmissionsTotalThousandTons, RPE_NOXEmissionsSummerThousandTons, RPE_NOXEmissionsTotalThousandTons, RPE_SO2EmissionsSummerThousandTons, RPE_SO2EmissionsTotalThousandTons, RPE_DispatchableCapacityMW), MeetComparisonCriteria3,"=1",IF($E$8="IPM Region",RPE_IPMRegionGroupAcronym,RPE_State),"="&IF($E$8="National","*",$I81)))) -> 0 | O81: 0 | P81: 6.000000008 | Q81: 6 | S81: 26 | T81: SC | U81: 6.075922055 | V81: 0 | W81: 0
I82: =IF($B$8="State",Map!P29,Map!O29) -> ND | J82: =IF(I82=0,"",SUMIFS(CHOOSE(VLOOKUP($B$18,'Lookup tables'!$AK$5:$AM$15,3,0), RPE_FuelConsumptionSummerTBtu, RPE_FuelConsumptionTotalTBtu, RPE_GenerationSummerGWh, RPE_GenerationTotalGWh, RPE_CO2EmissionsSummerThousandTons, RPE_CO2EmissionsTotalThousandTons, RPE_NOXEmissionsSummerThousandTons, RPE_NOXEmissionsTotalThousandTons, RPE_SO2EmissionsSummerThousandTons, RPE_SO2EmissionsTotalThousandTons, RPE_DispatchableCapacityMW), MeetPrimaryCriteria2,"=1",IF($B$8="IPM Region",RPE_IPMRegionGroupAcronym,RPE_State),"="&IF($B$8="National","*",$I82))) -> 10.70904905 | K82: =IF(I82=0,"",IF($B$20="Actual",0,SUMIFS(CHOOSE(VLOOKUP($B$35,'Lookup tables'!$AK$5:$AM$15,3,0), RPE_FuelConsumptionSummerTBtu, RPE_FuelConsumptionTotalTBtu, RPE_GenerationSummerGWh, RPE_GenerationTotalGWh, RPE_CO2EmissionsSummerThousandTons, RPE_CO2EmissionsTotalThousandTons, RPE_NOXEmissionsSummerThousandTons, RPE_NOXEmissionsTotalThousandTons, RPE_SO2EmissionsSummerThousandTons, RPE_SO2EmissionsTotalThousandTons, RPE_DispatchableCapacityMW), MeetComparisonCriteria2,"=1",IF($B$8="IPM Region",RPE_IPMRegionGroupAcronym,RPE_State),"="&IF($B$8="National","*",$I82)))) -> 0 | L82: 10.70904905 | M82: =IF(I82=0,"",SUMIFS(CHOOSE(VLOOKUP($E$18,'Lookup tables'!$AK$5:$AM$15,3,0), RPE_FuelConsumptionSummerTBtu, RPE_FuelConsumptionTotalTBtu, RPE_GenerationSummerGWh, RPE_GenerationTotalGWh, RPE_CO2EmissionsSummerThousandTons, RPE_CO2EmissionsTotalThousandTons, RPE_NOXEmissionsSummerThousandTons, RPE_NOXEmissionsTotalThousandTons, RPE_SO2EmissionsSummerThousandTons, RPE_SO2EmissionsTotalThousandTons, RPE_DispatchableCapacityMW), MeetPrimaryCriteria3,"=1",IF($E$8="IPM Region",RPE_IPMRegionGroupAcronym,RPE_State),"="&IF($E$8="National","*",$I82))) -> 0 | N82: =IF(I82=0,"",IF($E$20="Actual",0,SUMIFS(CHOOSE(VLOOKUP($E$35,'Lookup tables'!$AK$5:$AM$15,3,0), RPE_FuelConsumptionSummerTBtu, RPE_FuelConsumptionTotalTBtu, RPE_GenerationSummerGWh, RPE_GenerationTotalGWh, RPE_CO2EmissionsSummerThousandTons, RPE_CO2EmissionsTotalThousandTons, RPE_NOXEmissionsSummerThousandTons, RPE_NOXEmissionsTotalThousandTons, RPE_SO2EmissionsSummerThousandTons, RPE_SO2EmissionsTotalThousandTons, RPE_DispatchableCapacityMW), MeetComparisonCriteria3,"=1",IF($E$8="IPM Region",RPE_IPMRegionGroupAcronym,RPE_State),"="&IF($E$8="National","*",$I82)))) -> 0 | O82: 0 | P82: 14.00000001 | Q82: 14 | S82: 27 | T82: AL | U82: 5.931693297 | V82: 0 | W82: 0
I83: =IF($B$8="State",Map!P30,Map!O30) -> NE | J83: =IF(I83=0,"",SUMIFS(CHOOSE(VLOOKUP($B$18,'Lookup tables'!$AK$5:$AM$15,3,0), RPE_FuelConsumptionSummerTBtu, RPE_FuelConsumptionTotalTBtu, RPE_GenerationSummerGWh, RPE_GenerationTotalGWh, RPE_CO2EmissionsSummerThousandTons, RPE_CO2EmissionsTotalThousandTons, RPE_NOXEmissionsSummerThousandTons, RPE_NOXEmissionsTotalThousandTons, RPE_SO2EmissionsSummerThousandTons, RPE_SO2EmissionsTotalThousandTons, RPE_DispatchableCapacityMW), MeetPrimaryCriteria2,"=1",IF($B$8="IPM Region",RPE_IPMRegionGroupAcronym,RPE_State),"="&IF($B$8="National","*",$I83))) -> 11.62734924 | K83: =IF(I83=0,"",IF($B$20="Actual",0,SUMIFS(CHOOSE(VLOOKUP($B$35,'Lookup tables'!$AK$5:$AM$15,3,0), RPE_FuelConsumptionSummerTBtu, RPE_FuelConsumptionTotalTBtu, RPE_GenerationSummerGWh, RPE_GenerationTotalGWh, RPE_CO2EmissionsSummerThousandTons, RPE_CO2EmissionsTotalThousandTons, RPE_NOXEmissionsSummerThousandTons, RPE_NOXEmissionsTotalThousandTons, RPE_SO2EmissionsSummerThousandTons, RPE_SO2EmissionsTotalThousandTons, RPE_DispatchableCapacityMW), MeetComparisonCriteria2,"=1",IF($B$8="IPM Region",RPE_IPMRegionGroupAcronym,RPE_State),"="&IF($B$8="National","*",$I83)))) -> 0 | L83: 11.62734924 | M83: =IF(I83=0,"",SUMIFS(CHOOSE(VLOOKUP($E$18,'Lookup tables'!$AK$5:$AM$15,3,0), RPE_FuelConsumptionSummerTBtu, RPE_FuelConsumptionTotalTBtu, RPE_GenerationSummerGWh, RPE_GenerationTotalGWh, RPE_CO2EmissionsSummerThousandTons, RPE_CO2EmissionsTotalThousandTons, RPE_NOXEmissionsSummerThousandTons, RPE_NOXEmissionsTotalThousandTons, RPE_SO2EmissionsSummerThousandTons, RPE_SO2EmissionsTotalThousandTons, RPE_DispatchableCapacityMW), MeetPrimaryCriteria3,"=1",IF($E$8="IPM Region",RPE_IPMRegionGroupAcronym,RPE_State),"="&IF($E$8="National","*",$I83))) -> 0 | N83: =IF(I83=0,"",IF($E$20="Actual",0,SUMIFS(CHOOSE(VLOOKUP($E$35,'Lookup tables'!$AK$5:$AM$15,3,0), RPE_FuelConsumptionSummerTBtu, RPE_FuelConsumptionTotalTBtu, RPE_GenerationSummerGWh, RPE_GenerationTotalGWh, RPE_CO2EmissionsSummerThousandTons, RPE_CO2EmissionsTotalThousandTons, RPE_NOXEmissionsSummerThousandTons, RPE_NOXEmissionsTotalThousandTons, RPE_SO2EmissionsSummerThousandTons, RPE_SO2EmissionsTotalThousandTons, RPE_DispatchableCapacityMW), MeetComparisonCriteria3,"=1",IF($E$8="IPM Region",RPE_IPMRegionGroupAcronym,RPE_State),"="&IF($E$8="National","*",$I83)))) -> 0 | O83: 0 | P83: 12.00000001 | Q83: 12 | S83: 28 | T83: AZ | U83: 5.468095407 | V83: 0 | W83: 0
I84: =IF($B$8="State",Map!P31,Map!O31) -> NH | J84: =IF(I84=0,"",SUMIFS(CHOOSE(VLOOKUP($B$18,'Lookup tables'!$AK$5:$AM$15,3,0), RPE_FuelConsumptionSummerTBtu, RPE_FuelConsumptionTotalTBtu, RPE_GenerationSummerGWh, RPE_GenerationTotalGWh, RPE_CO2EmissionsSummerThousandTons, RPE_CO2EmissionsTotalThousandTons, RPE_NOXEmissionsSummerThousandTons, RPE_NOXEmissionsTotalThousandTons, RPE_SO2EmissionsSummerThousandTons, RPE_SO2EmissionsTotalThousandTons, RPE_DispatchableCapacityMW), MeetPrimaryCriteria2,"=1",IF($B$8="IPM Region",RPE_IPMRegionGroupAcronym,RPE_State),"="&IF($B$8="National","*",$I84))) -> 0.3158923524 | K84: =IF(I84=0,"",IF($B$20="Actual",0,SUMIFS(CHOOSE(VLOOKUP($B$35,'Lookup tables'!$AK$5:$AM$15,3,0), RPE_FuelConsumptionSummerTBtu, RPE_FuelConsumptionTotalTBtu, RPE_GenerationSummerGWh, RPE_GenerationTotalGWh, RPE_CO2EmissionsSummerThousandTons, RPE_CO2EmissionsTotalThousandTons, RPE_NOXEmissionsSummerThousandTons, RPE_NOXEmissionsTotalThousandTons, RPE_SO2EmissionsSummerThousandTons, RPE_SO2EmissionsTotalThousandTons, RPE_DispatchableCapacityMW), MeetComparisonCriteria2,"=1",IF($B$8="IPM Region",RPE_IPMRegionGroupAcronym,RPE_State),"="&IF($B$8="National","*",$I84)))) -> 0 | L84: 0.3158923524 | M84: =IF(I84=0,"",SUMIFS(CHOOSE(VLOOKUP($E$18,'Lookup tables'!$AK$5:$AM$15,3,0), RPE_FuelConsumptionSummerTBtu, RPE_FuelConsumptionTotalTBtu, RPE_GenerationSummerGWh, RPE_GenerationTotalGWh, RPE_CO2EmissionsSummerThousandTons, RPE_CO2EmissionsTotalThousandTons, RPE_NOXEmissionsSummerThousandTons, RPE_NOXEmissionsTotalThousandTons, RPE_SO2EmissionsSummerThousandTons, RPE_SO2EmissionsTotalThousandTons, RPE_DispatchableCapacityMW), MeetPrimaryCriteria3,"=1",IF($E$8="IPM Region",RPE_IPMRegionGroupAcronym,RPE_State),"="&IF($E$8="National","*",$I84))) -> 0 | N84: =IF(I84=0,"",IF($E$20="Actual",0,SUMIFS(CHOOSE(VLOOKUP($E$35,'Lookup tables'!$AK$5:$AM$15,3,0), RPE_FuelConsumptionSummerTBtu, RPE_FuelConsumptionTotalTBtu, RPE_GenerationSummerGWh, RPE_GenerationTotalGWh, RPE_CO2EmissionsSummerThousandTons, RPE_CO2EmissionsTotalThousandTons, RPE_NOXEmissionsSummerThousandTons, RPE_NOXEmissionsTotalThousandTons, RPE_SO2EmissionsSummerThousandTons, RPE_SO2EmissionsTotalThousandTons, RPE_DispatchableCapacityMW), MeetComparisonCriteria3,"=1",IF($E$8="IPM Region",RPE_IPMRegionGroupAcronym,RPE_State),"="&IF($E$8="National","*",$I84)))) -> 0 | O84: 0 | P84: 45.00000001 | Q84: 45 | S84: 29 | T84: NM | U84: 4.833439914 | V84: 0 | W84: 0
I85: =IF($B$8="State",Map!P32,Map!O32) -> NJ | J85: =IF(I85=0,"",SUMIFS(CHOOSE(VLOOKUP($B$18,'Lookup tables'!$AK$5:$AM$15,3,0), RPE_FuelConsumptionSummerTBtu, RPE_FuelConsumptionTotalTBtu, RPE_GenerationSummerGWh, RPE_GenerationTotalGWh, RPE_CO2EmissionsSummerThousandTons, RPE_CO2EmissionsTotalThousandTons, RPE_NOXEmissionsSummerThousandTons, RPE_NOXEmissionsTotalThousandTons, RPE_SO2EmissionsSummerThousandTons, RPE_SO2EmissionsTotalThousandTons, RPE_DispatchableCapacityMW), MeetPrimaryCriteria2,"=1",IF($B$8="IPM Region",RPE_IPMRegionGroupAcronym,RPE_State),"="&IF($B$8="National","*",$I85))) -> 2.582449098 | K85: =IF(I85=0,"",IF($B$20="Actual",0,SUMIFS(CHOOSE(VLOOKUP($B$35,'Lookup tables'!$AK$5:$AM$15,3,0), RPE_FuelConsumptionSummerTBtu, RPE_FuelConsumptionTotalTBtu, RPE_GenerationSummerGWh, RPE_GenerationTotalGWh, RPE_CO2EmissionsSummerThousandTons, RPE_CO2EmissionsTotalThousandTons, RPE_NOXEmissionsSummerThousandTons, RPE_NOXEmissionsTotalThousandTons, RPE_SO2EmissionsSummerThousandTons, RPE_SO2EmissionsTotalThousandTons, RPE_DispatchableCapacityMW), MeetComparisonCriteria2,"=1",IF($B$8="IPM Region",RPE_IPMRegionGroupAcronym,RPE_State),"="&IF($B$8="National","*",$I85)))) -> 0 | L85: 2.582449098 | M85: =IF(I85=0,"",SUMIFS(CHOOSE(VLOOKUP($E$18,'Lookup tables'!$AK$5:$AM$15,3,0), RPE_FuelConsumptionSummerTBtu, RPE_FuelConsumptionTotalTBtu, RPE_GenerationSummerGWh, RPE_GenerationTotalGWh, RPE_CO2EmissionsSummerThousandTons, RPE_CO2EmissionsTotalThousandTons, RPE_NOXEmissionsSummerThousandTons, RPE_NOXEmissionsTotalThousandTons, RPE_SO2EmissionsSummerThousandTons, RPE_SO2EmissionsTotalThousandTons, RPE_DispatchableCapacityMW), MeetPrimaryCriteria3,"=1",IF($E$8="IPM Region",RPE_IPMRegionGroupAcronym,RPE_State),"="&IF($E$8="National","*",$I85))) -> 0 | N85: =IF(I85=0,"",IF($E$20="Actual",0,SUMIFS(CHOOSE(VLOOKUP($E$35,'Lookup tables'!$AK$5:$AM$15,3,0), RPE_FuelConsumptionSummerTBtu, RPE_FuelConsumptionTotalTBtu, RPE_GenerationSummerGWh, RPE_GenerationTotalGWh, RPE_CO2EmissionsSummerThousandTons, RPE_CO2EmissionsTotalThousandTons, RPE_NOXEmissionsSummerThousandTons, RPE_NOXEmissionsTotalThousandTons, RPE_SO2EmissionsSummerThousandTons, RPE_SO2EmissionsTotalThousandTons, RPE_DispatchableCapacityMW), MeetComparisonCriteria3,"=1",IF($E$8="IPM Region",RPE_IPMRegionGroupAcronym,RPE_State),"="&IF($E$8="National","*",$I85)))) -> 0 | O85: 0 | P85: 34.00000001 | Q85: 34 | S85: 30 | T85: VA | U85: 4.586221555 | V85: 0 | W85: 0
I86: =IF($B$8="State",Map!P33,Map!O33) -> NM | J86: =IF(I86=0,"",SUMIFS(CHOOSE(VLOOKUP($B$18,'Lookup tables'!$AK$5:$AM$15,3,0), RPE_FuelConsumptionSummerTBtu, RPE_FuelConsumptionTotalTBtu, RPE_GenerationSummerGWh, RPE_GenerationTotalGWh, RPE_CO2EmissionsSummerThousandTons, RPE_CO2EmissionsTotalThousandTons, RPE_NOXEmissionsSummerThousandTons, RPE_NOXEmissionsTotalThousandTons, RPE_SO2EmissionsSummerThousandTons, RPE_SO2EmissionsTotalThousandTons, RPE_DispatchableCapacityMW), MeetPrimaryCriteria2,"=1",IF($B$8="IPM Region",RPE_IPMRegionGroupAcronym,RPE_State),"="&IF($B$8="National","*",$I86))) -> 4.833439914 | K86: =IF(I86=0,"",IF($B$20="Actual",0,SUMIFS(CHOOSE(VLOOKUP($B$35,'Lookup tables'!$AK$5:$AM$15,3,0), RPE_FuelConsumptionSummerTBtu, RPE_FuelConsumptionTotalTBtu, RPE_GenerationSummerGWh, RPE_GenerationTotalGWh, RPE_CO2EmissionsSummerThousandTons, RPE_CO2EmissionsTotalThousandTons, RPE_NOXEmissionsSummerThousandTons, RPE_NOXEmissionsTotalThousandTons, RPE_SO2EmissionsSummerThousandTons, RPE_SO2EmissionsTotalThousandTons, RPE_DispatchableCapacityMW), MeetComparisonCriteria2,"=1",IF($B$8="IPM Region",RPE_IPMRegionGroupAcronym,RPE_State),"="&IF($B$8="National","*",$I86)))) -> 0 | L86: 4.833439914 | M86: =IF(I86=0,"",SUMIFS(CHOOSE(VLOOKUP($E$18,'Lookup tables'!$AK$5:$AM$15,3,0), RPE_FuelConsumptionSummerTBtu, RPE_FuelConsumptionTotalTBtu, RPE_GenerationSummerGWh, RPE_GenerationTotalGWh, RPE_CO2EmissionsSummerThousandTons, RPE_CO2EmissionsTotalThousandTons, RPE_NOXEmissionsSummerThousandTons, RPE_NOXEmissionsTotalThousandTons, RPE_SO2EmissionsSummerThousandTons, RPE_SO2EmissionsTotalThousandTons, RPE_DispatchableCapacityMW), MeetPrimaryCriteria3,"=1",IF($E$8="IPM Region",RPE_IPMRegionGroupAcronym,RPE_State),"="&IF($E$8="National","*",$I86))) -> 0 | N86: =IF(I86=0,"",IF($E$20="Actual",0,SUMIFS(CHOOSE(VLOOKUP($E$35,'Lookup tables'!$AK$5:$AM$15,3,0), RPE_FuelConsumptionSummerTBtu, RPE_FuelConsumptionTotalTBtu, RPE_GenerationSummerGWh, RPE_GenerationTotalGWh, RPE_CO2EmissionsSummerThousandTons, RPE_CO2EmissionsTotalThousandTons, RPE_NOXEmissionsSummerThousandTons, RPE_NOXEmissionsTotalThousandTons, RPE_SO2EmissionsSummerThousandTons, RPE_SO2EmissionsTotalThousandTons, RPE_DispatchableCapacityMW), MeetComparisonCriteria3,"=1",IF($E$8="IPM Region",RPE_IPMRegionGroupAcronym,RPE_State),"="&IF($E$8="National","*",$I86)))) -> 0 | O86: 0 | P86: 29.00000001 | Q86: 29 | S86: 31 | T86: WI | U86: 4.01306625 | V86: 0 | W86: 0
I87: =IF($B$8="State",Map!P34,Map!O34) -> NV | J87: =IF(I87=0,"",SUMIFS(CHOOSE(VLOOKUP($B$18,'Lookup tables'!$AK$5:$AM$15,3,0), RPE_FuelConsumptionSummerTBtu, RPE_FuelConsumptionTotalTBtu, RPE_GenerationSummerGWh, RPE_GenerationTotalGWh, RPE_CO2EmissionsSummerThousandTons, RPE_CO2EmissionsTotalThousandTons, RPE_NOXEmissionsSummerThousandTons, RPE_NOXEmissionsTotalThousandTons, RPE_SO2EmissionsSummerThousandTons, RPE_SO2EmissionsTotalThousandTons, RPE_DispatchableCapacityMW), MeetPrimaryCriteria2,"=1",IF($B$8="IPM Region",RPE_IPMRegionGroupAcronym,RPE_State),"="&IF($B$8="National","*",$I87))) -> 0.5725088305 | K87: =IF(I87=0,"",IF($B$20="Actual",0,SUMIFS(CHOOSE(VLOOKUP($B$35,'Lookup tables'!$AK$5:$AM$15,3,0), RPE_FuelConsumptionSummerTBtu, RPE_FuelConsumptionTotalTBtu, RPE_GenerationSummerGWh, RPE_GenerationTotalGWh, RPE_CO2EmissionsSummerThousandTons, RPE_CO2EmissionsTotalThousandTons, RPE_NOXEmissionsSummerThousandTons, RPE_NOXEmissionsTotalThousandTons, RPE_SO2EmissionsSummerThousandTons, RPE_SO2EmissionsTotalThousandTons, RPE_DispatchableCapacityMW), MeetComparisonCriteria2,"=1",IF($B$8="IPM Region",RPE_IPMRegionGroupAcronym,RPE_State),"="&IF($B$8="National","*",$I87)))) -> 0 | L87: 0.5725088305 | M87: =IF(I87=0,"",SUMIFS(CHOOSE(VLOOKUP($E$18,'Lookup tables'!$AK$5:$AM$15,3,0), RPE_FuelConsumptionSummerTBtu, RPE_FuelConsumptionTotalTBtu, RPE_GenerationSummerGWh, RPE_GenerationTotalGWh, RPE_CO2EmissionsSummerThousandTons, RPE_CO2EmissionsTotalThousandTons, RPE_NOXEmissionsSummerThousandTons, RPE_NOXEmissionsTotalThousandTons, RPE_SO2EmissionsSummerThousandTons, RPE_SO2EmissionsTotalThousandTons, RPE_DispatchableCapacityMW), MeetPrimaryCriteria3,"=1",IF($E$8="IPM Region",RPE_IPMRegionGroupAcronym,RPE_State),"="&IF($E$8="National","*",$I87))) -> 0 | N87: =IF(I87=0,"",IF($E$20="Actual",0,SUMIFS(CHOOSE(VLOOKUP($E$35,'Lookup tables'!$AK$5:$AM$15,3,0), RPE_FuelConsumptionSummerTBtu, RPE_FuelConsumptionTotalTBtu, RPE_GenerationSummerGWh, RPE_GenerationTotalGWh, RPE_CO2EmissionsSummerThousandTons, RPE_CO2EmissionsTotalThousandTons, RPE_NOXEmissionsSummerThousandTons, RPE_NOXEmissionsTotalThousandTons, RPE_SO2EmissionsSummerThousandTons, RPE_SO2EmissionsTotalThousandTons, RPE_DispatchableCapacityMW), MeetComparisonCriteria3,"=1",IF($E$8="IPM Region",RPE_IPMRegionGroupAcronym,RPE_State),"="&IF($E$8="National","*",$I87)))) -> 0 | O87: 0 | P87: 41.00000001 | Q87: 41 | S87: 32 | T87: TN | U87: 3.091367322 | V87: 0 | W87: 0
I88: =IF($B$8="State",Map!P35,Map!O35) -> NY | J88: =IF(I88=0,"",SUMIFS(CHOOSE(VLOOKUP($B$18,'Lookup tables'!$AK$5:$AM$15,3,0), RPE_FuelConsumptionSummerTBtu, RPE_FuelConsumptionTotalTBtu, RPE_GenerationSummerGWh, RPE_GenerationTotalGWh, RPE_CO2EmissionsSummerThousandTons, RPE_CO2EmissionsTotalThousandTons, RPE_NOXEmissionsSummerThousandTons, RPE_NOXEmissionsTotalThousandTons, RPE_SO2EmissionsSummerThousandTons, RPE_SO2EmissionsTotalThousandTons, RPE_DispatchableCapacityMW), MeetPrimaryCriteria2,"=1",IF($B$8="IPM Region",RPE_IPMRegionGroupAcronym,RPE_State),"="&IF($B$8="National","*",$I88))) -> 7.588859782 | K88: =IF(I88=0,"",IF($B$20="Actual",0,SUMIFS(CHOOSE(VLOOKUP($B$35,'Lookup tables'!$AK$5:$AM$15,3,0), RPE_FuelConsumptionSummerTBtu, RPE_FuelConsumptionTotalTBtu, RPE_GenerationSummerGWh, RPE_GenerationTotalGWh, RPE_CO2EmissionsSummerThousandTons, RPE_CO2EmissionsTotalThousandTons, RPE_NOXEmissionsSummerThousandTons, RPE_NOXEmissionsTotalThousandTons, RPE_SO2EmissionsSummerThousandTons, RPE_SO2EmissionsTotalThousandTons, RPE_DispatchableCapacityMW), MeetComparisonCriteria2,"=1",IF($B$8="IPM Region",RPE_IPMRegionGroupAcronym,RPE_State),"="&IF($B$8="National","*",$I88)))) -> 0 | L88: 7.588859782 | M88: =IF(I88=0,"",SUMIFS(CHOOSE(VLOOKUP($E$18,'Lookup tables'!$AK$5:$AM$15,3,0), RPE_FuelConsumptionSummerTBtu, RPE_FuelConsumptionTotalTBtu, RPE_GenerationSummerGWh, RPE_GenerationTotalGWh, RPE_CO2EmissionsSummerThousandTons, RPE_CO2EmissionsTotalThousandTons, RPE_NOXEmissionsSummerThousandTons, RPE_NOXEmissionsTotalThousandTons, RPE_SO2EmissionsSummerThousandTons, RPE_SO2EmissionsTotalThousandTons, RPE_DispatchableCapacityMW), MeetPrimaryCriteria3,"=1",IF($E$8="IPM Region",RPE_IPMRegionGroupAcronym,RPE_State),"="&IF($E$8="National","*",$I88))) -> 0 | N88: =IF(I88=0,"",IF($E$20="Actual",0,SUMIFS(CHOOSE(VLOOKUP($E$35,'Lookup tables'!$AK$5:$AM$15,3,0), RPE_FuelConsumptionSummerTBtu, RPE_FuelConsumptionTotalTBtu, RPE_GenerationSummerGWh, RPE_GenerationTotalGWh, RPE_CO2EmissionsSummerThousandTons, RPE_CO2EmissionsTotalThousandTons, RPE_NOXEmissionsSummerThousandTons, RPE_NOXEmissionsTotalThousandTons, RPE_SO2EmissionsSummerThousandTons, RPE_SO2EmissionsTotalThousandTons, RPE_DispatchableCapacityMW), MeetComparisonCriteria3,"=1",IF($E$8="IPM Region",RPE_IPMRegionGroupAcronym,RPE_State),"="&IF($E$8="National","*",$I88)))) -> 0 | O88: 0 | P88: =IF(OR(I88=" ",I88=0),"",(RANK(L88,IF($B$8="State",$L$56:$L$104,$L$56:$L$118))+ROW()*0.0000000001)) -> 23.00000001 | Q88: 23 | S88: 33 | T88: MS | U88: 2.719923737 | V88: 0 | W88: 0
I89: =IF($B$8="State",Map!P36,Map!O36) -> OH | J89: =IF(I89=0,"",SUMIFS(CHOOSE(VLOOKUP($B$18,'Lookup tables'!$AK$5:$AM$15,3,0), RPE_FuelConsumptionSummerTBtu, RPE_FuelConsumptionTotalTBtu, RPE_GenerationSummerGWh, RPE_GenerationTotalGWh, RPE_CO2EmissionsSummerThousandTons, RPE_CO2EmissionsTotalThousandTons, RPE_NOXEmissionsSummerThousandTons, RPE_NOXEmissionsTotalThousandTons, RPE_SO2EmissionsSummerThousandTons, RPE_SO2EmissionsTotalThousandTons, RPE_DispatchableCapacityMW), MeetPrimaryCriteria2,"=1",IF($B$8="IPM Region",RPE_IPMRegionGroupAcronym,RPE_State),"="&IF($B$8="National","*",$I89))) -> 17.94284446 | K89: =IF(I89=0,"",IF($B$20="Actual",0,SUMIFS(CHOOSE(VLOOKUP($B$35,'Lookup tables'!$AK$5:$AM$15,3,0), RPE_FuelConsumptionSummerTBtu, RPE_FuelConsumptionTotalTBtu, RPE_GenerationSummerGWh, RPE_GenerationTotalGWh, RPE_CO2EmissionsSummerThousandTons, RPE_CO2EmissionsTotalThousandTons, RPE_NOXEmissionsSummerThousandTons, RPE_NOXEmissionsTotalThousandTons, RPE_SO2EmissionsSummerThousandTons, RPE_SO2EmissionsTotalThousandTons, RPE_DispatchableCapacityMW), MeetComparisonCriteria2,"=1",IF($B$8="IPM Region",RPE_IPMRegionGroupAcronym,RPE_State),"="&IF($B$8="National","*",$I89)))) -> 0 | L89: 17.94284446 | M89: =IF(I89=0,"",SUMIFS(CHOOSE(VLOOKUP($E$18,'Lookup tables'!$AK$5:$AM$15,3,0), RPE_FuelConsumptionSummerTBtu, RPE_FuelConsumptionTotalTBtu, RPE_GenerationSummerGWh, RPE_GenerationTotalGWh, RPE_CO2EmissionsSummerThousandTons, RPE_CO2EmissionsTotalThousandTons, RPE_NOXEmissionsSummerThousandTons, RPE_NOXEmissionsTotalThousandTons, RPE_SO2EmissionsSummerThousandTons, RPE_SO2EmissionsTotalThousandTons, RPE_DispatchableCapacityMW), MeetPrimaryCriteria3,"=1",IF($E$8="IPM Region",RPE_IPMRegionGroupAcronym,RPE_State),"="&IF($E$8="National","*",$I89))) -> 0 | N89: =IF(I89=0,"",IF($E$20="Actual",0,SUMIFS(CHOOSE(VLOOKUP($E$35,'Lookup tables'!$AK$5:$AM$15,3,0), RPE_FuelConsumptionSummerTBtu, RPE_FuelConsumptionTotalTBtu, RPE_GenerationSummerGWh, RPE_GenerationTotalGWh, RPE_CO2EmissionsSummerThousandTons, RPE_CO2EmissionsTotalThousandTons, RPE_NOXEmissionsSummerThousandTons, RPE_NOXEmissionsTotalThousandTons, RPE_SO2EmissionsSummerThousandTons, RPE_SO2EmissionsTotalThousandTons, RPE_DispatchableCapacityMW), MeetComparisonCriteria3,"=1",IF($E$8="IPM Region",RPE_IPMRegionGroupAcronym,RPE_State),"="&IF($E$8="National","*",$I89)))) -> 0 | O89: 0 | P89: 4.000000009 | Q89: 4 | S89: 34 | T89: NJ | U89: 2.582449098 | V89: 0 | W89: 0
I90: =IF($B$8="State",Map!P37,Map!O37) -> OK | J90: =IF(I90=0,"",SUMIFS(CHOOSE(VLOOKUP($B$18,'Lookup tables'!$AK$5:$AM$15,3,0), RPE_FuelConsumptionSummerTBtu, RPE_FuelConsumptionTotalTBtu, RPE_GenerationSummerGWh, RPE_GenerationTotalGWh, RPE_CO2EmissionsSummerThousandTons, RPE_CO2EmissionsTotalThousandTons, RPE_NOXEmissionsSummerThousandTons, RPE_NOXEmissionsTotalThousandTons, RPE_SO2EmissionsSummerThousandTons, RPE_SO2EmissionsTotalThousandTons, RPE_DispatchableCapacityMW), MeetPrimaryCriteria2,"=1",IF($B$8="IPM Region",RPE_IPMRegionGroupAcronym,RPE_State),"="&IF($B$8="National","*",$I90))) -> 10.30113534 | K90: =IF(I90=0,"",IF($B$20="Actual",0,SUMIFS(CHOOSE(VLOOKUP($B$35,'Lookup tables'!$AK$5:$AM$15,3,0), RPE_FuelConsumptionSummerTBtu, RPE_FuelConsumptionTotalTBtu, RPE_GenerationSummerGWh, RPE_GenerationTotalGWh, RPE_CO2EmissionsSummerThousandTons, RPE_CO2EmissionsTotalThousandTons, RPE_NOXEmissionsSummerThousandTons, RPE_NOXEmissionsTotalThousandTons, RPE_SO2EmissionsSummerThousandTons, RPE_SO2EmissionsTotalThousandTons, RPE_DispatchableCapacityMW), MeetComparisonCriteria2,"=1",IF($B$8="IPM Region",RPE_IPMRegionGroupAcronym,RPE_State),"="&IF($B$8="National","*",$I90)))) -> 0 | L90: 10.30113534 | M90: =IF(I90=0,"",SUMIFS(CHOOSE(VLOOKUP($E$18,'Lookup tables'!$AK$5:$AM$15,3,0), RPE_FuelConsumptionSummerTBtu, RPE_FuelConsumptionTotalTBtu, RPE_GenerationSummerGWh, RPE_GenerationTotalGWh, RPE_CO2EmissionsSummerThousandTons, RPE_CO2EmissionsTotalThousandTons, RPE_NOXEmissionsSummerThousandTons, RPE_NOXEmissionsTotalThousandTons, RPE_SO2EmissionsSummerThousandTons, RPE_SO2EmissionsTotalThousandTons, RPE_DispatchableCapacityMW), MeetPrimaryCriteria3,"=1",IF($E$8="IPM Region",RPE_IPMRegionGroupAcronym,RPE_State),"="&IF($E$8="National","*",$I90))) -> 0 | N90: =IF(I90=0,"",IF($E$20="Actual",0,SUMIFS(CHOOSE(VLOOKUP($E$35,'Lookup tables'!$AK$5:$AM$15,3,0), RPE_FuelConsumptionSummerTBtu, RPE_FuelConsumptionTotalTBtu, RPE_GenerationSummerGWh, RPE_GenerationTotalGWh, RPE_CO2EmissionsSummerThousandTons, RPE_CO2EmissionsTotalThousandTons, RPE_NOXEmissionsSummerThousandTons, RPE_NOXEmissionsTotalThousandTons, RPE_SO2EmissionsSummerThousandTons, RPE_SO2EmissionsTotalThousandTons, RPE_DispatchableCapacityMW), MeetComparisonCriteria3,"=1",IF($E$8="IPM Region",RPE_IPMRegionGroupAcronym,RPE_State),"="&IF($E$8="National","*",$I90)))) -> 0 | O90: 0 | P90: 15.00000001 | Q90: 15 | S90: 35 | T90: MA | U90: 2.551733713 | V90: 0 | W90: 0
I91: =IF($B$8="State",Map!P38,Map!O38) -> OR | J91: =IF(I91=0,"",SUMIFS(CHOOSE(VLOOKUP($B$18,'Lookup tables'!$AK$5:$AM$15,3,0), RPE_FuelConsumptionSummerTBtu, RPE_FuelConsumptionTotalTBtu, RPE_GenerationSummerGWh, RPE_GenerationTotalGWh, RPE_CO2EmissionsSummerThousandTons, RPE_CO2EmissionsTotalThousandTons, RPE_NOXEmissionsSummerThousandTons, RPE_NOXEmissionsTotalThousandTons, RPE_SO2EmissionsSummerThousandTons, RPE_SO2EmissionsTotalThousandTons, RPE_DispatchableCapacityMW), MeetPrimaryCriteria2,"=1",IF($B$8="IPM Region",RPE_IPMRegionGroupAcronym,RPE_State),"="&IF($B$8="National","*",$I91))) -> 0.5731176935 | K91: =IF(I91=0,"",IF($B$20="Actual",0,SUMIFS(CHOOSE(VLOOKUP($B$35,'Lookup tables'!$AK$5:$AM$15,3,0), RPE_FuelConsumptionSummerTBtu, RPE_FuelConsumptionTotalTBtu, RPE_GenerationSummerGWh, RPE_GenerationTotalGWh, RPE_CO2EmissionsSummerThousandTons, RPE_CO2EmissionsTotalThousandTons, RPE_NOXEmissionsSummerThousandTons, RPE_NOXEmissionsTotalThousandTons, RPE_SO2EmissionsSummerThousandTons, RPE_SO2EmissionsTotalThousandTons, RPE_DispatchableCapacityMW), MeetComparisonCriteria2,"=1",IF($B$8="IPM Region",RPE_IPMRegionGroupAcronym,RPE_State),"="&IF($B$8="National","*",$I91)))) -> 0 | L91: 0.5731176935 | M91: =IF(I91=0,"",SUMIFS(CHOOSE(VLOOKUP($E$18,'Lookup tables'!$AK$5:$AM$15,3,0), RPE_FuelConsumptionSummerTBtu, RPE_FuelConsumptionTotalTBtu, RPE_GenerationSummerGWh, RPE_GenerationTotalGWh, RPE_CO2EmissionsSummerThousandTons, RPE_CO2EmissionsTotalThousandTons, RPE_NOXEmissionsSummerThousandTons, RPE_NOXEmissionsTotalThousandTons, RPE_SO2EmissionsSummerThousandTons, RPE_SO2EmissionsTotalThousandTons, RPE_DispatchableCapacityMW), MeetPrimaryCriteria3,"=1",IF($E$8="IPM Region",RPE_IPMRegionGroupAcronym,RPE_State),"="&IF($E$8="National","*",$I91))) -> 0 | N91: =IF(I91=0,"",IF($E$20="Actual",0,SUMIFS(CHOOSE(VLOOKUP($E$35,'Lookup tables'!$AK$5:$AM$15,3,0), RPE_FuelConsumptionSummerTBtu, RPE_FuelConsumptionTotalTBtu, RPE_GenerationSummerGWh, RPE_GenerationTotalGWh, RPE_CO2EmissionsSummerThousandTons, RPE_CO2EmissionsTotalThousandTons, RPE_NOXEmissionsSummerThousandTons, RPE_NOXEmissionsTotalThousandTons, RPE_SO2EmissionsSummerThousandTons, RPE_SO2EmissionsTotalThousandTons, RPE_DispatchableCapacityMW), MeetComparisonCriteria3,"=1",IF($E$8="IPM Region",RPE_IPMRegionGroupAcronym,RPE_State),"="&IF($E$8="National","*",$I91)))) -> 0 | O91: 0 | P91: 40.00000001 | Q91: 40 | S91: 36 | T91: MD | U91: 2.544063889 | V91: 0 | W91: 0
